Workbook

Sheet Setup (hidden)
A1: Do not move any of these cells. The VBA code references some of these by direct cell reference! | E1: Index | F1: Type | G1: Direct Allocation Flag | H1: Program Type Flag | I1: Print Forms
E2: 1 | F2: CR | G2: 0 | H2: 1 | I2: ID | J2: Worksheet Name | K2: 1=Print, 0=Don't
A3: FiscalYear (YYYYYYYY) | B3: 20202021 | C3: MH1900_INFO Drop Down Items | E3: 2 | F3: NR | G3: 0 | H3: 1 | I3: 1 | J3: HOME | K3: 0
A4: FiscalYear (YYYY-YYYY) | B4: =MID(FiscalYear,1,4)&" - "&MID(FiscalYear,5,4) -> 2020 - 2021 | C4: Yes | E4: 3 | F4: TBS | G4: 1 | H4: 2 | I4: 2 | J4: Medi-Cal | K4: 0
A5: Rounding Error | B5: 5 | C5: No | E5: 4 | F5: ASO | G5: 1 | H5: 2 | I5: 3 | J5: Non Medi-Cal | K5: 0
A6: CurrentProtection | B6: OFF | C6: MH1991 Hospital Admin Periods | E6: 5 | F6: MAA | G6: 1 | H6: 1 | I6: 4 | J6: MH1900_INFO | K6: 0
A7: Medi-Cal? | B7: TRUE | C7: Period 1 / Period 3 | D7: Period 2/ Period 4 | E7: 6 | F7: MHS | G7: 1 | H7: 2 | I7: 5 | J7: MH1901_Schedule_A | K7: 0
A8: Affordable Care Act Period 1 | B8: ="07/01/"&MID(FiscalYear,3,2)&" - 12/31/"&MID(FiscalYear,3,2) -> 07/01/20 - 12/31/20 | C8: ="07/01/"&MID(FiscalYear,3,2)&" - 06/30/"&MID(FiscalYear,7,2) -> 07/01/20 - 06/30/21 | E8: 7 | F8: ISA | G8: 0 | H8: 1 | I8: 6 | J8: MH1901_Schedule_B | K8: 0
A9: Affordable Care Act Period 2 | B9: ="01/01/"&MID(FiscalYear,7,2)&" - 06/30/"&MID(FiscalYear,7,2) -> 01/01/21 - 06/30/21 | E9: 8 | F9: FBG | G9: 1 | H9: 2 | I9: 7 | J9: MH1901_Schedule_C | K9: 1
A10: MCAP Period 1 | B10: ="07/01/"&MID(FiscalYear,3,2)&" - 09/30/"&MID(FiscalYear,3,2) -> 07/01/20 - 09/30/20 | C10: MH1992 Rollover Period | E10: 9 | F10: HOSP | G10: 0 | H10: 1 | I10: 8 | J10: MH1960 | K10: 0
A11: Entire Fiscal Year | B11: ="07/01/"&MID(FiscalYear,3,2)&" - 06/30/"&MID(FiscalYear,7,2) -> 07/01/20 - 06/30/21 | C11: =TEXT(VALUE(MID(FiscalYear,3,2))-1,"00")&"-"&TEXT(VALUE(MID(FiscalYear,7,2))-1,"00") -> 19-20 | E11: Settlement Type for MH1901_Schedule_C | I11: 9 | J11: MH1960_HOSP_COSTS | K11: 0
A12: Date Detail Template Last Revised | B12: (Rev. 02/2019) | I12: 10 | J12: MH1960_HOSP_05 | K12: 0
A13: SD/MC Sharing Ratio FFP | B13: 0.5 | C13: MH1991 Hospital Admin Rates | I13: 11 | J13: MH1961 | K13: 0
A14: MCAP Period 2 | B14: ="10/01/"&MID(FiscalYear,3,2)&" - 02/29/"&MID(FiscalYear,7,2) -> 10/01/20 - 02/29/21 | C14: 07/01/18-06/30/19 | D14: 514.95 | I14: 12 | J14: MH1962 | K14: 0
I15: 13 | J15: MH1963 | K15: 0
A16: CurrentReCalcMode | B16: ON | I16: 14 | J16: MH1964 | K16: 0
I17: 15 | J17: MH1965 | K17: 0
A18: Healthy Family Ratio FFP | B18: 0.65 | I18: 16 | J18: MH1966_HOSPINPT | K18: 0
I19: 17 | J19: MH1966_MODE5(OTHR) | K19: 0
A20: Healthy Family Admin FFP | B20: 0.65 | I20: 18 | J20: MH1966_MODE10 | K20: 1
I21: 19 | J21: MH1966_MODE15_(1) | K21: 0
A22: SD/MC Admin/UR | B22: 0.5 | I22: 20 | J22: MH1966_MODE15_(2) | K22: 0
A23: SD/MC Skilled UR & MAA | B23: 0.75 | I23: 21 | J23: MH1966_MODE45 | K23: 0
A24: Enhanced SDMC Ratio FMAP | B24: 0.65 | I24: 22 | J24: MH1966_MODE55 | K24: 0
A25: Refugee FMAP | B25: 1 | I25: 23 | J25: MH1966_MODE60 | K25: 0
A26: Affordable Care Act FMAP - 07/01/18 - 12/31/18 | B26: 0.93 | I26: 24 | J26: MH1968 | K26: 0
A27: Affordable Care Act FMAP - 01/01 /19 - 06/30/19 | B27: 0.9 | I27: 25 | J27: MH1969 | K27: 0
A28: SB75 SGF | B28: 1 | I28: 26 | J28: MH1979 | K28: 0
A29: Enhanced Childern Ratio | B29: 0.88 | I29: 27 | J29: MH1979B | K29: 0
A30: ACA 6% SGF - 07/01/18 - 12/31/18 | B30: 0.07 | I30: 28 | J30: MH1991 | K30: 0
A31: ACA 7% SGF - 01/01/19 - 06/30/19 | B31: 0.1 | I31: 29 | J31: MH1992_INST | K31: 0
A32: Enhanced Childern Ratio- E2, E4, E5 | B32: 0.65 | I32: 30 | J32: MH1992 | K32: 0
I33: 31 | J33: MH1960_PHYS_05 | K33: 0
I34: 32 | J34: MH1960_HOSP_10 | K34: 0
I35: 33 | J35: MH1960_PHYS_10 | K35: 0
I36: 34 | J36: MH1960_HOSP_15 | K36: 0
I37: 35 | J37: MH1960_PHYS_15 | K37: 0
I38: 36 | J38: MH1960_PHYS_05_ADMIN | K38: 0
I39: 37 | J39: MH1960_HOSP_05_ADMIN | K39: 0

Sheet Errors (hidden)
B1: # of Data | C1: =COUNT(A:A) -> 183
A2: Date | B2: Number | C2: SheetName | D2: Cell | E2: Error # | F2: Error Msg | G2: Procedure Name
A3: 2015-08-05 | B3: 1 | C3: MH1900_INFO | D3: $C$44 | E3: 1004 | F3: Application-defined or object-defined error | G3: cboYN1_Change
A4: 2015-08-05 | B4: 2 | C4: MH1900_INFO | D4: $B$6 | E4: 1004 | F4: Application-defined or object-defined error | G4: cboYN1_Change
A5: 2015-08-05 | B5: 3 | C5: MH1900_INFO | D5: $E$19 | E5: 1004 | F5: Application-defined or object-defined error | G5: cboYN1_Change
A6: 2015-08-05 | B6: 4 | C6: MH1900_INFO | D6: $E$19 | E6: 1004 | F6: Application-defined or object-defined error | G6: cboYN1_Change
A7: 2015-08-05 | B7: 5 | C7: MH1900_INFO | D7: $E$19 | E7: 1004 | F7: Application-defined or object-defined error | G7: cboYN1_Change
A8: 2015-08-05 | B8: 6 | C8: MH1900_INFO | D8: $B$43 | E8: 1004 | F8: Application-defined or object-defined error | G8: cboYN1_Change
A9: 2015-08-05 | B9: 7 | C9: MH1900_INFO | D9: $B$43 | E9: 1004 | F9: Application-defined or object-defined error | G9: cboYN1_Change
A10: 2015-08-05 | B10: 8 | C10: MH1969_INST | D10: $D$3 | E10: 1004 | F10: The password you supplied is not correct. Verify that the CAPS LOCK key is off and be sure to use the correct capitalization. | G10: MH1969InstCheckBoxClick
A11: 2015-08-07 | B11: 9 | C11: HOME | D11: $B$40 | E11: 13 | F11: Type mismatch | G11: formIsRelevant
A12: 2015-08-07 | B12: 10 | C12: HOME | D12: $B$40 | E12: 13 | F12: Type mismatch | G12: formIsRelevant
A13: 2015-08-07 | B13: 11 | C13: HOME | D13: $B$40 | E13: 13 | F13: Type mismatch | G13: formIsRelevant
A14: 2015-08-07 | B14: 12 | C14: HOME | D14: $B$40 | E14: 13 | F14: Type mismatch | G14: formIsRelevant
A15: 2016-02-19 | B15: 13 | C15: MH1979 | D15: $B$74 | E15: 0 | G15: ShowEverything
A16: 2016-02-19 | B16: 14 | C16: MH1979 | D16: $B$74 | E16: 20 | F16: Resume without error | G16: ShowEverything
A17: 2016-02-19 | B17: 15 | C17: MH1979 | D17: $B$74 | E17: 0 | G17: ShowEverything
A18: 2016-02-19 | B18: 16 | C18: MH1979 | D18: $B$74 | E18: 20 | F18: Resume without error | G18: ShowEverything
A19: 2016-02-19 | B19: 17 | C19: MH1979 | D19: $B$74 | E19: 0 | G19: ShowEverything
A20: 2016-02-19 | B20: 18 | C20: MH1979 | D20: $B$74 | E20: 20 | F20: Resume without error | G20: ShowEverything
A21: 2016-02-19 | B21: 19 | C21: MH1979 | D21: $B$74 | E21: 0 | G21: ShowEverything
A22: 2016-02-19 | B22: 20 | C22: MH1979 | D22: $B$74 | E22: 20 | F22: Resume without error | G22: ShowEverything
A23: 2016-02-19 | B23: 21 | C23: MH1979 | D23: $B$74 | E23: 1004 | F23: The password you supplied is not correct. Verify that the CAPS LOCK key is off and be sure to use the correct capitalization. | G23: Fix Passords
A24: 2016-02-19 | B24: 22 | C24: MH1979 | D24: $B$74 | E24: 1004 | F24: The password you supplied is not correct. Verify that the CAPS LOCK key is off and be sure to use the correct capitalization. | G24: Fix Passords
A25: 2016-02-19 | B25: 23 | C25: MH1979 | D25: $B$74 | E25: 1004 | F25: The password you supplied is not correct. Verify that the CAPS LOCK key is off and be sure to use the correct capitalization. | G25: Fix Passords
A26: 2016-02-19 | B26: 24 | C26: MH1979 | D26: $B$74 | E26: 1004 | F26: The password you supplied is not correct. Verify that the CAPS LOCK key is off and be sure to use the correct capitalization. | G26: Fix Passords
A27: 2016-02-19 | B27: 25 | C27: MH1979 | D27: $B$74 | E27: 0 | G27: Fix Passords
A28: 2016-02-19 | B28: 26 | C28: MH1979 | D28: $B$74 | E28: 20 | F28: Resume without error | G28: Fix Passords
A29: 2016-02-19 | B29: 27 | C29: MH1979 | D29: $B$74 | E29: 1004 | F29: The password you supplied is not correct. Verify that the CAPS LOCK key is off and be sure to use the correct capitalization. | G29: Fix Passords
A30: 2016-02-19 | B30: 28 | C30: MH1979 | D30: $B$74 | E30: 1004 | F30: The password you supplied is not correct. Verify that the CAPS LOCK key is off and be sure to use the correct capitalization. | G30: Fix Passords
A31: 2016-02-19 | B31: 29 | C31: MH1979 | D31: $B$74 | E31: 1004 | F31: The password you supplied is not correct. Verify that the CAPS LOCK key is off and be sure to use the correct capitalization. | G31: Fix Passords
A32: 2016-02-19 | B32: 30 | C32: MH1979 | D32: $B$74 | E32: 1004 | F32: The password you supplied is not correct. Verify that the CAPS LOCK key is off and be sure to use the correct capitalization. | G32: Fix Passords
A33: 2016-02-19 | B33: 31 | C33: MH1979 | D33: $B$74 | E33: 0 | G33: Fix Passords
A34: 2016-02-19 | B34: 32 | C34: MH1979 | D34: $B$74 | E34: 20 | F34: Resume without error | G34: Fix Passords
A35: 2016-02-19 | B35: 33 | C35: MH1979 | D35: $B$74 | E35: 0 | G35: Fix Passords
A36: 2016-02-19 | B36: 34 | C36: MH1979 | D36: $B$74 | E36: 20 | F36: Resume without error | G36: Fix Passords
A37: 2016-05-26 | B37: 35 | C37: Crosschecks | D37: $D$12 | E37: 1004 | F37: The password you supplied is not correct. Verify that the CAPS LOCK key is off and be sure to use the correct capitalization. | G37: UnProtectAll
A38: 2016-05-26 | B38: 36 | C38: Crosschecks | D38: $D$12 | E38: 1004 | F38: The password you supplied is not correct. Verify that the CAPS LOCK key is off and be sure to use the correct capitalization. | G38: UnProtectAll
A39: 2016-05-26 | B39: 37 | C39: Crosschecks | D39: $D$12 | E39: 1004 | F39: The password you supplied is not correct. Verify that the CAPS LOCK key is off and be sure to use the correct capitalization. | G39: UnProtectAll
A40: 2016-05-26 | B40: 38 | C40: Crosschecks | D40: $D$12 | E40: 1004 | F40: The password you supplied is not correct. Verify that the CAPS LOCK key is off and be sure to use the correct capitalization. | G40: UnProtectAll
A41: 2016-05-26 | B41: 39 | C41: Crosschecks | D41: $D$12 | E41: 1004 | F41: The password you supplied is not correct. Verify that the CAPS LOCK key is off and be sure to use the correct capitalization. | G41: UnProtectAll
A42: 2016-05-26 | B42: 40 | C42: Crosschecks | D42: $D$12 | E42: 1004 | F42: The password you supplied is not correct. Verify that the CAPS LOCK key is off and be sure to use the correct capitalization. | G42: UnProtectAll
A43: 2016-05-26 | B43: 41 | C43: Crosschecks | D43: $D$12 | E43: 1004 | F43: The password you supplied is not correct. Verify that the CAPS LOCK key is off and be sure to use the correct capitalization. | G43: UnProtectAll
A44: 2016-05-26 | B44: 42 | C44: Crosschecks | D44: $D$12 | E44: 1004 | F44: The password you supplied is not correct. Verify that the CAPS LOCK key is off and be sure to use the correct capitalization. | G44: UnProtectAll
A45: 2016-05-26 | B45: 43 | C45: Crosschecks | D45: $D$12 | E45: 1004 | F45: The password you supplied is not correct. Verify that the CAPS LOCK key is off and be sure to use the correct capitalization. | G45: UnProtectAll
A46: 2016-05-26 | B46: 44 | C46: Crosschecks | D46: $D$12 | E46: 1004 | F46: The password you supplied is not correct. Verify that the CAPS LOCK key is off and be sure to use the correct capitalization. | G46: UnProtectAll
A47: 2016-05-26 | B47: 45 | C47: Crosschecks | D47: $D$12 | E47: 1004 | F47: The password you supplied is not correct. Verify that the CAPS LOCK key is off and be sure to use the correct capitalization. | G47: UnProtectAll
A48: 2016-05-26 | B48: 46 | C48: Crosschecks | D48: $D$12 | E48: 1004 | F48: The password you supplied is not correct. Verify that the CAPS LOCK key is off and be sure to use the correct capitalization. | G48: UnProtectAll
A49: 2016-05-26 | B49: 47 | C49: Crosschecks | D49: $D$12 | E49: 1004 | F49: The password you supplied is not correct. Verify that the CAPS LOCK key is off and be sure to use the correct capitalization. | G49: UnProtectAll
A50: 2016-05-26 | B50: 48 | C50: Crosschecks | D50: $D$12 | E50: 1004 | F50: The password you supplied is not correct. Verify that the CAPS LOCK key is off and be sure to use the correct capitalization. | G50: UnProtectAll
A51: 2016-05-26 | B51: 49 | C51: Crosschecks | D51: $D$12 | E51: 1004 | F51: The password you supplied is not correct. Verify that the CAPS LOCK key is off and be sure to use the correct capitalization. | G51: UnProtectAll
A52: 2016-05-26 | B52: 50 | C52: Crosschecks | D52: $D$12 | E52: 1004 | F52: The password you supplied is not correct. Verify that the CAPS LOCK key is off and be sure to use the correct capitalization. | G52: UnProtectAll
A53: 2016-05-26 | B53: 51 | C53: Crosschecks | D53: $D$12 | E53: 1004 | F53: The password you supplied is not correct. Verify that the CAPS LOCK key is off and be sure to use the correct capitalization. | G53: UnProtectAll
A54: 2016-05-26 | B54: 52 | C54: Crosschecks | D54: $D$12 | E54: 1004 | F54: The password you supplied is not correct. Verify that the CAPS LOCK key is off and be sure to use the correct capitalization. | G54: UnProtectAll
A55: 2016-05-26 | B55: 53 | C55: Crosschecks | D55: $D$12 | E55: 1004 | F55: The password you supplied is not correct. Verify that the CAPS LOCK key is off and be sure to use the correct capitalization. | G55: UnProtectAll
A56: 2016-05-26 | B56: 54 | C56: Crosschecks | D56: $D$12 | E56: 1004 | F56: The password you supplied is not correct. Verify that the CAPS LOCK key is off and be sure to use the correct capitalization. | G56: UnProtectAll
A57: 2016-05-26 | B57: 55 | C57: Crosschecks | D57: $D$12 | E57: 1004 | F57: The password you supplied is not correct. Verify that the CAPS LOCK key is off and be sure to use the correct capitalization. | G57: UnProtectAll
A58: 2016-05-26 | B58: 56 | C58: Crosschecks | D58: $D$12 | E58: 1004 | F58: The password you supplied is not correct. Verify that the CAPS LOCK key is off and be sure to use the correct capitalization. | G58: UnProtectAll
A59: 2016-05-26 | B59: 57 | C59: Crosschecks | D59: $D$12 | E59: 1004 | F59: The password you supplied is not correct. Verify that the CAPS LOCK key is off and be sure to use the correct capitalization. | G59: UnProtectAll
A60: 2016-05-26 | B60: 58 | C60: Crosschecks | D60: $D$12 | E60: 1004 | F60: The password you supplied is not correct. Verify that the CAPS LOCK key is off and be sure to use the correct capitalization. | G60: UnProtectAll
A61: 2016-05-26 | B61: 59 | C61: Crosschecks | D61: $D$12 | E61: 1004 | F61: The password you supplied is not correct. Verify that the CAPS LOCK key is off and be sure to use the correct capitalization. | G61: UnProtectAll
A62: 2016-05-26 | B62: 60 | C62: Crosschecks | D62: $D$12 | E62: 1004 | F62: The password you supplied is not correct. Verify that the CAPS LOCK key is off and be sure to use the correct capitalization. | G62: UnProtectAll
A63: 2016-09-16 | B63: 61 | C63: MH1968 | D63: $B$4 | E63: 1004 | F63: The password you supplied is not correct. Verify that the CAPS LOCK key is off and be sure to use the correct capitalization. | G63: UnProtectAll
A64: 2016-09-16 | B64: 62 | C64: MH1968 | D64: $B$4 | E64: 1004 | F64: The password you supplied is not correct. Verify that the CAPS LOCK key is off and be sure to use the correct capitalization. | G64: UnProtectAll
A65: 2016-09-16 | B65: 63 | C65: MH1968 | D65: $B$4 | E65: 1004 | F65: The password you supplied is not correct. Verify that the CAPS LOCK key is off and be sure to use the correct capitalization. | G65: UnProtectAll
A66: 2016-09-16 | B66: 64 | C66: MH1968 | D66: $B$4 | E66: 1004 | F66: The password you supplied is not correct. Verify that the CAPS LOCK key is off and be sure to use the correct capitalization. | G66: UnProtectAll
A67: 2016-09-16 | B67: 65 | C67: MH1968 | D67: $B$4 | E67: 1004 | F67: The password you supplied is not correct. Verify that the CAPS LOCK key is off and be sure to use the correct capitalization. | G67: UnProtectAll
A68: 2016-09-16 | B68: 66 | C68: MH1968 | D68: $B$4 | E68: 1004 | F68: The password you supplied is not correct. Verify that the CAPS LOCK key is off and be sure to use the correct capitalization. | G68: UnProtectAll
A69: 2016-09-20 | B69: 67 | C69: MH1968 | D69: $K$28 | E69: 1004 | F69: The password you supplied is not correct. Verify that the CAPS LOCK key is off and be sure to use the correct capitalization. | G69: UnProtectAll
A70: 2016-09-29 | B70: 68 | C70: MH1968 | D70: $J$49 | E70: 1004 | F70: The password you supplied is not correct. Verify that the CAPS LOCK key is off and be sure to use the correct capitalization. | G70: UnProtectAll
A71: 2016-09-29 | B71: 69 | C71: MH1968 | D71: $J$50 | E71: 1004 | F71: The password you supplied is not correct. Verify that the CAPS LOCK key is off and be sure to use the correct capitalization. | G71: UnProtectAll
A72: 2017-03-23 | B72: 70 | C72: HOME | D72: $L$12 | E72: 0 | G72: Fix Passords
A73: 2017-03-23 | B73: 71 | C73: HOME | D73: $L$12 | E73: 20 | F73: Resume without error | G73: Fix Passords
A74: 2017-11-17 | B74: 72 | C74: DMH | D74: $F$15 | E74: 0 | G74: ShowEverything
A75: 2017-11-17 | B75: 73 | C75: DMH | D75: $F$15 | E75: 20 | F75: Resume without error | G75: ShowEverything
A76: 2017-11-17 | B76: 74 | C76: DMH | D76: $F$15 | E76: 0 | G76: ShowEverything
A77: 2017-11-17 | B77: 75 | C77: DMH | D77: $F$15 | E77: 20 | F77: Resume without error | G77: ShowEverything
A78: 2017-11-17 | B78: 76 | C78: DMH | D78: $F$15 | E78: 0 | G78: ShowEverything
A79: 2017-11-17 | B79: 77 | C79: DMH | D79: $F$15 | E79: 20 | F79: Resume without error | G79: ShowEverything
A80: 2017-11-17 | B80: 78 | C80: DMH | D80: $A$1 | E80: 0 | G80: ShowEverything
A81: 2017-11-17 | B81: 79 | C81: DMH | D81: $A$1 | E81: 20 | F81: Resume without error | G81: ShowEverything
A82: 2017-11-17 | B82: 80 | C82: DMH | D82: $A$1 | E82: 0 | G82: ShowEverything
A83: 2017-11-17 | B83: 81 | C83: DMH | D83: $A$1 | E83: 20 | F83: Resume without error | G83: ShowEverything
A84: 2017-11-17 | B84: 82 | C84: DMH | D84: $A$1 | E84: 0 | G84: ShowEverything
A85: 2017-11-17 | B85: 83 | C85: DMH | D85: $A$1 | E85: 20 | F85: Resume without error | G85: ShowEverything
A86: 2017-11-17 | B86: 84 | C86: DMH | D86: $K$12 | E86: 0 | G86: ShowEverything
A87: 2017-11-17 | B87: 85 | C87: DMH | D87: $K$12 | E87: 20 | F87: Resume without error | G87: ShowEverything
A88: 2017-11-17 | B88: 86 | C88: DMH | D88: $K$12 | E88: 0 | G88: ShowEverything
A89: 2017-11-17 | B89: 87 | C89: DMH | D89: $K$12 | E89: 20 | F89: Resume without error | G89: ShowEverything
A90: 2017-11-17 | B90: 88 | C90: DMH | D90: $K$12 | E90: 0 | G90: ShowEverything
A91: 2017-11-17 | B91: 89 | C91: DMH | D91: $K$12 | E91: 20 | F91: Resume without error | G91: ShowEverything
A92: 2017-11-17 | B92: 90 | C92: DMH | D92: $D$16 | E92: 0 | G92: ShowEverything
A93: 2017-11-17 | B93: 91 | C93: DMH | D93: $D$16 | E93: 20 | F93: Resume without error | G93: ShowEverything
A94: 2017-11-17 | B94: 92 | C94: DMH | D94: $D$16 | E94: 0 | G94: ShowEverything
A95: 2017-11-17 | B95: 93 | C95: DMH | D95: $D$16 | E95: 20 | F95: Resume without error | G95: ShowEverything
A96: 2017-11-17 | B96: 94 | C96: DMH | D96: $D$16 | E96: 0 | G96: ShowEverything
A97: 2017-11-17 | B97: 95 | C97: DMH | D97: $D$16 | E97: 20 | F97: Resume without error | G97: ShowEverything
A98: 2017-11-17 | B98: 96 | C98: DMH | D98: $A$1 | E98: 0 | G98: ShowEverything
A99: 2017-11-17 | B99: 97 | C99: DMH | D99: $A$1 | E99: 20 | F99: Resume without error | G99: ShowEverything
A100: 2017-11-17 | B100: 98 | C100: DMH | D100: $A$1 | E100: 0 | G100: ShowEverything
A101: 2017-11-17 | B101: 99 | C101: DMH | D101: $A$1 | E101: 20 | F101: Resume without error | G101: ShowEverything
A102: 2017-11-17 | B102: 100 | C102: DMH | D102: $A$1 | E102: 0 | G102: ShowEverything
A103: 2017-11-17 | B103: 101 | C103: DMH | D103: $A$1 | E103: 20 | F103: Resume without error | G103: ShowEverything
A104: 2017-11-17 | B104: 102 | C104: DMH | D104: $A$1 | E104: 0 | G104: ShowEverything
A105: 2017-11-17 | B105: 103 | C105: DMH | D105: $A$1 | E105: 20 | F105: Resume without error | G105: ShowEverything
A106: 2017-11-17 | B106: 104 | C106: DMH | D106: $A$1 | E106: 0 | G106: ShowEverything
A107: 2017-11-17 | B107: 105 | C107: DMH | D107: $A$1 | E107: 20 | F107: Resume without error | G107: ShowEverything
A108: 2017-11-17 | B108: 106 | C108: DMH | D108: $A$1 | E108: 0 | G108: ShowEverything
A109: 2017-11-17 | B109: 107 | C109: DMH | D109: $A$1 | E109: 20 | F109: Resume without error | G109: ShowEverything
A110: 2017-11-17 | B110: 108 | C110: DMH | D110: $B$15 | E110: 0 | G110: ShowEverything
A111: 2017-11-17 | B111: 109 | C111: DMH | D111: $B$15 | E111: 20 | F111: Resume without error | G111: ShowEverything
A112: 2017-11-17
A113: 2017-11-17 | B113: 1 | C113: DMH | D113: $E$15 | E113: 0 | G113: ShowEverything
A114: 2017-11-17 | B114: 2 | C114: DMH | D114: $E$15 | E114: 20 | F114: Resume without error | G114: ShowEverything
A115: 2017-11-17 | B115: 3 | C115: DMH | D115: $E$15 | E115: 0 | G115: ShowEverything
A116: 2017-12-20 | B116: 4 | C116: MH1900_INFO | D116: $B$11 | E116: 1004 | F116: We can't do that to a merged cell. | G116: cboYN1_Change
A117: 2017-12-20 | B117: 5 | C117: MH1900_INFO | D117: $B$11 | E117: 1004 | F117: Unable to set the Locked property of the Range class | G117: cboYN1_Change
A118: 2017-12-20 | B118: 6 | C118: MH1900_INFO | D118: $B$11 | E118: 1004 | F118: Unable to set the Locked property of the Range class | G118: cboYN1_Change
A119: 2017-12-20 | B119: 7 | C119: MH1900_INFO | D119: $D$12 | E119: 1004 | F119: Unable to set the Locked property of the Range class | G119: cboYN1_Change
A120: 2017-12-28 | B120: 8 | C120: MH1900_INFO | D120: $B$52 | E120: 1004 | F120: We can't do that to a merged cell. | G120: cboYN1_Change
A121: 2017-12-28 | B121: 9 | C121: MH1900_INFO | D121: $B$52 | E121: 1004 | F121: Unable to set the Locked property of the Range class | G121: cboYN1_Change
A122: 2017-12-28 | B122: 10 | C122: MH1900_INFO | D122: $B$11 | E122: 1004 | F122: We can't do that to a merged cell. | G122: cboYN1_Change
A123: 2017-12-28 | B123: 11 | C123: MH1900_INFO | D123: $B$11 | E123: 1004 | F123: Unable to set the Locked property of the Range class | G123: cboYN1_Change
A124: 2018-01-02 | B124: 12 | C124: MH1900_INFO | D124: $B$46 | E124: 1004 | F124: We can't do that to a merged cell. | G124: cboYN1_Change
A125: 2018-01-02 | B125: 13 | C125: MH1900_INFO | D125: $B$46 | E125: 1004 | F125: Unable to set the Locked property of the Range class | G125: cboYN1_Change
A126: 2018-01-02 | B126: 14 | C126: MH1900_INFO | D126: $B$46 | E126: 1004 | F126: We can't do that to a merged cell. | G126: cboYN1_Change
A127: 2018-01-02 | B127: 15 | C127: MH1900_INFO | D127: $B$46 | E127: 1004 | F127: Unable to set the Locked property of the Range class | G127: cboYN1_Change
A128: 2018-01-02 | B128: 16 | C128: MH1900_INFO | D128: $E$29 | E128: 1004 | F128: We can't do that to a merged cell. | G128: cboYN1_Change
A129: 2018-01-02 | B129: 17 | C129: MH1900_INFO | D129: $B$12 | E129: 1004 | F129: Unable to set the Locked property of the Range class | G129: cboYN1_Change
A130: 2018-01-02 | B130: 18 | C130: MH1900_INFO | D130: $B$11 | E130: 1004 | F130: We can't do that to a merged cell. | G130: cboYN1_Change
A131: 2018-01-02 | B131: 19 | C131: MH1900_INFO | D131: $B$11 | E131: 1004 | F131: Unable to set the Locked property of the Range class | G131: cboYN1_Change
A132: 2018-04-24 | B132: 20 | C132: MH1963 | D132: $B$15 | E132: 1004 | F132: The password you supplied is not correct. Verify that the CAPS LOCK key is off and be sure to use the correct capitalization. | G132: InsertMH1963_Rows
A133: 2018-04-24 | B133: 21 | C133: MH1991 | D133: $I$24 | E133: 1004 | F133: The password you supplied is not correct. Verify that the CAPS LOCK key is off and be sure to use the correct capitalization. | G133: Clear (New)
A134: 2018-04-24 | B134: 22 | C134: HOME | D134: $G$30 | E134: 1004 | F134: The password you supplied is not correct. Verify that the CAPS LOCK key is off and be sure to use the correct capitalization. | G134: Clear (New)
A135: 2018-04-24 | B135: 23 | C135: MH1979 | D135: $E$34 | E135: 1004 | F135: The password you supplied is not correct. Verify that the CAPS LOCK key is off and be sure to use the correct capitalization. | G135: Clear (New)
A136: 2018-04-24 | B136: 24 | C136: MH1979 | D136: $E$34 | E136: 1004 | F136: The password you supplied is not correct. Verify that the CAPS LOCK key is off and be sure to use the correct capitalization. | G136: Clear (New)
A137: 2018-12-21 | B137: 25 | C137: DMH | D137: $H$20 | E137: 1004 | F137: The password you supplied is not correct. Verify that the CAPS LOCK key is off and be sure to use the correct capitalization. | G137: ProtectUnProtect_Toggle
A138: 2018-12-21 | B138: 26 | C138: DMH | D138: $H$20 | E138: 0 | G138: ShowEverything
A139: 2018-12-21 | B139: 27 | C139: DMH | D139: $H$20 | E139: 20 | F139: Resume without error | G139: ShowEverything
A140: 2018-12-21 | B140: 28 | C140: DMH | D140: $H$20 | E140: 0 | G140: ShowEverything
A141: 2018-12-21 | B141: 29 | C141: DMH | D141: $H$20 | E141: 20 | F141: Resume without error | G141: ShowEverything
A142: 2018-12-21 | B142: 30 | C142: DMH | D142: $H$20 | E142: 0 | G142: ShowEverything
A143: 2018-12-21 | B143: 31 | C143: DMH | D143: $H$20 | E143: 20 | F143: Resume without error | G143: ShowEverything
A144: 2018-12-21 | B144: 32 | C144: DMH | D144: $H$20 | E144: 0 | G144: ShowEverything
A145: 2018-12-21 | B145: 33 | C145: DMH | D145: $H$20 | E145: 20 | F145: Resume without error | G145: ShowEverything
A146: 2019-03-21 | B146: 34 | C146: Setup | D146: $A$1 | E146: 1004 | F146: The password you supplied is not correct. Verify that the CAPS LOCK key is off and be sure to use the correct capitalization. | G146: ProtectUnProtect_Toggle
A147: 2019-03-21 | B147: 35 | C147: MH1992 | D147: $A$1 | E147: 1004 | F147: The password you supplied is not correct. Verify that the CAPS LOCK key is off and be sure to use the correct capitalization. | G147: ProtectUnProtect_Toggle
A148: 2019-04-19 | B148: 36 | C148: DMH | D148: $I$21 | E148: 0 | G148: ShowEverything
A149: 2019-04-19 | B149: 37 | C149: DMH | D149: $I$21 | E149: 20 | F149: Resume without error | G149: ShowEverything
A150: 2019-04-19 | B150: 38 | C150: DMH | D150: $I$21 | E150: 0 | G150: ShowEverything
A151: 2019-04-19 | B151: 39 | C151: DMH | D151: $I$21 | E151: 20 | F151: Resume without error | G151: ShowEverything
A152: 2019-04-19 | B152: 40 | C152: DMH | D152: $I$21 | E152: 0 | G152: ShowEverything
A153: 2019-04-19 | B153: 41 | C153: DMH | D153: $I$21 | E153: 20 | F153: Resume without error | G153: ShowEverything
A154: 2019-04-19 | B154: 42 | C154: Medi-Cal | D154: $A$1 | E154: 1004 | F154: The password you supplied is not correct. Verify that the CAPS LOCK key is off and be sure to use the correct capitalization. | G154: ProtectUnProtect_Toggle
A155: 2019-04-23 | B155: 43 | C155: Medi-Cal | D155: $A$1 | E155: 1004 | F155: The password you supplied is not correct. Verify that the CAPS LOCK key is off and be sure to use the correct capitalization. | G155: ProtectUnProtect_Toggle
A156: 2019-04-23 | B156: 44 | C156: Medi-Cal | D156: $F$69 | E156: 1004 | F156: The password you supplied is not correct. Verify that the CAPS LOCK key is off and be sure to use the correct capitalization. | G156: ProtectUnProtect_Toggle
A157: 2019-04-30 | B157: 45 | C157: Medi-Cal | D157: $A$1 | E157: 1004 | F157: The password you supplied is not correct. Verify that the CAPS LOCK key is off and be sure to use the correct capitalization. | G157: ProtectUnProtect_Toggle
A158: 2019-05-16 | B158: 46 | C158: DMH | D158: $A$34 | E158: 0 | G158: ShowEverything
A159: 2019-05-16 | B159: 47 | C159: DMH | D159: $A$34 | E159: 20 | F159: Resume without error | G159: ShowEverything
A160: 2019-05-16 | B160: 48 | C160: DMH | D160: $A$34 | E160: 0 | G160: ShowEverything
A161: 2019-05-16 | B161: 49 | C161: DMH | D161: $A$34 | E161: 20 | F161: Resume without error | G161: ShowEverything
A162: 2019-05-16 | B162: 50 | C162: DMH | D162: $A$34 | E162: 0 | G162: ShowEverything
A163: 2019-05-16 | B163: 51 | C163: DMH | D163: $A$34 | E163: 20 | F163: Resume without error | G163: ShowEverything
A164: 2019-05-16 | B164: 52 | C164: Medi-Cal | D164: $A$1 | E164: 1004 | F164: The password you supplied is not correct. Verify that the CAPS LOCK key is off and be sure to use the correct capitalization. | G164: ProtectUnProtect_Toggle
A165: 2020-04-13 | B165: 53 | C165: Medi-Cal | D165: $A$1 | E165: 1004 | F165: The password you supplied is not correct. Verify that the CAPS LOCK key is off and be sure to use the correct capitalization. | G165: ProtectUnProtect_Toggle
A166: 2020-04-13 | B166: 54 | C166: MH1969 | D166: $H$1 | E166: 1004 | F166: The password you supplied is not correct. Verify that the CAPS LOCK key is off and be sure to use the correct capitalization. | G166: ProtectUnProtect_Toggle
A167: 2020-04-13 | B167: 55 | C167: Errors | D167: $A$16 | E167: 1004 | F167: The password you supplied is not correct. Verify that the CAPS LOCK key is off and be sure to use the correct capitalization. | G167: ProtectUnProtect_Toggle
A168: 2020-06-16 | B168: 56 | C168: DMH | D168: $A$57 | E168: 0 | G168: ShowEverything
A169: 2020-06-16 | B169: 57 | C169: DMH | D169: $A$57 | E169: 20 | F169: Resume without error | G169: ShowEverything
A170: 2020-06-16 | B170: 58 | C170: DMH | D170: $A$57 | E170: 0 | G170: ShowEverything
A171: 2020-06-16 | B171: 59 | C171: DMH | D171: $A$57 | E171: 20 | F171: Resume without error | G171: ShowEverything
A172: 2020-06-16 | B172: 60 | C172: DMH | D172: $A$57 | E172: 0 | G172: ShowEverything
A173: 2020-06-16 | B173: 61 | C173: DMH | D173: $A$57 | E173: 20 | F173: Resume without error | G173: ShowEverything
A174: 2020-06-22 | B174: 62 | C174: Medi-Cal | D174: $A$57 | E174: 1004 | F174: The password you supplied is not correct. Verify that the CAPS LOCK key is off and be sure to use the correct capitalization. | G174: ProtectUnProtect_Toggle
A175: 2020-06-22 | B175: 63 | C175: Medi-Cal | D175: $A$57 | E175: 1004 | F175: The password you supplied is not correct. Verify that the CAPS LOCK key is off and be sure to use the correct capitalization. | G175: ProtectUnProtect_Toggle
A176: 2020-07-08 | B176: 64 | C176: MH1963 | D176: $AB$11 | E176: 1004 | F176: The password you supplied is not correct. Verify that the CAPS LOCK key is off and be sure to use the correct capitalization. | G176: InsertMH1963_Rows
A177: 2020-07-31 | B177: 65 | C177: MH1900_INFO | D177: $F$72 | E177: 1004 | F177: Application-defined or object-defined error | G177: cboYN1_Change
A178: 2020-08-03 | B178: 66 | C178: MH1900_INFO | D178: $F$72 | E178: 1004 | F178: Application-defined or object-defined error | G178: cboYN1_Change
A179: 2021-06-10 | B179: 67 | C179: DMH | D179: $N$6 | E179: 0 | G179: ShowEverything
A180: 2021-06-10 | B180: 68 | C180: DMH | D180: $N$6 | E180: 20 | F180: Resume without error | G180: ShowEverything
A181: 2021-06-10 | B181: 69 | C181: DMH | D181: $N$6 | E181: 0 | G181: ShowEverything
A182: 2021-06-10 | B182: 70 | C182: DMH | D182: $N$6 | E182: 20 | F182: Resume without error | G182: ShowEverything
A183: 2021-06-10 | B183: 71 | C183: DMH | D183: $N$6 | E183: 0 | G183: ShowEverything
A184: 2021-06-10 | B184: 72 | C184: DMH | D184: $N$6 | E184: 20 | F184: Resume without error | G184: ShowEverything
A185: 2021-10-21 | B185: 73 | C185: MH1900_INFO | D185: $B$5 | E185: 1004 | F185: Application-defined or object-defined error | G185: cboYN1_Change

Sheet DMH (hidden)
K5: Protection
K6: =ProtectionStatus -> OFF

Sheet HOME
A1: DETAIL COST AND FINANCIAL REPORT (FY2020-2021)

Sheet Medi-Cal
A1: DETAIL COST AND FINANCIAL REPORT (FY2020-2021)
E42: YES

Sheet Non Medi-Cal
A1: DETAIL COST AND FINANCIAL REPORT (FY2020-2021)

Sheet MH1900_INFO
A1: State of California Health and Human Services Agency | F1: Department of Health Care Services
A2: ="DETAIL COST REPORT "&CHAR(10)&"INFORMATION SHEET"&CHAR(10)&"MH1900 "&Revision_Date -> DETAIL COST REPORT INFORMATION SHEET MH1900 (Rev. 02/2019) | E2: FISCAL YEAR 2020-2021
A3: SECTION I : ALL LEGAL ENTITIES :
A4: All Legal Entities are to complete Section I.
A5: Name of Preparer: | B5: John Doe
A6: Date: | B6: 2021-08-05
A7: Legal Entity Name: | B7: Vermont Mental Health
A8: Legal Entity Number: | B8: 00055
A9: County: | B9: Los Angeles
A10: County Code: | B10: 19
A11: Is this a County Legal Entity Report? (Yes or No) | B11: 2
A12: Are you reporting SD/MC? (Yes or No) | B12: 1
A13: SECTION II:COUNTY LEGALENTITY ONLY:
A15: Only County Legal Entities are to Complete Section II.
A17: Address:
A20: Phone Number:
A21: County Population : Over 125,000? (Yes or No): | B21: 1
A24: Contract Provider Other Medi-Cal Direct Service Gross Reimbursement (Used to populate MH1979 Line2 (07/01/2020 - 06/30/2021)
A25: Inpatient Services - 07/01/20 - 06/30/21
A26: Outpatient Services - 07/01/20 - 06/30/21
A28: Contract Provider SD/MC Enhanced (Children) Direct Service Gross Reimbursement ( Used to populate MH1979 Line 10 (07/01/2020 - 09/30/2020) and MH 1979 Line 16 (10/01/2020 - 06/30/2021)
A29: Inpatient Services - 07/01/19 - 09/30/20 | E29: Inpatient Services - 10/01/20 - 06/30/21
A30: Outpatient Services - 07/01/19 - 09/30/20 | E30: Outpatient Services - 10/01/20 - 06/30/21
A32: Contract Provider Healthy Families Direct Service Gross Reimbursement (Used to populate MH1979 Line8)
A33: Inpatient Services
A34: Outpatient Services
A36: Contract Providers Affordable Care Act (New Adult Group Service (Reimbursement Used to populate MH1979 Line2)
A37: InpatientServices (07/01/16-12/31/16)
A38: OutpatientServices (07/01/16-12/31/16)
A39: InpatientServices (01/01/17-06/30/17)
A40: OutpatientServices (01/01/17-06/30/17)
A41: TotalStateShareofSD/MCCost:
B43: ='MH1979'!T65 -> 0
A45: Fee For Service - Mental Health Specialty Provider Numbers For Individual and Group
A46: Legal Entity Number (FFS):
A47: Psychiatrist:
A48: Psychologist:
A49: Mixed Specialty Group:
A50: RN:
A51: LCSW:
A52: MFCC (MFT):
A54: Adjust Medi-Cal FFP Due to Costs in Excess of FFP
D55: Adjustments by Settlement Group (Used to Populate Col.I - MH1979)
A56: Mode of Services | B56: SD/MC | E56: Settlement Group | F56: AdjustmentstoFFP
A57: Mode 05 - Hospital Inpatient Services | E57: SD/MC 07/01/20 - 6/30/21
A58: Mode 05 - Other 24 Hour Services | E58: SD/MC Non CHIP Children - 07/01/20 - 06/30/21
A59: Mode10 - Day Services | E59: SD/MC Enhanced Children 07/01/20 - 09/30/20
A60: Mode15 - Outpatient Services | E60: SD/MC Enhanced Children 10/01/20 - 06/30/21
A61: MAA | D61: =IF(B61=SUM(F65:F66),"","ERROR") ->  | E61: SD/MC Enhanced-BCCTP-07/01/20 - 06/30/21
A62: Total Adjustments to FFP | B62: =SUM(B57:B61) -> 0 | E62: SD/MC Enhanced Pregnancy 07/01/20 - 06/30/21
A63: Cross Checks | B63: =IF(B62=F69,"OK","ERROR") -> OK | E63: SD/MC Enhanced-Refugee-07/01/20 - 06/30/21
E64: Affordable Care Act 07/01/20 - 06/30/21
A65: DisableMH1992 Line11&12Macro | B65: 2 | E65: MAASFC01-09
E66: MAASFC11-19,31-39
E67: MCAP 07/01/20 - 09/30/21
E68: MCAP 10/01/20 - 06/30/21
E69: Total Adjustments to FFP | F69: =SUM(F57:F68) -> 0

Sheet MH1901_Schedule_A
A1: State of California Health and Human Services Agency | J1: Department of Health Care Services
A2: DETAIL COST REPORT
A3: SCHEDULE OF STATEWIDE MAXIMUM ALLOWANCES AND PUBLISHED CHARGES
A4: ="MH1901 SCHEDULE A "&Revision_Date -> MH1901 SCHEDULE A (Rev. 02/2019) | I4: FISCAL YEAR 2020-2021
B5: ="Entity Name:"&Legal_Entity_Name -> Entity Name:Vermont Mental Health | J5: ="Entity Number: "&Legal_Entity_Number -> Entity Number: 00055
D9: A | E9: B | F9: C | G9: D | H9: E | I9: F | J9: G
E10: SERVICE | G10: STATE | I10: COUNTY | J10: RATE
E11: FUNCTION | G11: APPROVED | H11: PUBLISHED | I11: NONM/C | J11: FOR
B12: SERVICE FUNCTION | D12: MODE | E12: CODE | F12: SMA | G12: (NR) | H12: CHARGE | I12: CONTRACTRATE | J12: ALLOCATION
B13: A. 24-HOUR SERVICES
A14: 1 | B14: Hospital Inpatient | D14: 05 | E14: 10-18 | J14: =IF(H14>0,H14,I14) -> 0
A15: 2 | B15: Hospital Administrative Day | D15: 05 | E15: 19 | F15: 569.54 | J15: =IF(H15>0,H15,I15) -> 0
A16: 3 | B16: Psychiatric Health Facility (PHF) | D16: 05 | E16: 20-29 | H16: 790.9 | J16: 790.9
A17: 4 | B17: SNF Intensive | D17: 05 | E17: 30-34 | J17: 0
A18: 5 | B18: IMD Basic (No Patch) | D18: 05 | E18: 35 | J18: 0
A19: 6 | B19: IMD (With Patch) | D19: 05 | E19: 36-39 | J19: 0
A20: 7 | B20: Adult Crisis Residential | D20: 05 | E20: 40-49 | H20: 396.57 | J20: 396.57
A21: 8 | B21: Jail Inpatient | D21: 05 | E21: 50-59 | J21: 0
A22: 9 | B22: Residential Other | D22: 05 | E22: 60-64 | J22: 0
A23: 10 | B23: Adult Residential | D23: 05 | E23: 65-79 | J23: 0
A24: 11 | B24: Semi-Supervised Living | D24: 05 | E24: 80-84 | J24: 0
A25: 12 | B25: Independent Living | D25: 05 | E25: 85-89 | J25: 0
A26: 13 | B26: MH Rehab Centers | D26: 05 | E26: 90-94 | J26: 0
A27: 14 | B27: Therapeutic Foster Care | D27: 05 | E27: 95-98 | J27: 0
B28: B. DAY SERVICES
A29: 15 | B29: Crisis Stabilization
B30: Emergency Room | D30: 10 | E30: 20-24 | J30: =IF(H30>0,H30,I30) -> 0
A31: 16 | B31: Urgent Care | D31: 10 | E31: 25-29 | H31: 119.74 | J31: =IF(H31>0,H31,I31) -> 119.74
A32: 17 | B32: Vocational Services | D32: 10 | E32: 30-39 | J32: =IF(H32>0,H32,I32) -> 0
A33: 18 | B33: Socialization | D33: 10 | E33: 40-49 | J33: =IF(H33>0,H33,I33) -> 0
A34: 19 | B34: SNF Augmentation | D34: 10 | E34: 60-69 | J34: =IF(H34>0,H34,I34) -> 0
A35: 20 | B35: Day Treatment Intensive | D35: 10 | E35: 81-84
B36: Half Day | J36: =IF(H35>0,H35,I35) -> 0
A37: 21 | B37: Full Day | D37: 10 | E37: 85-89 | J37: =IF(H37>0,H37,I37) -> 0
A38: 22 | B38: Day Rehabilitation | D38: 10 | E38: 91-94
B39: Half Day | J39: =IF(H38>0,H38,I39) -> 0
A40: 23 | B40: Full Day | D40: 10 | E40: 95-99 | J40: =IF(H40>0,H40,I40) -> 0
B41: C. OUTPATIENT SERVICES
A42: 24 | B42: Case Management , Brokerage | D42: 15 | E42: 01-09 | H42: 3 | J42: =IF(H42>0,H42,I42) -> 3
A43: 25 | B43: Mental Health Services | D43: 15 | E43: 10-19 | H43: 4 | J43: =IF(H43>0,H43,I43) -> 4
A44: 26 | B44: Mental Health Services | D44: 15 | E44: 30-59 | H44: 4 | J44: 4
A45: 27 | B45: Medication Support | D45: 15 | E45: 60-69 | H45: 6 | J45: 6
A46: 28 | B46: Crisis Intervention | D46: 15 | E46: 70-79 | H46: 5 | J46: 5
A48: 29 | B48: Mental Health Promotion | D48: 45 | E48: 10-19 | H48: 50 | J48: 50
A49: 30 | B49: Community Client Services | D49: 45 | E49: 20-29 | H49: 50 | J49: 50
B50: E. MEDI-CAL ADMINISTRATIVE ACTIVITIES
A51: 31 | B51: Medi-Cal Outreach | D51: 55 | E51: 01-03
A52: 32 | B52: Medi-Cal Eligibility Intake | D52: 55 | E52: 04-06 | I52: Quarter1
A53: 33 | B53: Medi-Cal Contract Administration | D53: 55 | E53: 07-08 | I53: Quarter2
A54: 34 | B54: MAA Coordination and Claims Administration | D54: 55 | E54: 09 | I54: Quarter3
A55: 35 | B55: Referral-Crisis,Non-Open Case | D55: 55 | E55: 11-13 | I55: Quarter4
A56: 36 | B56: MH Services Contract Administration | D56: 55 | E56: 14-16 | H56: =IF(SUM(H52:H55)=0,"",AVERAGE(H52:H55)) ->  | I56: Average
A58: 38 | B58: SPMP Case Management,Non-Open Case | D58: 55 | E58: 21-23
A59: 39 | B59: SPMP Program Planning and Development | D59: 55 | E59: 24-26
A61: 41 | B61: Non-SPMP Case Management , Non-Open Case | D61: 55 | E61: 31-34
A62: 42 | B62: Non-SPMP Program Planning and Development | D62: 55 | E62: 35-39
B63: F. SUPPORT SERVICES
A64: 43 | B64: Conservatorship
B65: Investigation | D65: 60 | E65: 20-29 | J65: =IF(H65>0,H65,I65) -> 0
A66: 44 | B66: Administration | D66: 60 | E66: 30-39 | J66: 0
A67: 45 | B67: Life Support / Board & Care | D67: 60 | E67: 40-49 | J67: 0
A68: 46 | B68: Case Management Support | D68: 60 | E68: 60-69 | J68: 0
A69: 47 | B69: Client Housing Support Expenditures | D69: 60 | E69: 70 | J69: 0
A70: 48 | B70: Client Housing Operating Expenditures | D70: 60 | E70: 71 | J70: 0
A71: 49 | B71: Client Flexible Support Expenditures | D71: 60 | E71: 72 | J71: 0
A72: 50 | B72: Non Medi-Cal Capital Assets | D72: 60 | E72: 75 | J72: 0
A73: 51 | B73: Other Non Medi-Cal Client Support Expenditures | D73: 60 | E73: 78 | J73: 0

Sheet LAC CMA
A1: COUNTY OF LOS ANGELES | M1: Department of Mental Health
A2: DETAIL COST REPORT
A3: SCHEDULE OF COUNTYWIDE MAXIMUM ALLOWANCES
A4: LAC CMA | M4: FISCAL YEAR 2020-2021
B5: Entity Name: | C5: =MH1900_INFO!B7 -> Vermont Mental Health
B6: Entity Number: | C6: =IF(MH1900_INFO!B8="","",MH1900_INFO!B8) -> 00055
D9: A | E9: B | F9: B | G9: B | H9: C | I9: D | J9: D | K9: E | L9: F | M9: G
E10: SERVICE | F10: SERVICE | I10: STATE | M10: RATE
E11: FUNCTION | F11: FUNCTION | G11: MHS | I11: APPROVED | J11: PUBLISHED | K11: COUNTY | M11: FOR
B12: SERVICE FUNCTION | D12: MODE | E12: CODE | F12: CODE | G12: Type | H12: CMA | I12: ( NR ) | J12: CHARGE | K12: CONTRACT RATE | L12: SMA | M12: ALLOCATION
B13: A. 24 - HOUR SERVICES
A14: 1 | B14: Hospital Inpatient | D14: 05 | E14: 10 - 18 | H14: 1349.67 | J14: =MH1901_Schedule_A!H14 -> 0 | K14: =MH1901_Schedule_A!I14 -> 0 | M14: =IF(I14>0, I14, K14) -> 0
A15: 1 | B15: Hospital Inpatient | D15: 05 | E15: 10 | F15: =CONCATENATE(D15,E15) -> 0510 | G15: IP | H15: =$H$14 -> 1349.67 | J15: =J$14 -> 0 | K15: 0 | M15: 0
A16: 1 | B16: Hospital Inpatient | D16: 05 | E16: 11 | F16: =CONCATENATE(D16,E16) -> 0511 | G16: IP | H16: 1349.67 | J16: 0 | K16: 0 | M16: 0
A17: 1 | B17: Hospital Inpatient | D17: 05 | E17: 12 | F17: 0512 | G17: IP | H17: 1349.67 | J17: 0 | K17: 0 | M17: 0
A18: 1 | B18: Hospital Inpatient | D18: 05 | E18: 13 | F18: 0513 | G18: IP | H18: 1349.67 | J18: 0 | K18: 0 | M18: 0
A19: 1 | B19: Hospital Inpatient | D19: 05 | E19: 14 | F19: 0514 | G19: IP | H19: 1349.67 | J19: 0 | K19: 0 | M19: 0
A20: 1 | B20: Hospital Inpatient | D20: 05 | E20: 15 | F20: 0515 | G20: IP | H20: 1349.67 | J20: 0 | K20: 0 | M20: 0
A21: 1 | B21: Hospital Inpatient | D21: 05 | E21: 16 | F21: 0516 | G21: IP | H21: 1349.67 | J21: 0 | K21: 0 | M21: 0
A22: 1 | B22: Hospital Inpatient | D22: 05 | E22: 17 | F22: 0517 | G22: IP | H22: 1349.67 | J22: 0 | K22: 0 | M22: 0
A23: 1 | B23: Hospital Inpatient | D23: 05 | E23: 18 | F23: 0518 | G23: IP | H23: 1349.67 | J23: 0 | K23: 0 | M23: 0
A24: 2 | B24: Hospital Administrative Day | D24: 05 | E24: 19 | F24: 0519 | G24: IPADM | H24: 455.34 | J24: =MH1901_Schedule_A!H15 -> 0 | K24: =MH1901_Schedule_A!I15 -> 0 | L24: =HADPeriod1Rate_New1415 -> 569.54 | M24: 0
A25: 3 | B25: Psychiatric Health Facility (PHF) | D25: 05 | E25: 20 - 29 | H25: 681.06 | J25: =MH1901_Schedule_A!H16 -> 790.9 | K25: =MH1901_Schedule_A!I16 -> 0 | M25: 0
A26: 3 | B26: Psychiatric Health Facility (PHF) | D26: 05 | E26: 20 | F26: =CONCATENATE(D26,E26) -> 0520 | G26: OP | H26: =$H$25 -> 681.06 | J26: =J$25 -> 790.9 | K26: 0 | M26: 0
A27: 3 | B27: Psychiatric Health Facility (PHF) | D27: 05 | E27: 21 | F27: 0521 | G27: OP | H27: 681.06 | J27: 790.9 | K27: 0 | M27: 0
A28: 3 | B28: Psychiatric Health Facility (PHF) | D28: 05 | E28: 22 | F28: 0522 | G28: OP | H28: 681.06 | J28: 790.9 | K28: 0 | M28: 0
A29: 3 | B29: Psychiatric Health Facility (PHF) | D29: 05 | E29: 23 | F29: 0523 | G29: OP | H29: 681.06 | J29: 790.9 | K29: 0 | M29: 0
A30: 3 | B30: Psychiatric Health Facility (PHF) | D30: 05 | E30: 24 | F30: 0524 | G30: OP | H30: 681.06 | J30: 790.9 | K30: 0 | M30: 0
A31: 3 | B31: Psychiatric Health Facility (PHF) | D31: 05 | E31: 25 | F31: 0525 | G31: OP | H31: 681.06 | J31: 790.9 | K31: 0 | M31: 0
A32: 3 | B32: Psychiatric Health Facility (PHF) | D32: 05 | E32: 26 | F32: 0526 | G32: OP | H32: 681.06 | J32: 790.9 | K32: 0 | M32: 0
A33: 3 | B33: Psychiatric Health Facility (PHF) | D33: 05 | E33: 27 | F33: 0527 | G33: OP | H33: 681.06 | J33: 790.9 | K33: 0 | M33: 0
A34: 3 | B34: Psychiatric Health Facility (PHF) | D34: 05 | E34: 28 | F34: 0528 | G34: OP | H34: 681.06 | J34: 790.9 | K34: 0 | M34: 0
A35: 3 | B35: Psychiatric Health Facility (PHF) | D35: 05 | E35: 29 | F35: 0529 | G35: OP | H35: 681.06 | J35: 790.9 | K35: 0 | M35: 0
A36: 4 | B36: SNF Intensive | D36: 05 | E36: 30 -34 | J36: =MH1901_Schedule_A!H17 -> 0 | K36: =MH1901_Schedule_A!I17 -> 0 | M36: 0
A37: 4 | B37: SNF Intensive | D37: 05 | E37: 30 | F37: 0530 | G37: IMD | J37: =J$36 -> 0 | K37: 0 | M37: 0
A38: 4 | B38: SNF Intensive | D38: 05 | E38: 31 | F38: 0531 | G38: IMD | J38: 0 | K38: 0 | M38: 0
A39: 4 | B39: SNF Intensive | D39: 05 | E39: 32 | F39: 0532 | G39: IMD | J39: 0 | K39: 0 | M39: 0
A40: 4 | B40: SNF Intensive | D40: 05 | E40: 33 | F40: 0533 | G40: IMD | J40: 0 | K40: 0 | M40: 0
A41: 4 | B41: SNF Intensive | D41: 05 | E41: 34 | F41: 0534 | G41: IMD | J41: =J$36 -> 0 | K41: =K$36 -> 0 | M41: 0
A42: 5 | B42: IMD Basic (No Patch) | D42: 05 | E42: 35 | F42: 0535 | G42: IMD | J42: =MH1901_Schedule_A!H18 -> 0 | K42: =MH1901_Schedule_A!I18 -> 0 | M42: 0
A43: 6 | B43: IMD (With Patch) | D43: 05 | E43: 36 - 39 | J43: =MH1901_Schedule_A!H19 -> 0 | K43: =MH1901_Schedule_A!I19 -> 0 | M43: 0
A44: 6 | B44: IMD (With Patch) | D44: 05 | E44: 36 | F44: =CONCATENATE(D44,E44) -> 0536 | G44: IMD | J44: =J$43 -> 0 | K44: =K$43 -> 0 | M44: 0
A45: 6 | B45: IMD (With Patch) | D45: 05 | E45: 37 | F45: 0537 | G45: IMD | J45: =J$43 -> 0 | K45: =K$43 -> 0 | M45: 0
A46: 6 | B46: IMD (With Patch) | D46: 05 | E46: 38 | F46: 0538 | G46: IMD | J46: 0 | K46: 0 | M46: 0
A47: 6 | B47: IMD (With Patch) | D47: 05 | E47: 39 | F47: 0539 | G47: IMD | J47: =J$43 -> 0 | K47: =K$43 -> 0 | M47: 0
A48: 7 | B48: Adult Crisis Residential | D48: 05 | E48: 40 - 49 | H48: 384.05 | J48: =MH1901_Schedule_A!H20 -> 396.57 | K48: =MH1901_Schedule_A!I20 -> 0 | M48: 0
A49: 7 | B49: Adult Crisis Residential | D49: 05 | E49: 40 | F49: 0540 | G49: OP | H49: =$H$48 -> 384.05 | J49: =J$48 -> 396.57 | K49: 0 | M49: 0
A50: 7 | B50: Adult Crisis Residential | D50: 05 | E50: 41 | F50: 0541 | G50: OP | H50: 384.05 | J50: 396.57 | K50: 0 | M50: 0
A51: 7 | B51: Adult Crisis Residential | D51: 05 | E51: 42 | F51: 0542 | G51: OP | H51: 384.05 | J51: 396.57 | K51: 0 | M51: 0
A52: 7 | B52: Adult Crisis Residential | D52: 05 | E52: 43 | F52: 0543 | G52: OP | H52: 384.05 | J52: 396.57 | K52: 0 | M52: 0
A53: 7 | B53: Adult Crisis Residential | D53: 05 | E53: 44 | F53: 0544 | G53: OP | H53: 384.05 | J53: 396.57 | K53: 0 | M53: 0
A54: 7 | B54: Adult Crisis Residential | D54: 05 | E54: 45 | F54: 0545 | G54: OP | H54: 384.05 | J54: 396.57 | K54: 0 | M54: 0
A55: 7 | B55: Adult Crisis Residential | D55: 05 | E55: 46 | F55: 0546 | G55: OP | H55: 384.05 | J55: 396.57 | K55: 0 | M55: 0
A56: 7 | B56: Adult Crisis Residential | D56: 05 | E56: 47 | F56: 0547 | G56: OP | H56: 384.05 | J56: 396.57 | K56: 0 | M56: 0
A57: 7 | B57: Adult Crisis Residential | D57: 05 | E57: 48 | F57: 0548 | G57: OP | H57: 384.05 | J57: 396.57 | K57: 0 | M57: 0
A58: 7 | B58: Adult Crisis Residential | D58: 05 | E58: 49 | F58: 0549 | G58: OP | H58: 384.05 | J58: 396.57 | K58: 0 | M58: 0
A59: 8 | B59: Jail Inpatient | D59: 05 | E59: 50 - 59 | J59: =MH1901_Schedule_A!H21 -> 0 | K59: =MH1901_Schedule_A!I21 -> 0 | M59: 0
A60: 8 | B60: Jail Inpatient | D60: 05 | E60: 50 | F60: 0550 | G60: OP | J60: =J$59 -> 0 | K60: 0 | M60: 0
A61: 8 | B61: Jail Inpatient | D61: 05 | E61: 51 | F61: 0551 | G61: OP | J61: 0 | K61: 0 | M61: 0
A62: 8 | B62: Jail Inpatient | D62: 05 | E62: 52 | F62: 0552 | G62: OP | J62: 0 | K62: 0 | M62: 0
A63: 8 | B63: Jail Inpatient | D63: 05 | E63: 53 | F63: 0553 | G63: OP | J63: 0 | K63: 0 | M63: 0
A64: 8 | B64: Jail Inpatient | D64: 05 | E64: 54 | F64: 0554 | G64: OP | J64: 0 | K64: 0 | M64: 0
A65: 8 | B65: Jail Inpatient | D65: 05 | E65: 55 | F65: 0555 | G65: OP | J65: 0 | K65: 0 | M65: 0
A66: 8 | B66: Jail Inpatient | D66: 05 | E66: 56 | F66: 0556 | G66: OP | J66: 0 | K66: 0 | M66: 0
A67: 8 | B67: Jail Inpatient | D67: 05 | E67: 57 | F67: 0557 | G67: OP | J67: 0 | K67: 0 | M67: 0
A68: 8 | B68: Jail Inpatient | D68: 05 | E68: 58 | F68: 0558 | G68: OP | J68: 0 | K68: 0 | M68: 0
A69: 8 | B69: Jail Inpatient | D69: 05 | E69: 59 | F69: 0559 | G69: OP | J69: 0 | K69: 0 | M69: 0
A70: 9 | B70: Residential Other | D70: 05 | E70: 60 - 64 | J70: =MH1901_Schedule_A!H22 -> 0 | K70: =MH1901_Schedule_A!I22 -> 0 | M70: 0
A71: 9 | B71: Residential Other | D71: 05 | E71: 60 | F71: =CONCATENATE(D71,E71) -> 0560 | G71: OP | J71: =J$70 -> 0 | K71: 0 | M71: 0
A72: 9 | B72: Residential Other | D72: 05 | E72: 61 | F72: 0561 | G72: OP | J72: 0 | K72: 0 | M72: 0
A73: 9 | B73: Residential Other | D73: 05 | E73: 62 | F73: 0562 | G73: OP | J73: 0 | K73: 0 | M73: 0
A74: 9 | B74: Residential Other | D74: 05 | E74: 63 | F74: 0563 | G74: OP | J74: 0 | K74: 0 | M74: 0
A75: 9 | B75: Residential Other | D75: 05 | E75: 64 | F75: 0564 | G75: OP | J75: 0 | K75: 0 | M75: 0
A76: 10 | B76: Adult Residential | D76: 05 | E76: 65 - 79 | H76: 187.32 | J76: =MH1901_Schedule_A!H23 -> 0 | K76: =MH1901_Schedule_A!I23 -> 0 | M76: 0
A77: 10 | B77: Adult Residential | D77: 05 | E77: 65 | F77: =CONCATENATE(D77,E77) -> 0565 | G77: OP | H77: =$H$76 -> 187.32 | J77: =J$76 -> 0 | K77: 0 | M77: 0
A78: 10 | B78: Adult Residential | D78: 05 | E78: 66 | F78: 0566 | G78: OP | H78: 187.32 | J78: 0 | K78: 0 | M78: 0
A79: 10 | B79: Adult Residential | D79: 05 | E79: 67 | F79: 0567 | G79: OP | H79: 187.32 | J79: 0 | K79: 0 | M79: 0
A80: 10 | B80: Adult Residential | D80: 05 | E80: 68 | F80: 0568 | G80: OP | H80: 187.32 | J80: 0 | K80: 0 | M80: 0
A81: 10 | B81: Adult Residential | D81: 05 | E81: 69 | F81: 0569 | G81: OP | H81: 187.32 | J81: 0 | K81: 0 | M81: 0
A82: 10 | B82: Adult Residential | D82: 05 | E82: 70 | F82: 0570 | G82: OP | H82: 187.32 | J82: 0 | K82: 0 | M82: 0
A83: 10 | B83: Adult Residential | D83: 05 | E83: 71 | F83: 0571 | G83: OP | H83: 187.32 | J83: 0 | K83: 0 | M83: 0
A84: 10 | B84: Adult Residential | D84: 05 | E84: 72 | F84: 0572 | G84: OP | H84: 187.32 | J84: 0 | K84: 0 | M84: 0
A85: 10 | B85: Adult Residential | D85: 05 | E85: 73 | F85: 0573 | G85: OP | H85: 187.32 | J85: 0 | K85: 0 | M85: 0
A86: 10 | B86: Adult Residential | D86: 05 | E86: 74 | F86: 0574 | G86: OP | H86: 187.32 | J86: 0 | K86: 0 | M86: 0
A87: 10 | B87: Adult Residential | D87: 05 | E87: 75 | F87: 0575 | G87: OP | H87: 187.32 | J87: 0 | K87: 0 | M87: 0
A88: 10 | B88: Adult Residential | D88: 05 | E88: 76 | F88: 0576 | G88: OP | H88: 187.32 | J88: 0 | K88: 0 | M88: 0
A89: 10 | B89: Adult Residential | D89: 05 | E89: 77 | F89: 0577 | G89: OP | H89: 187.32 | J89: 0 | K89: 0 | M89: 0
A90: 10 | B90: Adult Residential | D90: 05 | E90: 78 | F90: 0578 | G90: OP | H90: 187.32 | J90: 0 | K90: 0 | M90: 0
A91: 10 | B91: Adult Residential | D91: 05 | E91: 79 | F91: 0579 | G91: OP | H91: 187.32 | J91: 0 | K91: 0 | M91: 0
A92: 11 | B92: Semi - Supervised Living | D92: 05 | E92: 80 - 84 | J92: =MH1901_Schedule_A!H24 -> 0 | K92: =MH1901_Schedule_A!I24 -> 0 | M92: 0
A93: 11 | B93: Semi - Supervised Living | D93: 05 | E93: 80 | F93: 0580 | G93: OP | J93: =J$92 -> 0 | K93: 0 | M93: 0
A94: 11 | B94: Semi - Supervised Living | D94: 05 | E94: 81 | F94: 0581 | G94: OP | J94: 0 | K94: 0 | M94: 0
A95: 11 | B95: Semi - Supervised Living | D95: 05 | E95: 82 | F95: 0582 | G95: OP | J95: 0 | K95: 0 | M95: 0
A96: 11 | B96: Semi - Supervised Living | D96: 05 | E96: 83 | F96: 0583 | G96: OP | J96: 0 | K96: 0 | M96: 0
A97: 11 | B97: Semi - Supervised Living | D97: 05 | E97: 84 | F97: 0584 | G97: OP | J97: 0 | K97: 0 | M97: 0
A98: 12 | B98: Independent Living | D98: 05 | E98: 85 - 89 | J98: =MH1901_Schedule_A!H25 -> 0 | K98: =MH1901_Schedule_A!I25 -> 0 | M98: 0
A99: 12 | B99: Independent Living | D99: 05 | E99: 85 | F99: 0585 | G99: OP | J99: =J$98 -> 0 | K99: 0 | M99: 0
A100: 12 | B100: Independent Living | D100: 05 | E100: 86 | F100: 0586 | G100: OP | J100: 0 | K100: 0 | M100: 0
A101: 12 | B101: Independent Living | D101: 05 | E101: 87 | F101: 0587 | G101: OP | J101: 0 | K101: 0 | M101: 0
A102: 12 | B102: Independent Living | D102: 05 | E102: 88 | F102: 0588 | G102: OP | J102: 0 | K102: 0 | M102: 0
A103: 12 | B103: Independent Living | D103: 05 | E103: 89 | F103: 0589 | G103: OP | J103: 0 | K103: 0 | M103: 0
A104: 13 | B104: MH Rehab Centers | D104: 05 | E104: 90 - 94 | J104: =MH1901_Schedule_A!H26 -> 0 | K104: =MH1901_Schedule_A!I26 -> 0 | M104: 0
A105: 13 | B105: MH Rehab Centers | D105: 05 | E105: 90 | F105: 0590 | G105: IMD | J105: =J$104 -> 0 | K105: 0 | M105: 0
A106: 13 | B106: MH Rehab Centers | D106: 05 | E106: 91 | F106: 0591 | G106: IMD | J106: 0 | K106: 0 | M106: =IF(I106>0, I106, K106) -> 0
A107: 13 | B107: MH Rehab Centers | D107: 05 | E107: 92 | F107: 0592 | G107: IMD | J107: 0 | K107: 0 | M107: 0
A108: 13 | B108: MH Rehab Centers | D108: 05 | E108: 93 | F108: 0593 | G108: IMD | J108: 0 | K108: 0 | M108: 0
A109: 13 | B109: MH Rehab Centers | D109: 05 | E109: 94 | F109: 0594 | G109: IMD | J109: 0 | K109: 0 | M109: 0
A110: 14 | B110: Therapeutic Foster Care | D110: 05 | E110: 95 - 98 | J110: =MH1901_Schedule_A!H27 -> 0 | K110: =MH1901_Schedule_A!I27 -> 0 | M110: 0
A111: 14 | B111: Therapeutic Foster Care | D111: 05 | E111: 95 | F111: 0595 | G111: IMD | J111: =J$110 -> 0 | K111: 0 | M111: 0
A112: 14 | B112: Therapeutic Foster Care | D112: 05 | E112: 96 | F112: 0596 | G112: IMD | J112: 0 | K112: 0 | M112: 0
A113: 14 | B113: Therapeutic Foster Care | D113: 05 | E113: 97 | F113: 0597 | G113: IMD | J113: 0 | K113: 0 | M113: 0
A114: 14 | B114: Therapeutic Foster Care | D114: 05 | E114: 98 | F114: 0598 | G114: IMD | J114: 0 | K114: 0 | M114: 0
B115: B. DAY SERVICES
A116: 15 | B116: Crisis Stabilization
B117: Emergency Room | D117: 10 | E117: 20 - 24 | H117: 113.45 | J117: =MH1901_Schedule_A!H30 -> 0 | K117: =MH1901_Schedule_A!I30 -> 0 | M117: =IF(I117>0, I117, K117) -> 0
A118: 15 | B118: Emergency Room | D118: 10 | E118: 20 | F118: =CONCATENATE(D118,E118) -> 1020 | G118: OP | H118: =$H$117 -> 113.45 | J118: =J$117 -> 0 | K118: 0 | M118: 0
A119: 15 | B119: Emergency Room | D119: 10 | E119: 21 | F119: 1021 | G119: OP | H119: =$H$117 -> 113.45 | J119: 0 | K119: 0 | M119: 0
A120: 15 | B120: Emergency Room | D120: 10 | E120: 22 | F120: 1022 | G120: OP | H120: =$H$117 -> 113.45 | J120: 0 | K120: 0 | M120: 0
A121: 15 | B121: Emergency Room | D121: 10 | E121: 23 | F121: 1023 | G121: OP | H121: =$H$117 -> 113.45 | J121: 0 | K121: 0 | M121: 0
A122: 15 | B122: Emergency Room | D122: 10 | E122: 24 | F122: 1024 | G122: OP | H122: =$H$117 -> 113.45 | J122: 0 | K122: 0 | M122: 0
A123: 16 | B123: Urgent Care | D123: 10 | E123: 25 - 29 | H123: 113.45 | J123: =MH1901_Schedule_A!H31 -> 119.74 | K123: =MH1901_Schedule_A!I31 -> 0 | M123: 0
A124: 16 | B124: Urgent Care | D124: 10 | E124: 25 | F124: 1025 | G124: UCC | H124: =$H$123 -> 113.45 | J124: =J$123 -> 119.74 | K124: 0 | M124: 0
A125: 16 | B125: Urgent Care | D125: 10 | E125: 26 | F125: 1026 | G125: UCC | H125: =$H$123 -> 113.45 | J125: 119.74 | K125: 0 | M125: 0
A126: 16 | B126: Urgent Care | D126: 10 | E126: 27 | F126: 1027 | G126: UCC | H126: =$H$123 -> 113.45 | J126: 119.74 | K126: 0 | M126: 0
A127: 16 | B127: Urgent Care | D127: 10 | E127: 28 | F127: 1028 | G127: UCC | H127: =$H$123 -> 113.45 | J127: 119.74 | K127: 0 | M127: 0
A128: 16 | B128: Urgent Care | D128: 10 | E128: 29 | F128: 1029 | G128: UCC | H128: =$H$123 -> 113.45 | J128: 119.74 | K128: 0 | M128: 0
A129: 17 | B129: Vocational Services | D129: 10 | E129: 30 - 39 | J129: =MH1901_Schedule_A!H32 -> 0 | K129: =MH1901_Schedule_A!I32 -> 0 | M129: 0
A130: 17 | B130: Vocational Services | D130: 10 | E130: 30 | F130: 1030 | G130: OP | J130: =J$129 -> 0 | K130: 0 | M130: 0
A131: 17 | B131: Vocational Services | D131: 10 | E131: 31 | F131: 1031 | G131: OP | J131: 0 | K131: 0 | M131: 0
A132: 17 | B132: Vocational Services | D132: 10 | E132: 32 | F132: 1032 | G132: OP | J132: 0 | K132: 0 | M132: 0
A133: 17 | B133: Vocational Services | D133: 10 | E133: 33 | F133: 1033 | G133: OP | J133: 0 | K133: 0 | M133: 0
A134: 17 | B134: Vocational Services | D134: 10 | E134: 34 | F134: 1034 | G134: OP | J134: 0 | K134: 0 | M134: 0
A135: 17 | B135: Vocational Services | D135: 10 | E135: 35 | F135: 1035 | G135: OP | J135: 0 | K135: 0 | M135: 0
A136: 17 | B136: Vocational Services | D136: 10 | E136: 36 | F136: 1036 | G136: OP | J136: 0 | K136: 0 | M136: 0
A137: 17 | B137: Vocational Services | D137: 10 | E137: 37 | F137: 1037 | G137: OP | J137: 0 | K137: 0 | M137: 0
A138: 17 | B138: Vocational Services | D138: 10 | E138: 38 | F138: 1038 | G138: OP | J138: 0 | K138: 0 | M138: 0
A139: 17 | B139: Vocational Services | D139: 10 | E139: 39 | F139: 1039 | G139: OP | J139: 0 | K139: 0 | M139: 0
A140: 18 | B140: Socialization | D140: 10 | E140: 40 - 49 | J140: =MH1901_Schedule_A!H33 -> 0 | K140: =MH1901_Schedule_A!I33 -> 0 | M140: 0
A141: 18 | B141: Socialization | D141: 10 | E141: 40 | F141: 1040 | G141: OP | J141: =J$140 -> 0 | K141: 0 | M141: 0
A142: 18 | B142: Socialization | D142: 10 | E142: 41 | F142: 1041 | G142: OP | J142: 0 | K142: 0 | M142: 0
A143: 18 | B143: Socialization | D143: 10 | E143: 42 | F143: 1042 | G143: OP | J143: 0 | K143: 0 | M143: 0
A144: 18 | B144: Socialization | D144: 10 | E144: 43 | F144: 1043 | G144: OP | J144: 0 | K144: 0 | M144: 0
A145: 18 | B145: Socialization | D145: 10 | E145: 44 | F145: 1044 | G145: OP | J145: 0 | K145: 0 | M145: 0
A146: 18 | B146: Socialization | D146: 10 | E146: 45 | F146: 1045 | G146: OP | J146: 0 | K146: 0 | M146: 0
A147: 18 | B147: Socialization | D147: 10 | E147: 46 | F147: 1046 | G147: OP | J147: 0 | K147: 0 | M147: 0
A148: 18 | B148: Socialization | D148: 10 | E148: 47 | F148: 1047 | G148: OP | J148: 0 | K148: 0 | M148: 0
A149: 18 | B149: Socialization | D149: 10 | E149: 48 | F149: 1048 | G149: OP | J149: 0 | K149: 0 | M149: 0
A150: 18 | B150: Socialization | D150: 10 | E150: 49 | F150: 1049 | G150: OP | J150: 0 | K150: 0 | M150: 0
A151: 19 | B151: SNF Augmentation | D151: 10 | E151: 60 - 69 | J151: =MH1901_Schedule_A!H34 -> 0 | K151: =MH1901_Schedule_A!I34 -> 0 | M151: 0
A152: 19 | B152: SNF Augmentation | D152: 10 | E152: 60 | F152: 1060 | G152: IMD | J152: =J$151 -> 0 | K152: 0 | M152: 0
A153: 19 | B153: SNF Augmentation | D153: 10 | E153: 61 | F153: 1061 | G153: IMD | J153: 0 | K153: 0 | M153: 0
A154: 19 | B154: SNF Augmentation | D154: 10 | E154: 62 | F154: 1062 | G154: IMD | J154: 0 | K154: 0 | M154: 0
A155: 19 | B155: SNF Augmentation | D155: 10 | E155: 63 | F155: 1063 | G155: IMD | J155: 0 | K155: 0 | M155: 0
A156: 19 | B156: SNF Augmentation | D156: 10 | E156: 64 | F156: 1064 | G156: IMD | J156: 0 | K156: 0 | M156: 0
A157: 19 | B157: SNF Augmentation | D157: 10 | E157: 65 | F157: 1065 | G157: IMD | J157: 0 | K157: 0 | M157: 0
A158: 19 | B158: SNF Augmentation | D158: 10 | E158: 66 | F158: 1066 | G158: IMD | J158: 0 | K158: 0 | M158: 0
A159: 19 | B159: SNF Augmentation | D159: 10 | E159: 67 | F159: 1067 | G159: IMD | J159: 0 | K159: 0 | M159: 0
A160: 19 | B160: SNF Augmentation | D160: 10 | E160: 68 | F160: 1068 | G160: IMD | J160: 0 | K160: 0 | M160: 0
A161: 19 | B161: SNF Augmentation | D161: 10 | E161: 69 | F161: 1069 | G161: IMD | J161: 0 | K161: 0 | M161: 0
A162: 20 | B162: Day Treatment Intensive | D162: 10 | E162: 81 - 84 | H162: 169.26 | J162: =MH1901_Schedule_A!H36 -> 0 | K162: =MH1901_Schedule_A!I36 -> 0 | M162: 0
B163: Half Day
A164: 20 | B164: Half Day | D164: 10 | E164: 81 | F164: =CONCATENATE(D164,E164) -> 1081 | G164: OP | H164: =$H$162 -> 169.26 | J164: =J$162 -> 0 | K164: 0
A165: 20 | B165: Half Day | D165: 10 | E165: 82 | F165: 1082 | G165: OP | H165: =$H$162 -> 169.26 | J165: 0 | K165: 0
A166: 20 | B166: Half Day | D166: 10 | E166: 83 | F166: 1083 | G166: OP | H166: =$H$162 -> 169.26 | J166: 0 | K166: 0
A167: 20 | B167: Half Day | D167: 10 | E167: 84 | F167: 1084 | G167: OP | H167: =$H$162 -> 169.26 | J167: 0 | K167: 0
A168: 21 | B168: Full Day | D168: 10 | E168: 85 - 89 | H168: 237.72 | J168: =MH1901_Schedule_A!H37 -> 0 | K168: =MH1901_Schedule_A!I37 -> 0 | M168: =IF(I168>0, I168, K168) -> 0
A169: 21 | B169: Full Day | D169: 10 | E169: 85 | F169: 1085 | G169: OP | H169: =$H$168 -> 237.72 | J169: =J$168 -> 0 | K169: 0 | M169: 0
A170: 21 | B170: Full Day | D170: 10 | E170: 86 | F170: 1086 | G170: OP | H170: =$H$168 -> 237.72 | J170: 0 | K170: 0 | M170: 0
A171: 21 | B171: Full Day | D171: 10 | E171: 87 | F171: 1087 | G171: OP | H171: =$H$168 -> 237.72 | J171: 0 | K171: 0 | M171: 0
A172: 21 | B172: Full Day | D172: 10 | E172: 88 | F172: 1088 | G172: OP | H172: =$H$168 -> 237.72 | J172: 0 | K172: 0 | M172: 0
A173: 21 | B173: Full Day | D173: 10 | E173: 89 | F173: 1089 | G173: OP | H173: =$H$168 -> 237.72 | J173: 0 | K173: 0 | M173: 0
A174: 22 | B174: Day Rehabilitation | D174: 10 | E174: 91 - 94 | H174: 100.91 | J174: =MH1901_Schedule_A!H38 -> 0 | K174: =MH1901_Schedule_A!I38 -> 0 | M174: 0
B175: Half Day
A176: 22 | B176: Half Day | D176: 10 | E176: 91 | F176: =CONCATENATE(D176,E176) -> 1091 | G176: OP | H176: =$H$174 -> 100.91 | J176: =J$174 -> 0 | K176: 0
A177: 22 | B177: Half Day | D177: 10 | E177: 92 | F177: 1092 | G177: OP | H177: =$H$174 -> 100.91 | J177: 0 | K177: 0
A178: 22 | B178: Half Day | D178: 10 | E178: 93 | F178: 1093 | G178: OP | H178: =$H$174 -> 100.91 | J178: 0 | K178: 0
A179: 22 | B179: Half Day | D179: 10 | E179: 94 | F179: 1094 | G179: OP | H179: =$H$174 -> 100.91 | J179: 0 | K179: 0
A180: 23 | B180: Full Day | D180: 10 | E180: 95 - 99 | H180: 157.49 | J180: =MH1901_Schedule_A!H40 -> 0 | K180: =MH1901_Schedule_A!I40 -> 0 | M180: =IF(I180>0, I180, K180) -> 0
A181: 23 | B181: Full Day | D181: 10 | E181: 95 | F181: 1095 | G181: OP | H181: =$H$180 -> 157.49 | J181: =J$180 -> 0 | K181: 0 | M181: 0
A182: 23 | B182: Full Day | D182: 10 | E182: 96 | F182: 1096 | G182: OP | H182: =$H$180 -> 157.49 | J182: 0 | K182: 0 | M182: 0
A183: 23 | B183: Full Day | D183: 10 | E183: 97 | F183: 1097 | G183: OP | H183: =$H$180 -> 157.49 | J183: 0 | K183: 0 | M183: 0
A184: 23 | B184: Full Day | D184: 10 | E184: 98 | F184: 1098 | G184: OP | H184: =$H$180 -> 157.49 | J184: 0 | K184: 0 | M184: 0
A185: 23 | B185: Full Day | D185: 10 | E185: 99 | F185: 1099 | G185: OP | H185: =$H$180 -> 157.49 | J185: 0 | K185: 0 | M185: 0
B186: C. OUTPATIENT SERVICES
A187: 24 | B187: Case Management, Brokerage | D187: 15 | E187: 01 - 09 | H187: 2.42 | J187: =MH1901_Schedule_A!H42 -> 3 | K187: =MH1901_Schedule_A!I42 -> 0 | M187: =IF(I187>0, I187, K187) -> 0
A188: 24 | B188: Case Management, Brokerage | D188: 15 | E188: 01 | F188: =CONCATENATE(D188,E188) -> 1501 | G188: OP | H188: =$H$187 -> 2.42 | J188: =J$187 -> 3 | K188: 0 | M188: 0
A189: 24 | B189: Case Management, Brokerage | D189: 15 | E189: 02 | F189: 1502 | G189: OP | H189: =$H$187 -> 2.42 | J189: 3 | K189: 0 | M189: 0
A190: 24 | B190: Case Management, Brokerage | D190: 15 | E190: 03 | F190: 1503 | G190: OP | H190: 2.42 | J190: 3 | K190: 0 | M190: 0
A191: 24 | B191: Case Management, Brokerage | D191: 15 | E191: 04 | F191: 1504 | G191: OP | H191: 2.42 | J191: 3 | K191: 0 | M191: 0
A192: 24 | B192: Case Management, Brokerage | D192: 15 | E192: 05 | F192: 1505 | G192: OP | H192: 2.42 | J192: 3 | K192: 0 | M192: 0
A193: 24 | B193: Case Management, Brokerage | D193: 15 | E193: 06 | F193: 1506 | G193: OP | H193: 2.42 | J193: 3 | K193: 0 | M193: 0
A194: 24 | B194: Case Management, Brokerage | D194: 15 | E194: 07 | F194: 1507 | G194: OP | H194: 2.42 | J194: 3 | K194: 0 | M194: 0
A195: 24 | B195: Case Management, Brokerage | D195: 15 | E195: 08 | F195: 1508 | G195: OP | H195: 2.42 | J195: 3 | K195: 0 | M195: 0
A196: 24 | B196: Case Management, Brokerage | D196: 15 | E196: 09 | F196: 1509 | G196: OP | H196: 2.42 | J196: 3 | K196: 0 | M196: 0
A197: 25 | B197: Mental Health Services | D197: 15 | E197: 10 - 19 | H197: 3.14 | J197: =MH1901_Schedule_A!H43 -> 4 | K197: =MH1901_Schedule_A!I43 -> 0 | M197: 0
A198: 25 | B198: Mental Health Services | D198: 15 | E198: 10 | F198: 1510 | G198: OP | H198: =$H$197 -> 3.14 | J198: =J$197 -> 4 | K198: 0 | M198: 0
A199: 25 | B199: Mental Health Services | D199: 15 | E199: 11 | F199: 1511 | G199: OP | H199: =$H$197 -> 3.14 | J199: 4 | K199: 0 | M199: 0
A200: 25 | B200: Mental Health Services | D200: 15 | E200: 12 | F200: 1512 | G200: OP | H200: 3.14 | J200: 4 | K200: 0 | M200: 0
A201: 25 | B201: Mental Health Services | D201: 15 | E201: 13 | F201: 1513 | G201: OP | H201: 3.14 | J201: 4 | K201: 0 | M201: 0
A202: 25 | B202: Mental Health Services | D202: 15 | E202: 14 | F202: 1514 | G202: OP | H202: 3.14 | J202: 4 | K202: 0 | M202: 0
... 123 more rows

Sheet Sheet2 (hidden)
A3: Row Labels
A4: CMS
A5: COS
A6: IMD
A7: INV
A8: IP
A9: IPADM
A10: LS
A11: MAA
A12: MHS
A13: OP
A14: PG
A15: UCC
A16: (blank)
A17: Grand Total

Sheet Sheet1 (hidden)
A1: B
A2: CMS
A3: CMS
A4: CMS
A5: CMS
A6: CMS
A7: CMS
A8: CMS
A9: CMS
A10: CMS
A11: CMS
A12: COS
A13: COS
A14: COS
A15: COS
A16: COS
A17: COS
A18: COS
A19: COS
A20: COS
A21: COS
A22: COS
A23: COS
A24: COS
A25: COS
A26: COS
A27: COS
A28: COS
A29: COS
A30: COS
A31: COS
A32: IMD
A33: IMD
A34: IMD
A35: IMD
A36: IMD
A37: IMD
A38: IMD
A39: IMD
A40: IMD
A41: IMD
A42: IMD
A43: IMD
A44: IMD
A45: IMD
A46: IMD
A47: IMD
A48: IMD
A49: IMD
A50: IMD
A51: IMD
A52: IMD
A53: IMD
A54: IMD
A55: IMD
A56: IMD
A57: IMD
A58: IMD
A59: IMD
A60: IMD
A61: INV
A62: INV
A63: INV
A64: INV
A65: INV
A66: IP
A67: IP
A68: IP
A69: IP
A70: IP
A71: IP
A72: IP
A73: IP
A74: IP
A75: IPADM
A76: LS
A77: LS
A78: LS
A79: LS
A80: LS
A81: LS
A82: LS
A83: LS
A84: LS
A85: LS
A86: MAA
A87: MAA
A88: MAA
A89: MAA
A90: MAA
A91: MAA
A92: MAA
A93: MAA
A94: MAA
A95: MAA
A96: MAA
A97: MAA
A98: MHS
A99: OP
A100: OP
A101: OP
A102: OP
A103: OP
A104: OP
A105: OP
A106: OP
A107: OP
A108: OP
A109: OP
A110: OP
A111: OP
A112: OP
A113: OP
A114: OP
A115: OP
A116: OP
A117: OP
A118: OP
A119: OP
A120: OP
A121: OP
A122: OP
A123: OP
A124: OP
A125: OP
A126: OP
A127: OP
A128: OP
A129: OP
A130: OP
A131: OP
A132: OP
A133: OP
A134: OP
A135: OP
A136: OP
A137: OP
A138: OP
A139: OP
A140: OP
A141: OP
A142: OP
A143: OP
A144: OP
A145: OP
A146: OP
A147: OP
A148: OP
A149: OP
A150: OP
A151: OP
A152: OP
A153: OP
A154: OP
A155: OP
A156: OP
A157: OP
A158: OP
A159: OP
A160: OP
A161: OP
A162: OP
A163: OP
A164: OP
A165: OP
A166: OP
A167: OP
A168: OP
A169: OP
A170: OP
A171: OP
A172: OP
A173: OP
A174: OP
A175: OP
A176: OP
A177: OP
A178: OP
A179: OP
A180: OP
A181: OP
A182: OP
A183: OP
A184: OP
A185: OP
A186: OP
A187: OP
A188: OP
A189: OP
A190: OP
A191: OP
A192: OP
A193: OP
A194: OP
A195: OP
A196: OP
A197: OP
A198: OP
A199: OP
A200: OP
... 77 more rows

Sheet MH1901_Schedule_B
A1: State of California Health and Human Services Agency | AB1: DepartmentofHealthCareServices
A2: DETAIL COST REPORT
A3: WORKSHEET FOR UNITS OF SERVICE AND REVENUE BY MODE AND SERVICE FUNCTION
A4: MH1901 SCHEDULE B 07/01/20 - 06/30/21 | AB4: FISCAL YEAR 2020-2021
B7: ="Entity Name : "&Legal_Entity_Name -> Entity Name : Vermont Mental Health
B11: Settlement Types | C11: MAA-Medi-Cal Administrative Activities | G11: CR-Cost Reimbursement | J11: CAW-California Work Opportunity and Responsilbility to Kids (CalWORKS)
C12: TBS-Therapeutic Behavioral Services | G12: MHS-Mental Health Specialty
C13: ISA-Integrated Service Agency | G13: HOSP-Hospital
C14: ASO-Administrative Services Organization | G14: CCR - Continuum of Care Reform
B17: A | C17: B | D17: C | E17: D | F17: E | G17: F | H17: G | I17: H | J17: I | K17: J | L17: K | M17: L | N17: M | O17: N | P17: O | Q17: P | R17: Q | S17: R | T17: S | U17: T | V17: U | W17: V | X17: W | Y17: X | Z17: Y | AA17: Z | AB17: AA
B18: ALL UNITS 07/01/20 - 06/30/21 | F18: REGULAR FMAP SHORT/DOYLE MEDI-CAL 07/01/20 - 06/30/21 | H18: ENHANCED FMAP NON CHIP BENEFICIARIES 07/01/20-06/30/21 | J18: ENHANCED FMAP CHIP BENEFICIARIES 07/01/20-09/30/20 | L18: ENHANCED FMAP CHIP BENEFICIARIES 10/01/20-06/30/21 | N18: ENHANCED FMAP BCCTP BENEFICIARIES 07/01/20-06/30/21 | P18: ENHANCED FMAP PREGNANCY BENEFICIARIES 07/01/20-06/30/21 | R18: REFUGEE BENEFICIARIES 07/01/20 - 06/30/21 | T18: Affordable Care Act 07/01/20 - 06/30/21 | V18: Medi-Cal Access Program (MCAP) 07/01/20 - 09/30/20 | X18: Medi-Cal Access Program (MCAP) 10/01/20 - 06/30/21 | Z18: State Funded Beneficiaries 07/01/20 - 06/30/21 | AB18: Non Medi-Cal Units
B19: Settlement Type | C19: Mode | D19: SF | E19: Total Units of Service | F19: SD/MC Units | G19: SD/MC 3rd Party Revenue | H19: Non CHIP Units | I19: Non CHIP 3rd Party Revenue | J19: CHIP Units | K19: CHIP 3rd Party Revenue | L19: CHIP Units | M19: CHIP 3rd Party Revenue | N19: BCCTP Units | O19: BCCTP 3rd Party Revenue | P19: Pregnancy Units | Q19: Pregnancy 3rd Party Revenue | R19: Refugee Units | S19: Refugee 3rd Party Revenue | T19: Affordable Care Act Units | U19: 3rd Party Revenue | V19: MCAP Units | W19: 3rd Party Revenue | X19: MCAP Units | Y19: 3rd Party Revenue | Z19: Units | AA19: 3rd Party Revenue
A20: 1 | B20: CR | C20: 05 | D20: 20 | E20: 5869 | F20: 3248 | T20: 2459 | Z20: 24 | AB20: =E20-SUM(F20,H20,J20,L20,N20,P20,R20,T20,V20,X20,Z20) -> 138 | AC20: =IF(OR(D20="10",D20="11",D20="12",D20="13",D20="14",D20="15",D20="16",D20="17",D20="18"),1,0) -> 0
A21: 2 | B21: CR | C21: 05 | D21: 21 | E21: 533 | AB21: =E21-SUM(F21,H21,J21,L21,N21,P21,R21,T21,V21,X21,Z21) -> 533 | AC21: =IF(OR(D21="10",D21="11",D21="12",D21="13",D21="14",D21="15",D21="16",D21="17",D21="18"),1,0) -> 0
A22: 3 | B22: CR | C22: 05 | D22: 43 | E22: 2201 | F22: 606 | P22: 14 | T22: 1543 | Z22: 28 | AB22: 10 | AC22: 0
A23: 4 | B23: CR | C23: 05 | D23: 44 | E23: 1096 | AB23: 1096 | AC23: 0
A24: 5 | B24: CR | C24: 10 | D24: 25 | E24: 241692 | F24: 76579 | J24: 582 | L24: 1329 | P24: 7 | T24: 75300 | Z24: 521 | AB24: 87374 | AC24: 0
A25: 6 | B25: CR | C25: 15 | D25: 04 | E25: 774186 | F25: 399040 | L25: 309 | P25: 647 | T25: 367975 | Z25: 1174 | AB25: 5041 | AC25: 0
A26: 7 | B26: CR | C26: 15 | D26: 05 | E26: 102899 | AB26: 102899 | AC26: 0
A27: 8 | B27: CR | C27: 15 | D27: 10 | E27: 162537 | F27: 84711 | T27: 76840 | Z27: 66 | AB27: 920 | AC27: 1
A28: 9 | B28: CR | C28: 15 | D28: 42 | E28: 2295719 | F28: 1250641 | G28: 5000 | L28: 215 | P28: 2705 | T28: 1008049 | U28: 650 | Z28: 10140 | AB28: 23969 | AC28: 0
A29: 10 | B29: CR | C29: 15 | D29: 44 | E29: 230003 | AB29: 230003 | AC29: 0
A30: 11 | B30: CR | C30: 15 | D30: 52 | E30: 362149 | F30: 237213 | G30: 4000 | M30: 3000 | T30: 115958 | Z30: 2628 | AB30: 6350 | AC30: 0
A31: 12 | B31: CR | C31: 15 | D31: 62 | E31: 693670 | F31: 375510 | P31: 819 | T31: 298994 | Z31: 3942 | AB31: 14405 | AC31: 0
A32: 13 | B32: CR | C32: 15 | D32: 63 | E32: 98054 | AB32: 98054 | AC32: 0
A33: 14 | B33: CR | C33: 15 | D33: 77 | E33: 162041 | F33: 81108 | T33: 77833 | Z33: 123 | AB33: 2977 | AC33: 0
A34: 15 | B34: CR | C34: 15 | D34: 78 | E34: 18024 | AB34: 18024 | AC34: 0
A35: 16 | B35: CR | C35: 45 | D35: 10 | E35: 837.5833333 | AB35: 837.5833333 | AC35: 1
A36: 17 | B36: CR | C36: 45 | D36: 20 | E36: 2690.966667 | AB36: 2690.966667 | AC36: 0
A37: 18 | B37: CR | C37: 60 | D37: 40 | E37: 8256 | AB37: 8256 | AC37: 0
A38: 19 | B38: CCR | C38: 15 | D38: 07 | E38: 45 | F38: 45 | AB38: 0 | AC38: 0
A39: 20 | B39: CCR | C39: 15 | D39: 34 | E39: 50 | F39: 25 | J39: 25 | AB39: 0 | AC39: 0
A40: 21 | B40: CR | C40: 60 | D40: 70 | E40: 1 | AB40: 1 | AC40: 0
A41: 22 | B41: CR | C41: 60 | D41: 71 | E41: 1 | AB41: 1 | AC41: 0
A42: 23 | B42: CR | C42: 60 | D42: 72 | E42: 1 | AB42: 1 | AC42: 0
A43: 24 | B43: CR | C43: 60 | D43: 78 | E43: 1 | AB43: 1 | AC43: 0
A44: 25 | AB44: 0 | AC44: 0
A45: 26 | AB45: 0 | AC45: 0
A46: 27 | AB46: 0 | AC46: 0
A47: 28 | AB47: 0 | AC47: 0
A48: 29 | AB48: 0 | AC48: 0
A49: 30 | AB49: 0 | AC49: 0
A50: 31 | AB50: 0 | AC50: 0
A51: 32 | AB51: 0 | AC51: 0
A52: 33 | AB52: 0 | AC52: 0
A53: 34 | AB53: 0 | AC53: 0
A54: 35 | AB54: 0 | AC54: 0
A55: 36 | AB55: 0 | AC55: 0
A56: 37 | AB56: 0 | AC56: 0
A57: 38 | AB57: 0 | AC57: 0
A58: 39 | AB58: 0 | AC58: 0
A59: 40 | AB59: 0 | AC59: 0
A60: 41 | AB60: 0 | AC60: 0
A61: 42 | AB61: 0 | AC61: 0
A62: 43 | AB62: 0 | AC62: 0
A63: 44 | AB63: 0 | AC63: 0
A64: 45 | AB64: 0 | AC64: 0
A65: 46 | AB65: 0 | AC65: 0
A66: 47 | AB66: 0 | AC66: 0
A67: 48 | AB67: 0 | AC67: 0
A68: 49 | AB68: 0 | AC68: 0
A69: 50 | AB69: 0 | AC69: 0
A70: 51 | AB70: 0 | AC70: 0
A71: 52 | AB71: 0 | AC71: 0
A72: 53 | AB72: 0 | AC72: 0
A73: 54 | AB73: 0 | AC73: 0
A74: 55 | AB74: 0 | AC74: 0
A75: 56 | AB75: 0 | AC75: 0
A76: 57 | AB76: 0 | AC76: 0
A77: 58 | AB77: 0 | AC77: 0
A78: 59 | AB78: 0 | AC78: 0
A79: 60 | AB79: 0 | AC79: 0
A80: 61 | AB80: 0 | AC80: 0
A81: 62 | AB81: 0 | AC81: 0
A82: 63 | AB82: 0 | AC82: 0
A83: 64 | AB83: 0 | AC83: 0
A84: 65 | AB84: 0 | AC84: 0
A85: 66 | AB85: =E85-SUM(F85,H85,J85,L85,N85,P85,R85,T85,V85,X85,Z85) -> 0 | AC85: =IF(OR(D85="10",D85="11",D85="12",D85="13",D85="14",D85="15",D85="16",D85="17",D85="18"),1,0) -> 0
A86: 67 | AB86: 0 | AC86: 0
A87: 68 | AB87: 0 | AC87: 0
A88: 69 | AB88: 0 | AC88: 0
A89: 70 | AB89: 0 | AC89: 0
A90: 71 | AB90: 0 | AC90: 0
A91: 72 | AB91: 0 | AC91: 0
A92: 73 | AB92: 0 | AC92: 0
A93: 74 | AB93: 0 | AC93: 0
A94: 75 | AB94: 0 | AC94: 0
A95: 76 | AB95: 0 | AC95: 0
A96: 77 | AB96: 0 | AC96: 0
A97: 78 | AB97: 0 | AC97: 0
A98: 79 | AB98: 0 | AC98: 0
A99: 80 | AB99: 0 | AC99: 0
A100: 81 | AB100: 0 | AC100: 0
A101: 82 | AB101: 0 | AC101: 0
A102: 83 | AB102: 0 | AC102: 0
A103: 84 | AB103: 0 | AC103: 0
A104: Totals | B104: PrintThisRow | E104: =SUM(E20:E103) -> 5162556.55 | F104: =SUM(F20:F103) -> 2508726 | G104: 9000 | H104: 0 | I104: 0 | J104: 607 | K104: 0 | L104: 1853 | M104: 3000 | N104: 0 | O104: 0 | P104: 4192 | Q104: 0 | R104: =SUM(R20:R103) -> 0 | S104: =SUM(S20:S103) -> 0 | T104: =SUM(T20:T103) -> 2024951 | U104: =SUM(U20:U103) -> 650 | V104: 0 | W104: 0 | X104: 0 | Y104: 0 | Z104: 18646 | AA104: 0 | AB104: 603581.55
G105: =SUMIF($B$20:$B$103,"CCR",G20:G103)-SUM(G106:G107) -> 0 | I105: =SUMIF($B$20:$B$103,"CCR",I20:I103) -> 0 | K105: =SUMIF($B$20:$B$103,"CCR",K20:K103) -> 0 | M105: =SUMIF($B$20:$B$103,"CCR",M20:M103) -> 0 | O105: =SUMIF($B$20:$B$103,"CCR",O20:O103) -> 0 | Q105: =SUMIF($B$20:$B$103,"CCR",Q20:Q103) -> 0 | S105: =SUMIF($B$20:$B$103,"CCR",S20:S103) -> 0 | U105: =SUMIF($B$20:$B$103,"CCR",U20:U103) -> 0 | W105: =SUMIF($B$20:$B$103,"CCR",W20:W103) -> 0 | Y105: =SUMIF($B$20:$B$103,"CCR",Y20:Y103) -> 0
F106: =SUMIFS(F20:F103,$B$20:$B$103,"CCR",$C$20:$C$103,"05",$D$20:$D$103,"19") -> 0 | G106: 0 | H106: 0 | I106: 0 | J106: 0 | K106: 0 | L106: 0 | M106: 0 | N106: 0 | O106: 0 | P106: 0 | Q106: 0 | R106: 0 | S106: 0 | T106: 0 | U106: 0 | V106: 0 | W106: 0 | X106: 0 | Y106: 0 | Z106: 0
G107: =SUMIFS(G20:G103,$B$20:$B$103,"CCR",$C$20:$C$103,"05",$AC$20:$AC$103,1) -> 0 | I107: =SUMIFS(I20:I103,$B$20:$B$103,"CCR",$C$20:$C$103,"05",$AC$20:$AC$103,1) -> 0 | K107: =SUMIFS(K20:K103,$B$20:$B$103,"CCR",$C$20:$C$103,"05",$AC$20:$AC$103,1) -> 0 | M107: =SUMIFS(M20:M103,$B$20:$B$103,"CCR",$C$20:$C$103,"05",$AC$20:$AC$103,1) -> 0 | O107: =SUMIFS(O20:O103,$B$20:$B$103,"CCR",$C$20:$C$103,"05",$AC$20:$AC$103,1) -> 0 | Q107: =SUMIFS(Q20:Q103,$B$20:$B$103,"CCR",$C$20:$C$103,"05",$AC$20:$AC$103,1) -> 0 | S107: =SUMIFS(S20:S103,$B$20:$B$103,"CCR",$C$20:$C$103,"05",$AC$20:$AC$103,1) -> 0 | U107: =SUMIFS(U20:U103,$B$20:$B$103,"CCR",$C$20:$C$103,"05",$AC$20:$AC$103,1) -> 0 | W107: =SUMIFS(W20:W103,$B$20:$B$103,"CCR",$C$20:$C$103,"05",$AC$20:$AC$103,1) -> 0 | Y107: =SUMIFS(Y20:Y103,$B$20:$B$103,"CCR",$C$20:$C$103,"05",$AC$20:$AC$103,1) -> 0
C116: 5 | D116: 10 | F116: =SUMIFS(F20:F103,$C$20:$C$103,"05",$D$20:$D$103,10,$B$20:$B$103,"HOSP")+SUMIFS(F20:F103,$C$20:$C$103,"05",$D$20:$D$103,11,$B$20:$B$103,"HOSP")+SUMIFS(F20:F103,$C$20:$C$103,"05",$D$20:$D$103,12,$B$20:$B$103,"HOSP")+SUMIFS(F20:F103,$C$20:$C$103,"05",$D$20:$D$103,13,$B$20:$B$103,"HOSP")+SUMIFS(F20:F103,$C$20:$C$103,"05",$D$20:$D$103,14,$B$20:$B$103,"HOSP")+SUMIFS(F20:F103,$C$20:$C$103,"05",$D$20:$D$103,15,$B$20:$B$103,"HOSP")+SUMIFS(F20:F103,$C$20:$C$103,"05",$D$20:$D$103,16,$B$20:$B$103,"HOSP")+SUMIFS(F20:F103,$C$20:$C$103,"05",$D$20:$D$103,17,$B$20:$B$103,"HOSP")+SUMIFS(F20:F103,$C$20:$C$103,"05",$D$20:$D$103,18,$B$20:$B$103,"HOSP") -> 0 | H116: =SUMIFS(H20:H103,$C$20:$C$103,"05",$D$20:$D$103,10,$B$20:$B$103,"HOSP")+SUMIFS(H20:H103,$C$20:$C$103,"05",$D$20:$D$103,11,$B$20:$B$103,"HOSP")+SUMIFS(H20:H103,$C$20:$C$103,"05",$D$20:$D$103,12,$B$20:$B$103,"HOSP")+SUMIFS(H20:H103,$C$20:$C$103,"05",$D$20:$D$103,13,$B$20:$B$103,"HOSP")+SUMIFS(H20:H103,$C$20:$C$103,"05",$D$20:$D$103,14,$B$20:$B$103,"HOSP")+SUMIFS(H20:H103,$C$20:$C$103,"05",$D$20:$D$103,15,$B$20:$B$103,"HOSP")+SUMIFS(H20:H103,$C$20:$C$103,"05",$D$20:$D$103,16,$B$20:$B$103,"HOSP")+SUMIFS(H20:H103,$C$20:$C$103,"05",$D$20:$D$103,17,$B$20:$B$103,"HOSP")+SUMIFS(H20:H103,$C$20:$C$103,"05",$D$20:$D$103,18,$B$20:$B$103,"HOSP") -> 0 | J116: =SUMIFS(J20:J103,$C$20:$C$103,"05",$D$20:$D$103,10,$B$20:$B$103,"HOSP")+SUMIFS(J20:J103,$C$20:$C$103,"05",$D$20:$D$103,11,$B$20:$B$103,"HOSP")+SUMIFS(J20:J103,$C$20:$C$103,"05",$D$20:$D$103,12,$B$20:$B$103,"HOSP")+SUMIFS(J20:J103,$C$20:$C$103,"05",$D$20:$D$103,13,$B$20:$B$103,"HOSP")+SUMIFS(J20:J103,$C$20:$C$103,"05",$D$20:$D$103,14,$B$20:$B$103,"HOSP")+SUMIFS(J20:J103,$C$20:$C$103,"05",$D$20:$D$103,15,$B$20:$B$103,"HOSP")+SUMIFS(J20:J103,$C$20:$C$103,"05",$D$20:$D$103,16,$B$20:$B$103,"HOSP")+SUMIFS(J20:J103,$C$20:$C$103,"05",$D$20:$D$103,17,$B$20:$B$103,"HOSP")+SUMIFS(J20:J103,$C$20:$C$103,"05",$D$20:$D$103,18,$B$20:$B$103,"HOSP") -> 0 | L116: =SUMIFS(L20:L103,$C$20:$C$103,"05",$D$20:$D$103,10,$B$20:$B$103,"HOSP")+SUMIFS(L20:L103,$C$20:$C$103,"05",$D$20:$D$103,11,$B$20:$B$103,"HOSP")+SUMIFS(L20:L103,$C$20:$C$103,"05",$D$20:$D$103,12,$B$20:$B$103,"HOSP")+SUMIFS(L20:L103,$C$20:$C$103,"05",$D$20:$D$103,13,$B$20:$B$103,"HOSP")+SUMIFS(L20:L103,$C$20:$C$103,"05",$D$20:$D$103,14,$B$20:$B$103,"HOSP")+SUMIFS(L20:L103,$C$20:$C$103,"05",$D$20:$D$103,15,$B$20:$B$103,"HOSP")+SUMIFS(L20:L103,$C$20:$C$103,"05",$D$20:$D$103,16,$B$20:$B$103,"HOSP")+SUMIFS(L20:L103,$C$20:$C$103,"05",$D$20:$D$103,17,$B$20:$B$103,"HOSP")+SUMIFS(L20:L103,$C$20:$C$103,"05",$D$20:$D$103,18,$B$20:$B$103,"HOSP") -> 0 | N116: =SUMIFS(N20:N103,$C$20:$C$103,"05",$D$20:$D$103,10,$B$20:$B$103,"HOSP")+SUMIFS(N20:N103,$C$20:$C$103,"05",$D$20:$D$103,11,$B$20:$B$103,"HOSP")+SUMIFS(N20:N103,$C$20:$C$103,"05",$D$20:$D$103,12,$B$20:$B$103,"HOSP")+SUMIFS(N20:N103,$C$20:$C$103,"05",$D$20:$D$103,13,$B$20:$B$103,"HOSP")+SUMIFS(N20:N103,$C$20:$C$103,"05",$D$20:$D$103,14,$B$20:$B$103,"HOSP")+SUMIFS(N20:N103,$C$20:$C$103,"05",$D$20:$D$103,15,$B$20:$B$103,"HOSP")+SUMIFS(N20:N103,$C$20:$C$103,"05",$D$20:$D$103,16,$B$20:$B$103,"HOSP")+SUMIFS(N20:N103,$C$20:$C$103,"05",$D$20:$D$103,17,$B$20:$B$103,"HOSP")+SUMIFS(N20:N103,$C$20:$C$103,"05",$D$20:$D$103,18,$B$20:$B$103,"HOSP") -> 0 | P116: =SUMIFS(P20:P103,$C$20:$C$103,"05",$D$20:$D$103,10,$B$20:$B$103,"HOSP")+SUMIFS(P20:P103,$C$20:$C$103,"05",$D$20:$D$103,11,$B$20:$B$103,"HOSP")+SUMIFS(P20:P103,$C$20:$C$103,"05",$D$20:$D$103,12,$B$20:$B$103,"HOSP")+SUMIFS(P20:P103,$C$20:$C$103,"05",$D$20:$D$103,13,$B$20:$B$103,"HOSP")+SUMIFS(P20:P103,$C$20:$C$103,"05",$D$20:$D$103,14,$B$20:$B$103,"HOSP")+SUMIFS(P20:P103,$C$20:$C$103,"05",$D$20:$D$103,15,$B$20:$B$103,"HOSP")+SUMIFS(P20:P103,$C$20:$C$103,"05",$D$20:$D$103,16,$B$20:$B$103,"HOSP")+SUMIFS(P20:P103,$C$20:$C$103,"05",$D$20:$D$103,17,$B$20:$B$103,"HOSP")+SUMIFS(P20:P103,$C$20:$C$103,"05",$D$20:$D$103,18,$B$20:$B$103,"HOSP") -> 0 | R116: =SUMIFS(R20:R103,$C$20:$C$103,"05",$D$20:$D$103,10,$B$20:$B$103,"HOSP")+SUMIFS(R20:R103,$C$20:$C$103,"05",$D$20:$D$103,11,$B$20:$B$103,"HOSP")+SUMIFS(R20:R103,$C$20:$C$103,"05",$D$20:$D$103,12,$B$20:$B$103,"HOSP")+SUMIFS(R20:R103,$C$20:$C$103,"05",$D$20:$D$103,13,$B$20:$B$103,"HOSP")+SUMIFS(R20:R103,$C$20:$C$103,"05",$D$20:$D$103,14,$B$20:$B$103,"HOSP")+SUMIFS(R20:R103,$C$20:$C$103,"05",$D$20:$D$103,15,$B$20:$B$103,"HOSP")+SUMIFS(R20:R103,$C$20:$C$103,"05",$D$20:$D$103,16,$B$20:$B$103,"HOSP")+SUMIFS(R20:R103,$C$20:$C$103,"05",$D$20:$D$103,17,$B$20:$B$103,"HOSP")+SUMIFS(R20:R103,$C$20:$C$103,"05",$D$20:$D$103,18,$B$20:$B$103,"HOSP") -> 0 | T116: =SUMIFS(T20:T103,$C$20:$C$103,"05",$D$20:$D$103,10,$B$20:$B$103,"HOSP")+SUMIFS(T20:T103,$C$20:$C$103,"05",$D$20:$D$103,11,$B$20:$B$103,"HOSP")+SUMIFS(T20:T103,$C$20:$C$103,"05",$D$20:$D$103,12,$B$20:$B$103,"HOSP")+SUMIFS(T20:T103,$C$20:$C$103,"05",$D$20:$D$103,13,$B$20:$B$103,"HOSP")+SUMIFS(T20:T103,$C$20:$C$103,"05",$D$20:$D$103,14,$B$20:$B$103,"HOSP")+SUMIFS(T20:T103,$C$20:$C$103,"05",$D$20:$D$103,15,$B$20:$B$103,"HOSP")+SUMIFS(T20:T103,$C$20:$C$103,"05",$D$20:$D$103,16,$B$20:$B$103,"HOSP")+SUMIFS(T20:T103,$C$20:$C$103,"05",$D$20:$D$103,17,$B$20:$B$103,"HOSP")+SUMIFS(T20:T103,$C$20:$C$103,"05",$D$20:$D$103,18,$B$20:$B$103,"HOSP") -> 0 | V116: =SUMIFS(V20:V103,$C$20:$C$103,"05",$D$20:$D$103,10,$B$20:$B$103,"HOSP")+SUMIFS(V20:V103,$C$20:$C$103,"05",$D$20:$D$103,11,$B$20:$B$103,"HOSP")+SUMIFS(V20:V103,$C$20:$C$103,"05",$D$20:$D$103,12,$B$20:$B$103,"HOSP")+SUMIFS(V20:V103,$C$20:$C$103,"05",$D$20:$D$103,13,$B$20:$B$103,"HOSP")+SUMIFS(V20:V103,$C$20:$C$103,"05",$D$20:$D$103,14,$B$20:$B$103,"HOSP")+SUMIFS(V20:V103,$C$20:$C$103,"05",$D$20:$D$103,15,$B$20:$B$103,"HOSP")+SUMIFS(V20:V103,$C$20:$C$103,"05",$D$20:$D$103,16,$B$20:$B$103,"HOSP")+SUMIFS(V20:V103,$C$20:$C$103,"05",$D$20:$D$103,17,$B$20:$B$103,"HOSP")+SUMIFS(V20:V103,$C$20:$C$103,"05",$D$20:$D$103,18,$B$20:$B$103,"HOSP") -> 0 | X116: =SUMIFS(X20:X103,$C$20:$C$103,"05",$D$20:$D$103,10,$B$20:$B$103,"HOSP")+SUMIFS(X20:X103,$C$20:$C$103,"05",$D$20:$D$103,11,$B$20:$B$103,"HOSP")+SUMIFS(X20:X103,$C$20:$C$103,"05",$D$20:$D$103,12,$B$20:$B$103,"HOSP")+SUMIFS(X20:X103,$C$20:$C$103,"05",$D$20:$D$103,13,$B$20:$B$103,"HOSP")+SUMIFS(X20:X103,$C$20:$C$103,"05",$D$20:$D$103,14,$B$20:$B$103,"HOSP")+SUMIFS(X20:X103,$C$20:$C$103,"05",$D$20:$D$103,15,$B$20:$B$103,"HOSP")+SUMIFS(X20:X103,$C$20:$C$103,"05",$D$20:$D$103,16,$B$20:$B$103,"HOSP")+SUMIFS(X20:X103,$C$20:$C$103,"05",$D$20:$D$103,17,$B$20:$B$103,"HOSP")+SUMIFS(X20:X103,$C$20:$C$103,"05",$D$20:$D$103,18,$B$20:$B$103,"HOSP") -> 0 | Z116: =SUMIFS(Z20:Z103,$C$20:$C$103,"05",$D$20:$D$103,10,$B$20:$B$103,"HOSP")+SUMIFS(Z20:Z103,$C$20:$C$103,"05",$D$20:$D$103,11,$B$20:$B$103,"HOSP")+SUMIFS(Z20:Z103,$C$20:$C$103,"05",$D$20:$D$103,12,$B$20:$B$103,"HOSP")+SUMIFS(Z20:Z103,$C$20:$C$103,"05",$D$20:$D$103,13,$B$20:$B$103,"HOSP")+SUMIFS(Z20:Z103,$C$20:$C$103,"05",$D$20:$D$103,14,$B$20:$B$103,"HOSP")+SUMIFS(Z20:Z103,$C$20:$C$103,"05",$D$20:$D$103,15,$B$20:$B$103,"HOSP")+SUMIFS(Z20:Z103,$C$20:$C$103,"05",$D$20:$D$103,16,$B$20:$B$103,"HOSP")+SUMIFS(Z20:Z103,$C$20:$C$103,"05",$D$20:$D$103,17,$B$20:$B$103,"HOSP")+SUMIFS(Z20:Z103,$C$20:$C$103,"05",$D$20:$D$103,18,$B$20:$B$103,"HOSP") -> 0
C117: 5 | D117: 19 | F117: =SUMIFS(F20:F103,$C$20:$C$103,"05",$D$20:$D$103,19,$B$20:$B$103,"HOSP") -> 0 | H117: =SUMIFS(H20:H103,$C$20:$C$103,"05",$D$20:$D$103,19,$B$20:$B$103,"HOSP") -> 0 | J117: =SUMIFS(J20:J103,$C$20:$C$103,"05",$D$20:$D$103,19,$B$20:$B$103,"HOSP") -> 0 | L117: =SUMIFS(L20:L103,$C$20:$C$103,"05",$D$20:$D$103,19,$B$20:$B$103,"HOSP") -> 0 | N117: =SUMIFS(N20:N103,$C$20:$C$103,"05",$D$20:$D$103,19,$B$20:$B$103,"HOSP") -> 0 | P117: =SUMIFS(P20:P103,$C$20:$C$103,"05",$D$20:$D$103,19,$B$20:$B$103,"HOSP") -> 0 | R117: =SUMIFS(R20:R103,$C$20:$C$103,"05",$D$20:$D$103,19,$B$20:$B$103,"HOSP") -> 0 | T117: =SUMIFS(T20:T103,$C$20:$C$103,"05",$D$20:$D$103,19,$B$20:$B$103,"HOSP") -> 0 | V117: =SUMIFS(V20:V103,$C$20:$C$103,"05",$D$20:$D$103,19,$B$20:$B$103,"HOSP") -> 0 | X117: =SUMIFS(X20:X103,$C$20:$C$103,"05",$D$20:$D$103,19,$B$20:$B$103,"HOSP") -> 0 | Z117: =SUMIFS(Z20:Z103,$C$20:$C$103,"05",$D$20:$D$103,19,$B$20:$B$103,"HOSP") -> 0

Sheet LAC101
A1: COUNTY OF LOS ANGELES - DEPARTMENT OF MENTAL HEALTH
A3: SUPPLEMENTAL DETAIL TO MH 1960
A4: LAC 101 - (06/21)
C6: Entity Name | D6: =MH1900_INFO!B7 -> Vermont Mental Health | H6: Fiscal Year | I6: 2020 - 2021
C8: Entity Number | D8: =MH1900_INFO!B8 -> 00055
G11: 1 | H11: 2 | I11: 3
G12: Salaries | I12: Total
B13: NON HOSPITAL LEGAL ENTITIES | G13: and | H13: Other | I13: Cost
G14: Benefits
B15: Distribution of Total Cost
A16: 1 | B16: Total Agency Costs per Trial Balance | G16: 27488000 | H16: 31975000 | I16: =SUM(G16:H16) -> 59463000
A17: 2 | B17: LESS: Administrative Costs | G17: 90959 | H17: 8109426 | I17: =SUM(G17:H17) -> 8200385
A18: 3 | B18: LESS: Unallowable Costs | I18: =SUM(G18:H18) -> 0
A19: 4 | B19: LESS: Program Costs Not Applicable to DMH Contracted Svcs. | I19: =SUM(G19:H19) -> 0
A20: 5 | B20: Program Costs Applicable to DMH Contracted Services (Line 1 minus Lines 2 thru 4) | G20: =G16-SUM(G17:G19) -> 27397041 | H20: =H16-SUM(H17:H19) -> 23865574 | I20: =SUM(G20:H20) -> 51262615
B21: Allocation of Administrative Costs
A22: 6 | B22: Total Administrative Costs (From Line 2) | G22: =G17 -> 90959 | H22: =H17 -> 8109426 | I22: =SUM(G22:H22) -> 8200385
A23: 7 | B23: LESS: Unallowable Admin. Costs | I23: =SUM(G23:H23) -> 0
A24: 8 | B24: LESS: Admin. Costs Not Applicable to DMH Contracted Services | I24: =SUM(G24:H24) -> 0
A25: 9 | B25: Total Admin. Costs Applicable to DMH Contracted Srvcs. (Line 6 minus Lines 7 & 8) | G25: =G22-SUM(G23:G24) -> 90959 | H25: =H22-SUM(H23:H24) -> 8109426 | I25: =SUM(G25:H25) -> 8200385
B26: Total Cost after Administrative Cost Allocation
A27: 10 | B27: Total Agency Costs Per Trial Balance (From Line 1) | G27: =G16 -> 27488000 | H27: =H16 -> 31975000 | I27: =SUM(G27:H27) -> 59463000
A28: 11 | B28: LESS: Unallowable Costs (Line 3 plus Line 7) | G28: =G18+G23 -> 0 | H28: =H18+H23 -> 0 | I28: 0
A29: 12 | B29: LESS: Costs Not Applicable to DMH Contracted Svcs. (Line 4 plus Line 8) | G29: =G19+G24 -> 0 | H29: =H19+H24 -> 0 | I29: 0
A30: 13 | B30: Total Costs Applicable to DMH Contracted Services (Line 10 minus Lines 11 & 12) | G30: =G27-G28-G29 -> 27488000 | H30: =H27-H28-H29 -> 31975000 | I30: 59463000
A31: 14 | B31: PLUS: SD/MC Adjustments (Tie to MH 1961) | G31: -10000 | I31: ='MH1961'!E30 -> -10000 | J31: =IF(ABS(G31+H31-I31)>1, "Error, please check MH1961","") -> 
A32: 15 | B32: Allowable Costs to be Allocated to Modes/SFC (Line 13 plus Line 14) | G32: =G31+G30 -> 27478000 | H32: =H31+H30 -> 31975000 | I32: 59453000 | J32: =IF(ABS(I32-MH1901_Schedule_C!L11)>2, "Error, please check MH1901 Schedule C Total Non-Hospital Costs","") -> 
A37: HOSPITAL LEGAL ENTITIES | G37: 1 | H37: 2 | I37: 3
G38: Salaries | I38: Total
G39: and | H39: Other | I39: Cost
G40: Benefits
B42: Hospital Modes Costs (MH 1901 Schedule C Total Hospital Costs) | I42: =MH1901_Schedule_C!K118 -> 0

Sheet LAC102
F1: COUNTY OF LOS ANGELES - DEPARTMENT OF MENTAL HEALTH | AB1: COUNTY OF LOS ANGELES - DEPARTMENT OF MENTAL HEALTH | AX1: COUNTY OF LOS ANGELES - DEPARTMENT OF MENTAL HEALTH | BT1: COUNTY OF LOS ANGELES - DEPARTMENT OF MENTAL HEALTH | CP1: COUNTY OF LOS ANGELES - DEPARTMENT OF MENTAL HEALTH | DL1: COUNTY OF LOS ANGELES - DEPARTMENT OF MENTAL HEALTH | EH1: COUNTY OF LOS ANGELES - DEPARTMENT OF MENTAL HEALTH | FD1: COUNTY OF LOS ANGELES - DEPARTMENT OF MENTAL HEALTH | FZ1: COUNTY OF LOS ANGELES - DEPARTMENT OF MENTAL HEALTH | GV1: COUNTY OF LOS ANGELES - DEPARTMENT OF MENTAL HEALTH | HG1: COUNTY OF LOS ANGELES - DEPARTMENT OF MENTAL HEALTH | IC1: COUNTY OF LOS ANGELES - DEPARTMENT OF MENTAL HEALTH | IO1: COUNTY OF LOS ANGELES - DEPARTMENT OF MENTAL HEALTH | JK1: COUNTY OF LOS ANGELES - DEPARTMENT OF MENTAL HEALTH
F2: SUPPLEMENTAL DETAIL TO MH 1901 SCHEDULE B | AB2: SUPPLEMENTAL DETAIL TO MH 1901 SCHEDULE B | AX2: SUPPLEMENTAL DETAIL TO MH 1901 SCHEDULE B | BT2: SUPPLEMENTAL DETAIL TO MH 1901 SCHEDULE B | CP2: SUPPLEMENTAL DETAIL TO MH 1901 SCHEDULE B | DL2: SUPPLEMENTAL DETAIL TO MH 1901 SCHEDULE B | EH2: SUPPLEMENTAL DETAIL TO MH 1901 SCHEDULE B | FD2: SUPPLEMENTAL DETAIL TO MH 1901 SCHEDULE B | FZ2: SUPPLEMENTAL DETAIL TO MH 1901 SCHEDULE B | GV2: SUPPLEMENTAL DETAIL TO MH 1901 SCHEDULE B | HG2: SUPPLEMENTAL DETAIL TO MH 1901 SCHEDULE B | IC2: SUPPLEMENTAL DETAIL TO MH 1901 SCHEDULE B | IO2: SUPPLEMENTAL DETAIL TO MH 1901 SCHEDULE B | JK2: SUPPLEMENTAL DETAIL TO MH 1901 SCHEDULE B
F3: LAC 102 - (06/21) | AB3: =$F$3 -> LAC 102 - (06/21) | AX3: =$F$3 -> LAC 102 - (06/21) | BT3: =$F$3 -> LAC 102 - (06/21) | CP3: =$F$3 -> LAC 102 - (06/21) | DL3: =$F$3 -> LAC 102 - (06/21) | EH3: =$F$3 -> LAC 102 - (06/21) | FD3: =$F$3 -> LAC 102 - (06/21) | FZ3: =$F$3 -> LAC 102 - (06/21) | GV3: =$F$3 -> LAC 102 - (06/21) | HG3: =$F$3 -> LAC 102 - (06/21) | IC3: =$F$3 -> LAC 102 - (06/21) | IO3: =$F$3 -> LAC 102 - (06/21) | JK3: =$F$3 -> LAC 102 - (06/21)
F5: Entity Name | G5: =MH1900_INFO!B7 -> Vermont Mental Health | AB5: Entity Name | AD5: =$G$5 -> Vermont Mental Health | AX5: Entity Name | AZ5: =$G$5 -> Vermont Mental Health | BT5: Entity Name | BU5: =$G$5 -> Vermont Mental Health | CP5: Entity Name | CR5: =$G$5 -> Vermont Mental Health | DL5: Entity Name | DN5: =$G$5 -> Vermont Mental Health | EH5: Entity Name | EJ5: =$G$5 -> Vermont Mental Health | FD5: Entity Name | FF5: =$G$5 -> Vermont Mental Health | FZ5: Entity Name | GB5: =$G$5 -> Vermont Mental Health | GV5: Entity Name | GX5: =$G$5 -> Vermont Mental Health | HG5: Entity Name | HI5: =$G$5 -> Vermont Mental Health | IC5: Entity Name | IE5: =$G$5 -> Vermont Mental Health | IO5: Entity Name | IQ5: =$G$5 -> Vermont Mental Health | JK5: Entity Name | JM5: =$G$5 -> Vermont Mental Health
F7: Entity Number | G7: =MH1900_INFO!B8 -> 00055 | AB7: Entity Number | AD7: =$G$7 -> 00055 | AX7: Entity Number | AZ7: =$G$7 -> 00055 | BT7: Entity Number | BU7: =$G$7 -> 00055 | CP7: Entity Number | CR7: =$G$7 -> 00055 | DL7: Entity Number | DN7: =$G$7 -> 00055 | EH7: Entity Number | EJ7: =$G$7 -> 00055 | FD7: Entity Number | FF7: =$G$7 -> 00055 | FZ7: Entity Number | GB7: =$G$7 -> 00055 | GV7: Entity Number | GX7: =$G$7 -> 00055 | HG7: Entity Number | HI7: =$G$7 -> 00055 | IC7: Entity Number | IE7: =$G$7 -> 00055 | IO7: Entity Number | IQ7: =$G$7 -> 00055 | JK7: Entity Number | JM7: =$G$7 -> 00055
F9: Fiscal Year | G9: ='LAC101'!I6 -> 2020 - 2021 | AB9: Fiscal Year | AD9: =$G$9 -> 2020 - 2021 | AX9: Fiscal Year | AZ9: =$G$9 -> 2020 - 2021 | BT9: Fiscal Year | BU9: =$G$9 -> 2020 - 2021 | CP9: Fiscal Year | CR9: =$G$9 -> 2020 - 2021 | DL9: Fiscal Year | DN9: =$G$9 -> 2020 - 2021 | EH9: Fiscal Year | EJ9: =$G$9 -> 2020 - 2021 | FD9: Fiscal Year | FF9: =$G$9 -> 2020 - 2021 | FZ9: Fiscal Year | GB9: =$G$9 -> 2020 - 2021 | GV9: Fiscal Year | GX9: =$G$9 -> 2020 - 2021 | HG9: Fiscal Year | HI9: =$G$9 -> 2020 - 2021 | IC9: Fiscal Year | IE9: =$G$9 -> 2020 - 2021 | IO9: Fiscal Year | IQ9: =$G$9 -> 2020 - 2021 | JK9: Fiscal Year | JM9: =$G$9 -> 2020 - 2021
C11: 1 | D11: 2 | E11: 3 | F11: =E11+1 -> 4 | G11: =F11+1 -> 5 | H11: 6 | I11: 7 | J11: 8 | K11: 9 | L11: 10 | M11: 11 | N11: 12 | O11: 13 | P11: 14 | Q11: 15 | R11: 16 | S11: 17 | T11: 18 | U11: 19 | V11: 20 | W11: 21 | X11: 22 | Y11: 23 | Z11: 24 | AA11: 25 | AB11: 26 | AC11: 27 | AD11: 28 | AE11: 29 | AF11: 30 | AG11: 31 | AH11: 32 | AI11: 33 | AJ11: 34 | AK11: 35 | AL11: 36 | AM11: 37 | AN11: 38 | AO11: 39 | AP11: 40 | AQ11: 41 | AR11: 42 | AS11: 43 | AT11: 44 | AU11: 45 | AV11: 46 | AW11: 47 | AX11: 48 | AY11: 49 | AZ11: 50 | BA11: 51 | BB11: 52 | BC11: 53 | BD11: 54 | BE11: 55 | BF11: 56 | BG11: 57 | BH11: 58 | BI11: 59 | BJ11: 60 | BK11: 61 | BL11: 62 | BM11: 63 | BN11: 64 | BO11: 65 | BP11: 66 | BQ11: 67 | BR11: 68 | BS11: =BR11+1 -> 69 | BT11: 70 | BU11: 71 | BV11: 72 | BW11: 73 | BX11: 74 | BY11: 75 | BZ11: 76 | CA11: 77 | CB11: 78 | CC11: 79 | CD11: 80 | CE11: 81 | CF11: 82 | CG11: 83 | CH11: 84 | CI11: 85 | CJ11: 86 | CK11: 87 | CL11: 88 | CM11: 89 | CN11: 90 | CO11: 91 | CP11: 92 | CQ11: 93 | CR11: 94 | CS11: 95 | CT11: 96 | CU11: 97 | CV11: 98 | CW11: 99 | CX11: 100 | CY11: 101 | CZ11: 102 | DA11: 103 | DB11: 104 | DC11: 105 | DD11: 106 | DE11: 107 | DF11: 108 | DG11: 109 | DH11: 110 | DI11: 111 | DJ11: 112 | DK11: 113 | DL11: 114 | DM11: 115 | DN11: 116 | DO11: 117 | DP11: 118 | DQ11: 119 | DR11: 120 | DS11: 121 | DT11: 122 | DU11: 123 | DV11: 124 | DW11: 125 | DX11: 126 | DY11: 127 | DZ11: 128 | EA11: 129 | EB11: 130 | EC11: 131 | ED11: 132 | EE11: =ED11+1 -> 133 | EF11: 134 | EG11: 135 | EH11: 136 | EI11: 137 | EJ11: 138 | EK11: 139 | EL11: 140 | EM11: 141 | EN11: 142 | EO11: 143 | EP11: 144 | EQ11: 145 | ER11: 146 | ES11: 147 | ET11: 148 | EU11: 149 | EV11: 150 | EW11: 151 | EX11: 152 | EY11: 153 | EZ11: 154 | FA11: 155 | FB11: 156 | FC11: 157 | FD11: 158 | FE11: 159 | FF11: 160 | FG11: 161 | FH11: 162 | FI11: 163 | FJ11: 164 | FK11: 165 | FL11: 166 | FM11: 167 | FN11: 168 | FO11: 169 | FP11: 170 | FQ11: 171 | FR11: 172 | FS11: 173 | FT11: 174 | FU11: 175 | FV11: 176 | FW11: 177 | FX11: 178 | FY11: 179 | FZ11: 180 | GA11: 181 | GB11: 182 | GC11: 183 | GD11: 184 | GE11: 185 | GF11: 186 | GG11: 187 | GH11: 188 | GI11: 189 | GJ11: 190 | GK11: 191 | GL11: 192 | GM11: 193 | GN11: 194 | GO11: 195 | GP11: 196 | GQ11: =GP11+1 -> 197 | GR11: 198 | GS11: 199 | GT11: 200 | GU11: 201 | GV11: 202 | GW11: 203 | GX11: 204 | GY11: 205 | GZ11: 206 | HA11: 207 | HB11: 208 | HC11: 209 | HD11: 210 | HE11: 211 | HF11: 212 | HG11: 213 | HH11: 214 | HI11: 215 | HJ11: 216 | HK11: 217 | HL11: 218 | HM11: 219 | HN11: 220 | HO11: 221 | HP11: 222 | HQ11: 223 | HR11: 224 | HS11: 225 | HT11: 226 | HU11: 227 | HV11: 228 | HW11: 229 | HX11: 230 | HY11: 231 | HZ11: 232 | IA11: 233 | IB11: 234 | IC11: 235 | ID11: 236 | IE11: 237 | IF11: 238 | IG11: 239 | IH11: 240 | II11: 241 | IJ11: 242 | IK11: 243 | IL11: 244 | IM11: 245 | IN11: 246
F12: Specialized Foster Care Wraparound | Q12: Specialized Foster Care Enhanced Mental Health Services (UCC) | AB12: Specialized Foster Care MAT | AM12: Specialized Foster Care TFC | AX12: Post-Release Community Supervision-Community Reintegration Program (UCC) | BI12: Measure H FSP | BT12: DHS EPIC Program | CE12: MHSA (Please enter UOS in Worksheet Named LAC102_S_MHSA) | CP12: DCFS PHF | DA12: CGF IMD Step Down | DL12: DMH Mental Health Services (CGF) | DW12: Federal/State Revenue | EH12: Homeless Services | ES12: Juvenile -New Direction | FD12: Juvenile Justice Prog (JJCPA-MST) | FO12: Juvenile Justice Program (FFT) | FZ12: ODR Diversion Programs | GK12: Children's Outreach & Triage Team (COTT) Please fill in attachment 11. | GV12: Outreach & Triage Team (OTT) Please fill in attachment 11. | HG12: Other 1 : (UCC- DCFS) | HR12: Other 2 (Please Specify): | IC12: Family Preservation Program | ID12: Specialized Foster Care - DCFS MAT | IE12: DCFS Medical Hubs | IF12: Comprehensive SOC Program | IG12: Juvenile Justice Program (STOP) | IH12: Juvenile Justice Prog (JJCPA-MHSAT) | II12: Juvenile Justice Program (COD) | IJ12: CalWORKs MHS | IK12: GROW | IL12: DPH Dual Diagnosis | IM12: Other 1 (Please Specify): | IN12: Other 2 (Please Specify): | IO12: CROSSCHECK (LAC 102) | IZ12: CROSSCHECK from MH1901 Sch B | JK12: VARIANCE
F13: Regular FMAP Medi-Cal Units (including: SD/MC, Crossover) | G13: Enhanced FMAP Non CHIP Beneficiaries | H13: Enhanced FMAP CHIP Beneficiaries | J13: Enhanced FMAP Medi-Cal Units (BCCTP, Pregnancy) | K13: Enhanced FMAP Medi-Cal Units (Refugee) | L13: Affordable Care Act (ACA) | M13: State Funded Beneficiaries | N13: Non Medi-Cal Units | O13: MediCal Access Program (MCAP) | Q13: Regular FMAP Medi-Cal Units (including: SD/MC, Crossover) | R13: Enhanced FMAP Non CHIP Beneficiaries | S13: Enhanced FMAP CHIP Beneficiaries | U13: Enhanced FMAP Medi-Cal Units (BCCTP, Pregnancy) | V13: Enhanced FMAP Medi-Cal Units (Refugee) | W13: Affordable Care Act (ACA) | X13: State Funded Beneficiaries | Y13: Non Medi-Cal Units | Z13: MediCal Access Program (MCAP) | AB13: Regular FMAP Medi-Cal Units (including: SD/MC, Crossover) | AC13: Enhanced FMAP Non CHIP Beneficiaries | AD13: Enhanced FMAP CHIP Beneficiaries | AF13: Enhanced FMAP Medi-Cal Units (BCCTP, Pregnancy) | AG13: Enhanced FMAP Medi-Cal Units (Refugee) | AH13: Affordable Care Act (ACA) | AI13: State Funded Beneficiaries | AJ13: Non Medi-Cal Units | AK13: MediCal Access Program (MCAP) | AM13: Regular FMAP Medi-Cal Units (including: SD/MC, Crossover) | AN13: Enhanced FMAP Non CHIP Beneficiaries | AO13: Enhanced FMAP CHIP Beneficiaries | AQ13: Enhanced FMAP Medi-Cal Units (BCCTP, Pregnancy) | AR13: Enhanced FMAP Medi-Cal Units (Refugee) | AS13: Affordable Care Act (ACA) | AT13: State Funded Beneficiaries | AU13: Non Medi-Cal Units | AV13: MediCal Access Program (MCAP) | AX13: Regular FMAP Medi-Cal Units (including: SD/MC, Crossover) | AY13: Enhanced FMAP Non CHIP Beneficiaries | AZ13: Enhanced FMAP CHIP Beneficiaries | BB13: Enhanced FMAP Medi-Cal Units (BCCTP, Pregnancy) | BC13: Enhanced FMAP Medi-Cal Units (Refugee) | BD13: Affordable Care Act (ACA) | BE13: State Funded Beneficiaries | BF13: Non Medi-Cal Units | BG13: MediCal Access Program (MCAP) | BI13: Regular FMAP Medi-Cal Units (including: SD/MC, Crossover) | BJ13: Enhanced FMAP Non CHIP Beneficiaries | BK13: Enhanced FMAP CHIP Beneficiaries | BM13: Enhanced FMAP Medi-Cal Units (BCCTP, Pregnancy) | BN13: Enhanced FMAP Medi-Cal Units (Refugee) | BO13: Affordable Care Act (ACA) | BP13: State Funded Beneficiaries | BQ13: Non Medi-Cal Units | BR13: MediCal Access Program (MCAP) | BT13: Regular FMAP Medi-Cal Units (including: SD/MC, Crossover) | BU13: Enhanced FMAP Non CHIP Beneficiaries | BV13: Enhanced FMAP CHIP Beneficiaries | BX13: Enhanced FMAP Medi-Cal Units (BCCTP, Pregnancy) | BY13: Enhanced FMAP Medi-Cal Units (Refugee) | BZ13: Affordable Care Act (ACA) | CA13: State Funded Beneficiaries | CB13: Non Medi-Cal Units | CC13: MediCal Access Program (MCAP) | CE13: Regular FMAP Medi-Cal Units (including: SD/MC, Crossover) | CF13: Enhanced FMAP Non CHIP Beneficiaries | CG13: Enhanced FMAP CHIP Beneficiaries | CI13: Enhanced FMAP Medi-Cal Units (BCCTP, Pregnancy) | CJ13: Enhanced FMAP Medi-Cal Units (Refugee) | CK13: Affordable Care Act (ACA) | CL13: State Funded Beneficiaries | CM13: Non Medi-Cal Units | CN13: MediCal Access Program (MCAP) | CP13: Regular FMAP Medi-Cal Units (including: SD/MC, Crossover) | CQ13: Enhanced FMAP Non CHIP Beneficiaries | CR13: Enhanced FMAP CHIP Beneficiaries | CT13: Enhanced FMAP Medi-Cal Units (BCCTP, Pregnancy) | CU13: Enhanced FMAP Medi-Cal Units (Refugee) | CV13: Affordable Care Act (ACA) | CW13: State Funded Beneficiaries | CX13: Non Medi-Cal Units | CY13: MediCal Access Program (MCAP) | DA13: Regular FMAP Medi-Cal Units (including: SD/MC, Crossover) | DB13: Enhanced FMAP Non CHIP Beneficiaries | DC13: Enhanced FMAP CHIP Beneficiaries | DE13: Enhanced FMAP Medi-Cal Units (BCCTP, Pregnancy) | DF13: Enhanced FMAP Medi-Cal Units (Refugee) | DG13: Affordable Care Act (ACA) | DH13: State Funded Beneficiaries | DI13: Non Medi-Cal Units | DJ13: MediCal Access Program (MCAP) | DL13: Regular FMAP Medi-Cal Units (including: SD/MC, Crossover) | DM13: Enhanced FMAP Non CHIP Beneficiaries | DN13: Enhanced FMAP CHIP Beneficiaries | DP13: Enhanced FMAP Medi-Cal Units (BCCTP, Pregnancy) | DQ13: Enhanced FMAP Medi-Cal Units (Refugee) | DR13: Affordable Care Act (ACA) | DS13: State Funded Beneficiaries | DT13: Non Medi-Cal Units | DU13: MediCal Access Program (MCAP) | DW13: Regular FMAP Medi-Cal Units (including: SD/MC, Crossover) | DX13: Enhanced FMAP Non CHIP Beneficiaries | DY13: Enhanced FMAP CHIP Beneficiaries | EA13: Enhanced FMAP Medi-Cal Units (BCCTP, Pregnancy) | EB13: Enhanced FMAP Medi-Cal Units (Refugee) | EC13: Affordable Care Act (ACA) | ED13: State Funded Beneficiaries | EE13: Non Medi-Cal Units | EF13: MediCal Access Program (MCAP) | EH13: Regular FMAP Medi-Cal Units (including: SD/MC, Crossover) | EI13: Enhanced FMAP Non CHIP Beneficiaries | EJ13: Enhanced FMAP CHIP Beneficiaries | EL13: Enhanced FMAP Medi-Cal Units (BCCTP, Pregnancy) | EM13: Enhanced FMAP Medi-Cal Units (Refugee) | EN13: Affordable Care Act (ACA) | EO13: State Funded Beneficiaries | EP13: Non Medi-Cal Units | EQ13: MediCal Access Program (MCAP) | ES13: Regular FMAP Medi-Cal Units (including: SD/MC, Crossover) | ET13: Enhanced FMAP Non CHIP Beneficiaries | EU13: Enhanced FMAP CHIP Beneficiaries | EW13: Enhanced FMAP Medi-Cal Units (BCCTP, Pregnancy) | EX13: Enhanced FMAP Medi-Cal Units (Refugee) | EY13: Affordable Care Act (ACA) | EZ13: State Funded Beneficiaries | FA13: Non Medi-Cal Units | FB13: MediCal Access Program (MCAP) | FD13: Regular FMAP Medi-Cal Units (including: SD/MC, Crossover) | FE13: Enhanced FMAP Non CHIP Beneficiaries | FF13: Enhanced FMAP CHIP Beneficiaries | FH13: Enhanced FMAP Medi-Cal Units (BCCTP, Pregnancy) | FI13: Enhanced FMAP Medi-Cal Units (Refugee) | FJ13: Affordable Care Act (ACA) | FK13: State Funded Beneficiaries | FL13: Non Medi-Cal Units | FM13: MediCal Access Program (MCAP) | FO13: Regular FMAP Medi-Cal Units (including: SD/MC, Crossover) | FP13: Enhanced FMAP Non CHIP Beneficiaries | FQ13: Enhanced FMAP CHIP Beneficiaries | FS13: Enhanced FMAP Medi-Cal Units (BCCTP, Pregnancy) | FT13: Enhanced FMAP Medi-Cal Units (Refugee) | FU13: Affordable Care Act (ACA) | FV13: State Funded Beneficiaries | FW13: Non Medi-Cal Units | FX13: MediCal Access Program (MCAP) | FZ13: Regular FMAP Medi-Cal Units (including: SD/MC, Crossover) | GA13: Enhanced FMAP Non CHIP Beneficiaries | GB13: Enhanced FMAP CHIP Beneficiaries | GD13: Enhanced FMAP Medi-Cal Units (BCCTP, Pregnancy) | GE13: Enhanced FMAP Medi-Cal Units (Refugee) | GF13: Affordable Care Act (ACA) | GG13: State Funded Beneficiaries | GH13: Non Medi-Cal Units | GI13: MediCal Access Program (MCAP) | GK13: Regular FMAP Medi-Cal Units (including: SD/MC, Crossover) | GL13: Enhanced FMAP Non CHIP Beneficiaries | GM13: Enhanced FMAP CHIP Beneficiaries | GO13: Enhanced FMAP Medi-Cal Units (BCCTP, Pregnancy) | GP13: Enhanced FMAP Medi-Cal Units (Refugee) | GQ13: Affordable Care Act (ACA) | GR13: State Funded Beneficiaries | GS13: Non Medi-Cal Units | GT13: MediCal Access Program (MCAP) | GV13: Regular FMAP Medi-Cal Units (including: SD/MC, Crossover) | GW13: Enhanced FMAP Non CHIP Beneficiaries | GX13: Enhanced FMAP CHIP Beneficiaries | GZ13: Enhanced FMAP Medi-Cal Units (BCCTP, Pregnancy) | HA13: Enhanced FMAP Medi-Cal Units (Refugee) | HB13: Affordable Care Act (ACA) | HC13: State Funded Beneficiaries | HD13: Non Medi-Cal Units | HE13: MediCal Access Program (MCAP) | HG13: Regular FMAP Medi-Cal Units (including: SD/MC, Crossover) | HH13: Enhanced FMAP Non CHIP Beneficiaries | HI13: Enhanced FMAP CHIP Beneficiaries | HK13: Enhanced FMAP Medi-Cal Units (BCCTP, Pregnancy) | HL13: Enhanced FMAP Medi-Cal Units (Refugee) | HM13: Affordable Care Act (ACA) | HN13: State Funded Beneficiaries | HO13: Non Medi-Cal Units | HP13: MediCal Access Program (MCAP) | HR13: Regular FMAP Medi-Cal Units (including: SD/MC, Crossover) | HS13: Enhanced FMAP Non CHIP Beneficiaries | HT13: Enhanced FMAP CHIP Beneficiaries | HV13: Enhanced FMAP Medi-Cal Units (BCCTP, Pregnancy) | HW13: Enhanced FMAP Medi-Cal Units (Refugee) | HX13: Affordable Care Act (ACA) | HY13: State Funded Beneficiaries | HZ13: Non Medi-Cal Units | IA13: MediCal Access Program (MCAP) | IC13: Non Medi-Cal Units | ID13: Non Medi-Cal Units | IE13: Non Medi-Cal Units | IF13: Non Medi-Cal Units | IG13: Non Medi-Cal Units | IH13: Non Medi-Cal Units | II13: Non Medi-Cal Units | IJ13: Non Medi-Cal Units | IK13: Non Medi-Cal Units | IL13: Non Medi-Cal Units | IM13: Non Medi-Cal Units | IN13: Non Medi-Cal Units | IO13: Regular FMAP Medi-Cal Units (including: SD/MC, Crossover) | IP13: Enhanced FMAP Non CHIP Beneficiaries | IQ13: Enhanced FMAP CHIP Beneficiaries | IS13: Enhanced FMAP Medi-Cal Units (BCCTP, Pregnancy) | IT13: Enhanced FMAP Medi-Cal Units (Refugee) | IU13: Affordable Care Act (ACA) | IV13: State Funded Beneficiaries | IW13: Non Medi-Cal Units | IX13: MediCal Access Program (MCAP) | IZ13: Regular FMAP Medi-Cal Units (including: SD/MC, Crossover) | JA13: Enhanced FMAP Non CHIP Beneficiaries | JB13: Enhanced FMAP CHIP Beneficiaries | JD13: Enhanced FMAP Medi-Cal Units (BCCTP, Pregnancy) | JE13: Enhanced FMAP Medi-Cal Units (Refugee) | JF13: Affordable Care Act (ACA) | JG13: State Funded Beneficiaries | JH13: Non Medi-Cal Units | JI13: MediCal Access Program (MCAP) | JK13: Regular FMAP Medi-Cal Units (including: SD/MC, Crossover) | JL13: Enhanced FMAP Non CHIP Beneficiaries | JM13: Enhanced FMAP CHIP Beneficiaries | JO13: Enhanced FMAP Medi-Cal Units (BCCTP, Pregnancy) | JP13: Enhanced FMAP Medi-Cal Units (Refugee) | JQ13: Affordable Care Act (ACA) | JR13: State Funded Beneficiaries | JS13: Non Medi-Cal Units | JT13: MediCal Access Program (MCAP)
C14: Settlement Type | D14: Mode | E14: SF | F14: 07/01/20 - 06/30/21 | G14: 07/01/20 - 06/30/21 | H14: 07/01/20 - 09/30/20 | I14: 10/01/20 - 06/30/21 | J14: 07/01/20 - 06/30/21 | K14: 07/01/20 - 06/30/21 | L14: 07/01/20 - 06/30/21 | M14: 07/01/20 - 06/30/21 | N14: 07/01/20 - 06/30/21 | O14: 07/01/20 - 09/30/20 | P14: 10/01/20 - 06/30/21 | Q14: 07/01/20 - 06/30/21 | R14: 07/01/20 - 06/30/21 | S14: 07/01/20 - 09/30/20 | T14: 10/01/20 - 06/30/21 | U14: 07/01/20 - 06/30/21 | V14: 07/01/20 - 06/30/21 | W14: 07/01/20 - 06/30/21 | X14: 07/01/20 - 06/30/21 | Y14: 07/01/20 - 06/30/21 | Z14: 07/01/20 - 09/30/20 | AA14: 10/01/20 - 06/30/21 | AB14: 07/01/20 - 06/30/21 | AC14: 07/01/20 - 06/30/21 | AD14: 07/01/20 - 09/30/20 | AE14: 10/01/20 - 06/30/21 | AF14: 07/01/20 - 06/30/21 | AG14: 07/01/20 - 06/30/21 | AH14: 07/01/20 - 06/30/21 | AI14: 07/01/20 - 06/30/21 | AJ14: 07/01/20 - 06/30/21 | AK14: 07/01/20 - 09/30/20 | AL14: 10/01/20 - 06/30/21 | AM14: 07/01/20 - 06/30/21 | AN14: 07/01/20 - 06/30/21 | AO14: 07/01/20 - 09/30/20 | AP14: 10/01/20 - 06/30/21 | AQ14: 07/01/20 - 06/30/21 | AR14: 07/01/20 - 06/30/21 | AS14: 07/01/20 - 06/30/21 | AT14: 07/01/20 - 06/30/21 | AU14: 07/01/20 - 06/30/21 | AV14: 07/01/20 - 09/30/20 | AW14: 10/01/20 - 06/30/21 | AX14: 07/01/20 - 06/30/21 | AY14: 07/01/20 - 06/30/21 | AZ14: 07/01/20 - 09/30/20 | BA14: 10/01/20 - 06/30/21 | BB14: 07/01/20 - 06/30/21 | BC14: 07/01/20 - 06/30/21 | BD14: 07/01/20 - 06/30/21 | BE14: 07/01/20 - 06/30/21 | BF14: 07/01/20 - 06/30/21 | BG14: 07/01/20 - 09/30/20 | BH14: 10/01/20 - 06/30/21 | BI14: 07/01/20 - 06/30/21 | BJ14: 07/01/20 - 06/30/21 | BK14: 07/01/20 - 09/30/20 | BL14: 10/01/20 - 06/30/21 | BM14: 07/01/20 - 06/30/21 | BN14: 07/01/20 - 06/30/21 | BO14: 07/01/20 - 06/30/21 | BP14: 07/01/20 - 06/30/21 | BQ14: 07/01/20 - 06/30/21 | BR14: 07/01/20 - 09/30/20 | BS14: 10/01/20 - 06/30/21 | BT14: 07/01/20 - 06/30/21 | BU14: 07/01/20 - 06/30/21 | BV14: 07/01/20 - 09/30/20 | BW14: 10/01/20 - 06/30/21 | BX14: 07/01/20 - 06/30/21 | BY14: 07/01/20 - 06/30/21 | BZ14: 07/01/20 - 06/30/21 | CA14: 07/01/20 - 06/30/21 | CB14: 07/01/20 - 06/30/21 | CC14: 07/01/20 - 09/30/20 | CD14: 10/01/20 - 06/30/21 | CE14: 07/01/20 - 06/30/21 | CF14: 07/01/20 - 06/30/21 | CG14: 07/01/20 - 09/30/20 | CH14: 10/01/20 - 06/30/21 | CI14: 07/01/20 - 06/30/21 | CJ14: 07/01/20 - 06/30/21 | CK14: 07/01/20 - 06/30/21 | CL14: 07/01/20 - 06/30/21 | CM14: 07/01/20 - 06/30/21 | CN14: 07/01/20 - 09/30/20 | CO14: 10/01/20 - 06/30/21 | CP14: 07/01/20 - 06/30/21 | CQ14: 07/01/20 - 06/30/21 | CR14: 07/01/20 - 09/30/20 | CS14: 10/01/20 - 06/30/21 | CT14: 07/01/20 - 06/30/21 | CU14: 07/01/20 - 06/30/21 | CV14: 07/01/20 - 06/30/21 | CW14: 07/01/20 - 06/30/21 | CX14: 07/01/20 - 06/30/21 | CY14: 07/01/20 - 09/30/20 | CZ14: 10/01/20 - 06/30/21 | DA14: 07/01/20 - 06/30/21 | DB14: 07/01/20 - 06/30/21 | DC14: 07/01/20 - 09/30/20 | DD14: 10/01/20 - 06/30/21 | DE14: 07/01/20 - 06/30/21 | DF14: 07/01/20 - 06/30/21 | DG14: 07/01/20 - 06/30/21 | DH14: 07/01/20 - 06/30/21 | DI14: 07/01/20 - 06/30/21 | DJ14: 07/01/20 - 09/30/20 | DK14: 10/01/20 - 06/30/21 | DL14: 07/01/20 - 06/30/21 | DM14: 07/01/20 - 06/30/21 | DN14: 07/01/20 - 09/30/20 | DO14: 10/01/20 - 06/30/21 | DP14: 07/01/20 - 06/30/21 | DQ14: 07/01/20 - 06/30/21 | DR14: 07/01/20 - 06/30/21 | DS14: 07/01/20 - 06/30/21 | DT14: 07/01/20 - 06/30/21 | DU14: 07/01/20 - 09/30/20 | DV14: 10/01/20 - 06/30/21 | DW14: 07/01/20 - 06/30/21 | DX14: 07/01/20 - 06/30/21 | DY14: 07/01/20 - 09/30/20 | DZ14: 10/01/20 - 06/30/21 | EA14: 07/01/20 - 06/30/21 | EB14: 07/01/20 - 06/30/21 | EC14: 07/01/20 - 06/30/21 | ED14: 07/01/20 - 06/30/21 | EE14: 07/01/20 - 06/30/21 | EF14: 07/01/20 - 09/30/20 | EG14: 10/01/20 - 06/30/21 | EH14: 07/01/20 - 06/30/21 | EI14: 07/01/20 - 06/30/21 | EJ14: 07/01/20 - 09/30/20 | EK14: 10/01/20 - 06/30/21 | EL14: 07/01/20 - 06/30/21 | EM14: 07/01/20 - 06/30/21 | EN14: 07/01/20 - 06/30/21 | EO14: 07/01/20 - 06/30/21 | EP14: 07/01/20 - 06/30/21 | EQ14: 07/01/20 - 09/30/20 | ER14: 10/01/20 - 06/30/21 | ES14: 07/01/20 - 06/30/21 | ET14: 07/01/20 - 06/30/21 | EU14: 07/01/20 - 09/30/20 | EV14: 10/01/20 - 06/30/21 | EW14: 07/01/20 - 06/30/21 | EX14: 07/01/20 - 06/30/21 | EY14: 07/01/20 - 06/30/21 | EZ14: 07/01/20 - 06/30/21 | FA14: 07/01/20 - 06/30/21 | FB14: 07/01/20 - 09/30/20 | FC14: 10/01/20 - 06/30/21 | FD14: 07/01/20 - 06/30/21 | FE14: 07/01/20 - 06/30/21 | FF14: 07/01/20 - 09/30/20 | FG14: 10/01/20 - 06/30/21 | FH14: 07/01/20 - 06/30/21 | FI14: 07/01/20 - 06/30/21 | FJ14: 07/01/20 - 06/30/21 | FK14: 07/01/20 - 06/30/21 | FL14: 07/01/20 - 06/30/21 | FM14: 07/01/20 - 09/30/20 | FN14: 10/01/20 - 06/30/21 | FO14: 07/01/20 - 06/30/21 | FP14: 07/01/20 - 06/30/21 | FQ14: 07/01/20 - 09/30/20 | FR14: 10/01/20 - 06/30/21 | FS14: 07/01/20 - 06/30/21 | FT14: 07/01/20 - 06/30/21 | FU14: 07/01/20 - 06/30/21 | FV14: 07/01/20 - 06/30/21 | FW14: 07/01/20 - 06/30/21 | FX14: 07/01/20 - 09/30/20 | FY14: 10/01/20 - 06/30/21 | FZ14: 07/01/20 - 06/30/21 | GA14: 07/01/20 - 06/30/21 | GB14: 07/01/20 - 09/30/20 | GC14: 10/01/20 - 06/30/21 | GD14: 07/01/20 - 06/30/21 | GE14: 07/01/20 - 06/30/21 | GF14: 07/01/20 - 06/30/21 | GG14: 07/01/20 - 06/30/21 | GH14: 07/01/20 - 06/30/21 | GI14: 07/01/20 - 09/30/20 | GJ14: 10/01/20 - 06/30/21 | GK14: 07/01/20 - 06/30/21 | GL14: 07/01/20 - 06/30/21 | GM14: 07/01/20 - 09/30/20 | GN14: 10/01/20 - 06/30/21 | GO14: 07/01/20 - 06/30/21 | GP14: 07/01/20 - 06/30/21 | GQ14: 07/01/20 - 06/30/21 | GR14: 07/01/20 - 06/30/21 | GS14: 07/01/20 - 06/30/21 | GT14: 07/01/20 - 09/30/20 | GU14: 10/01/20 - 06/30/21 | GV14: 07/01/20 - 06/30/21 | GW14: 07/01/20 - 06/30/21 | GX14: 07/01/20 - 09/30/20 | GY14: 10/01/20 - 06/30/21 | GZ14: 07/01/20 - 06/30/21 | HA14: 07/01/20 - 06/30/21 | HB14: 07/01/20 - 06/30/21 | HC14: 07/01/20 - 06/30/21 | HD14: 07/01/20 - 06/30/21 | HE14: 07/01/20 - 09/30/20 | HF14: 10/01/20 - 06/30/21 | HG14: 07/01/20 - 06/30/21 | HH14: 07/01/20 - 06/30/21 | HI14: 07/01/20 - 09/30/20 | HJ14: 10/01/20 - 06/30/21 | HK14: 07/01/20 - 06/30/21 | HL14: 07/01/20 - 06/30/21 | HM14: 07/01/20 - 06/30/21 | HN14: 07/01/20 - 06/30/21 | HO14: 07/01/20 - 06/30/21 | HP14: 07/01/20 - 09/30/20 | HQ14: 10/01/20 - 06/30/21 | HR14: 07/01/20 - 06/30/21 | HS14: 07/01/20 - 06/30/21 | HT14: 07/01/20 - 09/30/20 | HU14: 10/01/20 - 06/30/21 | HV14: 07/01/20 - 06/30/21 | HW14: 07/01/20 - 06/30/21 | HX14: 07/01/20 - 06/30/21 | HY14: 07/01/20 - 06/30/21 | HZ14: 07/01/20 - 06/30/21 | IA14: 07/01/20 - 09/30/20 | IB14: 10/01/20 - 06/30/21 | IC14: 07/01/20 - 06/30/21 | ID14: 07/01/20 - 06/30/21 | IE14: 07/01/20 - 06/30/21 | IF14: 07/01/20 - 06/30/21 | IG14: 07/01/20 - 06/30/21 | IH14: 07/01/20 - 06/30/21 | II14: 07/01/20 - 06/30/21 | IJ14: 07/01/20 - 06/30/21 | IK14: 07/01/20 - 06/30/21 | IL14: 07/01/20 - 06/30/21 | IM14: 07/01/20 - 06/30/21 | IN14: 07/01/20 - 06/30/21 | IO14: 07/01/20 - 06/30/21 | IP14: 07/01/20 - 06/30/21 | IQ14: 07/01/20 - 09/30/20 | IR14: 10/01/20 - 06/30/21 | IS14: 07/01/20 - 06/30/21 | IT14: 07/01/20 - 06/30/21 | IU14: 07/01/20 - 06/30/21 | IV14: 07/01/20 - 06/30/21 | IW14: 07/01/20 - 06/30/21 | IX14: 07/01/20 - 09/30/20 | IY14: 10/01/20 - 06/30/21 | IZ14: 07/01/20 - 06/30/21 | JA14: 07/01/20 - 06/30/21 | JB14: 07/01/20 - 09/30/20 | JC14: 10/01/20 - 06/30/21 | JD14: 07/01/20 - 06/30/21 | JE14: 07/01/20 - 06/30/21 | JF14: 07/01/20 - 06/30/21 | JG14: 07/01/20 - 06/30/21 | JH14: 07/01/20 - 06/30/21 | JI14: 07/01/20 - 09/30/20 | JJ14: 10/01/20 - 06/30/21 | JK14: 07/01/20 - 06/30/21 | JL14: 07/01/20 - 06/30/21 | JM14: 07/01/20 - 09/30/20 | JN14: 10/01/20 - 06/30/21 | JO14: 07/01/20 - 06/30/21 | JP14: 07/01/20 - 06/30/21 | JQ14: 07/01/20 - 06/30/21 | JR14: 07/01/20 - 06/30/21 | JS14: 07/01/20 - 06/30/21 | JT14: 07/01/20 - 09/30/20 | JU14: 10/01/20 - 06/30/21
A15: ='LAC103'!C15 -> OP | B15: 1 | C15: =MH1901_Schedule_B!B20 -> CR | D15: =MH1901_Schedule_B!C20 -> 05 | E15: =MH1901_Schedule_B!D20 -> 20 | CE15: =LAC102_S_MHSA!CI15 -> 0 | CF15: =LAC102_S_MHSA!CJ15 -> 0 | CG15: =LAC102_S_MHSA!CK15 -> 0 | CH15: =LAC102_S_MHSA!CL15 -> 0 | CI15: =LAC102_S_MHSA!CM15 -> 0 | CJ15: =LAC102_S_MHSA!CN15 -> 0 | CK15: =LAC102_S_MHSA!CO15 -> 0 | CL15: =LAC102_S_MHSA!CP15 -> 0 | CM15: =LAC102_S_MHSA!CQ15 -> 0 | CN15: =LAC102_S_MHSA!CR15 -> 0 | CO15: =LAC102_S_MHSA!CS15 -> 0 | DL15: 3248 | DR15: 2459 | DS15: 24 | DT15: 138 | IO15: =SUM(F15,Q15,AB15,AX15,BI15,BT15,CE15,CP15,HG15,HR15,DA15,AM15,DL15,DW15,EH15,ES15,FD15,FO15,FZ15,GV15,GK15) -> 3248 | IP15: 0 | IQ15: 0 | IR15: 0 | IS15: 0 | IT15: 0 | IU15: 2459 | IV15: 24 | IW15: =SUM(N15,Y15,AJ15,BF15,BQ15,CB15,CM15,CX15,HO15,HZ15,DI15,AU15,DT15,EE15,,EP15,FA15,FL15,FW15,GH15,HD15,GS15,IC15,ID15,IE15,IF15:IN15) -> 138 | IX15: =SUM(O15,Z15,AK15,BG15,BR15,CC15,CN15,CY15,HP15,IA15,DJ15,AV15,DU15,EF15,EQ15,FB15,FM15,FX15,GI15,HE15,GT15) -> 0 | IY15: =SUM(P15,AA15,AL15,BH15,BS15,CD15,CO15,CZ15,HQ15,IB15,DK15,AW15,DV15,EG15,ER15,FC15,FN15,FY15,GJ15,HF15,GU15) -> 0 | IZ15: =MH1901_Schedule_B!F20 -> 3248 | JA15: =MH1901_Schedule_B!H20 -> 0 | JB15: =MH1901_Schedule_B!J20 -> 0 | JC15: =MH1901_Schedule_B!L20 -> 0 | JD15: =MH1901_Schedule_B!N20+MH1901_Schedule_B!P20 -> 0 | JE15: =MH1901_Schedule_B!R20 -> 0 | JF15: =MH1901_Schedule_B!T20 -> 2459 | JG15: =MH1901_Schedule_B!Z20 -> 24 | JH15: =MH1901_Schedule_B!AB20 -> 138 | JI15: =MH1901_Schedule_B!V20 -> 0 | JJ15: =MH1901_Schedule_B!X20 -> 0 | JK15: =IF(IO15-IZ15=0,0,"Error") -> 0 | JL15: =IF(IP15-JA15=0,0,"Error") -> 0 | JM15: =IF(IQ15-JB15=0,0,"Error") -> 0 | JN15: 0 | JO15: 0 | JP15: 0 | JQ15: 0 | JR15: 0 | JS15: =IF(CONCATENATE(D15,E15)>6069,0,IF(IW15-JH15=0,0,"Error")) -> 0 | JT15: 0 | JU15: 0
A16: ='LAC103'!C16 -> OP | B16: 2 | C16: =MH1901_Schedule_B!B21 -> CR | D16: =MH1901_Schedule_B!C21 -> 05 | E16: =MH1901_Schedule_B!D21 -> 21 | CE16: =LAC102_S_MHSA!CI16 -> 0 | CF16: =LAC102_S_MHSA!CJ16 -> 0 | CG16: =LAC102_S_MHSA!CK16 -> 0 | CH16: =LAC102_S_MHSA!CL16 -> 0 | CI16: =LAC102_S_MHSA!CM16 -> 0 | CJ16: =LAC102_S_MHSA!CN16 -> 0 | CK16: =LAC102_S_MHSA!CO16 -> 0 | CL16: =LAC102_S_MHSA!CP16 -> 0 | CM16: =LAC102_S_MHSA!CQ16 -> 0 | CN16: =LAC102_S_MHSA!CR16 -> 0 | CO16: =LAC102_S_MHSA!CS16 -> 0 | DT16: 533 | IO16: 0 | IP16: 0 | IQ16: 0 | IR16: 0 | IS16: 0 | IT16: 0 | IU16: 0 | IV16: 0 | IW16: =SUM(N16,Y16,AJ16,BF16,BQ16,CB16,CM16,CX16,HO16,HZ16,DI16,AU16,DT16,EE16,,EP16,FA16,FL16,FW16,GH16,HD16,GS16,IC16,ID16,IE16,IF16:IN16) -> 533 | IX16: =SUM(O16,Z16,AK16,BG16,BR16,CC16,CN16,CY16,HP16,IA16,DJ16,AV16,DU16,EF16,EQ16,FB16,FM16,FX16,GI16,HE16,GT16) -> 0 | IY16: 0 | IZ16: =MH1901_Schedule_B!F21 -> 0 | JA16: =MH1901_Schedule_B!H21 -> 0 | JB16: =MH1901_Schedule_B!J21 -> 0 | JC16: =MH1901_Schedule_B!L21 -> 0 | JD16: =MH1901_Schedule_B!N21+MH1901_Schedule_B!P21 -> 0 | JE16: =MH1901_Schedule_B!R21 -> 0 | JF16: =MH1901_Schedule_B!T21 -> 0 | JG16: =MH1901_Schedule_B!Z21 -> 0 | JH16: =MH1901_Schedule_B!AB21 -> 533 | JI16: =MH1901_Schedule_B!V21 -> 0 | JJ16: =MH1901_Schedule_B!X21 -> 0 | JK16: =IF(IO16-IZ16=0,0,"Error") -> 0 | JL16: 0 | JM16: 0 | JN16: 0 | JO16: 0 | JP16: 0 | JQ16: 0 | JR16: 0 | JS16: 0 | JT16: 0 | JU16: 0
A17: ='LAC103'!C17 -> OP | B17: 3 | C17: =MH1901_Schedule_B!B22 -> CR | D17: =MH1901_Schedule_B!C22 -> 05 | E17: =MH1901_Schedule_B!D22 -> 43 | CE17: =LAC102_S_MHSA!CI17 -> 606 | CF17: =LAC102_S_MHSA!CJ17 -> 0 | CG17: =LAC102_S_MHSA!CK17 -> 0 | CH17: =LAC102_S_MHSA!CL17 -> 0 | CI17: =LAC102_S_MHSA!CM17 -> 14 | CJ17: =LAC102_S_MHSA!CN17 -> 0 | CK17: =LAC102_S_MHSA!CO17 -> 1543 | CL17: =LAC102_S_MHSA!CP17 -> 28 | CM17: =LAC102_S_MHSA!CQ17 -> 10 | CN17: =LAC102_S_MHSA!CR17 -> 0 | CO17: =LAC102_S_MHSA!CS17 -> 0 | IO17: 606 | IP17: 0 | IQ17: 0 | IR17: 0 | IS17: 14 | IT17: 0 | IU17: 1543 | IV17: 28 | IW17: 10 | IX17: 0 | IY17: 0 | IZ17: =MH1901_Schedule_B!F22 -> 606 | JA17: =MH1901_Schedule_B!H22 -> 0 | JB17: =MH1901_Schedule_B!J22 -> 0 | JC17: =MH1901_Schedule_B!L22 -> 0 | JD17: =MH1901_Schedule_B!N22+MH1901_Schedule_B!P22 -> 14 | JE17: =MH1901_Schedule_B!R22 -> 0 | JF17: =MH1901_Schedule_B!T22 -> 1543 | JG17: =MH1901_Schedule_B!Z22 -> 28 | JH17: =MH1901_Schedule_B!AB22 -> 10 | JI17: =MH1901_Schedule_B!V22 -> 0 | JJ17: =MH1901_Schedule_B!X22 -> 0 | JK17: 0 | JL17: 0 | JM17: 0 | JN17: 0 | JO17: 0 | JP17: 0 | JQ17: 0 | JR17: 0 | JS17: 0 | JT17: 0 | JU17: 0
A18: ='LAC103'!C18 -> OP | B18: 4 | C18: =MH1901_Schedule_B!B23 -> CR | D18: =MH1901_Schedule_B!C23 -> 05 | E18: =MH1901_Schedule_B!D23 -> 44 | CE18: =LAC102_S_MHSA!CI18 -> 0 | CF18: =LAC102_S_MHSA!CJ18 -> 0 | CG18: =LAC102_S_MHSA!CK18 -> 0 | CH18: =LAC102_S_MHSA!CL18 -> 0 | CI18: =LAC102_S_MHSA!CM18 -> 0 | CJ18: =LAC102_S_MHSA!CN18 -> 0 | CK18: =LAC102_S_MHSA!CO18 -> 0 | CL18: =LAC102_S_MHSA!CP18 -> 0 | CM18: =LAC102_S_MHSA!CQ18 -> 1096 | CN18: =LAC102_S_MHSA!CR18 -> 0 | CO18: =LAC102_S_MHSA!CS18 -> 0 | IO18: 0 | IP18: 0 | IQ18: 0 | IR18: 0 | IS18: 0 | IT18: 0 | IU18: 0 | IV18: 0 | IW18: 1096 | IX18: 0 | IY18: 0 | IZ18: =MH1901_Schedule_B!F23 -> 0 | JA18: =MH1901_Schedule_B!H23 -> 0 | JB18: =MH1901_Schedule_B!J23 -> 0 | JC18: =MH1901_Schedule_B!L23 -> 0 | JD18: =MH1901_Schedule_B!N23+MH1901_Schedule_B!P23 -> 0 | JE18: =MH1901_Schedule_B!R23 -> 0 | JF18: =MH1901_Schedule_B!T23 -> 0 | JG18: =MH1901_Schedule_B!Z23 -> 0 | JH18: =MH1901_Schedule_B!AB23 -> 1096 | JI18: =MH1901_Schedule_B!V23 -> 0 | JJ18: =MH1901_Schedule_B!X23 -> 0 | JK18: 0 | JL18: 0 | JM18: 0 | JN18: 0 | JO18: 0 | JP18: 0 | JQ18: 0 | JR18: 0 | JS18: 0 | JT18: 0 | JU18: 0
A19: ='LAC103'!C19 -> UCC | B19: 5 | C19: =MH1901_Schedule_B!B24 -> CR | D19: =MH1901_Schedule_B!C24 -> 10 | E19: =MH1901_Schedule_B!D24 -> 25 | Q19: 2200 | S19: 20 | T19: 14 | Y19: 62 | AX19: 115 | BD19: 461 | BF19: 167 | CE19: =LAC102_S_MHSA!CI19 -> 71577 | CF19: =LAC102_S_MHSA!CJ19 -> 0 | CG19: =LAC102_S_MHSA!CK19 -> 478 | CH19: =LAC102_S_MHSA!CL19 -> 1161 | CI19: =LAC102_S_MHSA!CM19 -> 7 | CJ19: =LAC102_S_MHSA!CN19 -> 0 | CK19: =LAC102_S_MHSA!CO19 -> 74836 | CL19: =LAC102_S_MHSA!CP19 -> 521 | CM19: =LAC102_S_MHSA!CQ19 -> 87048 | CN19: =LAC102_S_MHSA!CR19 -> 0 | CO19: =LAC102_S_MHSA!CS19 -> 0 | HG19: 2687 | HI19: 84 | HJ19: 154 | HM19: 3 | HO19: 97 | IO19: 76579 | IP19: 0 | IQ19: 582 | IR19: 1329 | IS19: 7 | IT19: 0 | IU19: 75300 | IV19: 521 | IW19: 87374 | IX19: 0 | IY19: 0 | IZ19: =MH1901_Schedule_B!F24 -> 76579 | JA19: =MH1901_Schedule_B!H24 -> 0 | JB19: =MH1901_Schedule_B!J24 -> 582 | JC19: =MH1901_Schedule_B!L24 -> 1329 | JD19: =MH1901_Schedule_B!N24+MH1901_Schedule_B!P24 -> 7 | JE19: =MH1901_Schedule_B!R24 -> 0 | JF19: =MH1901_Schedule_B!T24 -> 75300 | JG19: =MH1901_Schedule_B!Z24 -> 521 | JH19: =MH1901_Schedule_B!AB24 -> 87374 | JI19: =MH1901_Schedule_B!V24 -> 0 | JJ19: =MH1901_Schedule_B!X24 -> 0 | JK19: 0 | JL19: 0 | JM19: 0 | JN19: 0 | JO19: 0 | JP19: 0 | JQ19: 0 | JR19: 0 | JS19: 0 | JT19: 0 | JU19: 0
A20: ='LAC103'!C20 -> OP | B20: 6 | C20: =MH1901_Schedule_B!B25 -> CR | D20: =MH1901_Schedule_B!C25 -> 15 | E20: =MH1901_Schedule_B!D25 -> 04 | BI20: 616 | BO20: 7023 | CE20: =LAC102_S_MHSA!CI20 -> 398424 | CF20: =LAC102_S_MHSA!CJ20 -> 0 | CG20: =LAC102_S_MHSA!CK20 -> 0 | CH20: =LAC102_S_MHSA!CL20 -> 309 | CI20: =LAC102_S_MHSA!CM20 -> 647 | CJ20: =LAC102_S_MHSA!CN20 -> 0 | CK20: =LAC102_S_MHSA!CO20 -> 360952 | CL20: =LAC102_S_MHSA!CP20 -> 1174 | CM20: =LAC102_S_MHSA!CQ20 -> 5041 | CN20: =LAC102_S_MHSA!CR20 -> 0 | CO20: =LAC102_S_MHSA!CS20 -> 0 | IO20: 399040 | IP20: 0 | IQ20: 0 | IR20: 309 | IS20: 647 | IT20: 0 | IU20: 367975 | IV20: 1174 | IW20: 5041 | IX20: 0 | IY20: 0 | IZ20: =MH1901_Schedule_B!F25 -> 399040 | JA20: =MH1901_Schedule_B!H25 -> 0 | JB20: =MH1901_Schedule_B!J25 -> 0 | JC20: =MH1901_Schedule_B!L25 -> 309 | JD20: =MH1901_Schedule_B!N25+MH1901_Schedule_B!P25 -> 647 | JE20: =MH1901_Schedule_B!R25 -> 0 | JF20: =MH1901_Schedule_B!T25 -> 367975 | JG20: =MH1901_Schedule_B!Z25 -> 1174 | JH20: =MH1901_Schedule_B!AB25 -> 5041 | JI20: =MH1901_Schedule_B!V25 -> 0 | JJ20: =MH1901_Schedule_B!X25 -> 0 | JK20: 0 | JL20: 0 | JM20: 0 | JN20: 0 | JO20: 0 | JP20: 0 | JQ20: 0 | JR20: 0 | JS20: 0 | JT20: 0 | JU20: 0
A21: ='LAC103'!C21 -> OP | B21: 7 | C21: =MH1901_Schedule_B!B26 -> CR | D21: =MH1901_Schedule_B!C26 -> 15 | E21: =MH1901_Schedule_B!D26 -> 05 | CE21: =LAC102_S_MHSA!CI21 -> 0 | CF21: =LAC102_S_MHSA!CJ21 -> 0 | CG21: =LAC102_S_MHSA!CK21 -> 0 | CH21: =LAC102_S_MHSA!CL21 -> 0 | CI21: =LAC102_S_MHSA!CM21 -> 0 | CJ21: =LAC102_S_MHSA!CN21 -> 0 | CK21: =LAC102_S_MHSA!CO21 -> 0 | CL21: =LAC102_S_MHSA!CP21 -> 0 | CM21: =LAC102_S_MHSA!CQ21 -> 102899 | CN21: =LAC102_S_MHSA!CR21 -> 0 | CO21: =LAC102_S_MHSA!CS21 -> 0 | IO21: 0 | IP21: 0 | IQ21: 0 | IR21: 0 | IS21: 0 | IT21: 0 | IU21: 0 | IV21: 0 | IW21: 102899 | IX21: 0 | IY21: 0 | IZ21: =MH1901_Schedule_B!F26 -> 0 | JA21: =MH1901_Schedule_B!H26 -> 0 | JB21: =MH1901_Schedule_B!J26 -> 0 | JC21: =MH1901_Schedule_B!L26 -> 0 | JD21: =MH1901_Schedule_B!N26+MH1901_Schedule_B!P26 -> 0 | JE21: =MH1901_Schedule_B!R26 -> 0 | JF21: =MH1901_Schedule_B!T26 -> 0 | JG21: =MH1901_Schedule_B!Z26 -> 0 | JH21: =MH1901_Schedule_B!AB26 -> 102899 | JI21: =MH1901_Schedule_B!V26 -> 0 | JJ21: =MH1901_Schedule_B!X26 -> 0 | JK21: 0 | JL21: 0 | JM21: 0 | JN21: 0 | JO21: 0 | JP21: 0 | JQ21: 0 | JR21: 0 | JS21: 0 | JT21: 0 | JU21: 0
A22: ='LAC103'!C22 -> OP | B22: 8 | C22: =MH1901_Schedule_B!B27 -> CR | D22: =MH1901_Schedule_B!C27 -> 15 | E22: =MH1901_Schedule_B!D27 -> 10 | BI22: 0 | BO22: 334 | CE22: =LAC102_S_MHSA!CI22 -> 84711 | CF22: =LAC102_S_MHSA!CJ22 -> 0 | CG22: =LAC102_S_MHSA!CK22 -> 0 | CH22: =LAC102_S_MHSA!CL22 -> 0 | CI22: =LAC102_S_MHSA!CM22 -> 0 | CJ22: =LAC102_S_MHSA!CN22 -> 0 | CK22: =LAC102_S_MHSA!CO22 -> 76506 | CL22: =LAC102_S_MHSA!CP22 -> 66 | CM22: =LAC102_S_MHSA!CQ22 -> 920 | CN22: =LAC102_S_MHSA!CR22 -> 0 | CO22: =LAC102_S_MHSA!CS22 -> 0 | IO22: 84711 | IP22: 0 | IQ22: 0 | IR22: 0 | IS22: 0 | IT22: 0 | IU22: 76840 | IV22: 66 | IW22: 920 | IX22: 0 | IY22: 0 | IZ22: =MH1901_Schedule_B!F27 -> 84711 | JA22: =MH1901_Schedule_B!H27 -> 0 | JB22: =MH1901_Schedule_B!J27 -> 0 | JC22: =MH1901_Schedule_B!L27 -> 0 | JD22: =MH1901_Schedule_B!N27+MH1901_Schedule_B!P27 -> 0 | JE22: =MH1901_Schedule_B!R27 -> 0 | JF22: =MH1901_Schedule_B!T27 -> 76840 | JG22: =MH1901_Schedule_B!Z27 -> 66 | JH22: =MH1901_Schedule_B!AB27 -> 920 | JI22: =MH1901_Schedule_B!V27 -> 0 | JJ22: =MH1901_Schedule_B!X27 -> 0 | JK22: 0 | JL22: 0 | JM22: 0 | JN22: 0 | JO22: 0 | JP22: 0 | JQ22: 0 | JR22: 0 | JS22: 0 | JT22: 0 | JU22: 0
A23: ='LAC103'!C23 -> OP | B23: 9 | C23: =MH1901_Schedule_B!B28 -> CR | D23: =MH1901_Schedule_B!C28 -> 15 | E23: =MH1901_Schedule_B!D28 -> 42 | BI23: 2927 | BO23: 16316 | CE23: =LAC102_S_MHSA!CI23 -> 1247714 | CF23: =LAC102_S_MHSA!CJ23 -> 0 | CG23: =LAC102_S_MHSA!CK23 -> 0 | CH23: =LAC102_S_MHSA!CL23 -> 215 | CI23: =LAC102_S_MHSA!CM23 -> 2705 | CJ23: =LAC102_S_MHSA!CN23 -> 0 | CK23: =LAC102_S_MHSA!CO23 -> 991733 | CL23: =LAC102_S_MHSA!CP23 -> 10140 | CM23: =LAC102_S_MHSA!CQ23 -> 23969 | CN23: =LAC102_S_MHSA!CR23 -> 0 | CO23: =LAC102_S_MHSA!CS23 -> 0 | IO23: 1250641 | IP23: 0 | IQ23: 0 | IR23: 215 | IS23: 2705 | IT23: 0 | IU23: 1008049 | IV23: 10140 | IW23: 23969 | IX23: 0 | IY23: 0 | IZ23: =MH1901_Schedule_B!F28 -> 1250641 | JA23: =MH1901_Schedule_B!H28 -> 0 | JB23: =MH1901_Schedule_B!J28 -> 0 | JC23: =MH1901_Schedule_B!L28 -> 215 | JD23: =MH1901_Schedule_B!N28+MH1901_Schedule_B!P28 -> 2705 | JE23: =MH1901_Schedule_B!R28 -> 0 | JF23: =MH1901_Schedule_B!T28 -> 1008049 | JG23: =MH1901_Schedule_B!Z28 -> 10140 | JH23: =MH1901_Schedule_B!AB28 -> 23969 | JI23: =MH1901_Schedule_B!V28 -> 0 | JJ23: =MH1901_Schedule_B!X28 -> 0 | JK23: 0 | JL23: 0 | JM23: 0 | JN23: 0 | JO23: 0 | JP23: 0 | JQ23: 0 | JR23: 0 | JS23: 0 | JT23: 0 | JU23: 0
A24: ='LAC103'!C24 -> OP | B24: 10 | C24: =MH1901_Schedule_B!B29 -> CR | D24: =MH1901_Schedule_B!C29 -> 15 | E24: =MH1901_Schedule_B!D29 -> 44 | CE24: =LAC102_S_MHSA!CI24 -> 0 | CF24: =LAC102_S_MHSA!CJ24 -> 0 | CG24: =LAC102_S_MHSA!CK24 -> 0 | CH24: =LAC102_S_MHSA!CL24 -> 0 | CI24: =LAC102_S_MHSA!CM24 -> 0 | CJ24: =LAC102_S_MHSA!CN24 -> 0 | CK24: =LAC102_S_MHSA!CO24 -> 0 | CL24: =LAC102_S_MHSA!CP24 -> 0 | CM24: =LAC102_S_MHSA!CQ24 -> 230003 | CN24: =LAC102_S_MHSA!CR24 -> 0 | CO24: =LAC102_S_MHSA!CS24 -> 0 | IO24: 0 | IP24: 0 | IQ24: 0 | IR24: 0 | IS24: 0 | IT24: 0 | IU24: 0 | IV24: 0 | IW24: 230003 | IX24: 0 | IY24: 0 | IZ24: =MH1901_Schedule_B!F29 -> 0 | JA24: =MH1901_Schedule_B!H29 -> 0 | JB24: =MH1901_Schedule_B!J29 -> 0 | JC24: =MH1901_Schedule_B!L29 -> 0 | JD24: =MH1901_Schedule_B!N29+MH1901_Schedule_B!P29 -> 0 | JE24: =MH1901_Schedule_B!R29 -> 0 | JF24: =MH1901_Schedule_B!T29 -> 0 | JG24: =MH1901_Schedule_B!Z29 -> 0 | JH24: =MH1901_Schedule_B!AB29 -> 230003 | JI24: =MH1901_Schedule_B!V29 -> 0 | JJ24: =MH1901_Schedule_B!X29 -> 0 | JK24: 0 | JL24: 0 | JM24: 0 | JN24: 0 | JO24: 0 | JP24: 0 | JQ24: 0 | JR24: 0 | JS24: 0 | JT24: 0 | JU24: 0
A25: ='LAC103'!C25 -> OP | B25: 11 | C25: =MH1901_Schedule_B!B30 -> CR | D25: =MH1901_Schedule_B!C30 -> 15 | E25: =MH1901_Schedule_B!D30 -> 52 | BI25: 40 | BO25: 160 | CE25: =LAC102_S_MHSA!CI25 -> 237173 | CF25: =LAC102_S_MHSA!CJ25 -> 0 | CG25: =LAC102_S_MHSA!CK25 -> 0 | CH25: =LAC102_S_MHSA!CL25 -> 0 | CI25: =LAC102_S_MHSA!CM25 -> 0 | CJ25: =LAC102_S_MHSA!CN25 -> 0 | CK25: =LAC102_S_MHSA!CO25 -> 115798 | CL25: =LAC102_S_MHSA!CP25 -> 2628 | CM25: =LAC102_S_MHSA!CQ25 -> 6350 | CN25: =LAC102_S_MHSA!CR25 -> 0 | CO25: =LAC102_S_MHSA!CS25 -> 0 | IO25: 237213 | IP25: 0 | IQ25: 0 | IR25: 0 | IS25: 0 | IT25: 0 | IU25: 115958 | IV25: 2628 | IW25: 6350 | IX25: 0 | IY25: 0 | IZ25: =MH1901_Schedule_B!F30 -> 237213 | JA25: =MH1901_Schedule_B!H30 -> 0 | JB25: =MH1901_Schedule_B!J30 -> 0 | JC25: =MH1901_Schedule_B!L30 -> 0 | JD25: =MH1901_Schedule_B!N30+MH1901_Schedule_B!P30 -> 0 | JE25: =MH1901_Schedule_B!R30 -> 0 | JF25: =MH1901_Schedule_B!T30 -> 115958 | JG25: =MH1901_Schedule_B!Z30 -> 2628 | JH25: =MH1901_Schedule_B!AB30 -> 6350 | JI25: =MH1901_Schedule_B!V30 -> 0 | JJ25: =MH1901_Schedule_B!X30 -> 0 | JK25: 0 | JL25: 0 | JM25: 0 | JN25: 0 | JO25: 0 | JP25: 0 | JQ25: 0 | JR25: 0 | JS25: 0 | JT25: 0 | JU25: 0
A26: ='LAC103'!C26 -> OP | B26: 12 | C26: =MH1901_Schedule_B!B31 -> CR | D26: =MH1901_Schedule_B!C31 -> 15 | E26: =MH1901_Schedule_B!D31 -> 62 | BI26: 501 | BO26: 1501 | CE26: =LAC102_S_MHSA!CI26 -> 375009 | CF26: =LAC102_S_MHSA!CJ26 -> 0 | CG26: =LAC102_S_MHSA!CK26 -> 0 | CH26: =LAC102_S_MHSA!CL26 -> 0 | CI26: =LAC102_S_MHSA!CM26 -> 819 | CJ26: =LAC102_S_MHSA!CN26 -> 0 | CK26: =LAC102_S_MHSA!CO26 -> 297493 | CL26: =LAC102_S_MHSA!CP26 -> 3942 | CM26: =LAC102_S_MHSA!CQ26 -> 14405 | CN26: =LAC102_S_MHSA!CR26 -> 0 | CO26: =LAC102_S_MHSA!CS26 -> 0 | IO26: 375510 | IP26: 0 | IQ26: 0 | IR26: 0 | IS26: 819 | IT26: 0 | IU26: 298994 | IV26: 3942 | IW26: 14405 | IX26: 0 | IY26: 0 | IZ26: =MH1901_Schedule_B!F31 -> 375510 | JA26: =MH1901_Schedule_B!H31 -> 0 | JB26: =MH1901_Schedule_B!J31 -> 0 | JC26: =MH1901_Schedule_B!L31 -> 0 | JD26: =MH1901_Schedule_B!N31+MH1901_Schedule_B!P31 -> 819 | JE26: =MH1901_Schedule_B!R31 -> 0 | JF26: =MH1901_Schedule_B!T31 -> 298994 | JG26: =MH1901_Schedule_B!Z31 -> 3942 | JH26: =MH1901_Schedule_B!AB31 -> 14405 | JI26: =MH1901_Schedule_B!V31 -> 0 | JJ26: =MH1901_Schedule_B!X31 -> 0 | JK26: 0 | JL26: 0 | JM26: 0 | JN26: 0 | JO26: 0 | JP26: 0 | JQ26: 0 | JR26: 0 | JS26: 0 | JT26: 0 | JU26: 0
A27: ='LAC103'!C27 -> OP | B27: 13 | C27: =MH1901_Schedule_B!B32 -> CR | D27: =MH1901_Schedule_B!C32 -> 15 | E27: =MH1901_Schedule_B!D32 -> 63 | CE27: =LAC102_S_MHSA!CI27 -> 0 | CF27: =LAC102_S_MHSA!CJ27 -> 0 | CG27: =LAC102_S_MHSA!CK27 -> 0 | CH27: =LAC102_S_MHSA!CL27 -> 0 | CI27: =LAC102_S_MHSA!CM27 -> 0 | CJ27: =LAC102_S_MHSA!CN27 -> 0 | CK27: =LAC102_S_MHSA!CO27 -> 0 | CL27: =LAC102_S_MHSA!CP27 -> 0 | CM27: =LAC102_S_MHSA!CQ27 -> 98054 | CN27: =LAC102_S_MHSA!CR27 -> 0 | CO27: =LAC102_S_MHSA!CS27 -> 0 | IO27: 0 | IP27: 0 | IQ27: 0 | IR27: 0 | IS27: 0 | IT27: 0 | IU27: 0 | IV27: 0 | IW27: 98054 | IX27: 0 | IY27: 0 | IZ27: =MH1901_Schedule_B!F32 -> 0 | JA27: =MH1901_Schedule_B!H32 -> 0 | JB27: =MH1901_Schedule_B!J32 -> 0 | JC27: =MH1901_Schedule_B!L32 -> 0 | JD27: =MH1901_Schedule_B!N32+MH1901_Schedule_B!P32 -> 0 | JE27: =MH1901_Schedule_B!R32 -> 0 | JF27: =MH1901_Schedule_B!T32 -> 0 | JG27: =MH1901_Schedule_B!Z32 -> 0 | JH27: =MH1901_Schedule_B!AB32 -> 98054 | JI27: =MH1901_Schedule_B!V32 -> 0 | JJ27: =MH1901_Schedule_B!X32 -> 0 | JK27: 0 | JL27: 0 | JM27: 0 | JN27: 0 | JO27: 0 | JP27: 0 | JQ27: 0 | JR27: 0 | JS27: 0 | JT27: 0 | JU27: 0
A28: ='LAC103'!C28 -> OP | B28: 14 | C28: =MH1901_Schedule_B!B33 -> CR | D28: =MH1901_Schedule_B!C33 -> 15 | E28: =MH1901_Schedule_B!D33 -> 77 | BI28: 284 | BO28: 70 | CE28: =LAC102_S_MHSA!CI28 -> 80824 | CF28: =LAC102_S_MHSA!CJ28 -> 0 | CG28: =LAC102_S_MHSA!CK28 -> 0 | CH28: =LAC102_S_MHSA!CL28 -> 0 | CI28: =LAC102_S_MHSA!CM28 -> 0 | CJ28: =LAC102_S_MHSA!CN28 -> 0 | CK28: =LAC102_S_MHSA!CO28 -> 77763 | CL28: =LAC102_S_MHSA!CP28 -> 123 | CM28: =LAC102_S_MHSA!CQ28 -> 2977 | CN28: =LAC102_S_MHSA!CR28 -> 0 | CO28: =LAC102_S_MHSA!CS28 -> 0 | IO28: 81108 | IP28: 0 | IQ28: 0 | IR28: 0 | IS28: 0 | IT28: 0 | IU28: 77833 | IV28: 123 | IW28: 2977 | IX28: 0 | IY28: 0 | IZ28: =MH1901_Schedule_B!F33 -> 81108 | JA28: =MH1901_Schedule_B!H33 -> 0 | JB28: =MH1901_Schedule_B!J33 -> 0 | JC28: =MH1901_Schedule_B!L33 -> 0 | JD28: =MH1901_Schedule_B!N33+MH1901_Schedule_B!P33 -> 0 | JE28: =MH1901_Schedule_B!R33 -> 0 | JF28: =MH1901_Schedule_B!T33 -> 77833 | JG28: =MH1901_Schedule_B!Z33 -> 123 | JH28: =MH1901_Schedule_B!AB33 -> 2977 | JI28: =MH1901_Schedule_B!V33 -> 0 | JJ28: =MH1901_Schedule_B!X33 -> 0 | JK28: 0 | JL28: 0 | JM28: 0 | JN28: 0 | JO28: 0 | JP28: 0 | JQ28: 0 | JR28: 0 | JS28: 0 | JT28: 0 | JU28: 0
A29: ='LAC103'!C29 -> OP | B29: 15 | C29: =MH1901_Schedule_B!B34 -> CR | D29: =MH1901_Schedule_B!C34 -> 15 | E29: =MH1901_Schedule_B!D34 -> 78 | CE29: =LAC102_S_MHSA!CI29 -> 0 | CF29: =LAC102_S_MHSA!CJ29 -> 0 | CG29: =LAC102_S_MHSA!CK29 -> 0 | CH29: =LAC102_S_MHSA!CL29 -> 0 | CI29: =LAC102_S_MHSA!CM29 -> 0 | CJ29: =LAC102_S_MHSA!CN29 -> 0 | CK29: =LAC102_S_MHSA!CO29 -> 0 | CL29: =LAC102_S_MHSA!CP29 -> 0 | CM29: =LAC102_S_MHSA!CQ29 -> 18024 | CN29: =LAC102_S_MHSA!CR29 -> 0 | CO29: =LAC102_S_MHSA!CS29 -> 0 | IO29: 0 | IP29: 0 | IQ29: 0 | IR29: 0 | IS29: 0 | IT29: 0 | IU29: 0 | IV29: 0 | IW29: 18024 | IX29: 0 | IY29: 0 | IZ29: =MH1901_Schedule_B!F34 -> 0 | JA29: =MH1901_Schedule_B!H34 -> 0 | JB29: =MH1901_Schedule_B!J34 -> 0 | JC29: =MH1901_Schedule_B!L34 -> 0 | JD29: =MH1901_Schedule_B!N34+MH1901_Schedule_B!P34 -> 0 | JE29: =MH1901_Schedule_B!R34 -> 0 | JF29: =MH1901_Schedule_B!T34 -> 0 | JG29: =MH1901_Schedule_B!Z34 -> 0 | JH29: =MH1901_Schedule_B!AB34 -> 18024 | JI29: =MH1901_Schedule_B!V34 -> 0 | JJ29: =MH1901_Schedule_B!X34 -> 0 | JK29: 0 | JL29: 0 | JM29: 0 | JN29: 0 | JO29: 0 | JP29: 0 | JQ29: 0 | JR29: 0 | JS29: 0 | JT29: 0 | JU29: 0
A30: ='LAC103'!C30 -> COS | B30: 16 | C30: =MH1901_Schedule_B!B35 -> CR | D30: =MH1901_Schedule_B!C35 -> 45 | E30: =MH1901_Schedule_B!D35 -> 10 | CE30: =LAC102_S_MHSA!CI30 -> 0 | CF30: =LAC102_S_MHSA!CJ30 -> 0 | CG30: =LAC102_S_MHSA!CK30 -> 0 | CH30: =LAC102_S_MHSA!CL30 -> 0 | CI30: =LAC102_S_MHSA!CM30 -> 0 | CJ30: =LAC102_S_MHSA!CN30 -> 0 | CK30: =LAC102_S_MHSA!CO30 -> 0 | CL30: =LAC102_S_MHSA!CP30 -> 0 | CM30: =LAC102_S_MHSA!CQ30 -> 837.5833333 | CN30: =LAC102_S_MHSA!CR30 -> 0 | CO30: =LAC102_S_MHSA!CS30 -> 0 | IO30: 0 | IP30: 0 | IQ30: 0 | IR30: 0 | IS30: 0 | IT30: 0 | IU30: 0 | IV30: 0 | IW30: 837.5833333 | IX30: 0 | IY30: 0 | IZ30: =MH1901_Schedule_B!F35 -> 0 | JA30: =MH1901_Schedule_B!H35 -> 0 | JB30: =MH1901_Schedule_B!J35 -> 0 | JC30: =MH1901_Schedule_B!L35 -> 0 | JD30: =MH1901_Schedule_B!N35+MH1901_Schedule_B!P35 -> 0 | JE30: =MH1901_Schedule_B!R35 -> 0 | JF30: =MH1901_Schedule_B!T35 -> 0 | JG30: =MH1901_Schedule_B!Z35 -> 0 | JH30: =MH1901_Schedule_B!AB35 -> 837.5833333 | JI30: =MH1901_Schedule_B!V35 -> 0 | JJ30: =MH1901_Schedule_B!X35 -> 0 | JK30: 0 | JL30: 0 | JM30: 0 | JN30: 0 | JO30: 0 | JP30: 0 | JQ30: 0 | JR30: 0 | JS30: 0 | JT30: 0 | JU30: 0
A31: ='LAC103'!C31 -> COS | B31: 17 | C31: =MH1901_Schedule_B!B36 -> CR | D31: =MH1901_Schedule_B!C36 -> 45 | E31: =MH1901_Schedule_B!D36 -> 20 | CE31: =LAC102_S_MHSA!CI31 -> 0 | CF31: =LAC102_S_MHSA!CJ31 -> 0 | CG31: =LAC102_S_MHSA!CK31 -> 0 | CH31: =LAC102_S_MHSA!CL31 -> 0 | CI31: =LAC102_S_MHSA!CM31 -> 0 | CJ31: =LAC102_S_MHSA!CN31 -> 0 | CK31: =LAC102_S_MHSA!CO31 -> 0 | CL31: =LAC102_S_MHSA!CP31 -> 0 | CM31: =LAC102_S_MHSA!CQ31 -> 2690.966667 | CN31: =LAC102_S_MHSA!CR31 -> 0 | CO31: =LAC102_S_MHSA!CS31 -> 0 | IO31: =SUM(F31,Q31,AB31,AX31,BI31,BT31,CE31,CP31,HG31,HR31,DA31,AM31,DL31,DW31,EH31,ES31,FD31,FO31,FZ31,GV31,GK31) -> 0 | IP31: 0 | IQ31: 0 | IR31: 0 | IS31: 0 | IT31: 0 | IU31: 0 | IV31: 0 | IW31: 2690.966667 | IX31: 0 | IY31: 0 | IZ31: =MH1901_Schedule_B!F36 -> 0 | JA31: =MH1901_Schedule_B!H36 -> 0 | JB31: =MH1901_Schedule_B!J36 -> 0 | JC31: =MH1901_Schedule_B!L36 -> 0 | JD31: =MH1901_Schedule_B!N36+MH1901_Schedule_B!P36 -> 0 | JE31: =MH1901_Schedule_B!R36 -> 0 | JF31: =MH1901_Schedule_B!T36 -> 0 | JG31: =MH1901_Schedule_B!Z36 -> 0 | JH31: =MH1901_Schedule_B!AB36 -> 2690.966667 | JI31: =MH1901_Schedule_B!V36 -> 0 | JJ31: =MH1901_Schedule_B!X36 -> 0 | JK31: 0 | JL31: 0 | JM31: 0 | JN31: 0 | JO31: 0 | JP31: 0 | JQ31: 0 | JR31: 0 | JS31: 0 | JT31: 0 | JU31: 0
A32: ='LAC103'!C32 -> LS | B32: 18 | C32: =MH1901_Schedule_B!B37 -> CR | D32: =MH1901_Schedule_B!C37 -> 60 | E32: =MH1901_Schedule_B!D37 -> 40 | CE32: =LAC102_S_MHSA!CI32 -> 0 | CF32: =LAC102_S_MHSA!CJ32 -> 0 | CG32: =LAC102_S_MHSA!CK32 -> 0 | CH32: =LAC102_S_MHSA!CL32 -> 0 | CI32: =LAC102_S_MHSA!CM32 -> 0 | CJ32: =LAC102_S_MHSA!CN32 -> 0 | CK32: =LAC102_S_MHSA!CO32 -> 0 | CL32: =LAC102_S_MHSA!CP32 -> 0 | CM32: =LAC102_S_MHSA!CQ32 -> 2821 | CN32: =LAC102_S_MHSA!CR32 -> 0 | CO32: =LAC102_S_MHSA!CS32 -> 0 | DT32: 5435 | IO32: 0 | IP32: 0 | IQ32: 0 | IR32: 0 | IS32: 0 | IT32: 0 | IU32: 0 | IV32: 0 | IW32: 8256 | IX32: 0 | IY32: 0 | IZ32: =MH1901_Schedule_B!F37 -> 0 | JA32: =MH1901_Schedule_B!H37 -> 0 | JB32: =MH1901_Schedule_B!J37 -> 0 | JC32: =MH1901_Schedule_B!L37 -> 0 | JD32: =MH1901_Schedule_B!N37+MH1901_Schedule_B!P37 -> 0 | JE32: =MH1901_Schedule_B!R37 -> 0 | JF32: =MH1901_Schedule_B!T37 -> 0 | JG32: =MH1901_Schedule_B!Z37 -> 0 | JH32: =MH1901_Schedule_B!AB37 -> 8256 | JI32: =MH1901_Schedule_B!V37 -> 0 | JJ32: =MH1901_Schedule_B!X37 -> 0 | JK32: 0 | JL32: 0 | JM32: 0 | JN32: 0 | JO32: 0 | JP32: 0 | JQ32: 0 | JR32: 0 | JS32: 0 | JT32: 0 | JU32: 0
A33: ='LAC103'!C33 -> OP | B33: 19 | C33: =MH1901_Schedule_B!B38 -> CCR | D33: =MH1901_Schedule_B!C38 -> 15 | E33: =MH1901_Schedule_B!D38 -> 07 | CE33: =LAC102_S_MHSA!CI33 -> 0 | CF33: =LAC102_S_MHSA!CJ33 -> 0 | CG33: =LAC102_S_MHSA!CK33 -> 0 | CH33: =LAC102_S_MHSA!CL33 -> 0 | CI33: =LAC102_S_MHSA!CM33 -> 0 | CJ33: =LAC102_S_MHSA!CN33 -> 0 | CK33: =LAC102_S_MHSA!CO33 -> 0 | CL33: =LAC102_S_MHSA!CP33 -> 0 | CM33: =LAC102_S_MHSA!CQ33 -> 0 | CN33: =LAC102_S_MHSA!CR33 -> 0 | CO33: =LAC102_S_MHSA!CS33 -> 0 | DL33: 45 | IO33: 45 | IP33: 0 | IQ33: 0 | IR33: 0 | IS33: 0 | IT33: 0 | IU33: 0 | IV33: 0 | IW33: 0 | IX33: 0 | IY33: 0 | IZ33: =MH1901_Schedule_B!F38 -> 45 | JA33: =MH1901_Schedule_B!H38 -> 0 | JB33: =MH1901_Schedule_B!J38 -> 0 | JC33: =MH1901_Schedule_B!L38 -> 0 | JD33: =MH1901_Schedule_B!N38+MH1901_Schedule_B!P38 -> 0 | JE33: =MH1901_Schedule_B!R38 -> 0 | JF33: =MH1901_Schedule_B!T38 -> 0 | JG33: =MH1901_Schedule_B!Z38 -> 0 | JH33: =MH1901_Schedule_B!AB38 -> 0 | JI33: =MH1901_Schedule_B!V38 -> 0 | JJ33: =MH1901_Schedule_B!X38 -> 0 | JK33: 0 | JL33: 0 | JM33: 0 | JN33: 0 | JO33: 0 | JP33: 0 | JQ33: 0 | JR33: 0 | JS33: 0 | JT33: 0 | JU33: 0
A34: ='LAC103'!C34 -> OP | B34: 20 | C34: =MH1901_Schedule_B!B39 -> CCR | D34: =MH1901_Schedule_B!C39 -> 15 | E34: =MH1901_Schedule_B!D39 -> 34 | CE34: =LAC102_S_MHSA!CI34 -> 0 | CF34: =LAC102_S_MHSA!CJ34 -> 0 | CG34: =LAC102_S_MHSA!CK34 -> 0 | CH34: =LAC102_S_MHSA!CL34 -> 0 | CI34: =LAC102_S_MHSA!CM34 -> 0 | CJ34: =LAC102_S_MHSA!CN34 -> 0 | CK34: =LAC102_S_MHSA!CO34 -> 0 | CL34: =LAC102_S_MHSA!CP34 -> 0 | CM34: =LAC102_S_MHSA!CQ34 -> 0 | CN34: =LAC102_S_MHSA!CR34 -> 0 | CO34: =LAC102_S_MHSA!CS34 -> 0 | DL34: 25 | DN34: 25 | IO34: 25 | IP34: 0 | IQ34: 25 | IR34: 0 | IS34: 0 | IT34: 0 | IU34: 0 | IV34: 0 | IW34: 0 | IX34: 0 | IY34: 0 | IZ34: =MH1901_Schedule_B!F39 -> 25 | JA34: =MH1901_Schedule_B!H39 -> 0 | JB34: =MH1901_Schedule_B!J39 -> 25 | JC34: =MH1901_Schedule_B!L39 -> 0 | JD34: =MH1901_Schedule_B!N39+MH1901_Schedule_B!P39 -> 0 | JE34: =MH1901_Schedule_B!R39 -> 0 | JF34: =MH1901_Schedule_B!T39 -> 0 | JG34: =MH1901_Schedule_B!Z39 -> 0 | JH34: =MH1901_Schedule_B!AB39 -> 0 | JI34: =MH1901_Schedule_B!V39 -> 0 | JJ34: =MH1901_Schedule_B!X39 -> 0 | JK34: 0 | JL34: 0 | JM34: 0 | JN34: 0 | JO34: 0 | JP34: 0 | JQ34: 0 | JR34: 0 | JS34: 0 | JT34: 0 | JU34: 0
A35: ='LAC103'!C35 -> INV | B35: 21 | C35: =MH1901_Schedule_B!B40 -> CR | D35: =MH1901_Schedule_B!C40 -> 60 | E35: =MH1901_Schedule_B!D40 -> 70 | CE35: =LAC102_S_MHSA!CI35 -> 0 | CF35: =LAC102_S_MHSA!CJ35 -> 0 | CG35: =LAC102_S_MHSA!CK35 -> 0 | CH35: =LAC102_S_MHSA!CL35 -> 0 | CI35: =LAC102_S_MHSA!CM35 -> 0 | CJ35: =LAC102_S_MHSA!CN35 -> 0 | CK35: =LAC102_S_MHSA!CO35 -> 0 | CL35: =LAC102_S_MHSA!CP35 -> 0 | CM35: =LAC102_S_MHSA!CQ35 -> 0 | CN35: =LAC102_S_MHSA!CR35 -> 0 | CO35: =LAC102_S_MHSA!CS35 -> 0 | IO35: 0 | IP35: 0 | IQ35: 0 | IR35: 0 | IS35: 0 | IT35: 0 | IU35: 0 | IV35: 0 | IW35: 0 | IX35: 0 | IY35: 0 | IZ35: =MH1901_Schedule_B!F40 -> 0 | JA35: =MH1901_Schedule_B!H40 -> 0 | JB35: =MH1901_Schedule_B!J40 -> 0 | JC35: =MH1901_Schedule_B!L40 -> 0 | JD35: =MH1901_Schedule_B!N40+MH1901_Schedule_B!P40 -> 0 | JE35: =MH1901_Schedule_B!R40 -> 0 | JF35: =MH1901_Schedule_B!T40 -> 0 | JG35: =MH1901_Schedule_B!Z40 -> 0 | JH35: =MH1901_Schedule_B!AB40 -> 1 | JI35: =MH1901_Schedule_B!V40 -> 0 | JJ35: =MH1901_Schedule_B!X40 -> 0 | JK35: 0 | JL35: 0 | JM35: 0 | JN35: 0 | JO35: 0 | JP35: 0 | JQ35: 0 | JR35: 0 | JS35: 0 | JT35: 0 | JU35: 0
A36: ='LAC103'!C36 -> INV | B36: 22 | C36: =MH1901_Schedule_B!B41 -> CR | D36: =MH1901_Schedule_B!C41 -> 60 | E36: =MH1901_Schedule_B!D41 -> 71 | CE36: =LAC102_S_MHSA!CI36 -> 0 | CF36: =LAC102_S_MHSA!CJ36 -> 0 | CG36: =LAC102_S_MHSA!CK36 -> 0 | CH36: =LAC102_S_MHSA!CL36 -> 0 | CI36: =LAC102_S_MHSA!CM36 -> 0 | CJ36: =LAC102_S_MHSA!CN36 -> 0 | CK36: =LAC102_S_MHSA!CO36 -> 0 | CL36: =LAC102_S_MHSA!CP36 -> 0 | CM36: =LAC102_S_MHSA!CQ36 -> 1 | CN36: =LAC102_S_MHSA!CR36 -> 0 | CO36: =LAC102_S_MHSA!CS36 -> 0 | IO36: 0 | IP36: 0 | IQ36: 0 | IR36: 0 | IS36: 0 | IT36: 0 | IU36: 0 | IV36: 0 | IW36: 1 | IX36: 0 | IY36: 0 | IZ36: =MH1901_Schedule_B!F41 -> 0 | JA36: =MH1901_Schedule_B!H41 -> 0 | JB36: =MH1901_Schedule_B!J41 -> 0 | JC36: =MH1901_Schedule_B!L41 -> 0 | JD36: =MH1901_Schedule_B!N41+MH1901_Schedule_B!P41 -> 0 | JE36: =MH1901_Schedule_B!R41 -> 0 | JF36: =MH1901_Schedule_B!T41 -> 0 | JG36: =MH1901_Schedule_B!Z41 -> 0 | JH36: =MH1901_Schedule_B!AB41 -> 1 | JI36: =MH1901_Schedule_B!V41 -> 0 | JJ36: =MH1901_Schedule_B!X41 -> 0 | JK36: 0 | JL36: 0 | JM36: 0 | JN36: 0 | JO36: 0 | JP36: 0 | JQ36: 0 | JR36: 0 | JS36: 0 | JT36: 0 | JU36: 0
A37: ='LAC103'!C37 -> INV | B37: 23 | C37: =MH1901_Schedule_B!B42 -> CR | D37: =MH1901_Schedule_B!C42 -> 60 | E37: =MH1901_Schedule_B!D42 -> 72 | CE37: =LAC102_S_MHSA!CI37 -> 0 | CF37: =LAC102_S_MHSA!CJ37 -> 0 | CG37: =LAC102_S_MHSA!CK37 -> 0 | CH37: =LAC102_S_MHSA!CL37 -> 0 | CI37: =LAC102_S_MHSA!CM37 -> 0 | CJ37: =LAC102_S_MHSA!CN37 -> 0 | CK37: =LAC102_S_MHSA!CO37 -> 0 | CL37: =LAC102_S_MHSA!CP37 -> 0 | CM37: =LAC102_S_MHSA!CQ37 -> 1 | CN37: =LAC102_S_MHSA!CR37 -> 0 | CO37: =LAC102_S_MHSA!CS37 -> 0 | IO37: 0 | IP37: 0 | IQ37: 0 | IR37: 0 | IS37: 0 | IT37: 0 | IU37: 0 | IV37: 0 | IW37: 1 | IX37: 0 | IY37: 0 | IZ37: =MH1901_Schedule_B!F42 -> 0 | JA37: =MH1901_Schedule_B!H42 -> 0 | JB37: =MH1901_Schedule_B!J42 -> 0 | JC37: =MH1901_Schedule_B!L42 -> 0 | JD37: =MH1901_Schedule_B!N42+MH1901_Schedule_B!P42 -> 0 | JE37: =MH1901_Schedule_B!R42 -> 0 | JF37: =MH1901_Schedule_B!T42 -> 0 | JG37: =MH1901_Schedule_B!Z42 -> 0 | JH37: =MH1901_Schedule_B!AB42 -> 1 | JI37: =MH1901_Schedule_B!V42 -> 0 | JJ37: =MH1901_Schedule_B!X42 -> 0 | JK37: 0 | JL37: 0 | JM37: 0 | JN37: 0 | JO37: 0 | JP37: 0 | JQ37: 0 | JR37: 0 | JS37: 0 | JT37: 0 | JU37: 0
A38: ='LAC103'!C38 -> INV | B38: 24 | C38: =MH1901_Schedule_B!B43 -> CR | D38: =MH1901_Schedule_B!C43 -> 60 | E38: =MH1901_Schedule_B!D43 -> 78 | CE38: =LAC102_S_MHSA!CI38 -> 0 | CF38: =LAC102_S_MHSA!CJ38 -> 0 | CG38: =LAC102_S_MHSA!CK38 -> 0 | CH38: =LAC102_S_MHSA!CL38 -> 0 | CI38: =LAC102_S_MHSA!CM38 -> 0 | CJ38: =LAC102_S_MHSA!CN38 -> 0 | CK38: =LAC102_S_MHSA!CO38 -> 0 | CL38: =LAC102_S_MHSA!CP38 -> 0 | CM38: =LAC102_S_MHSA!CQ38 -> 1 | CN38: =LAC102_S_MHSA!CR38 -> 0 | CO38: =LAC102_S_MHSA!CS38 -> 0 | IO38: 0 | IP38: 0 | IQ38: 0 | IR38: 0 | IS38: 0 | IT38: 0 | IU38: 0 | IV38: 0 | IW38: 1 | IX38: 0 | IY38: 0 | IZ38: =MH1901_Schedule_B!F43 -> 0 | JA38: =MH1901_Schedule_B!H43 -> 0 | JB38: =MH1901_Schedule_B!J43 -> 0 | JC38: =MH1901_Schedule_B!L43 -> 0 | JD38: =MH1901_Schedule_B!N43+MH1901_Schedule_B!P43 -> 0 | JE38: =MH1901_Schedule_B!R43 -> 0 | JF38: =MH1901_Schedule_B!T43 -> 0 | JG38: =MH1901_Schedule_B!Z43 -> 0 | JH38: =MH1901_Schedule_B!AB43 -> 1 | JI38: =MH1901_Schedule_B!V43 -> 0 | JJ38: =MH1901_Schedule_B!X43 -> 0 | JK38: 0 | JL38: 0 | JM38: 0 | JN38: 0 | JO38: 0 | JP38: 0 | JQ38: 0 | JR38: 0 | JS38: 0 | JT38: 0 | JU38: 0
A39: ='LAC103'!C39 ->  | B39: 25 | C39: =MH1901_Schedule_B!B44 -> 0 | D39: =MH1901_Schedule_B!C44 -> 0 | E39: =MH1901_Schedule_B!D44 -> 0 | CE39: =LAC102_S_MHSA!CI39 -> 0 | CF39: =LAC102_S_MHSA!CJ39 -> 0 | CG39: =LAC102_S_MHSA!CK39 -> 0 | CH39: =LAC102_S_MHSA!CL39 -> 0 | CI39: =LAC102_S_MHSA!CM39 -> 0 | CJ39: =LAC102_S_MHSA!CN39 -> 0 | CK39: =LAC102_S_MHSA!CO39 -> 0 | CL39: =LAC102_S_MHSA!CP39 -> 0 | CM39: =LAC102_S_MHSA!CQ39 -> 0 | CN39: =LAC102_S_MHSA!CR39 -> 0 | CO39: =LAC102_S_MHSA!CS39 -> 0 | IO39: 0 | IP39: 0 | IQ39: 0 | IR39: 0 | IS39: 0 | IT39: 0 | IU39: 0 | IV39: 0 | IW39: 0 | IX39: 0 | IY39: 0 | IZ39: =MH1901_Schedule_B!F44 -> 0 | JA39: =MH1901_Schedule_B!H44 -> 0 | JB39: =MH1901_Schedule_B!J44 -> 0 | JC39: =MH1901_Schedule_B!L44 -> 0 | JD39: =MH1901_Schedule_B!N44+MH1901_Schedule_B!P44 -> 0 | JE39: =MH1901_Schedule_B!R44 -> 0 | JF39: =MH1901_Schedule_B!T44 -> 0 | JG39: =MH1901_Schedule_B!Z44 -> 0 | JH39: =MH1901_Schedule_B!AB44 -> 0 | JI39: =MH1901_Schedule_B!V44 -> 0 | JJ39: =MH1901_Schedule_B!X44 -> 0 | JK39: 0 | JL39: 0 | JM39: 0 | JN39: 0 | JO39: 0 | JP39: 0 | JQ39: 0 | JR39: 0 | JS39: 0 | JT39: 0 | JU39: 0
A40: ='LAC103'!C40 ->  | B40: 26 | C40: =MH1901_Schedule_B!B45 -> 0 | D40: =MH1901_Schedule_B!C45 -> 0 | E40: =MH1901_Schedule_B!D45 -> 0 | CE40: =LAC102_S_MHSA!CI40 -> 0 | CF40: =LAC102_S_MHSA!CJ40 -> 0 | CG40: =LAC102_S_MHSA!CK40 -> 0 | CH40: =LAC102_S_MHSA!CL40 -> 0 | CI40: =LAC102_S_MHSA!CM40 -> 0 | CJ40: =LAC102_S_MHSA!CN40 -> 0 | CK40: =LAC102_S_MHSA!CO40 -> 0 | CL40: =LAC102_S_MHSA!CP40 -> 0 | CM40: =LAC102_S_MHSA!CQ40 -> 0 | CN40: =LAC102_S_MHSA!CR40 -> 0 | CO40: =LAC102_S_MHSA!CS40 -> 0 | IO40: 0 | IP40: 0 | IQ40: 0 | IR40: 0 | IS40: 0 | IT40: 0 | IU40: 0 | IV40: 0 | IW40: 0 | IX40: 0 | IY40: 0 | IZ40: =MH1901_Schedule_B!F45 -> 0 | JA40: =MH1901_Schedule_B!H45 -> 0 | JB40: =MH1901_Schedule_B!J45 -> 0 | JC40: =MH1901_Schedule_B!L45 -> 0 | JD40: =MH1901_Schedule_B!N45+MH1901_Schedule_B!P45 -> 0 | JE40: =MH1901_Schedule_B!R45 -> 0 | JF40: =MH1901_Schedule_B!T45 -> 0 | JG40: =MH1901_Schedule_B!Z45 -> 0 | JH40: =MH1901_Schedule_B!AB45 -> 0 | JI40: =MH1901_Schedule_B!V45 -> 0 | JJ40: =MH1901_Schedule_B!X45 -> 0 | JK40: 0 | JL40: 0 | JM40: 0 | JN40: 0 | JO40: 0 | JP40: 0 | JQ40: 0 | JR40: 0 | JS40: 0 | JT40: 0 | JU40: 0
A41: ='LAC103'!C41 ->  | B41: 27 | C41: =MH1901_Schedule_B!B46 -> 0 | D41: =MH1901_Schedule_B!C46 -> 0 | E41: =MH1901_Schedule_B!D46 -> 0 | CE41: =LAC102_S_MHSA!CI41 -> 0 | CF41: =LAC102_S_MHSA!CJ41 -> 0 | CG41: =LAC102_S_MHSA!CK41 -> 0 | CH41: =LAC102_S_MHSA!CL41 -> 0 | CI41: =LAC102_S_MHSA!CM41 -> 0 | CJ41: =LAC102_S_MHSA!CN41 -> 0 | CK41: =LAC102_S_MHSA!CO41 -> 0 | CL41: =LAC102_S_MHSA!CP41 -> 0 | CM41: =LAC102_S_MHSA!CQ41 -> 0 | CN41: =LAC102_S_MHSA!CR41 -> 0 | CO41: =LAC102_S_MHSA!CS41 -> 0 | IO41: 0 | IP41: 0 | IQ41: 0 | IR41: 0 | IS41: 0 | IT41: 0 | IU41: 0 | IV41: 0 | IW41: 0 | IX41: 0 | IY41: 0 | IZ41: =MH1901_Schedule_B!F46 -> 0 | JA41: =MH1901_Schedule_B!H46 -> 0 | JB41: =MH1901_Schedule_B!J46 -> 0 | JC41: =MH1901_Schedule_B!L46 -> 0 | JD41: =MH1901_Schedule_B!N46+MH1901_Schedule_B!P46 -> 0 | JE41: =MH1901_Schedule_B!R46 -> 0 | JF41: =MH1901_Schedule_B!T46 -> 0 | JG41: =MH1901_Schedule_B!Z46 -> 0 | JH41: =MH1901_Schedule_B!AB46 -> 0 | JI41: =MH1901_Schedule_B!V46 -> 0 | JJ41: =MH1901_Schedule_B!X46 -> 0 | JK41: 0 | JL41: 0 | JM41: 0 | JN41: 0 | JO41: 0 | JP41: 0 | JQ41: 0 | JR41: 0 | JS41: 0 | JT41: 0 | JU41: 0
A42: ='LAC103'!C42 ->  | B42: 28 | C42: =MH1901_Schedule_B!B47 -> 0 | D42: =MH1901_Schedule_B!C47 -> 0 | E42: =MH1901_Schedule_B!D47 -> 0 | CE42: =LAC102_S_MHSA!CI42 -> 0 | CF42: =LAC102_S_MHSA!CJ42 -> 0 | CG42: =LAC102_S_MHSA!CK42 -> 0 | CH42: =LAC102_S_MHSA!CL42 -> 0 | CI42: =LAC102_S_MHSA!CM42 -> 0 | CJ42: =LAC102_S_MHSA!CN42 -> 0 | CK42: =LAC102_S_MHSA!CO42 -> 0 | CL42: =LAC102_S_MHSA!CP42 -> 0 | CM42: =LAC102_S_MHSA!CQ42 -> 0 | CN42: =LAC102_S_MHSA!CR42 -> 0 | CO42: =LAC102_S_MHSA!CS42 -> 0 | IO42: 0 | IP42: 0 | IQ42: 0 | IR42: 0 | IS42: 0 | IT42: 0 | IU42: 0 | IV42: 0 | IW42: 0 | IX42: 0 | IY42: 0 | IZ42: =MH1901_Schedule_B!F47 -> 0 | JA42: =MH1901_Schedule_B!H47 -> 0 | JB42: =MH1901_Schedule_B!J47 -> 0 | JC42: =MH1901_Schedule_B!L47 -> 0 | JD42: =MH1901_Schedule_B!N47+MH1901_Schedule_B!P47 -> 0 | JE42: =MH1901_Schedule_B!R47 -> 0 | JF42: =MH1901_Schedule_B!T47 -> 0 | JG42: =MH1901_Schedule_B!Z47 -> 0 | JH42: =MH1901_Schedule_B!AB47 -> 0 | JI42: =MH1901_Schedule_B!V47 -> 0 | JJ42: =MH1901_Schedule_B!X47 -> 0 | JK42: 0 | JL42: 0 | JM42: 0 | JN42: 0 | JO42: 0 | JP42: 0 | JQ42: 0 | JR42: 0 | JS42: 0 | JT42: 0 | JU42: 0
A43: ='LAC103'!C43 ->  | B43: 29 | C43: =MH1901_Schedule_B!B48 -> 0 | D43: =MH1901_Schedule_B!C48 -> 0 | E43: =MH1901_Schedule_B!D48 -> 0 | CE43: =LAC102_S_MHSA!CI43 -> 0 | CF43: =LAC102_S_MHSA!CJ43 -> 0 | CG43: =LAC102_S_MHSA!CK43 -> 0 | CH43: =LAC102_S_MHSA!CL43 -> 0 | CI43: =LAC102_S_MHSA!CM43 -> 0 | CJ43: =LAC102_S_MHSA!CN43 -> 0 | CK43: =LAC102_S_MHSA!CO43 -> 0 | CL43: =LAC102_S_MHSA!CP43 -> 0 | CM43: =LAC102_S_MHSA!CQ43 -> 0 | CN43: =LAC102_S_MHSA!CR43 -> 0 | CO43: =LAC102_S_MHSA!CS43 -> 0 | IO43: 0 | IP43: 0 | IQ43: 0 | IR43: 0 | IS43: 0 | IT43: 0 | IU43: 0 | IV43: 0 | IW43: 0 | IX43: 0 | IY43: 0 | IZ43: =MH1901_Schedule_B!F48 -> 0 | JA43: =MH1901_Schedule_B!H48 -> 0 | JB43: =MH1901_Schedule_B!J48 -> 0 | JC43: =MH1901_Schedule_B!L48 -> 0 | JD43: =MH1901_Schedule_B!N48+MH1901_Schedule_B!P48 -> 0 | JE43: =MH1901_Schedule_B!R48 -> 0 | JF43: =MH1901_Schedule_B!T48 -> 0 | JG43: =MH1901_Schedule_B!Z48 -> 0 | JH43: =MH1901_Schedule_B!AB48 -> 0 | JI43: =MH1901_Schedule_B!V48 -> 0 | JJ43: =MH1901_Schedule_B!X48 -> 0 | JK43: 0 | JL43: 0 | JM43: 0 | JN43: 0 | JO43: 0 | JP43: 0 | JQ43: 0 | JR43: 0 | JS43: 0 | JT43: 0 | JU43: 0
A44: ='LAC103'!C44 ->  | B44: 30 | C44: =MH1901_Schedule_B!B49 -> 0 | D44: =MH1901_Schedule_B!C49 -> 0 | E44: =MH1901_Schedule_B!D49 -> 0 | CE44: =LAC102_S_MHSA!CI44 -> 0 | CF44: =LAC102_S_MHSA!CJ44 -> 0 | CG44: =LAC102_S_MHSA!CK44 -> 0 | CH44: =LAC102_S_MHSA!CL44 -> 0 | CI44: =LAC102_S_MHSA!CM44 -> 0 | CJ44: =LAC102_S_MHSA!CN44 -> 0 | CK44: =LAC102_S_MHSA!CO44 -> 0 | CL44: =LAC102_S_MHSA!CP44 -> 0 | CM44: =LAC102_S_MHSA!CQ44 -> 0 | CN44: =LAC102_S_MHSA!CR44 -> 0 | CO44: =LAC102_S_MHSA!CS44 -> 0 | IO44: 0 | IP44: 0 | IQ44: 0 | IR44: 0 | IS44: 0 | IT44: 0 | IU44: 0 | IV44: 0 | IW44: 0 | IX44: 0 | IY44: 0 | IZ44: =MH1901_Schedule_B!F49 -> 0 | JA44: =MH1901_Schedule_B!H49 -> 0 | JB44: =MH1901_Schedule_B!J49 -> 0 | JC44: =MH1901_Schedule_B!L49 -> 0 | JD44: =MH1901_Schedule_B!N49+MH1901_Schedule_B!P49 -> 0 | JE44: =MH1901_Schedule_B!R49 -> 0 | JF44: =MH1901_Schedule_B!T49 -> 0 | JG44: =MH1901_Schedule_B!Z49 -> 0 | JH44: =MH1901_Schedule_B!AB49 -> 0 | JI44: =MH1901_Schedule_B!V49 -> 0 | JJ44: =MH1901_Schedule_B!X49 -> 0 | JK44: 0 | JL44: 0 | JM44: 0 | JN44: 0 | JO44: 0 | JP44: 0 | JQ44: 0 | JR44: 0 | JS44: 0 | JT44: 0 | JU44: 0
A45: ='LAC103'!C45 ->  | B45: 31 | C45: =MH1901_Schedule_B!B50 -> 0 | D45: =MH1901_Schedule_B!C50 -> 0 | E45: =MH1901_Schedule_B!D50 -> 0 | CE45: =LAC102_S_MHSA!CI45 -> 0 | CF45: =LAC102_S_MHSA!CJ45 -> 0 | CG45: =LAC102_S_MHSA!CK45 -> 0 | CH45: =LAC102_S_MHSA!CL45 -> 0 | CI45: =LAC102_S_MHSA!CM45 -> 0 | CJ45: =LAC102_S_MHSA!CN45 -> 0 | CK45: =LAC102_S_MHSA!CO45 -> 0 | CL45: =LAC102_S_MHSA!CP45 -> 0 | CM45: =LAC102_S_MHSA!CQ45 -> 0 | CN45: =LAC102_S_MHSA!CR45 -> 0 | CO45: =LAC102_S_MHSA!CS45 -> 0 | IO45: 0 | IP45: 0 | IQ45: 0 | IR45: 0 | IS45: 0 | IT45: 0 | IU45: 0 | IV45: 0 | IW45: 0 | IX45: 0 | IY45: 0 | IZ45: =MH1901_Schedule_B!F50 -> 0 | JA45: =MH1901_Schedule_B!H50 -> 0 | JB45: =MH1901_Schedule_B!J50 -> 0 | JC45: =MH1901_Schedule_B!L50 -> 0 | JD45: =MH1901_Schedule_B!N50+MH1901_Schedule_B!P50 -> 0 | JE45: =MH1901_Schedule_B!R50 -> 0 | JF45: =MH1901_Schedule_B!T50 -> 0 | JG45: =MH1901_Schedule_B!Z50 -> 0 | JH45: =MH1901_Schedule_B!AB50 -> 0 | JI45: =MH1901_Schedule_B!V50 -> 0 | JJ45: =MH1901_Schedule_B!X50 -> 0 | JK45: 0 | JL45: 0 | JM45: 0 | JN45: 0 | JO45: 0 | JP45: 0 | JQ45: 0 | JR45: 0 | JS45: 0 | JT45: 0 | JU45: 0
A46: ='LAC103'!C46 ->  | B46: 32 | C46: =MH1901_Schedule_B!B51 -> 0 | D46: =MH1901_Schedule_B!C51 -> 0 | E46: =MH1901_Schedule_B!D51 -> 0 | CE46: =LAC102_S_MHSA!CI46 -> 0 | CF46: =LAC102_S_MHSA!CJ46 -> 0 | CG46: =LAC102_S_MHSA!CK46 -> 0 | CH46: =LAC102_S_MHSA!CL46 -> 0 | CI46: =LAC102_S_MHSA!CM46 -> 0 | CJ46: =LAC102_S_MHSA!CN46 -> 0 | CK46: =LAC102_S_MHSA!CO46 -> 0 | CL46: =LAC102_S_MHSA!CP46 -> 0 | CM46: =LAC102_S_MHSA!CQ46 -> 0 | CN46: =LAC102_S_MHSA!CR46 -> 0 | CO46: =LAC102_S_MHSA!CS46 -> 0 | IO46: 0 | IP46: 0 | IQ46: 0 | IR46: 0 | IS46: 0 | IT46: 0 | IU46: 0 | IV46: 0 | IW46: 0 | IX46: 0 | IY46: 0 | IZ46: =MH1901_Schedule_B!F51 -> 0 | JA46: =MH1901_Schedule_B!H51 -> 0 | JB46: =MH1901_Schedule_B!J51 -> 0 | JC46: =MH1901_Schedule_B!L51 -> 0 | JD46: =MH1901_Schedule_B!N51+MH1901_Schedule_B!P51 -> 0 | JE46: =MH1901_Schedule_B!R51 -> 0 | JF46: =MH1901_Schedule_B!T51 -> 0 | JG46: =MH1901_Schedule_B!Z51 -> 0 | JH46: =MH1901_Schedule_B!AB51 -> 0 | JI46: =MH1901_Schedule_B!V51 -> 0 | JJ46: =MH1901_Schedule_B!X51 -> 0 | JK46: 0 | JL46: 0 | JM46: 0 | JN46: 0 | JO46: 0 | JP46: 0 | JQ46: 0 | JR46: 0 | JS46: 0 | JT46: 0 | JU46: 0
A47: ='LAC103'!C47 ->  | B47: 33 | C47: =MH1901_Schedule_B!B52 -> 0 | D47: =MH1901_Schedule_B!C52 -> 0 | E47: =MH1901_Schedule_B!D52 -> 0 | CE47: =LAC102_S_MHSA!CI47 -> 0 | CF47: =LAC102_S_MHSA!CJ47 -> 0 | CG47: =LAC102_S_MHSA!CK47 -> 0 | CH47: =LAC102_S_MHSA!CL47 -> 0 | CI47: =LAC102_S_MHSA!CM47 -> 0 | CJ47: =LAC102_S_MHSA!CN47 -> 0 | CK47: =LAC102_S_MHSA!CO47 -> 0 | CL47: =LAC102_S_MHSA!CP47 -> 0 | CM47: =LAC102_S_MHSA!CQ47 -> 0 | CN47: =LAC102_S_MHSA!CR47 -> 0 | CO47: =LAC102_S_MHSA!CS47 -> 0 | IO47: 0 | IP47: 0 | IQ47: 0 | IR47: 0 | IS47: 0 | IT47: 0 | IU47: 0 | IV47: 0 | IW47: 0 | IX47: 0 | IY47: 0 | IZ47: =MH1901_Schedule_B!F52 -> 0 | JA47: =MH1901_Schedule_B!H52 -> 0 | JB47: =MH1901_Schedule_B!J52 -> 0 | JC47: =MH1901_Schedule_B!L52 -> 0 | JD47: =MH1901_Schedule_B!N52+MH1901_Schedule_B!P52 -> 0 | JE47: =MH1901_Schedule_B!R52 -> 0 | JF47: =MH1901_Schedule_B!T52 -> 0 | JG47: =MH1901_Schedule_B!Z52 -> 0 | JH47: =MH1901_Schedule_B!AB52 -> 0 | JI47: =MH1901_Schedule_B!V52 -> 0 | JJ47: =MH1901_Schedule_B!X52 -> 0 | JK47: 0 | JL47: 0 | JM47: 0 | JN47: 0 | JO47: 0 | JP47: 0 | JQ47: 0 | JR47: 0 | JS47: 0 | JT47: 0 | JU47: 0
A48: ='LAC103'!C48 ->  | B48: 34 | C48: =MH1901_Schedule_B!B53 -> 0 | D48: =MH1901_Schedule_B!C53 -> 0 | E48: =MH1901_Schedule_B!D53 -> 0 | CE48: =LAC102_S_MHSA!CI48 -> 0 | CF48: =LAC102_S_MHSA!CJ48 -> 0 | CG48: =LAC102_S_MHSA!CK48 -> 0 | CH48: =LAC102_S_MHSA!CL48 -> 0 | CI48: =LAC102_S_MHSA!CM48 -> 0 | CJ48: =LAC102_S_MHSA!CN48 -> 0 | CK48: =LAC102_S_MHSA!CO48 -> 0 | CL48: =LAC102_S_MHSA!CP48 -> 0 | CM48: =LAC102_S_MHSA!CQ48 -> 0 | CN48: =LAC102_S_MHSA!CR48 -> 0 | CO48: =LAC102_S_MHSA!CS48 -> 0 | IO48: 0 | IP48: 0 | IQ48: 0 | IR48: 0 | IS48: 0 | IT48: 0 | IU48: 0 | IV48: 0 | IW48: 0 | IX48: 0 | IY48: 0 | IZ48: =MH1901_Schedule_B!F53 -> 0 | JA48: =MH1901_Schedule_B!H53 -> 0 | JB48: =MH1901_Schedule_B!J53 -> 0 | JC48: =MH1901_Schedule_B!L53 -> 0 | JD48: =MH1901_Schedule_B!N53+MH1901_Schedule_B!P53 -> 0 | JE48: =MH1901_Schedule_B!R53 -> 0 | JF48: =MH1901_Schedule_B!T53 -> 0 | JG48: =MH1901_Schedule_B!Z53 -> 0 | JH48: =MH1901_Schedule_B!AB53 -> 0 | JI48: =MH1901_Schedule_B!V53 -> 0 | JJ48: =MH1901_Schedule_B!X53 -> 0 | JK48: 0 | JL48: 0 | JM48: 0 | JN48: 0 | JO48: 0 | JP48: 0 | JQ48: 0 | JR48: 0 | JS48: 0 | JT48: 0 | JU48: 0
A49: ='LAC103'!C49 ->  | B49: 35 | C49: =MH1901_Schedule_B!B54 -> 0 | D49: =MH1901_Schedule_B!C54 -> 0 | E49: =MH1901_Schedule_B!D54 -> 0 | CE49: =LAC102_S_MHSA!CI49 -> 0 | CF49: =LAC102_S_MHSA!CJ49 -> 0 | CG49: =LAC102_S_MHSA!CK49 -> 0 | CH49: =LAC102_S_MHSA!CL49 -> 0 | CI49: =LAC102_S_MHSA!CM49 -> 0 | CJ49: =LAC102_S_MHSA!CN49 -> 0 | CK49: =LAC102_S_MHSA!CO49 -> 0 | CL49: =LAC102_S_MHSA!CP49 -> 0 | CM49: =LAC102_S_MHSA!CQ49 -> 0 | CN49: =LAC102_S_MHSA!CR49 -> 0 | CO49: =LAC102_S_MHSA!CS49 -> 0 | IO49: 0 | IP49: 0 | IQ49: 0 | IR49: 0 | IS49: 0 | IT49: 0 | IU49: 0 | IV49: 0 | IW49: 0 | IX49: 0 | IY49: 0 | IZ49: =MH1901_Schedule_B!F54 -> 0 | JA49: =MH1901_Schedule_B!H54 -> 0 | JB49: =MH1901_Schedule_B!J54 -> 0 | JC49: =MH1901_Schedule_B!L54 -> 0 | JD49: =MH1901_Schedule_B!N54+MH1901_Schedule_B!P54 -> 0 | JE49: =MH1901_Schedule_B!R54 -> 0 | JF49: =MH1901_Schedule_B!T54 -> 0 | JG49: =MH1901_Schedule_B!Z54 -> 0 | JH49: =MH1901_Schedule_B!AB54 -> 0 | JI49: =MH1901_Schedule_B!V54 -> 0 | JJ49: =MH1901_Schedule_B!X54 -> 0 | JK49: 0 | JL49: 0 | JM49: 0 | JN49: 0 | JO49: 0 | JP49: 0 | JQ49: 0 | JR49: 0 | JS49: 0 | JT49: 0 | JU49: 0
A50: ='LAC103'!C50 ->  | B50: 36 | C50: =MH1901_Schedule_B!B55 -> 0 | D50: =MH1901_Schedule_B!C55 -> 0 | E50: =MH1901_Schedule_B!D55 -> 0 | CE50: =LAC102_S_MHSA!CI50 -> 0 | CF50: =LAC102_S_MHSA!CJ50 -> 0 | CG50: =LAC102_S_MHSA!CK50 -> 0 | CH50: =LAC102_S_MHSA!CL50 -> 0 | CI50: =LAC102_S_MHSA!CM50 -> 0 | CJ50: =LAC102_S_MHSA!CN50 -> 0 | CK50: =LAC102_S_MHSA!CO50 -> 0 | CL50: =LAC102_S_MHSA!CP50 -> 0 | CM50: =LAC102_S_MHSA!CQ50 -> 0 | CN50: =LAC102_S_MHSA!CR50 -> 0 | CO50: =LAC102_S_MHSA!CS50 -> 0 | IO50: 0 | IP50: 0 | IQ50: 0 | IR50: 0 | IS50: 0 | IT50: 0 | IU50: 0 | IV50: 0 | IW50: 0 | IX50: 0 | IY50: 0 | IZ50: =MH1901_Schedule_B!F55 -> 0 | JA50: =MH1901_Schedule_B!H55 -> 0 | JB50: =MH1901_Schedule_B!J55 -> 0 | JC50: =MH1901_Schedule_B!L55 -> 0 | JD50: =MH1901_Schedule_B!N55+MH1901_Schedule_B!P55 -> 0 | JE50: =MH1901_Schedule_B!R55 -> 0 | JF50: =MH1901_Schedule_B!T55 -> 0 | JG50: =MH1901_Schedule_B!Z55 -> 0 | JH50: =MH1901_Schedule_B!AB55 -> 0 | JI50: =MH1901_Schedule_B!V55 -> 0 | JJ50: =MH1901_Schedule_B!X55 -> 0 | JK50: 0 | JL50: 0 | JM50: 0 | JN50: 0 | JO50: 0 | JP50: 0 | JQ50: 0 | JR50: 0 | JS50: 0 | JT50: 0 | JU50: 0
A51: ='LAC103'!C51 ->  | B51: 37 | C51: =MH1901_Schedule_B!B56 -> 0 | D51: =MH1901_Schedule_B!C56 -> 0 | E51: =MH1901_Schedule_B!D56 -> 0 | CE51: =LAC102_S_MHSA!CI51 -> 0 | CF51: =LAC102_S_MHSA!CJ51 -> 0 | CG51: =LAC102_S_MHSA!CK51 -> 0 | CH51: =LAC102_S_MHSA!CL51 -> 0 | CI51: =LAC102_S_MHSA!CM51 -> 0 | CJ51: =LAC102_S_MHSA!CN51 -> 0 | CK51: =LAC102_S_MHSA!CO51 -> 0 | CL51: =LAC102_S_MHSA!CP51 -> 0 | CM51: =LAC102_S_MHSA!CQ51 -> 0 | CN51: =LAC102_S_MHSA!CR51 -> 0 | CO51: =LAC102_S_MHSA!CS51 -> 0 | IO51: 0 | IP51: 0 | IQ51: 0 | IR51: 0 | IS51: 0 | IT51: 0 | IU51: 0 | IV51: 0 | IW51: 0 | IX51: 0 | IY51: 0 | IZ51: =MH1901_Schedule_B!F56 -> 0 | JA51: =MH1901_Schedule_B!H56 -> 0 | JB51: =MH1901_Schedule_B!J56 -> 0 | JC51: =MH1901_Schedule_B!L56 -> 0 | JD51: =MH1901_Schedule_B!N56+MH1901_Schedule_B!P56 -> 0 | JE51: =MH1901_Schedule_B!R56 -> 0 | JF51: =MH1901_Schedule_B!T56 -> 0 | JG51: =MH1901_Schedule_B!Z56 -> 0 | JH51: =MH1901_Schedule_B!AB56 -> 0 | JI51: =MH1901_Schedule_B!V56 -> 0 | JJ51: =MH1901_Schedule_B!X56 -> 0 | JK51: 0 | JL51: 0 | JM51: 0 | JN51: 0 | JO51: 0 | JP51: 0 | JQ51: 0 | JR51: 0 | JS51: 0 | JT51: 0 | JU51: 0
A52: ='LAC103'!C52 ->  | B52: 38 | C52: =MH1901_Schedule_B!B57 -> 0 | D52: =MH1901_Schedule_B!C57 -> 0 | E52: =MH1901_Schedule_B!D57 -> 0 | CE52: =LAC102_S_MHSA!CI52 -> 0 | CF52: =LAC102_S_MHSA!CJ52 -> 0 | CG52: =LAC102_S_MHSA!CK52 -> 0 | CH52: =LAC102_S_MHSA!CL52 -> 0 | CI52: =LAC102_S_MHSA!CM52 -> 0 | CJ52: =LAC102_S_MHSA!CN52 -> 0 | CK52: =LAC102_S_MHSA!CO52 -> 0 | CL52: =LAC102_S_MHSA!CP52 -> 0 | CM52: =LAC102_S_MHSA!CQ52 -> 0 | CN52: =LAC102_S_MHSA!CR52 -> 0 | CO52: =LAC102_S_MHSA!CS52 -> 0 | IO52: 0 | IP52: 0 | IQ52: 0 | IR52: 0 | IS52: 0 | IT52: 0 | IU52: 0 | IV52: 0 | IW52: 0 | IX52: 0 | IY52: 0 | IZ52: =MH1901_Schedule_B!F57 -> 0 | JA52: =MH1901_Schedule_B!H57 -> 0 | JB52: =MH1901_Schedule_B!J57 -> 0 | JC52: =MH1901_Schedule_B!L57 -> 0 | JD52: =MH1901_Schedule_B!N57+MH1901_Schedule_B!P57 -> 0 | JE52: =MH1901_Schedule_B!R57 -> 0 | JF52: =MH1901_Schedule_B!T57 -> 0 | JG52: =MH1901_Schedule_B!Z57 -> 0 | JH52: =MH1901_Schedule_B!AB57 -> 0 | JI52: =MH1901_Schedule_B!V57 -> 0 | JJ52: =MH1901_Schedule_B!X57 -> 0 | JK52: =IF(IO52-IZ52=0,0,"Error") -> 0 | JL52: 0 | JM52: 0 | JN52: 0 | JO52: 0 | JP52: 0 | JQ52: 0 | JR52: 0 | JS52: 0 | JT52: 0 | JU52: 0
A53: ='LAC103'!C53 ->  | B53: 39 | C53: =MH1901_Schedule_B!B58 -> 0 | D53: =MH1901_Schedule_B!C58 -> 0 | E53: =MH1901_Schedule_B!D58 -> 0 | CE53: =LAC102_S_MHSA!CI53 -> 0 | CF53: =LAC102_S_MHSA!CJ53 -> 0 | CG53: =LAC102_S_MHSA!CK53 -> 0 | CH53: =LAC102_S_MHSA!CL53 -> 0 | CI53: =LAC102_S_MHSA!CM53 -> 0 | CJ53: =LAC102_S_MHSA!CN53 -> 0 | CK53: =LAC102_S_MHSA!CO53 -> 0 | CL53: =LAC102_S_MHSA!CP53 -> 0 | CM53: =LAC102_S_MHSA!CQ53 -> 0 | CN53: =LAC102_S_MHSA!CR53 -> 0 | CO53: =LAC102_S_MHSA!CS53 -> 0 | IO53: 0 | IP53: 0 | IQ53: 0 | IR53: 0 | IS53: 0 | IT53: 0 | IU53: 0 | IV53: 0 | IW53: 0 | IX53: 0 | IY53: 0 | IZ53: =MH1901_Schedule_B!F58 -> 0 | JA53: =MH1901_Schedule_B!H58 -> 0 | JB53: =MH1901_Schedule_B!J58 -> 0 | JC53: =MH1901_Schedule_B!L58 -> 0 | JD53: =MH1901_Schedule_B!N58+MH1901_Schedule_B!P58 -> 0 | JE53: =MH1901_Schedule_B!R58 -> 0 | JF53: =MH1901_Schedule_B!T58 -> 0 | JG53: =MH1901_Schedule_B!Z58 -> 0 | JH53: =MH1901_Schedule_B!AB58 -> 0 | JI53: =MH1901_Schedule_B!V58 -> 0 | JJ53: =MH1901_Schedule_B!X58 -> 0 | JK53: 0 | JL53: 0 | JM53: 0 | JN53: 0 | JO53: 0 | JP53: 0 | JQ53: 0 | JR53: 0 | JS53: 0 | JT53: 0 | JU53: 0
A54: ='LAC103'!C54 ->  | B54: 40 | C54: =MH1901_Schedule_B!B59 -> 0 | D54: =MH1901_Schedule_B!C59 -> 0 | E54: =MH1901_Schedule_B!D59 -> 0 | CE54: =LAC102_S_MHSA!CI54 -> 0 | CF54: =LAC102_S_MHSA!CJ54 -> 0 | CG54: =LAC102_S_MHSA!CK54 -> 0 | CH54: =LAC102_S_MHSA!CL54 -> 0 | CI54: =LAC102_S_MHSA!CM54 -> 0 | CJ54: =LAC102_S_MHSA!CN54 -> 0 | CK54: =LAC102_S_MHSA!CO54 -> 0 | CL54: =LAC102_S_MHSA!CP54 -> 0 | CM54: =LAC102_S_MHSA!CQ54 -> 0 | CN54: =LAC102_S_MHSA!CR54 -> 0 | CO54: =LAC102_S_MHSA!CS54 -> 0 | IO54: 0 | IP54: 0 | IQ54: 0 | IR54: 0 | IS54: 0 | IT54: 0 | IU54: 0 | IV54: 0 | IW54: 0 | IX54: 0 | IY54: 0 | IZ54: =MH1901_Schedule_B!F59 -> 0 | JA54: =MH1901_Schedule_B!H59 -> 0 | JB54: =MH1901_Schedule_B!J59 -> 0 | JC54: =MH1901_Schedule_B!L59 -> 0 | JD54: =MH1901_Schedule_B!N59+MH1901_Schedule_B!P59 -> 0 | JE54: =MH1901_Schedule_B!R59 -> 0 | JF54: =MH1901_Schedule_B!T59 -> 0 | JG54: =MH1901_Schedule_B!Z59 -> 0 | JH54: =MH1901_Schedule_B!AB59 -> 0 | JI54: =MH1901_Schedule_B!V59 -> 0 | JJ54: =MH1901_Schedule_B!X59 -> 0 | JK54: 0 | JL54: 0 | JM54: 0 | JN54: 0 | JO54: 0 | JP54: 0 | JQ54: 0 | JR54: 0 | JS54: 0 | JT54: 0 | JU54: 0
A55: ='LAC103'!C55 ->  | B55: 41 | C55: =MH1901_Schedule_B!B60 -> 0 | D55: =MH1901_Schedule_B!C60 -> 0 | E55: =MH1901_Schedule_B!D60 -> 0 | CE55: =LAC102_S_MHSA!CI55 -> 0 | CF55: =LAC102_S_MHSA!CJ55 -> 0 | CG55: =LAC102_S_MHSA!CK55 -> 0 | CH55: =LAC102_S_MHSA!CL55 -> 0 | CI55: =LAC102_S_MHSA!CM55 -> 0 | CJ55: =LAC102_S_MHSA!CN55 -> 0 | CK55: =LAC102_S_MHSA!CO55 -> 0 | CL55: =LAC102_S_MHSA!CP55 -> 0 | CM55: =LAC102_S_MHSA!CQ55 -> 0 | CN55: =LAC102_S_MHSA!CR55 -> 0 | CO55: =LAC102_S_MHSA!CS55 -> 0 | IO55: 0 | IP55: 0 | IQ55: 0 | IR55: 0 | IS55: 0 | IT55: 0 | IU55: 0 | IV55: 0 | IW55: 0 | IX55: 0 | IY55: 0 | IZ55: =MH1901_Schedule_B!F60 -> 0 | JA55: =MH1901_Schedule_B!H60 -> 0 | JB55: =MH1901_Schedule_B!J60 -> 0 | JC55: =MH1901_Schedule_B!L60 -> 0 | JD55: =MH1901_Schedule_B!N60+MH1901_Schedule_B!P60 -> 0 | JE55: =MH1901_Schedule_B!R60 -> 0 | JF55: =MH1901_Schedule_B!T60 -> 0 | JG55: =MH1901_Schedule_B!Z60 -> 0 | JH55: =MH1901_Schedule_B!AB60 -> 0 | JI55: =MH1901_Schedule_B!V60 -> 0 | JJ55: =MH1901_Schedule_B!X60 -> 0 | JK55: 0 | JL55: 0 | JM55: 0 | JN55: 0 | JO55: 0 | JP55: 0 | JQ55: 0 | JR55: 0 | JS55: 0 | JT55: 0 | JU55: 0
A56: ='LAC103'!C56 ->  | B56: 42 | C56: =MH1901_Schedule_B!B61 -> 0 | D56: =MH1901_Schedule_B!C61 -> 0 | E56: =MH1901_Schedule_B!D61 -> 0 | CE56: =LAC102_S_MHSA!CI56 -> 0 | CF56: =LAC102_S_MHSA!CJ56 -> 0 | CG56: =LAC102_S_MHSA!CK56 -> 0 | CH56: =LAC102_S_MHSA!CL56 -> 0 | CI56: =LAC102_S_MHSA!CM56 -> 0 | CJ56: =LAC102_S_MHSA!CN56 -> 0 | CK56: =LAC102_S_MHSA!CO56 -> 0 | CL56: =LAC102_S_MHSA!CP56 -> 0 | CM56: =LAC102_S_MHSA!CQ56 -> 0 | CN56: =LAC102_S_MHSA!CR56 -> 0 | CO56: =LAC102_S_MHSA!CS56 -> 0 | IO56: 0 | IP56: 0 | IQ56: 0 | IR56: 0 | IS56: 0 | IT56: 0 | IU56: 0 | IV56: 0 | IW56: 0 | IX56: 0 | IY56: 0 | IZ56: =MH1901_Schedule_B!F61 -> 0 | JA56: =MH1901_Schedule_B!H61 -> 0 | JB56: =MH1901_Schedule_B!J61 -> 0 | JC56: =MH1901_Schedule_B!L61 -> 0 | JD56: =MH1901_Schedule_B!N61+MH1901_Schedule_B!P61 -> 0 | JE56: =MH1901_Schedule_B!R61 -> 0 | JF56: =MH1901_Schedule_B!T61 -> 0 | JG56: =MH1901_Schedule_B!Z61 -> 0 | JH56: =MH1901_Schedule_B!AB61 -> 0 | JI56: =MH1901_Schedule_B!V61 -> 0 | JJ56: =MH1901_Schedule_B!X61 -> 0 | JK56: 0 | JL56: 0 | JM56: 0 | JN56: 0 | JO56: 0 | JP56: 0 | JQ56: 0 | JR56: 0 | JS56: 0 | JT56: 0 | JU56: 0
A57: ='LAC103'!C57 ->  | B57: 43 | C57: =MH1901_Schedule_B!B62 -> 0 | D57: =MH1901_Schedule_B!C62 -> 0 | E57: =MH1901_Schedule_B!D62 -> 0 | CE57: =LAC102_S_MHSA!CI57 -> 0 | CF57: =LAC102_S_MHSA!CJ57 -> 0 | CG57: =LAC102_S_MHSA!CK57 -> 0 | CH57: =LAC102_S_MHSA!CL57 -> 0 | CI57: =LAC102_S_MHSA!CM57 -> 0 | CJ57: =LAC102_S_MHSA!CN57 -> 0 | CK57: =LAC102_S_MHSA!CO57 -> 0 | CL57: =LAC102_S_MHSA!CP57 -> 0 | CM57: =LAC102_S_MHSA!CQ57 -> 0 | CN57: =LAC102_S_MHSA!CR57 -> 0 | CO57: =LAC102_S_MHSA!CS57 -> 0 | IO57: 0 | IP57: 0 | IQ57: 0 | IR57: 0 | IS57: 0 | IT57: 0 | IU57: 0 | IV57: 0 | IW57: 0 | IX57: 0 | IY57: 0 | IZ57: =MH1901_Schedule_B!F62 -> 0 | JA57: =MH1901_Schedule_B!H62 -> 0 | JB57: =MH1901_Schedule_B!J62 -> 0 | JC57: =MH1901_Schedule_B!L62 -> 0 | JD57: =MH1901_Schedule_B!N62+MH1901_Schedule_B!P62 -> 0 | JE57: =MH1901_Schedule_B!R62 -> 0 | JF57: =MH1901_Schedule_B!T62 -> 0 | JG57: =MH1901_Schedule_B!Z62 -> 0 | JH57: =MH1901_Schedule_B!AB62 -> 0 | JI57: =MH1901_Schedule_B!V62 -> 0 | JJ57: =MH1901_Schedule_B!X62 -> 0 | JK57: 0 | JL57: 0 | JM57: 0 | JN57: 0 | JO57: 0 | JP57: 0 | JQ57: 0 | JR57: 0 | JS57: 0 | JT57: 0 | JU57: 0
A58: ='LAC103'!C58 ->  | B58: 44 | C58: =MH1901_Schedule_B!B63 -> 0 | D58: =MH1901_Schedule_B!C63 -> 0 | E58: =MH1901_Schedule_B!D63 -> 0 | CE58: =LAC102_S_MHSA!CI58 -> 0 | CF58: =LAC102_S_MHSA!CJ58 -> 0 | CG58: =LAC102_S_MHSA!CK58 -> 0 | CH58: =LAC102_S_MHSA!CL58 -> 0 | CI58: =LAC102_S_MHSA!CM58 -> 0 | CJ58: =LAC102_S_MHSA!CN58 -> 0 | CK58: =LAC102_S_MHSA!CO58 -> 0 | CL58: =LAC102_S_MHSA!CP58 -> 0 | CM58: =LAC102_S_MHSA!CQ58 -> 0 | CN58: =LAC102_S_MHSA!CR58 -> 0 | CO58: =LAC102_S_MHSA!CS58 -> 0 | IO58: 0 | IP58: 0 | IQ58: 0 | IR58: 0 | IS58: 0 | IT58: 0 | IU58: 0 | IV58: 0 | IW58: 0 | IX58: 0 | IY58: 0 | IZ58: =MH1901_Schedule_B!F63 -> 0 | JA58: =MH1901_Schedule_B!H63 -> 0 | JB58: =MH1901_Schedule_B!J63 -> 0 | JC58: =MH1901_Schedule_B!L63 -> 0 | JD58: =MH1901_Schedule_B!N63+MH1901_Schedule_B!P63 -> 0 | JE58: =MH1901_Schedule_B!R63 -> 0 | JF58: =MH1901_Schedule_B!T63 -> 0 | JG58: =MH1901_Schedule_B!Z63 -> 0 | JH58: =MH1901_Schedule_B!AB63 -> 0 | JI58: =MH1901_Schedule_B!V63 -> 0 | JJ58: =MH1901_Schedule_B!X63 -> 0 | JK58: 0 | JL58: 0 | JM58: 0 | JN58: 0 | JO58: 0 | JP58: 0 | JQ58: 0 | JR58: 0 | JS58: 0 | JT58: 0 | JU58: 0
A59: ='LAC103'!C59 ->  | B59: 45 | C59: =MH1901_Schedule_B!B64 -> 0 | D59: =MH1901_Schedule_B!C64 -> 0 | E59: =MH1901_Schedule_B!D64 -> 0 | CE59: =LAC102_S_MHSA!CI59 -> 0 | CF59: =LAC102_S_MHSA!CJ59 -> 0 | CG59: =LAC102_S_MHSA!CK59 -> 0 | CH59: =LAC102_S_MHSA!CL59 -> 0 | CI59: =LAC102_S_MHSA!CM59 -> 0 | CJ59: =LAC102_S_MHSA!CN59 -> 0 | CK59: =LAC102_S_MHSA!CO59 -> 0 | CL59: =LAC102_S_MHSA!CP59 -> 0 | CM59: =LAC102_S_MHSA!CQ59 -> 0 | CN59: =LAC102_S_MHSA!CR59 -> 0 | CO59: =LAC102_S_MHSA!CS59 -> 0 | IO59: 0 | IP59: 0 | IQ59: 0 | IR59: 0 | IS59: 0 | IT59: 0 | IU59: 0 | IV59: 0 | IW59: 0 | IX59: 0 | IY59: 0 | IZ59: =MH1901_Schedule_B!F64 -> 0 | JA59: =MH1901_Schedule_B!H64 -> 0 | JB59: =MH1901_Schedule_B!J64 -> 0 | JC59: =MH1901_Schedule_B!L64 -> 0 | JD59: =MH1901_Schedule_B!N64+MH1901_Schedule_B!P64 -> 0 | JE59: =MH1901_Schedule_B!R64 -> 0 | JF59: =MH1901_Schedule_B!T64 -> 0 | JG59: =MH1901_Schedule_B!Z64 -> 0 | JH59: =MH1901_Schedule_B!AB64 -> 0 | JI59: =MH1901_Schedule_B!V64 -> 0 | JJ59: =MH1901_Schedule_B!X64 -> 0 | JK59: 0 | JL59: 0 | JM59: 0 | JN59: 0 | JO59: 0 | JP59: 0 | JQ59: 0 | JR59: 0 | JS59: 0 | JT59: 0 | JU59: 0
A60: ='LAC103'!C60 ->  | B60: 46 | C60: =MH1901_Schedule_B!B65 -> 0 | D60: =MH1901_Schedule_B!C65 -> 0 | E60: =MH1901_Schedule_B!D65 -> 0 | CE60: =LAC102_S_MHSA!CI60 -> 0 | CF60: =LAC102_S_MHSA!CJ60 -> 0 | CG60: =LAC102_S_MHSA!CK60 -> 0 | CH60: =LAC102_S_MHSA!CL60 -> 0 | CI60: =LAC102_S_MHSA!CM60 -> 0 | CJ60: =LAC102_S_MHSA!CN60 -> 0 | CK60: =LAC102_S_MHSA!CO60 -> 0 | CL60: =LAC102_S_MHSA!CP60 -> 0 | CM60: =LAC102_S_MHSA!CQ60 -> 0 | CN60: =LAC102_S_MHSA!CR60 -> 0 | CO60: =LAC102_S_MHSA!CS60 -> 0 | IO60: 0 | IP60: 0 | IQ60: 0 | IR60: 0 | IS60: 0 | IT60: 0 | IU60: 0 | IV60: 0 | IW60: 0 | IX60: 0 | IY60: 0 | IZ60: =MH1901_Schedule_B!F65 -> 0 | JA60: =MH1901_Schedule_B!H65 -> 0 | JB60: =MH1901_Schedule_B!J65 -> 0 | JC60: =MH1901_Schedule_B!L65 -> 0 | JD60: =MH1901_Schedule_B!N65+MH1901_Schedule_B!P65 -> 0 | JE60: =MH1901_Schedule_B!R65 -> 0 | JF60: =MH1901_Schedule_B!T65 -> 0 | JG60: =MH1901_Schedule_B!Z65 -> 0 | JH60: =MH1901_Schedule_B!AB65 -> 0 | JI60: =MH1901_Schedule_B!V65 -> 0 | JJ60: =MH1901_Schedule_B!X65 -> 0 | JK60: 0 | JL60: 0 | JM60: 0 | JN60: 0 | JO60: 0 | JP60: 0 | JQ60: 0 | JR60: 0 | JS60: 0 | JT60: 0 | JU60: 0
A61: ='LAC103'!C61 ->  | B61: 47 | C61: =MH1901_Schedule_B!B66 -> 0 | D61: =MH1901_Schedule_B!C66 -> 0 | E61: =MH1901_Schedule_B!D66 -> 0 | CE61: =LAC102_S_MHSA!CI61 -> 0 | CF61: =LAC102_S_MHSA!CJ61 -> 0 | CG61: =LAC102_S_MHSA!CK61 -> 0 | CH61: =LAC102_S_MHSA!CL61 -> 0 | CI61: =LAC102_S_MHSA!CM61 -> 0 | CJ61: =LAC102_S_MHSA!CN61 -> 0 | CK61: =LAC102_S_MHSA!CO61 -> 0 | CL61: =LAC102_S_MHSA!CP61 -> 0 | CM61: =LAC102_S_MHSA!CQ61 -> 0 | CN61: =LAC102_S_MHSA!CR61 -> 0 | CO61: =LAC102_S_MHSA!CS61 -> 0 | IO61: 0 | IP61: 0 | IQ61: 0 | IR61: 0 | IS61: 0 | IT61: 0 | IU61: 0 | IV61: 0 | IW61: 0 | IX61: 0 | IY61: 0 | IZ61: =MH1901_Schedule_B!F66 -> 0 | JA61: =MH1901_Schedule_B!H66 -> 0 | JB61: =MH1901_Schedule_B!J66 -> 0 | JC61: =MH1901_Schedule_B!L66 -> 0 | JD61: =MH1901_Schedule_B!N66+MH1901_Schedule_B!P66 -> 0 | JE61: =MH1901_Schedule_B!R66 -> 0 | JF61: =MH1901_Schedule_B!T66 -> 0 | JG61: =MH1901_Schedule_B!Z66 -> 0 | JH61: =MH1901_Schedule_B!AB66 -> 0 | JI61: =MH1901_Schedule_B!V66 -> 0 | JJ61: =MH1901_Schedule_B!X66 -> 0 | JK61: 0 | JL61: 0 | JM61: 0 | JN61: 0 | JO61: 0 | JP61: 0 | JQ61: 0 | JR61: 0 | JS61: 0 | JT61: 0 | JU61: 0
A62: ='LAC103'!C62 ->  | B62: 48 | C62: =MH1901_Schedule_B!B67 -> 0 | D62: =MH1901_Schedule_B!C67 -> 0 | E62: =MH1901_Schedule_B!D67 -> 0 | CE62: =LAC102_S_MHSA!CI62 -> 0 | CF62: =LAC102_S_MHSA!CJ62 -> 0 | CG62: =LAC102_S_MHSA!CK62 -> 0 | CH62: =LAC102_S_MHSA!CL62 -> 0 | CI62: =LAC102_S_MHSA!CM62 -> 0 | CJ62: =LAC102_S_MHSA!CN62 -> 0 | CK62: =LAC102_S_MHSA!CO62 -> 0 | CL62: =LAC102_S_MHSA!CP62 -> 0 | CM62: =LAC102_S_MHSA!CQ62 -> 0 | CN62: =LAC102_S_MHSA!CR62 -> 0 | CO62: =LAC102_S_MHSA!CS62 -> 0 | IO62: 0 | IP62: 0 | IQ62: 0 | IR62: 0 | IS62: 0 | IT62: 0 | IU62: 0 | IV62: =SUM(M62,X62,AI62,BE62,BP62,CA62,CL62,CW62,HN62,HY62,DH62,AT62,DS62,ED62,EO62,EZ62,FK62,FV62,GG62,HC62,GR62) -> 0 | IW62: 0 | IX62: 0 | IY62: 0 | IZ62: =MH1901_Schedule_B!F67 -> 0 | JA62: =MH1901_Schedule_B!H67 -> 0 | JB62: =MH1901_Schedule_B!J67 -> 0 | JC62: =MH1901_Schedule_B!L67 -> 0 | JD62: =MH1901_Schedule_B!N67+MH1901_Schedule_B!P67 -> 0 | JE62: =MH1901_Schedule_B!R67 -> 0 | JF62: =MH1901_Schedule_B!T67 -> 0 | JG62: =MH1901_Schedule_B!Z67 -> 0 | JH62: =MH1901_Schedule_B!AB67 -> 0 | JI62: =MH1901_Schedule_B!V67 -> 0 | JJ62: =MH1901_Schedule_B!X67 -> 0 | JK62: 0 | JL62: 0 | JM62: 0 | JN62: 0 | JO62: 0 | JP62: 0 | JQ62: 0 | JR62: 0 | JS62: 0 | JT62: 0 | JU62: 0
A63: ='LAC103'!C63 ->  | B63: 49 | C63: =MH1901_Schedule_B!B68 -> 0 | D63: =MH1901_Schedule_B!C68 -> 0 | E63: =MH1901_Schedule_B!D68 -> 0 | CE63: =LAC102_S_MHSA!CI63 -> 0 | CF63: =LAC102_S_MHSA!CJ63 -> 0 | CG63: =LAC102_S_MHSA!CK63 -> 0 | CH63: =LAC102_S_MHSA!CL63 -> 0 | CI63: =LAC102_S_MHSA!CM63 -> 0 | CJ63: =LAC102_S_MHSA!CN63 -> 0 | CK63: =LAC102_S_MHSA!CO63 -> 0 | CL63: =LAC102_S_MHSA!CP63 -> 0 | CM63: =LAC102_S_MHSA!CQ63 -> 0 | CN63: =LAC102_S_MHSA!CR63 -> 0 | CO63: =LAC102_S_MHSA!CS63 -> 0 | IO63: =SUM(F63,Q63,AB63,AX63,BI63,BT63,CE63,CP63,HG63,HR63,DA63,AM63,DL63,DW63,EH63,ES63,FD63,FO63,FZ63,GV63,GK63) -> 0 | IP63: 0 | IQ63: 0 | IR63: 0 | IS63: 0 | IT63: 0 | IU63: 0 | IV63: 0 | IW63: 0 | IX63: 0 | IY63: 0 | IZ63: =MH1901_Schedule_B!F68 -> 0 | JA63: =MH1901_Schedule_B!H68 -> 0 | JB63: =MH1901_Schedule_B!J68 -> 0 | JC63: =MH1901_Schedule_B!L68 -> 0 | JD63: =MH1901_Schedule_B!N68+MH1901_Schedule_B!P68 -> 0 | JE63: =MH1901_Schedule_B!R68 -> 0 | JF63: =MH1901_Schedule_B!T68 -> 0 | JG63: =MH1901_Schedule_B!Z68 -> 0 | JH63: =MH1901_Schedule_B!AB68 -> 0 | JI63: =MH1901_Schedule_B!V68 -> 0 | JJ63: =MH1901_Schedule_B!X68 -> 0 | JK63: 0 | JL63: 0 | JM63: 0 | JN63: 0 | JO63: 0 | JP63: 0 | JQ63: 0 | JR63: 0 | JS63: 0 | JT63: 0 | JU63: 0
A64: ='LAC103'!C64 ->  | B64: 50 | C64: =MH1901_Schedule_B!B69 -> 0 | D64: =MH1901_Schedule_B!C69 -> 0 | E64: =MH1901_Schedule_B!D69 -> 0 | CE64: =LAC102_S_MHSA!CI64 -> 0 | CF64: =LAC102_S_MHSA!CJ64 -> 0 | CG64: =LAC102_S_MHSA!CK64 -> 0 | CH64: =LAC102_S_MHSA!CL64 -> 0 | CI64: =LAC102_S_MHSA!CM64 -> 0 | CJ64: =LAC102_S_MHSA!CN64 -> 0 | CK64: =LAC102_S_MHSA!CO64 -> 0 | CL64: =LAC102_S_MHSA!CP64 -> 0 | CM64: =LAC102_S_MHSA!CQ64 -> 0 | CN64: =LAC102_S_MHSA!CR64 -> 0 | CO64: =LAC102_S_MHSA!CS64 -> 0 | IO64: 0 | IP64: 0 | IQ64: 0 | IR64: 0 | IS64: 0 | IT64: 0 | IU64: 0 | IV64: 0 | IW64: 0 | IX64: 0 | IY64: 0 | IZ64: =MH1901_Schedule_B!F69 -> 0 | JA64: =MH1901_Schedule_B!H69 -> 0 | JB64: =MH1901_Schedule_B!J69 -> 0 | JC64: =MH1901_Schedule_B!L69 -> 0 | JD64: =MH1901_Schedule_B!N69+MH1901_Schedule_B!P69 -> 0 | JE64: =MH1901_Schedule_B!R69 -> 0 | JF64: =MH1901_Schedule_B!T69 -> 0 | JG64: =MH1901_Schedule_B!Z69 -> 0 | JH64: =MH1901_Schedule_B!AB69 -> 0 | JI64: =MH1901_Schedule_B!V69 -> 0 | JJ64: =MH1901_Schedule_B!X69 -> 0 | JK64: 0 | JL64: 0 | JM64: 0 | JN64: 0 | JO64: 0 | JP64: 0 | JQ64: 0 | JR64: 0 | JS64: 0 | JT64: 0 | JU64: 0
A65: ='LAC103'!C65 ->  | B65: 51 | C65: =MH1901_Schedule_B!B70 -> 0 | D65: =MH1901_Schedule_B!C70 -> 0 | E65: =MH1901_Schedule_B!D70 -> 0 | CE65: =LAC102_S_MHSA!CI65 -> 0 | CF65: =LAC102_S_MHSA!CJ65 -> 0 | CG65: =LAC102_S_MHSA!CK65 -> 0 | CH65: =LAC102_S_MHSA!CL65 -> 0 | CI65: =LAC102_S_MHSA!CM65 -> 0 | CJ65: =LAC102_S_MHSA!CN65 -> 0 | CK65: =LAC102_S_MHSA!CO65 -> 0 | CL65: =LAC102_S_MHSA!CP65 -> 0 | CM65: =LAC102_S_MHSA!CQ65 -> 0 | CN65: =LAC102_S_MHSA!CR65 -> 0 | CO65: =LAC102_S_MHSA!CS65 -> 0 | IO65: 0 | IP65: 0 | IQ65: 0 | IR65: 0 | IS65: 0 | IT65: 0 | IU65: 0 | IV65: 0 | IW65: 0 | IX65: 0 | IY65: 0 | IZ65: =MH1901_Schedule_B!F70 -> 0 | JA65: =MH1901_Schedule_B!H70 -> 0 | JB65: =MH1901_Schedule_B!J70 -> 0 | JC65: =MH1901_Schedule_B!L70 -> 0 | JD65: =MH1901_Schedule_B!N70+MH1901_Schedule_B!P70 -> 0 | JE65: =MH1901_Schedule_B!R70 -> 0 | JF65: =MH1901_Schedule_B!T70 -> 0 | JG65: =MH1901_Schedule_B!Z70 -> 0 | JH65: =MH1901_Schedule_B!AB70 -> 0 | JI65: =MH1901_Schedule_B!V70 -> 0 | JJ65: =MH1901_Schedule_B!X70 -> 0 | JK65: 0 | JL65: 0 | JM65: 0 | JN65: 0 | JO65: 0 | JP65: 0 | JQ65: 0 | JR65: 0 | JS65: 0 | JT65: 0 | JU65: 0
A66: ='LAC103'!C66 ->  | B66: 52 | C66: =MH1901_Schedule_B!B71 -> 0 | D66: =MH1901_Schedule_B!C71 -> 0 | E66: =MH1901_Schedule_B!D71 -> 0 | CE66: =LAC102_S_MHSA!CI66 -> 0 | CF66: =LAC102_S_MHSA!CJ66 -> 0 | CG66: =LAC102_S_MHSA!CK66 -> 0 | CH66: =LAC102_S_MHSA!CL66 -> 0 | CI66: =LAC102_S_MHSA!CM66 -> 0 | CJ66: =LAC102_S_MHSA!CN66 -> 0 | CK66: =LAC102_S_MHSA!CO66 -> 0 | CL66: =LAC102_S_MHSA!CP66 -> 0 | CM66: =LAC102_S_MHSA!CQ66 -> 0 | CN66: =LAC102_S_MHSA!CR66 -> 0 | CO66: =LAC102_S_MHSA!CS66 -> 0 | IO66: 0 | IP66: 0 | IQ66: 0 | IR66: 0 | IS66: 0 | IT66: 0 | IU66: 0 | IV66: 0 | IW66: 0 | IX66: 0 | IY66: 0 | IZ66: =MH1901_Schedule_B!F71 -> 0 | JA66: =MH1901_Schedule_B!H71 -> 0 | JB66: =MH1901_Schedule_B!J71 -> 0 | JC66: =MH1901_Schedule_B!L71 -> 0 | JD66: =MH1901_Schedule_B!N71+MH1901_Schedule_B!P71 -> 0 | JE66: =MH1901_Schedule_B!R71 -> 0 | JF66: =MH1901_Schedule_B!T71 -> 0 | JG66: =MH1901_Schedule_B!Z71 -> 0 | JH66: =MH1901_Schedule_B!AB71 -> 0 | JI66: =MH1901_Schedule_B!V71 -> 0 | JJ66: =MH1901_Schedule_B!X71 -> 0 | JK66: 0 | JL66: 0 | JM66: 0 | JN66: 0 | JO66: 0 | JP66: 0 | JQ66: 0 | JR66: 0 | JS66: 0 | JT66: 0 | JU66: 0
A67: ='LAC103'!C67 ->  | B67: 53 | C67: =MH1901_Schedule_B!B72 -> 0 | D67: =MH1901_Schedule_B!C72 -> 0 | E67: =MH1901_Schedule_B!D72 -> 0 | CE67: =LAC102_S_MHSA!CI67 -> 0 | CF67: =LAC102_S_MHSA!CJ67 -> 0 | CG67: =LAC102_S_MHSA!CK67 -> 0 | CH67: =LAC102_S_MHSA!CL67 -> 0 | CI67: =LAC102_S_MHSA!CM67 -> 0 | CJ67: =LAC102_S_MHSA!CN67 -> 0 | CK67: =LAC102_S_MHSA!CO67 -> 0 | CL67: =LAC102_S_MHSA!CP67 -> 0 | CM67: =LAC102_S_MHSA!CQ67 -> 0 | CN67: =LAC102_S_MHSA!CR67 -> 0 | CO67: =LAC102_S_MHSA!CS67 -> 0 | IO67: 0 | IP67: 0 | IQ67: 0 | IR67: 0 | IS67: 0 | IT67: 0 | IU67: 0 | IV67: 0 | IW67: 0 | IX67: 0 | IY67: 0 | IZ67: =MH1901_Schedule_B!F72 -> 0 | JA67: =MH1901_Schedule_B!H72 -> 0 | JB67: =MH1901_Schedule_B!J72 -> 0 | JC67: =MH1901_Schedule_B!L72 -> 0 | JD67: =MH1901_Schedule_B!N72+MH1901_Schedule_B!P72 -> 0 | JE67: =MH1901_Schedule_B!R72 -> 0 | JF67: =MH1901_Schedule_B!T72 -> 0 | JG67: =MH1901_Schedule_B!Z72 -> 0 | JH67: =MH1901_Schedule_B!AB72 -> 0 | JI67: =MH1901_Schedule_B!V72 -> 0 | JJ67: =MH1901_Schedule_B!X72 -> 0 | JK67: 0 | JL67: 0 | JM67: 0 | JN67: 0 | JO67: 0 | JP67: 0 | JQ67: 0 | JR67: 0 | JS67: 0 | JT67: 0 | JU67: 0
A68: ='LAC103'!C68 ->  | B68: 54 | C68: =MH1901_Schedule_B!B73 -> 0 | D68: =MH1901_Schedule_B!C73 -> 0 | E68: =MH1901_Schedule_B!D73 -> 0 | CE68: =LAC102_S_MHSA!CI68 -> 0 | CF68: =LAC102_S_MHSA!CJ68 -> 0 | CG68: =LAC102_S_MHSA!CK68 -> 0 | CH68: =LAC102_S_MHSA!CL68 -> 0 | CI68: =LAC102_S_MHSA!CM68 -> 0 | CJ68: =LAC102_S_MHSA!CN68 -> 0 | CK68: =LAC102_S_MHSA!CO68 -> 0 | CL68: =LAC102_S_MHSA!CP68 -> 0 | CM68: =LAC102_S_MHSA!CQ68 -> 0 | CN68: =LAC102_S_MHSA!CR68 -> 0 | CO68: =LAC102_S_MHSA!CS68 -> 0 | IO68: 0 | IP68: 0 | IQ68: 0 | IR68: 0 | IS68: 0 | IT68: 0 | IU68: 0 | IV68: 0 | IW68: 0 | IX68: 0 | IY68: 0 | IZ68: =MH1901_Schedule_B!F73 -> 0 | JA68: =MH1901_Schedule_B!H73 -> 0 | JB68: =MH1901_Schedule_B!J73 -> 0 | JC68: =MH1901_Schedule_B!L73 -> 0 | JD68: =MH1901_Schedule_B!N73+MH1901_Schedule_B!P73 -> 0 | JE68: =MH1901_Schedule_B!R73 -> 0 | JF68: =MH1901_Schedule_B!T73 -> 0 | JG68: =MH1901_Schedule_B!Z73 -> 0 | JH68: =MH1901_Schedule_B!AB73 -> 0 | JI68: =MH1901_Schedule_B!V73 -> 0 | JJ68: =MH1901_Schedule_B!X73 -> 0 | JK68: 0 | JL68: 0 | JM68: 0 | JN68: 0 | JO68: 0 | JP68: 0 | JQ68: 0 | JR68: 0 | JS68: 0 | JT68: 0 | JU68: 0
A69: ='LAC103'!C69 ->  | B69: 55 | C69: =MH1901_Schedule_B!B74 -> 0 | D69: =MH1901_Schedule_B!C74 -> 0 | E69: =MH1901_Schedule_B!D74 -> 0 | CE69: =LAC102_S_MHSA!CI69 -> 0 | CF69: =LAC102_S_MHSA!CJ69 -> 0 | CG69: =LAC102_S_MHSA!CK69 -> 0 | CH69: =LAC102_S_MHSA!CL69 -> 0 | CI69: =LAC102_S_MHSA!CM69 -> 0 | CJ69: =LAC102_S_MHSA!CN69 -> 0 | CK69: =LAC102_S_MHSA!CO69 -> 0 | CL69: =LAC102_S_MHSA!CP69 -> 0 | CM69: =LAC102_S_MHSA!CQ69 -> 0 | CN69: =LAC102_S_MHSA!CR69 -> 0 | CO69: =LAC102_S_MHSA!CS69 -> 0 | IO69: 0 | IP69: 0 | IQ69: 0 | IR69: 0 | IS69: 0 | IT69: 0 | IU69: 0 | IV69: 0 | IW69: 0 | IX69: 0 | IY69: 0 | IZ69: =MH1901_Schedule_B!F74 -> 0 | JA69: =MH1901_Schedule_B!H74 -> 0 | JB69: =MH1901_Schedule_B!J74 -> 0 | JC69: =MH1901_Schedule_B!L74 -> 0 | JD69: =MH1901_Schedule_B!N74+MH1901_Schedule_B!P74 -> 0 | JE69: =MH1901_Schedule_B!R74 -> 0 | JF69: =MH1901_Schedule_B!T74 -> 0 | JG69: =MH1901_Schedule_B!Z74 -> 0 | JH69: =MH1901_Schedule_B!AB74 -> 0 | JI69: =MH1901_Schedule_B!V74 -> 0 | JJ69: =MH1901_Schedule_B!X74 -> 0 | JK69: 0 | JL69: 0 | JM69: 0 | JN69: 0 | JO69: 0 | JP69: 0 | JQ69: 0 | JR69: 0 | JS69: 0 | JT69: 0 | JU69: 0
A70: ='LAC103'!C70 ->  | B70: 56 | C70: =MH1901_Schedule_B!B75 -> 0 | D70: =MH1901_Schedule_B!C75 -> 0 | E70: =MH1901_Schedule_B!D75 -> 0 | CE70: =LAC102_S_MHSA!CI70 -> 0 | CF70: =LAC102_S_MHSA!CJ70 -> 0 | CG70: =LAC102_S_MHSA!CK70 -> 0 | CH70: =LAC102_S_MHSA!CL70 -> 0 | CI70: =LAC102_S_MHSA!CM70 -> 0 | CJ70: =LAC102_S_MHSA!CN70 -> 0 | CK70: =LAC102_S_MHSA!CO70 -> 0 | CL70: =LAC102_S_MHSA!CP70 -> 0 | CM70: =LAC102_S_MHSA!CQ70 -> 0 | CN70: =LAC102_S_MHSA!CR70 -> 0 | CO70: =LAC102_S_MHSA!CS70 -> 0 | IO70: 0 | IP70: 0 | IQ70: 0 | IR70: 0 | IS70: 0 | IT70: 0 | IU70: 0 | IV70: 0 | IW70: 0 | IX70: 0 | IY70: 0 | IZ70: =MH1901_Schedule_B!F75 -> 0 | JA70: =MH1901_Schedule_B!H75 -> 0 | JB70: =MH1901_Schedule_B!J75 -> 0 | JC70: =MH1901_Schedule_B!L75 -> 0 | JD70: =MH1901_Schedule_B!N75+MH1901_Schedule_B!P75 -> 0 | JE70: =MH1901_Schedule_B!R75 -> 0 | JF70: =MH1901_Schedule_B!T75 -> 0 | JG70: =MH1901_Schedule_B!Z75 -> 0 | JH70: =MH1901_Schedule_B!AB75 -> 0 | JI70: =MH1901_Schedule_B!V75 -> 0 | JJ70: =MH1901_Schedule_B!X75 -> 0 | JK70: 0 | JL70: 0 | JM70: 0 | JN70: 0 | JO70: 0 | JP70: 0 | JQ70: 0 | JR70: 0 | JS70: 0 | JT70: 0 | JU70: 0
A71: ='LAC103'!C71 ->  | B71: 57 | C71: =MH1901_Schedule_B!B76 -> 0 | D71: =MH1901_Schedule_B!C76 -> 0 | E71: =MH1901_Schedule_B!D76 -> 0 | CE71: =LAC102_S_MHSA!CI71 -> 0 | CF71: =LAC102_S_MHSA!CJ71 -> 0 | CG71: =LAC102_S_MHSA!CK71 -> 0 | CH71: =LAC102_S_MHSA!CL71 -> 0 | CI71: =LAC102_S_MHSA!CM71 -> 0 | CJ71: =LAC102_S_MHSA!CN71 -> 0 | CK71: =LAC102_S_MHSA!CO71 -> 0 | CL71: =LAC102_S_MHSA!CP71 -> 0 | CM71: =LAC102_S_MHSA!CQ71 -> 0 | CN71: =LAC102_S_MHSA!CR71 -> 0 | CO71: =LAC102_S_MHSA!CS71 -> 0 | IO71: 0 | IP71: 0 | IQ71: 0 | IR71: 0 | IS71: 0 | IT71: 0 | IU71: 0 | IV71: 0 | IW71: 0 | IX71: 0 | IY71: 0 | IZ71: =MH1901_Schedule_B!F76 -> 0 | JA71: =MH1901_Schedule_B!H76 -> 0 | JB71: =MH1901_Schedule_B!J76 -> 0 | JC71: =MH1901_Schedule_B!L76 -> 0 | JD71: =MH1901_Schedule_B!N76+MH1901_Schedule_B!P76 -> 0 | JE71: =MH1901_Schedule_B!R76 -> 0 | JF71: =MH1901_Schedule_B!T76 -> 0 | JG71: =MH1901_Schedule_B!Z76 -> 0 | JH71: =MH1901_Schedule_B!AB76 -> 0 | JI71: =MH1901_Schedule_B!V76 -> 0 | JJ71: =MH1901_Schedule_B!X76 -> 0 | JK71: 0 | JL71: 0 | JM71: 0 | JN71: 0 | JO71: 0 | JP71: 0 | JQ71: 0 | JR71: 0 | JS71: 0 | JT71: 0 | JU71: 0
A72: ='LAC103'!C72 ->  | B72: 58 | C72: =MH1901_Schedule_B!B77 -> 0 | D72: =MH1901_Schedule_B!C77 -> 0 | E72: =MH1901_Schedule_B!D77 -> 0 | CE72: =LAC102_S_MHSA!CI72 -> 0 | CF72: =LAC102_S_MHSA!CJ72 -> 0 | CG72: =LAC102_S_MHSA!CK72 -> 0 | CH72: =LAC102_S_MHSA!CL72 -> 0 | CI72: =LAC102_S_MHSA!CM72 -> 0 | CJ72: =LAC102_S_MHSA!CN72 -> 0 | CK72: =LAC102_S_MHSA!CO72 -> 0 | CL72: =LAC102_S_MHSA!CP72 -> 0 | CM72: =LAC102_S_MHSA!CQ72 -> 0 | CN72: =LAC102_S_MHSA!CR72 -> 0 | CO72: =LAC102_S_MHSA!CS72 -> 0 | IO72: 0 | IP72: 0 | IQ72: 0 | IR72: 0 | IS72: 0 | IT72: 0 | IU72: 0 | IV72: 0 | IW72: 0 | IX72: 0 | IY72: 0 | IZ72: =MH1901_Schedule_B!F77 -> 0 | JA72: =MH1901_Schedule_B!H77 -> 0 | JB72: =MH1901_Schedule_B!J77 -> 0 | JC72: =MH1901_Schedule_B!L77 -> 0 | JD72: =MH1901_Schedule_B!N77+MH1901_Schedule_B!P77 -> 0 | JE72: =MH1901_Schedule_B!R77 -> 0 | JF72: =MH1901_Schedule_B!T77 -> 0 | JG72: =MH1901_Schedule_B!Z77 -> 0 | JH72: =MH1901_Schedule_B!AB77 -> 0 | JI72: =MH1901_Schedule_B!V77 -> 0 | JJ72: =MH1901_Schedule_B!X77 -> 0 | JK72: 0 | JL72: 0 | JM72: 0 | JN72: 0 | JO72: 0 | JP72: 0 | JQ72: 0 | JR72: 0 | JS72: 0 | JT72: 0 | JU72: 0
A73: ='LAC103'!C73 ->  | B73: 59 | C73: =MH1901_Schedule_B!B78 -> 0 | D73: =MH1901_Schedule_B!C78 -> 0 | E73: =MH1901_Schedule_B!D78 -> 0 | CE73: =LAC102_S_MHSA!CI73 -> 0 | CF73: =LAC102_S_MHSA!CJ73 -> 0 | CG73: =LAC102_S_MHSA!CK73 -> 0 | CH73: =LAC102_S_MHSA!CL73 -> 0 | CI73: =LAC102_S_MHSA!CM73 -> 0 | CJ73: =LAC102_S_MHSA!CN73 -> 0 | CK73: =LAC102_S_MHSA!CO73 -> 0 | CL73: =LAC102_S_MHSA!CP73 -> 0 | CM73: =LAC102_S_MHSA!CQ73 -> 0 | CN73: =LAC102_S_MHSA!CR73 -> 0 | CO73: =LAC102_S_MHSA!CS73 -> 0 | IO73: 0 | IP73: 0 | IQ73: 0 | IR73: 0 | IS73: 0 | IT73: 0 | IU73: 0 | IV73: 0 | IW73: 0 | IX73: 0 | IY73: 0 | IZ73: =MH1901_Schedule_B!F78 -> 0 | JA73: =MH1901_Schedule_B!H78 -> 0 | JB73: =MH1901_Schedule_B!J78 -> 0 | JC73: =MH1901_Schedule_B!L78 -> 0 | JD73: =MH1901_Schedule_B!N78+MH1901_Schedule_B!P78 -> 0 | JE73: =MH1901_Schedule_B!R78 -> 0 | JF73: =MH1901_Schedule_B!T78 -> 0 | JG73: =MH1901_Schedule_B!Z78 -> 0 | JH73: =MH1901_Schedule_B!AB78 -> 0 | JI73: =MH1901_Schedule_B!V78 -> 0 | JJ73: =MH1901_Schedule_B!X78 -> 0 | JK73: 0 | JL73: 0 | JM73: 0 | JN73: 0 | JO73: 0 | JP73: 0 | JQ73: 0 | JR73: 0 | JS73: 0 | JT73: 0 | JU73: 0
A74: ='LAC103'!C74 ->  | B74: 60 | C74: =MH1901_Schedule_B!B79 -> 0 | D74: =MH1901_Schedule_B!C79 -> 0 | E74: =MH1901_Schedule_B!D79 -> 0 | CE74: =LAC102_S_MHSA!CI74 -> 0 | CF74: =LAC102_S_MHSA!CJ74 -> 0 | CG74: =LAC102_S_MHSA!CK74 -> 0 | CH74: =LAC102_S_MHSA!CL74 -> 0 | CI74: =LAC102_S_MHSA!CM74 -> 0 | CJ74: =LAC102_S_MHSA!CN74 -> 0 | CK74: =LAC102_S_MHSA!CO74 -> 0 | CL74: =LAC102_S_MHSA!CP74 -> 0 | CM74: =LAC102_S_MHSA!CQ74 -> 0 | CN74: =LAC102_S_MHSA!CR74 -> 0 | CO74: =LAC102_S_MHSA!CS74 -> 0 | IO74: 0 | IP74: 0 | IQ74: 0 | IR74: 0 | IS74: 0 | IT74: 0 | IU74: 0 | IV74: 0 | IW74: 0 | IX74: 0 | IY74: 0 | IZ74: =MH1901_Schedule_B!F79 -> 0 | JA74: =MH1901_Schedule_B!H79 -> 0 | JB74: =MH1901_Schedule_B!J79 -> 0 | JC74: =MH1901_Schedule_B!L79 -> 0 | JD74: =MH1901_Schedule_B!N79+MH1901_Schedule_B!P79 -> 0 | JE74: =MH1901_Schedule_B!R79 -> 0 | JF74: =MH1901_Schedule_B!T79 -> 0 | JG74: =MH1901_Schedule_B!Z79 -> 0 | JH74: =MH1901_Schedule_B!AB79 -> 0 | JI74: =MH1901_Schedule_B!V79 -> 0 | JJ74: =MH1901_Schedule_B!X79 -> 0 | JK74: 0 | JL74: 0 | JM74: 0 | JN74: 0 | JO74: 0 | JP74: 0 | JQ74: 0 | JR74: 0 | JS74: 0 | JT74: 0 | JU74: 0
A75: ='LAC103'!C75 ->  | B75: 61 | C75: =MH1901_Schedule_B!B80 -> 0 | D75: =MH1901_Schedule_B!C80 -> 0 | E75: =MH1901_Schedule_B!D80 -> 0 | CE75: =LAC102_S_MHSA!CI75 -> 0 | CF75: =LAC102_S_MHSA!CJ75 -> 0 | CG75: =LAC102_S_MHSA!CK75 -> 0 | CH75: =LAC102_S_MHSA!CL75 -> 0 | CI75: =LAC102_S_MHSA!CM75 -> 0 | CJ75: =LAC102_S_MHSA!CN75 -> 0 | CK75: =LAC102_S_MHSA!CO75 -> 0 | CL75: =LAC102_S_MHSA!CP75 -> 0 | CM75: =LAC102_S_MHSA!CQ75 -> 0 | CN75: =LAC102_S_MHSA!CR75 -> 0 | CO75: =LAC102_S_MHSA!CS75 -> 0 | IO75: 0 | IP75: 0 | IQ75: 0 | IR75: 0 | IS75: 0 | IT75: 0 | IU75: 0 | IV75: 0 | IW75: 0 | IX75: 0 | IY75: 0 | IZ75: =MH1901_Schedule_B!F80 -> 0 | JA75: =MH1901_Schedule_B!H80 -> 0 | JB75: =MH1901_Schedule_B!J80 -> 0 | JC75: =MH1901_Schedule_B!L80 -> 0 | JD75: =MH1901_Schedule_B!N80+MH1901_Schedule_B!P80 -> 0 | JE75: =MH1901_Schedule_B!R80 -> 0 | JF75: =MH1901_Schedule_B!T80 -> 0 | JG75: =MH1901_Schedule_B!Z80 -> 0 | JH75: =MH1901_Schedule_B!AB80 -> 0 | JI75: =MH1901_Schedule_B!V80 -> 0 | JJ75: =MH1901_Schedule_B!X80 -> 0 | JK75: 0 | JL75: 0 | JM75: 0 | JN75: 0 | JO75: 0 | JP75: 0 | JQ75: 0 | JR75: 0 | JS75: 0 | JT75: 0 | JU75: 0
A76: ='LAC103'!C76 ->  | B76: 62 | C76: =MH1901_Schedule_B!B81 -> 0 | D76: =MH1901_Schedule_B!C81 -> 0 | E76: =MH1901_Schedule_B!D81 -> 0 | CE76: =LAC102_S_MHSA!CI76 -> 0 | CF76: =LAC102_S_MHSA!CJ76 -> 0 | CG76: =LAC102_S_MHSA!CK76 -> 0 | CH76: =LAC102_S_MHSA!CL76 -> 0 | CI76: =LAC102_S_MHSA!CM76 -> 0 | CJ76: =LAC102_S_MHSA!CN76 -> 0 | CK76: =LAC102_S_MHSA!CO76 -> 0 | CL76: =LAC102_S_MHSA!CP76 -> 0 | CM76: =LAC102_S_MHSA!CQ76 -> 0 | CN76: =LAC102_S_MHSA!CR76 -> 0 | CO76: =LAC102_S_MHSA!CS76 -> 0 | IO76: 0 | IP76: 0 | IQ76: 0 | IR76: 0 | IS76: 0 | IT76: 0 | IU76: 0 | IV76: 0 | IW76: 0 | IX76: 0 | IY76: 0 | IZ76: =MH1901_Schedule_B!F81 -> 0 | JA76: =MH1901_Schedule_B!H81 -> 0 | JB76: =MH1901_Schedule_B!J81 -> 0 | JC76: =MH1901_Schedule_B!L81 -> 0 | JD76: =MH1901_Schedule_B!N81+MH1901_Schedule_B!P81 -> 0 | JE76: =MH1901_Schedule_B!R81 -> 0 | JF76: =MH1901_Schedule_B!T81 -> 0 | JG76: =MH1901_Schedule_B!Z81 -> 0 | JH76: =MH1901_Schedule_B!AB81 -> 0 | JI76: =MH1901_Schedule_B!V81 -> 0 | JJ76: =MH1901_Schedule_B!X81 -> 0 | JK76: 0 | JL76: 0 | JM76: 0 | JN76: 0 | JO76: 0 | JP76: 0 | JQ76: 0 | JR76: 0 | JS76: 0 | JT76: 0 | JU76: 0
A77: ='LAC103'!C77 ->  | B77: 63 | C77: =MH1901_Schedule_B!B82 -> 0 | D77: =MH1901_Schedule_B!C82 -> 0 | E77: =MH1901_Schedule_B!D82 -> 0 | CE77: =LAC102_S_MHSA!CI77 -> 0 | CF77: =LAC102_S_MHSA!CJ77 -> 0 | CG77: =LAC102_S_MHSA!CK77 -> 0 | CH77: =LAC102_S_MHSA!CL77 -> 0 | CI77: =LAC102_S_MHSA!CM77 -> 0 | CJ77: =LAC102_S_MHSA!CN77 -> 0 | CK77: =LAC102_S_MHSA!CO77 -> 0 | CL77: =LAC102_S_MHSA!CP77 -> 0 | CM77: =LAC102_S_MHSA!CQ77 -> 0 | CN77: =LAC102_S_MHSA!CR77 -> 0 | CO77: =LAC102_S_MHSA!CS77 -> 0 | IO77: 0 | IP77: 0 | IQ77: 0 | IR77: 0 | IS77: 0 | IT77: 0 | IU77: 0 | IV77: 0 | IW77: 0 | IX77: 0 | IY77: 0 | IZ77: =MH1901_Schedule_B!F82 -> 0 | JA77: =MH1901_Schedule_B!H82 -> 0 | JB77: =MH1901_Schedule_B!J82 -> 0 | JC77: =MH1901_Schedule_B!L82 -> 0 | JD77: =MH1901_Schedule_B!N82+MH1901_Schedule_B!P82 -> 0 | JE77: =MH1901_Schedule_B!R82 -> 0 | JF77: =MH1901_Schedule_B!T82 -> 0 | JG77: =MH1901_Schedule_B!Z82 -> 0 | JH77: =MH1901_Schedule_B!AB82 -> 0 | JI77: =MH1901_Schedule_B!V82 -> 0 | JJ77: =MH1901_Schedule_B!X82 -> 0 | JK77: 0 | JL77: 0 | JM77: 0 | JN77: 0 | JO77: 0 | JP77: =IF(IT77-JE77=0,0,"Error") -> 0 | JQ77: 0 | JR77: 0 | JS77: 0 | JT77: 0 | JU77: 0
A78: ='LAC103'!C78 ->  | B78: 64 | C78: =MH1901_Schedule_B!B83 -> 0 | D78: =MH1901_Schedule_B!C83 -> 0 | E78: =MH1901_Schedule_B!D83 -> 0 | CE78: =LAC102_S_MHSA!CI78 -> 0 | CF78: =LAC102_S_MHSA!CJ78 -> 0 | CG78: =LAC102_S_MHSA!CK78 -> 0 | CH78: =LAC102_S_MHSA!CL78 -> 0 | CI78: =LAC102_S_MHSA!CM78 -> 0 | CJ78: =LAC102_S_MHSA!CN78 -> 0 | CK78: =LAC102_S_MHSA!CO78 -> 0 | CL78: =LAC102_S_MHSA!CP78 -> 0 | CM78: =LAC102_S_MHSA!CQ78 -> 0 | CN78: =LAC102_S_MHSA!CR78 -> 0 | CO78: =LAC102_S_MHSA!CS78 -> 0 | IO78: 0 | IP78: 0 | IQ78: 0 | IR78: 0 | IS78: 0 | IT78: 0 | IU78: 0 | IV78: 0 | IW78: 0 | IX78: 0 | IY78: 0 | IZ78: =MH1901_Schedule_B!F83 -> 0 | JA78: =MH1901_Schedule_B!H83 -> 0 | JB78: =MH1901_Schedule_B!J83 -> 0 | JC78: =MH1901_Schedule_B!L83 -> 0 | JD78: =MH1901_Schedule_B!N83+MH1901_Schedule_B!P83 -> 0 | JE78: =MH1901_Schedule_B!R83 -> 0 | JF78: =MH1901_Schedule_B!T83 -> 0 | JG78: =MH1901_Schedule_B!Z83 -> 0 | JH78: =MH1901_Schedule_B!AB83 -> 0 | JI78: =MH1901_Schedule_B!V83 -> 0 | JJ78: =MH1901_Schedule_B!X83 -> 0 | JK78: =IF(IO78-IZ78=0,0,"Error") -> 0 | JL78: 0 | JM78: 0 | JN78: 0 | JO78: 0 | JP78: 0 | JQ78: 0 | JR78: 0 | JS78: 0 | JT78: 0 | JU78: 0
A79: ='LAC103'!C79 ->  | B79: 65 | C79: =MH1901_Schedule_B!B84 -> 0 | D79: =MH1901_Schedule_B!C84 -> 0 | E79: =MH1901_Schedule_B!D84 -> 0 | CE79: =LAC102_S_MHSA!CI79 -> 0 | CF79: =LAC102_S_MHSA!CJ79 -> 0 | CG79: =LAC102_S_MHSA!CK79 -> 0 | CH79: =LAC102_S_MHSA!CL79 -> 0 | CI79: =LAC102_S_MHSA!CM79 -> 0 | CJ79: =LAC102_S_MHSA!CN79 -> 0 | CK79: =LAC102_S_MHSA!CO79 -> 0 | CL79: =LAC102_S_MHSA!CP79 -> 0 | CM79: =LAC102_S_MHSA!CQ79 -> 0 | CN79: =LAC102_S_MHSA!CR79 -> 0 | CO79: =LAC102_S_MHSA!CS79 -> 0 | IO79: 0 | IP79: 0 | IQ79: 0 | IR79: 0 | IS79: 0 | IT79: 0 | IU79: 0 | IV79: 0 | IW79: 0 | IX79: 0 | IY79: 0 | IZ79: =MH1901_Schedule_B!F84 -> 0 | JA79: =MH1901_Schedule_B!H84 -> 0 | JB79: =MH1901_Schedule_B!J84 -> 0 | JC79: =MH1901_Schedule_B!L84 -> 0 | JD79: =MH1901_Schedule_B!N84+MH1901_Schedule_B!P84 -> 0 | JE79: =MH1901_Schedule_B!R84 -> 0 | JF79: =MH1901_Schedule_B!T84 -> 0 | JG79: =MH1901_Schedule_B!Z84 -> 0 | JH79: =MH1901_Schedule_B!AB84 -> 0 | JI79: =MH1901_Schedule_B!V84 -> 0 | JJ79: =MH1901_Schedule_B!X84 -> 0 | JK79: 0 | JL79: 0 | JM79: 0 | JN79: 0 | JO79: 0 | JP79: 0 | JQ79: 0 | JR79: 0 | JS79: =IF(CONCATENATE(D79,E79)>6069,0,IF(IW79-JH79=0,0,"Error")) -> 0 | JT79: 0 | JU79: 0
A80: ='LAC103'!C80 ->  | B80: 66 | C80: =MH1901_Schedule_B!B85 -> 0 | D80: =MH1901_Schedule_B!C85 -> 0 | E80: =MH1901_Schedule_B!D85 -> 0 | CE80: =LAC102_S_MHSA!CI80 -> 0 | CF80: =LAC102_S_MHSA!CJ80 -> 0 | CG80: =LAC102_S_MHSA!CK80 -> 0 | CH80: =LAC102_S_MHSA!CL80 -> 0 | CI80: =LAC102_S_MHSA!CM80 -> 0 | CJ80: =LAC102_S_MHSA!CN80 -> 0 | CK80: =LAC102_S_MHSA!CO80 -> 0 | CL80: =LAC102_S_MHSA!CP80 -> 0 | CM80: =LAC102_S_MHSA!CQ80 -> 0 | CN80: =LAC102_S_MHSA!CR80 -> 0 | CO80: =LAC102_S_MHSA!CS80 -> 0 | IO80: 0 | IP80: 0 | IQ80: 0 | IR80: 0 | IS80: 0 | IT80: 0 | IU80: 0 | IV80: 0 | IW80: =SUM(N80,Y80,AJ80,BF80,BQ80,CB80,CM80,CX80,HO80,HZ80,DI80,AU80,DT80,EE80,,EP80,FA80,FL80,FW80,GH80,HD80,GS80,IC80,ID80,IE80,IF80:IN80) -> 0 | IX80: =SUM(O80,Z80,AK80,BG80,BR80,CC80,CN80,CY80,HP80,IA80,DJ80,AV80,DU80,EF80,EQ80,FB80,FM80,FX80,GI80,HE80,GT80) -> 0 | IY80: 0 | IZ80: =MH1901_Schedule_B!F85 -> 0 | JA80: =MH1901_Schedule_B!H85 -> 0 | JB80: =MH1901_Schedule_B!J85 -> 0 | JC80: =MH1901_Schedule_B!L85 -> 0 | JD80: =MH1901_Schedule_B!N85+MH1901_Schedule_B!P85 -> 0 | JE80: =MH1901_Schedule_B!R85 -> 0 | JF80: =MH1901_Schedule_B!T85 -> 0 | JG80: =MH1901_Schedule_B!Z85 -> 0 | JH80: =MH1901_Schedule_B!AB85 -> 0 | JI80: =MH1901_Schedule_B!V85 -> 0 | JJ80: =MH1901_Schedule_B!X85 -> 0 | JK80: 0 | JL80: 0 | JM80: 0 | JN80: 0 | JO80: 0 | JP80: 0 | JQ80: 0 | JR80: 0 | JS80: 0 | JT80: 0 | JU80: 0
A81: ='LAC103'!C81 ->  | B81: 67 | C81: =MH1901_Schedule_B!B86 -> 0 | D81: =MH1901_Schedule_B!C86 -> 0 | E81: =MH1901_Schedule_B!D86 -> 0 | CE81: =LAC102_S_MHSA!CI81 -> 0 | CF81: =LAC102_S_MHSA!CJ81 -> 0 | CG81: =LAC102_S_MHSA!CK81 -> 0 | CH81: =LAC102_S_MHSA!CL81 -> 0 | CI81: =LAC102_S_MHSA!CM81 -> 0 | CJ81: =LAC102_S_MHSA!CN81 -> 0 | CK81: =LAC102_S_MHSA!CO81 -> 0 | CL81: =LAC102_S_MHSA!CP81 -> 0 | CM81: =LAC102_S_MHSA!CQ81 -> 0 | CN81: =LAC102_S_MHSA!CR81 -> 0 | CO81: =LAC102_S_MHSA!CS81 -> 0 | IO81: 0 | IP81: 0 | IQ81: 0 | IR81: 0 | IS81: 0 | IT81: 0 | IU81: 0 | IV81: 0 | IW81: 0 | IX81: 0 | IY81: 0 | IZ81: =MH1901_Schedule_B!F86 -> 0 | JA81: =MH1901_Schedule_B!H86 -> 0 | JB81: =MH1901_Schedule_B!J86 -> 0 | JC81: =MH1901_Schedule_B!L86 -> 0 | JD81: =MH1901_Schedule_B!N86+MH1901_Schedule_B!P86 -> 0 | JE81: =MH1901_Schedule_B!R86 -> 0 | JF81: =MH1901_Schedule_B!T86 -> 0 | JG81: =MH1901_Schedule_B!Z86 -> 0 | JH81: =MH1901_Schedule_B!AB86 -> 0 | JI81: =MH1901_Schedule_B!V86 -> 0 | JJ81: =MH1901_Schedule_B!X86 -> 0 | JK81: 0 | JL81: 0 | JM81: 0 | JN81: 0 | JO81: 0 | JP81: 0 | JQ81: 0 | JR81: 0 | JS81: 0 | JT81: 0 | JU81: 0
A82: ='LAC103'!C82 ->  | B82: 68 | C82: =MH1901_Schedule_B!B87 -> 0 | D82: =MH1901_Schedule_B!C87 -> 0 | E82: =MH1901_Schedule_B!D87 -> 0 | CE82: =LAC102_S_MHSA!CI82 -> 0 | CF82: =LAC102_S_MHSA!CJ82 -> 0 | CG82: =LAC102_S_MHSA!CK82 -> 0 | CH82: =LAC102_S_MHSA!CL82 -> 0 | CI82: =LAC102_S_MHSA!CM82 -> 0 | CJ82: =LAC102_S_MHSA!CN82 -> 0 | CK82: =LAC102_S_MHSA!CO82 -> 0 | CL82: =LAC102_S_MHSA!CP82 -> 0 | CM82: =LAC102_S_MHSA!CQ82 -> 0 | CN82: =LAC102_S_MHSA!CR82 -> 0 | CO82: =LAC102_S_MHSA!CS82 -> 0 | IO82: 0 | IP82: 0 | IQ82: 0 | IR82: 0 | IS82: 0 | IT82: 0 | IU82: 0 | IV82: 0 | IW82: 0 | IX82: 0 | IY82: 0 | IZ82: =MH1901_Schedule_B!F87 -> 0 | JA82: =MH1901_Schedule_B!H87 -> 0 | JB82: =MH1901_Schedule_B!J87 -> 0 | JC82: =MH1901_Schedule_B!L87 -> 0 | JD82: =MH1901_Schedule_B!N87+MH1901_Schedule_B!P87 -> 0 | JE82: =MH1901_Schedule_B!R87 -> 0 | JF82: =MH1901_Schedule_B!T87 -> 0 | JG82: =MH1901_Schedule_B!Z87 -> 0 | JH82: =MH1901_Schedule_B!AB87 -> 0 | JI82: =MH1901_Schedule_B!V87 -> 0 | JJ82: =MH1901_Schedule_B!X87 -> 0 | JK82: 0 | JL82: 0 | JM82: 0 | JN82: 0 | JO82: 0 | JP82: 0 | JQ82: 0 | JR82: 0 | JS82: 0 | JT82: 0 | JU82: 0
A83: ='LAC103'!C83 ->  | B83: 69 | C83: =MH1901_Schedule_B!B88 -> 0 | D83: =MH1901_Schedule_B!C88 -> 0 | E83: =MH1901_Schedule_B!D88 -> 0 | CE83: =LAC102_S_MHSA!CI83 -> 0 | CF83: =LAC102_S_MHSA!CJ83 -> 0 | CG83: =LAC102_S_MHSA!CK83 -> 0 | CH83: =LAC102_S_MHSA!CL83 -> 0 | CI83: =LAC102_S_MHSA!CM83 -> 0 | CJ83: =LAC102_S_MHSA!CN83 -> 0 | CK83: =LAC102_S_MHSA!CO83 -> 0 | CL83: =LAC102_S_MHSA!CP83 -> 0 | CM83: =LAC102_S_MHSA!CQ83 -> 0 | CN83: =LAC102_S_MHSA!CR83 -> 0 | CO83: =LAC102_S_MHSA!CS83 -> 0 | IO83: 0 | IP83: 0 | IQ83: 0 | IR83: 0 | IS83: 0 | IT83: 0 | IU83: 0 | IV83: 0 | IW83: 0 | IX83: 0 | IY83: 0 | IZ83: =MH1901_Schedule_B!F88 -> 0 | JA83: =MH1901_Schedule_B!H88 -> 0 | JB83: =MH1901_Schedule_B!J88 -> 0 | JC83: =MH1901_Schedule_B!L88 -> 0 | JD83: =MH1901_Schedule_B!N88+MH1901_Schedule_B!P88 -> 0 | JE83: =MH1901_Schedule_B!R88 -> 0 | JF83: =MH1901_Schedule_B!T88 -> 0 | JG83: =MH1901_Schedule_B!Z88 -> 0 | JH83: =MH1901_Schedule_B!AB88 -> 0 | JI83: =MH1901_Schedule_B!V88 -> 0 | JJ83: =MH1901_Schedule_B!X88 -> 0 | JK83: 0 | JL83: 0 | JM83: 0 | JN83: 0 | JO83: 0 | JP83: 0 | JQ83: 0 | JR83: 0 | JS83: 0 | JT83: 0 | JU83: 0
A84: ='LAC103'!C84 ->  | B84: 70 | C84: =MH1901_Schedule_B!B89 -> 0 | D84: =MH1901_Schedule_B!C89 -> 0 | E84: =MH1901_Schedule_B!D89 -> 0 | CE84: =LAC102_S_MHSA!CI84 -> 0 | CF84: =LAC102_S_MHSA!CJ84 -> 0 | CG84: =LAC102_S_MHSA!CK84 -> 0 | CH84: =LAC102_S_MHSA!CL84 -> 0 | CI84: =LAC102_S_MHSA!CM84 -> 0 | CJ84: =LAC102_S_MHSA!CN84 -> 0 | CK84: =LAC102_S_MHSA!CO84 -> 0 | CL84: =LAC102_S_MHSA!CP84 -> 0 | CM84: =LAC102_S_MHSA!CQ84 -> 0 | CN84: =LAC102_S_MHSA!CR84 -> 0 | CO84: =LAC102_S_MHSA!CS84 -> 0 | IO84: 0 | IP84: 0 | IQ84: 0 | IR84: 0 | IS84: 0 | IT84: 0 | IU84: 0 | IV84: 0 | IW84: 0 | IX84: 0 | IY84: 0 | IZ84: =MH1901_Schedule_B!F89 -> 0 | JA84: =MH1901_Schedule_B!H89 -> 0 | JB84: =MH1901_Schedule_B!J89 -> 0 | JC84: =MH1901_Schedule_B!L89 -> 0 | JD84: =MH1901_Schedule_B!N89+MH1901_Schedule_B!P89 -> 0 | JE84: =MH1901_Schedule_B!R89 -> 0 | JF84: =MH1901_Schedule_B!T89 -> 0 | JG84: =MH1901_Schedule_B!Z89 -> 0 | JH84: =MH1901_Schedule_B!AB89 -> 0 | JI84: =MH1901_Schedule_B!V89 -> 0 | JJ84: =MH1901_Schedule_B!X89 -> 0 | JK84: 0 | JL84: 0 | JM84: 0 | JN84: 0 | JO84: 0 | JP84: 0 | JQ84: 0 | JR84: 0 | JS84: 0 | JT84: 0 | JU84: 0
A85: ='LAC103'!C85 ->  | B85: 71 | C85: =MH1901_Schedule_B!B90 -> 0 | D85: =MH1901_Schedule_B!C90 -> 0 | E85: =MH1901_Schedule_B!D90 -> 0 | CE85: =LAC102_S_MHSA!CI85 -> 0 | CF85: =LAC102_S_MHSA!CJ85 -> 0 | CG85: =LAC102_S_MHSA!CK85 -> 0 | CH85: =LAC102_S_MHSA!CL85 -> 0 | CI85: =LAC102_S_MHSA!CM85 -> 0 | CJ85: =LAC102_S_MHSA!CN85 -> 0 | CK85: =LAC102_S_MHSA!CO85 -> 0 | CL85: =LAC102_S_MHSA!CP85 -> 0 | CM85: =LAC102_S_MHSA!CQ85 -> 0 | CN85: =LAC102_S_MHSA!CR85 -> 0 | CO85: =LAC102_S_MHSA!CS85 -> 0 | IO85: 0 | IP85: 0 | IQ85: 0 | IR85: 0 | IS85: 0 | IT85: 0 | IU85: 0 | IV85: 0 | IW85: 0 | IX85: 0 | IY85: 0 | IZ85: =MH1901_Schedule_B!F90 -> 0 | JA85: =MH1901_Schedule_B!H90 -> 0 | JB85: =MH1901_Schedule_B!J90 -> 0 | JC85: =MH1901_Schedule_B!L90 -> 0 | JD85: =MH1901_Schedule_B!N90+MH1901_Schedule_B!P90 -> 0 | JE85: =MH1901_Schedule_B!R90 -> 0 | JF85: =MH1901_Schedule_B!T90 -> 0 | JG85: =MH1901_Schedule_B!Z90 -> 0 | JH85: =MH1901_Schedule_B!AB90 -> 0 | JI85: =MH1901_Schedule_B!V90 -> 0 | JJ85: =MH1901_Schedule_B!X90 -> 0 | JK85: 0 | JL85: 0 | JM85: 0 | JN85: 0 | JO85: 0 | JP85: 0 | JQ85: 0 | JR85: 0 | JS85: 0 | JT85: 0 | JU85: 0
A86: ='LAC103'!C86 ->  | B86: 72 | C86: =MH1901_Schedule_B!B91 -> 0 | D86: =MH1901_Schedule_B!C91 -> 0 | E86: =MH1901_Schedule_B!D91 -> 0 | CE86: =LAC102_S_MHSA!CI86 -> 0 | CF86: =LAC102_S_MHSA!CJ86 -> 0 | CG86: =LAC102_S_MHSA!CK86 -> 0 | CH86: =LAC102_S_MHSA!CL86 -> 0 | CI86: =LAC102_S_MHSA!CM86 -> 0 | CJ86: =LAC102_S_MHSA!CN86 -> 0 | CK86: =LAC102_S_MHSA!CO86 -> 0 | CL86: =LAC102_S_MHSA!CP86 -> 0 | CM86: =LAC102_S_MHSA!CQ86 -> 0 | CN86: =LAC102_S_MHSA!CR86 -> 0 | CO86: =LAC102_S_MHSA!CS86 -> 0 | IO86: 0 | IP86: 0 | IQ86: 0 | IR86: 0 | IS86: 0 | IT86: 0 | IU86: 0 | IV86: 0 | IW86: 0 | IX86: 0 | IY86: 0 | IZ86: =MH1901_Schedule_B!F91 -> 0 | JA86: =MH1901_Schedule_B!H91 -> 0 | JB86: =MH1901_Schedule_B!J91 -> 0 | JC86: =MH1901_Schedule_B!L91 -> 0 | JD86: =MH1901_Schedule_B!N91+MH1901_Schedule_B!P91 -> 0 | JE86: =MH1901_Schedule_B!R91 -> 0 | JF86: =MH1901_Schedule_B!T91 -> 0 | JG86: =MH1901_Schedule_B!Z91 -> 0 | JH86: =MH1901_Schedule_B!AB91 -> 0 | JI86: =MH1901_Schedule_B!V91 -> 0 | JJ86: =MH1901_Schedule_B!X91 -> 0 | JK86: 0 | JL86: 0 | JM86: 0 | JN86: 0 | JO86: 0 | JP86: 0 | JQ86: 0 | JR86: 0 | JS86: 0 | JT86: 0 | JU86: 0
A87: ='LAC103'!C87 ->  | B87: 73 | C87: =MH1901_Schedule_B!B92 -> 0 | D87: =MH1901_Schedule_B!C92 -> 0 | E87: =MH1901_Schedule_B!D92 -> 0 | CE87: =LAC102_S_MHSA!CI87 -> 0 | CF87: =LAC102_S_MHSA!CJ87 -> 0 | CG87: =LAC102_S_MHSA!CK87 -> 0 | CH87: =LAC102_S_MHSA!CL87 -> 0 | CI87: =LAC102_S_MHSA!CM87 -> 0 | CJ87: =LAC102_S_MHSA!CN87 -> 0 | CK87: =LAC102_S_MHSA!CO87 -> 0 | CL87: =LAC102_S_MHSA!CP87 -> 0 | CM87: =LAC102_S_MHSA!CQ87 -> 0 | CN87: =LAC102_S_MHSA!CR87 -> 0 | CO87: =LAC102_S_MHSA!CS87 -> 0 | IO87: 0 | IP87: 0 | IQ87: 0 | IR87: 0 | IS87: 0 | IT87: 0 | IU87: 0 | IV87: 0 | IW87: 0 | IX87: 0 | IY87: 0 | IZ87: =MH1901_Schedule_B!F92 -> 0 | JA87: =MH1901_Schedule_B!H92 -> 0 | JB87: =MH1901_Schedule_B!J92 -> 0 | JC87: =MH1901_Schedule_B!L92 -> 0 | JD87: =MH1901_Schedule_B!N92+MH1901_Schedule_B!P92 -> 0 | JE87: =MH1901_Schedule_B!R92 -> 0 | JF87: =MH1901_Schedule_B!T92 -> 0 | JG87: =MH1901_Schedule_B!Z92 -> 0 | JH87: =MH1901_Schedule_B!AB92 -> 0 | JI87: =MH1901_Schedule_B!V92 -> 0 | JJ87: =MH1901_Schedule_B!X92 -> 0 | JK87: 0 | JL87: 0 | JM87: 0 | JN87: 0 | JO87: 0 | JP87: 0 | JQ87: 0 | JR87: 0 | JS87: 0 | JT87: 0 | JU87: 0
A88: ='LAC103'!C88 ->  | B88: 74 | C88: =MH1901_Schedule_B!B93 -> 0 | D88: =MH1901_Schedule_B!C93 -> 0 | E88: =MH1901_Schedule_B!D93 -> 0 | CE88: =LAC102_S_MHSA!CI88 -> 0 | CF88: =LAC102_S_MHSA!CJ88 -> 0 | CG88: =LAC102_S_MHSA!CK88 -> 0 | CH88: =LAC102_S_MHSA!CL88 -> 0 | CI88: =LAC102_S_MHSA!CM88 -> 0 | CJ88: =LAC102_S_MHSA!CN88 -> 0 | CK88: =LAC102_S_MHSA!CO88 -> 0 | CL88: =LAC102_S_MHSA!CP88 -> 0 | CM88: =LAC102_S_MHSA!CQ88 -> 0 | CN88: =LAC102_S_MHSA!CR88 -> 0 | CO88: =LAC102_S_MHSA!CS88 -> 0 | IO88: 0 | IP88: 0 | IQ88: 0 | IR88: 0 | IS88: 0 | IT88: 0 | IU88: 0 | IV88: 0 | IW88: 0 | IX88: 0 | IY88: 0 | IZ88: =MH1901_Schedule_B!F93 -> 0 | JA88: =MH1901_Schedule_B!H93 -> 0 | JB88: =MH1901_Schedule_B!J93 -> 0 | JC88: =MH1901_Schedule_B!L93 -> 0 | JD88: =MH1901_Schedule_B!N93+MH1901_Schedule_B!P93 -> 0 | JE88: =MH1901_Schedule_B!R93 -> 0 | JF88: =MH1901_Schedule_B!T93 -> 0 | JG88: =MH1901_Schedule_B!Z93 -> 0 | JH88: =MH1901_Schedule_B!AB93 -> 0 | JI88: =MH1901_Schedule_B!V93 -> 0 | JJ88: =MH1901_Schedule_B!X93 -> 0 | JK88: 0 | JL88: 0 | JM88: 0 | JN88: 0 | JO88: 0 | JP88: 0 | JQ88: 0 | JR88: 0 | JS88: 0 | JT88: 0 | JU88: 0
A89: ='LAC103'!C89 ->  | B89: 75 | C89: =MH1901_Schedule_B!B94 -> 0 | D89: =MH1901_Schedule_B!C94 -> 0 | E89: =MH1901_Schedule_B!D94 -> 0 | CE89: =LAC102_S_MHSA!CI89 -> 0 | CF89: =LAC102_S_MHSA!CJ89 -> 0 | CG89: =LAC102_S_MHSA!CK89 -> 0 | CH89: =LAC102_S_MHSA!CL89 -> 0 | CI89: =LAC102_S_MHSA!CM89 -> 0 | CJ89: =LAC102_S_MHSA!CN89 -> 0 | CK89: =LAC102_S_MHSA!CO89 -> 0 | CL89: =LAC102_S_MHSA!CP89 -> 0 | CM89: =LAC102_S_MHSA!CQ89 -> 0 | CN89: =LAC102_S_MHSA!CR89 -> 0 | CO89: =LAC102_S_MHSA!CS89 -> 0 | IO89: 0 | IP89: 0 | IQ89: 0 | IR89: 0 | IS89: 0 | IT89: 0 | IU89: 0 | IV89: 0 | IW89: 0 | IX89: 0 | IY89: 0 | IZ89: =MH1901_Schedule_B!F94 -> 0 | JA89: =MH1901_Schedule_B!H94 -> 0 | JB89: =MH1901_Schedule_B!J94 -> 0 | JC89: =MH1901_Schedule_B!L94 -> 0 | JD89: =MH1901_Schedule_B!N94+MH1901_Schedule_B!P94 -> 0 | JE89: =MH1901_Schedule_B!R94 -> 0 | JF89: =MH1901_Schedule_B!T94 -> 0 | JG89: =MH1901_Schedule_B!Z94 -> 0 | JH89: =MH1901_Schedule_B!AB94 -> 0 | JI89: =MH1901_Schedule_B!V94 -> 0 | JJ89: =MH1901_Schedule_B!X94 -> 0 | JK89: 0 | JL89: 0 | JM89: 0 | JN89: 0 | JO89: 0 | JP89: 0 | JQ89: 0 | JR89: 0 | JS89: 0 | JT89: 0 | JU89: 0
A90: ='LAC103'!C90 ->  | B90: 76 | C90: =MH1901_Schedule_B!B95 -> 0 | D90: =MH1901_Schedule_B!C95 -> 0 | E90: =MH1901_Schedule_B!D95 -> 0 | CE90: =LAC102_S_MHSA!CI90 -> 0 | CF90: =LAC102_S_MHSA!CJ90 -> 0 | CG90: =LAC102_S_MHSA!CK90 -> 0 | CH90: =LAC102_S_MHSA!CL90 -> 0 | CI90: =LAC102_S_MHSA!CM90 -> 0 | CJ90: =LAC102_S_MHSA!CN90 -> 0 | CK90: =LAC102_S_MHSA!CO90 -> 0 | CL90: =LAC102_S_MHSA!CP90 -> 0 | CM90: =LAC102_S_MHSA!CQ90 -> 0 | CN90: =LAC102_S_MHSA!CR90 -> 0 | CO90: =LAC102_S_MHSA!CS90 -> 0 | IO90: 0 | IP90: 0 | IQ90: 0 | IR90: 0 | IS90: 0 | IT90: 0 | IU90: 0 | IV90: 0 | IW90: 0 | IX90: 0 | IY90: 0 | IZ90: =MH1901_Schedule_B!F95 -> 0 | JA90: =MH1901_Schedule_B!H95 -> 0 | JB90: =MH1901_Schedule_B!J95 -> 0 | JC90: =MH1901_Schedule_B!L95 -> 0 | JD90: =MH1901_Schedule_B!N95+MH1901_Schedule_B!P95 -> 0 | JE90: =MH1901_Schedule_B!R95 -> 0 | JF90: =MH1901_Schedule_B!T95 -> 0 | JG90: =MH1901_Schedule_B!Z95 -> 0 | JH90: =MH1901_Schedule_B!AB95 -> 0 | JI90: =MH1901_Schedule_B!V95 -> 0 | JJ90: =MH1901_Schedule_B!X95 -> 0 | JK90: 0 | JL90: 0 | JM90: 0 | JN90: 0 | JO90: 0 | JP90: 0 | JQ90: 0 | JR90: 0 | JS90: 0 | JT90: 0 | JU90: 0
A91: ='LAC103'!C91 ->  | B91: 77 | C91: =MH1901_Schedule_B!B96 -> 0 | D91: =MH1901_Schedule_B!C96 -> 0 | E91: =MH1901_Schedule_B!D96 -> 0 | CE91: =LAC102_S_MHSA!CI91 -> 0 | CF91: =LAC102_S_MHSA!CJ91 -> 0 | CG91: =LAC102_S_MHSA!CK91 -> 0 | CH91: =LAC102_S_MHSA!CL91 -> 0 | CI91: =LAC102_S_MHSA!CM91 -> 0 | CJ91: =LAC102_S_MHSA!CN91 -> 0 | CK91: =LAC102_S_MHSA!CO91 -> 0 | CL91: =LAC102_S_MHSA!CP91 -> 0 | CM91: =LAC102_S_MHSA!CQ91 -> 0 | CN91: =LAC102_S_MHSA!CR91 -> 0 | CO91: =LAC102_S_MHSA!CS91 -> 0 | IO91: 0 | IP91: 0 | IQ91: 0 | IR91: 0 | IS91: 0 | IT91: 0 | IU91: 0 | IV91: 0 | IW91: 0 | IX91: 0 | IY91: 0 | IZ91: =MH1901_Schedule_B!F96 -> 0 | JA91: =MH1901_Schedule_B!H96 -> 0 | JB91: =MH1901_Schedule_B!J96 -> 0 | JC91: =MH1901_Schedule_B!L96 -> 0 | JD91: =MH1901_Schedule_B!N96+MH1901_Schedule_B!P96 -> 0 | JE91: =MH1901_Schedule_B!R96 -> 0 | JF91: =MH1901_Schedule_B!T96 -> 0 | JG91: =MH1901_Schedule_B!Z96 -> 0 | JH91: =MH1901_Schedule_B!AB96 -> 0 | JI91: =MH1901_Schedule_B!V96 -> 0 | JJ91: =MH1901_Schedule_B!X96 -> 0 | JK91: 0 | JL91: 0 | JM91: 0 | JN91: 0 | JO91: 0 | JP91: 0 | JQ91: 0 | JR91: 0 | JS91: 0 | JT91: 0 | JU91: 0
A92: ='LAC103'!C92 ->  | B92: 78 | C92: =MH1901_Schedule_B!B97 -> 0 | D92: =MH1901_Schedule_B!C97 -> 0 | E92: =MH1901_Schedule_B!D97 -> 0 | CE92: =LAC102_S_MHSA!CI92 -> 0 | CF92: =LAC102_S_MHSA!CJ92 -> 0 | CG92: =LAC102_S_MHSA!CK92 -> 0 | CH92: =LAC102_S_MHSA!CL92 -> 0 | CI92: =LAC102_S_MHSA!CM92 -> 0 | CJ92: =LAC102_S_MHSA!CN92 -> 0 | CK92: =LAC102_S_MHSA!CO92 -> 0 | CL92: =LAC102_S_MHSA!CP92 -> 0 | CM92: =LAC102_S_MHSA!CQ92 -> 0 | CN92: =LAC102_S_MHSA!CR92 -> 0 | CO92: =LAC102_S_MHSA!CS92 -> 0 | IO92: 0 | IP92: 0 | IQ92: 0 | IR92: 0 | IS92: 0 | IT92: 0 | IU92: 0 | IV92: 0 | IW92: 0 | IX92: 0 | IY92: 0 | IZ92: =MH1901_Schedule_B!F97 -> 0 | JA92: =MH1901_Schedule_B!H97 -> 0 | JB92: =MH1901_Schedule_B!J97 -> 0 | JC92: =MH1901_Schedule_B!L97 -> 0 | JD92: =MH1901_Schedule_B!N97+MH1901_Schedule_B!P97 -> 0 | JE92: =MH1901_Schedule_B!R97 -> 0 | JF92: =MH1901_Schedule_B!T97 -> 0 | JG92: =MH1901_Schedule_B!Z97 -> 0 | JH92: =MH1901_Schedule_B!AB97 -> 0 | JI92: =MH1901_Schedule_B!V97 -> 0 | JJ92: =MH1901_Schedule_B!X97 -> 0 | JK92: 0 | JL92: 0 | JM92: 0 | JN92: 0 | JO92: 0 | JP92: 0 | JQ92: 0 | JR92: 0 | JS92: 0 | JT92: 0 | JU92: 0
A93: ='LAC103'!C93 ->  | B93: 79 | C93: =MH1901_Schedule_B!B98 -> 0 | D93: =MH1901_Schedule_B!C98 -> 0 | E93: =MH1901_Schedule_B!D98 -> 0 | CE93: =LAC102_S_MHSA!CI93 -> 0 | CF93: =LAC102_S_MHSA!CJ93 -> 0 | CG93: =LAC102_S_MHSA!CK93 -> 0 | CH93: =LAC102_S_MHSA!CL93 -> 0 | CI93: =LAC102_S_MHSA!CM93 -> 0 | CJ93: =LAC102_S_MHSA!CN93 -> 0 | CK93: =LAC102_S_MHSA!CO93 -> 0 | CL93: =LAC102_S_MHSA!CP93 -> 0 | CM93: =LAC102_S_MHSA!CQ93 -> 0 | CN93: =LAC102_S_MHSA!CR93 -> 0 | CO93: =LAC102_S_MHSA!CS93 -> 0 | IO93: 0 | IP93: 0 | IQ93: 0 | IR93: 0 | IS93: 0 | IT93: 0 | IU93: 0 | IV93: 0 | IW93: 0 | IX93: 0 | IY93: 0 | IZ93: =MH1901_Schedule_B!F98 -> 0 | JA93: =MH1901_Schedule_B!H98 -> 0 | JB93: =MH1901_Schedule_B!J98 -> 0 | JC93: =MH1901_Schedule_B!L98 -> 0 | JD93: =MH1901_Schedule_B!N98+MH1901_Schedule_B!P98 -> 0 | JE93: =MH1901_Schedule_B!R98 -> 0 | JF93: =MH1901_Schedule_B!T98 -> 0 | JG93: =MH1901_Schedule_B!Z98 -> 0 | JH93: =MH1901_Schedule_B!AB98 -> 0 | JI93: =MH1901_Schedule_B!V98 -> 0 | JJ93: =MH1901_Schedule_B!X98 -> 0 | JK93: 0 | JL93: 0 | JM93: 0 | JN93: 0 | JO93: 0 | JP93: 0 | JQ93: 0 | JR93: 0 | JS93: 0 | JT93: 0 | JU93: 0
A94: ='LAC103'!C94 ->  | B94: 80 | C94: =MH1901_Schedule_B!B99 -> 0 | D94: =MH1901_Schedule_B!C99 -> 0 | E94: =MH1901_Schedule_B!D99 -> 0 | CE94: =LAC102_S_MHSA!CI94 -> 0 | CF94: =LAC102_S_MHSA!CJ94 -> 0 | CG94: =LAC102_S_MHSA!CK94 -> 0 | CH94: =LAC102_S_MHSA!CL94 -> 0 | CI94: =LAC102_S_MHSA!CM94 -> 0 | CJ94: =LAC102_S_MHSA!CN94 -> 0 | CK94: =LAC102_S_MHSA!CO94 -> 0 | CL94: =LAC102_S_MHSA!CP94 -> 0 | CM94: =LAC102_S_MHSA!CQ94 -> 0 | CN94: =LAC102_S_MHSA!CR94 -> 0 | CO94: =LAC102_S_MHSA!CS94 -> 0 | IO94: 0 | IP94: 0 | IQ94: 0 | IR94: 0 | IS94: 0 | IT94: 0 | IU94: 0 | IV94: 0 | IW94: 0 | IX94: 0 | IY94: 0 | IZ94: =MH1901_Schedule_B!F99 -> 0 | JA94: =MH1901_Schedule_B!H99 -> 0 | JB94: =MH1901_Schedule_B!J99 -> 0 | JC94: =MH1901_Schedule_B!L99 -> 0 | JD94: =MH1901_Schedule_B!N99+MH1901_Schedule_B!P99 -> 0 | JE94: =MH1901_Schedule_B!R99 -> 0 | JF94: =MH1901_Schedule_B!T99 -> 0 | JG94: =MH1901_Schedule_B!Z99 -> 0 | JH94: =MH1901_Schedule_B!AB99 -> 0 | JI94: =MH1901_Schedule_B!V99 -> 0 | JJ94: =MH1901_Schedule_B!X99 -> 0 | JK94: 0 | JL94: 0 | JM94: 0 | JN94: 0 | JO94: 0 | JP94: 0 | JQ94: 0 | JR94: 0 | JS94: 0 | JT94: 0 | JU94: 0
A95: ='LAC103'!C95 ->  | B95: 81 | C95: =MH1901_Schedule_B!B100 -> 0 | D95: =MH1901_Schedule_B!C100 -> 0 | E95: =MH1901_Schedule_B!D100 -> 0 | CE95: =LAC102_S_MHSA!CI95 -> 0 | CF95: =LAC102_S_MHSA!CJ95 -> 0 | CG95: =LAC102_S_MHSA!CK95 -> 0 | CH95: =LAC102_S_MHSA!CL95 -> 0 | CI95: =LAC102_S_MHSA!CM95 -> 0 | CJ95: =LAC102_S_MHSA!CN95 -> 0 | CK95: =LAC102_S_MHSA!CO95 -> 0 | CL95: =LAC102_S_MHSA!CP95 -> 0 | CM95: =LAC102_S_MHSA!CQ95 -> 0 | CN95: =LAC102_S_MHSA!CR95 -> 0 | CO95: =LAC102_S_MHSA!CS95 -> 0 | IO95: 0 | IP95: 0 | IQ95: 0 | IR95: 0 | IS95: 0 | IT95: 0 | IU95: 0 | IV95: 0 | IW95: 0 | IX95: 0 | IY95: 0 | IZ95: =MH1901_Schedule_B!F100 -> 0 | JA95: =MH1901_Schedule_B!H100 -> 0 | JB95: =MH1901_Schedule_B!J100 -> 0 | JC95: =MH1901_Schedule_B!L100 -> 0 | JD95: =MH1901_Schedule_B!N100+MH1901_Schedule_B!P100 -> 0 | JE95: =MH1901_Schedule_B!R100 -> 0 | JF95: =MH1901_Schedule_B!T100 -> 0 | JG95: =MH1901_Schedule_B!Z100 -> 0 | JH95: =MH1901_Schedule_B!AB100 -> 0 | JI95: =MH1901_Schedule_B!V100 -> 0 | JJ95: =MH1901_Schedule_B!X100 -> 0 | JK95: 0 | JL95: 0 | JM95: 0 | JN95: 0 | JO95: 0 | JP95: 0 | JQ95: 0 | JR95: 0 | JS95: 0 | JT95: 0 | JU95: 0
A96: ='LAC103'!C96 ->  | B96: 82 | C96: =MH1901_Schedule_B!B101 -> 0 | D96: =MH1901_Schedule_B!C101 -> 0 | E96: =MH1901_Schedule_B!D101 -> 0 | CE96: =LAC102_S_MHSA!CI96 -> 0 | CF96: =LAC102_S_MHSA!CJ96 -> 0 | CG96: =LAC102_S_MHSA!CK96 -> 0 | CH96: =LAC102_S_MHSA!CL96 -> 0 | CI96: =LAC102_S_MHSA!CM96 -> 0 | CJ96: =LAC102_S_MHSA!CN96 -> 0 | CK96: =LAC102_S_MHSA!CO96 -> 0 | CL96: =LAC102_S_MHSA!CP96 -> 0 | CM96: =LAC102_S_MHSA!CQ96 -> 0 | CN96: =LAC102_S_MHSA!CR96 -> 0 | CO96: =LAC102_S_MHSA!CS96 -> 0 | IO96: 0 | IP96: 0 | IQ96: 0 | IR96: 0 | IS96: 0 | IT96: 0 | IU96: 0 | IV96: 0 | IW96: 0 | IX96: 0 | IY96: 0 | IZ96: =MH1901_Schedule_B!F101 -> 0 | JA96: =MH1901_Schedule_B!H101 -> 0 | JB96: =MH1901_Schedule_B!J101 -> 0 | JC96: =MH1901_Schedule_B!L101 -> 0 | JD96: =MH1901_Schedule_B!N101+MH1901_Schedule_B!P101 -> 0 | JE96: =MH1901_Schedule_B!R101 -> 0 | JF96: =MH1901_Schedule_B!T101 -> 0 | JG96: =MH1901_Schedule_B!Z101 -> 0 | JH96: =MH1901_Schedule_B!AB101 -> 0 | JI96: =MH1901_Schedule_B!V101 -> 0 | JJ96: =MH1901_Schedule_B!X101 -> 0 | JK96: 0 | JL96: 0 | JM96: 0 | JN96: 0 | JO96: 0 | JP96: 0 | JQ96: 0 | JR96: 0 | JS96: 0 | JT96: 0 | JU96: 0
A97: ='LAC103'!C97 ->  | B97: 83 | C97: =MH1901_Schedule_B!B102 -> 0 | D97: =MH1901_Schedule_B!C102 -> 0 | E97: =MH1901_Schedule_B!D102 -> 0 | CE97: =LAC102_S_MHSA!CI97 -> 0 | CF97: =LAC102_S_MHSA!CJ97 -> 0 | CG97: =LAC102_S_MHSA!CK97 -> 0 | CH97: =LAC102_S_MHSA!CL97 -> 0 | CI97: =LAC102_S_MHSA!CM97 -> 0 | CJ97: =LAC102_S_MHSA!CN97 -> 0 | CK97: =LAC102_S_MHSA!CO97 -> 0 | CL97: =LAC102_S_MHSA!CP97 -> 0 | CM97: =LAC102_S_MHSA!CQ97 -> 0 | CN97: =LAC102_S_MHSA!CR97 -> 0 | CO97: =LAC102_S_MHSA!CS97 -> 0 | IO97: 0 | IP97: 0 | IQ97: 0 | IR97: 0 | IS97: 0 | IT97: 0 | IU97: 0 | IV97: 0 | IW97: 0 | IX97: 0 | IY97: 0 | IZ97: =MH1901_Schedule_B!F102 -> 0 | JA97: =MH1901_Schedule_B!H102 -> 0 | JB97: =MH1901_Schedule_B!J102 -> 0 | JC97: =MH1901_Schedule_B!L102 -> 0 | JD97: =MH1901_Schedule_B!N102+MH1901_Schedule_B!P102 -> 0 | JE97: =MH1901_Schedule_B!R102 -> 0 | JF97: =MH1901_Schedule_B!T102 -> 0 | JG97: =MH1901_Schedule_B!Z102 -> 0 | JH97: =MH1901_Schedule_B!AB102 -> 0 | JI97: =MH1901_Schedule_B!V102 -> 0 | JJ97: =MH1901_Schedule_B!X102 -> 0 | JK97: 0 | JL97: 0 | JM97: 0 | JN97: 0 | JO97: 0 | JP97: 0 | JQ97: 0 | JR97: 0 | JS97: 0 | JT97: 0 | JU97: 0
A98: ='LAC103'!C98 ->  | B98: 84 | C98: =MH1901_Schedule_B!B103 -> 0 | D98: =MH1901_Schedule_B!C103 -> 0 | E98: =MH1901_Schedule_B!D103 -> 0 | CE98: =LAC102_S_MHSA!CI98 -> 0 | CF98: =LAC102_S_MHSA!CJ98 -> 0 | CG98: =LAC102_S_MHSA!CK98 -> 0 | CH98: =LAC102_S_MHSA!CL98 -> 0 | CI98: =LAC102_S_MHSA!CM98 -> 0 | CJ98: =LAC102_S_MHSA!CN98 -> 0 | CK98: =LAC102_S_MHSA!CO98 -> 0 | CL98: =LAC102_S_MHSA!CP98 -> 0 | CM98: =LAC102_S_MHSA!CQ98 -> 0 | CN98: =LAC102_S_MHSA!CR98 -> 0 | CO98: =LAC102_S_MHSA!CS98 -> 0 | IO98: 0 | IP98: 0 | IQ98: 0 | IR98: 0 | IS98: 0 | IT98: 0 | IU98: 0 | IV98: 0 | IW98: 0 | IX98: 0 | IY98: 0 | IZ98: =MH1901_Schedule_B!F103 -> 0 | JA98: =MH1901_Schedule_B!H103 -> 0 | JB98: =MH1901_Schedule_B!J103 -> 0 | JC98: =MH1901_Schedule_B!L103 -> 0 | JD98: =MH1901_Schedule_B!N103+MH1901_Schedule_B!P103 -> 0 | JE98: =MH1901_Schedule_B!R103 -> 0 | JF98: =MH1901_Schedule_B!T103 -> 0 | JG98: =MH1901_Schedule_B!Z103 -> 0 | JH98: =MH1901_Schedule_B!AB103 -> 0 | JI98: =MH1901_Schedule_B!V103 -> 0 | JJ98: =MH1901_Schedule_B!X103 -> 0 | JK98: 0 | JL98: 0 | JM98: 0 | JN98: 0 | JO98: 0 | JP98: 0 | JQ98: 0 | JR98: 0 | JS98: 0 | JT98: 0 | JU98: 0
D99: Total | F99: =SUM(F15:F98) -> 0 | G99: =SUM(G15:G98) -> 0 | H99: 0 | I99: =SUM(I15:I98) -> 0 | J99: =SUM(J15:J98) -> 0 | K99: 0 | L99: 0 | M99: 0 | N99: 0 | O99: 0 | P99: 0 | Q99: =SUM(Q15:Q98) -> 2200 | R99: =SUM(R15:R98) -> 0 | S99: 20 | T99: =SUM(T15:T98) -> 14 | U99: =SUM(U15:U98) -> 0 | V99: 0 | W99: 0 | X99: 0 | Y99: 62 | Z99: 0 | AA99: 0 | AB99: =SUM(AB15:AB98) -> 0 | AC99: =SUM(AC15:AC98) -> 0 | AD99: 0 | AE99: =SUM(AE15:AE98) -> 0 | AF99: =SUM(AF15:AF98) -> 0 | AG99: 0 | AH99: 0 | AI99: 0 | AJ99: 0 | AK99: 0 | AL99: 0 | AM99: =SUM(AM15:AM98) -> 0 | AN99: =SUM(AN15:AN98) -> 0 | AO99: 0 | AP99: =SUM(AP15:AP98) -> 0 | AQ99: =SUM(AQ15:AQ98) -> 0 | AR99: 0 | AS99: 0 | AT99: 0 | AU99: 0 | AV99: 0 | AW99: 0 | AX99: =SUM(AX15:AX98) -> 115 | AY99: =SUM(AY15:AY98) -> 0 | AZ99: 0 | BA99: =SUM(BA15:BA98) -> 0 | BB99: =SUM(BB15:BB98) -> 0 | BC99: 0 | BD99: 461 | BE99: 0 | BF99: 167 | BG99: 0 | BH99: 0 | BI99: =SUM(BI15:BI98) -> 4368 | BJ99: =SUM(BJ15:BJ98) -> 0 | BK99: 0 | BL99: =SUM(BL15:BL98) -> 0 | BM99: =SUM(BM15:BM98) -> 0 | BN99: 0 | BO99: 25404 | BP99: 0 | BQ99: 0 | BR99: 0 | BS99: 0 | BT99: =SUM(BT15:BT98) -> 0 | BU99: =SUM(BU15:BU98) -> 0 | BV99: 0 | BW99: =SUM(BW15:BW98) -> 0 | BX99: =SUM(BX15:BX98) -> 0 | BY99: 0 | BZ99: 0 | CA99: 0 | CB99: 0 | CC99: 0 | CD99: 0 | CE99: 2496038 | CF99: 0 | CG99: 478 | CH99: 1685 | CI99: 4192 | CJ99: 0 | CK99: 1996624 | CL99: 18622 | CM99: 597148.55 | CN99: 0 | CO99: 0 | CP99: =SUM(CP15:CP98) -> 0 | CQ99: =SUM(CQ15:CQ98) -> 0 | CR99: 0 | CS99: =SUM(CS15:CS98) -> 0 | CT99: =SUM(CT15:CT98) -> 0 | CU99: 0 | CV99: 0 | CW99: 0 | CX99: 0 | CY99: 0 | CZ99: 0 | DA99: =SUM(DA15:DA98) -> 0 | DB99: =SUM(DB15:DB98) -> 0 | DC99: 0 | DD99: =SUM(DD15:DD98) -> 0 | DE99: =SUM(DE15:DE98) -> 0 | DF99: 0 | DG99: 0 | DH99: 0 | DI99: 0 | DJ99: 0 | DK99: 0 | DL99: =SUM(DL15:DL98) -> 3318 | DM99: =SUM(DM15:DM98) -> 0 | DN99: 25 | DO99: =SUM(DO15:DO98) -> 0 | DP99: =SUM(DP15:DP98) -> 0 | DQ99: 0 | DR99: 2459 | DS99: 24 | DT99: 6106 | DU99: 0 | DV99: 0 | DW99: =SUM(DW15:DW98) -> 0 | DX99: =SUM(DX15:DX98) -> 0 | DY99: 0 | DZ99: =SUM(DZ15:DZ98) -> 0 | EA99: =SUM(EA15:EA98) -> 0 | EB99: 0 | EC99: 0 | ED99: 0 | EE99: 0 | EF99: 0 | EG99: 0 | EH99: =SUM(EH15:EH98) -> 0 | EI99: =SUM(EI15:EI98) -> 0 | EJ99: 0 | EK99: =SUM(EK15:EK98) -> 0 | EL99: =SUM(EL15:EL98) -> 0 | EM99: 0 | EN99: 0 | EO99: 0 | EP99: 0 | EQ99: 0 | ER99: 0 | ES99: =SUM(ES15:ES98) -> 0 | ET99: =SUM(ET15:ET98) -> 0 | EU99: 0 | EV99: =SUM(EV15:EV98) -> 0 | EW99: =SUM(EW15:EW98) -> 0 | EX99: 0 | EY99: 0 | EZ99: 0 | FA99: 0 | FB99: 0 | FC99: 0 | FD99: =SUM(FD15:FD98) -> 0 | FE99: =SUM(FE15:FE98) -> 0 | FF99: 0 | FG99: =SUM(FG15:FG98) -> 0 | FH99: =SUM(FH15:FH98) -> 0 | FI99: 0 | FJ99: 0 | FK99: 0 | FL99: 0 | FM99: 0 | FN99: 0 | FO99: =SUM(FO15:FO98) -> 0 | FP99: =SUM(FP15:FP98) -> 0 | FQ99: 0 | FR99: =SUM(FR15:FR98) -> 0 | FS99: =SUM(FS15:FS98) -> 0 | FT99: 0 | FU99: 0 | FV99: 0 | FW99: 0 | FX99: 0 | FY99: 0 | FZ99: =SUM(FZ15:FZ98) -> 0 | GA99: =SUM(GA15:GA98) -> 0 | GB99: 0 | GC99: =SUM(GC15:GC98) -> 0 | GD99: =SUM(GD15:GD98) -> 0 | GE99: 0 | GF99: 0 | GG99: 0 | GH99: 0 | GI99: 0 | GJ99: 0 | GK99: =SUM(GK15:GK98) -> 0 | GL99: =SUM(GL15:GL98) -> 0 | GM99: 0 | GN99: =SUM(GN15:GN98) -> 0 | GO99: =SUM(GO15:GO98) -> 0 | GP99: 0 | GQ99: 0 | GR99: 0 | GS99: 0 | GT99: 0 | GU99: 0 | GV99: =SUM(GV15:GV98) -> 0 | GW99: =SUM(GW15:GW98) -> 0 | GX99: 0 | GY99: =SUM(GY15:GY98) -> 0 | GZ99: =SUM(GZ15:GZ98) -> 0 | HA99: 0 | HB99: 0 | HC99: 0 | HD99: 0 | HE99: 0 | HF99: 0 | HG99: =SUM(HG15:HG98) -> 2687 | HH99: =SUM(HH15:HH98) -> 0 | HI99: 84 | HJ99: =SUM(HJ15:HJ98) -> 154 | HK99: =SUM(HK15:HK98) -> 0 | HL99: 0 | HM99: 3 | HN99: 0 | HO99: 97 | HP99: 0 | HQ99: 0 | HR99: =SUM(HR15:HR98) -> 0 | HS99: =SUM(HS15:HS98) -> 0 | HT99: 0 | HU99: =SUM(HU15:HU98) -> 0 | HV99: =SUM(HV15:HV98) -> 0 | HW99: 0 | HX99: 0 | HY99: 0 | HZ99: 0 | IA99: 0 | IB99: 0 | IC99: 0 | ID99: 0 | IE99: 0 | IF99: 0 | IG99: 0 | IH99: 0 | II99: 0 | IJ99: 0 | IK99: 0 | IL99: 0 | IM99: 0 | IN99: 0 | IO99: 2508726 | IP99: 0 | IQ99: 607 | IR99: 1853 | IS99: 4192 | IT99: 0 | IU99: 2024951 | IV99: 18646 | IW99: 603580.55 | IX99: 0 | IY99: 0 | IZ99: 2508726 | JA99: 0 | JB99: 607 | JC99: 1853 | JD99: 4192 | JE99: 0 | JF99: 2024951 | JG99: 18646 | JH99: 603581.55 | JI99: 0 | JJ99: 0 | JK99: 0 | JL99: 0 | JM99: 0 | JN99: 0 | JO99: 0 | JP99: 0 | JQ99: 0 | JR99: 0 | JS99: 0 | JT99: 0 | JU99: 0

Sheet LAC102_S_MHSA
F1: COUNTY OF LOS ANGELES - DEPARTMENT OF MENTAL HEALTH | AB1: COUNTY OF LOS ANGELES - DEPARTMENT OF MENTAL HEALTH | AX1: COUNTY OF LOS ANGELES - DEPARTMENT OF MENTAL HEALTH | BT1: COUNTY OF LOS ANGELES - DEPARTMENT OF MENTAL HEALTH
F2: SUPPLEMENTAL DETAIL TO MH 1901 SCHEDULE B | AB2: SUPPLEMENTAL DETAIL TO MH 1901 SCHEDULE B | AX2: SUPPLEMENTAL DETAIL TO MH 1901 SCHEDULE B | BT2: SUPPLEMENTAL DETAIL TO MH 1901 SCHEDULE B
F3: LAC 102 Supplement - MHSA (06/21) | AB3: =$F$3 -> LAC 102 Supplement - MHSA (06/21) | AX3: =$F$3 -> LAC 102 Supplement - MHSA (06/21) | BT3: =$F$3 -> LAC 102 Supplement - MHSA (06/21)
F5: Entity Name | H5: =MH1900_INFO!B7 -> Vermont Mental Health | AB5: Entity Name | AD5: =$H$5 -> Vermont Mental Health | AX5: Entity Name | AZ5: =$H$5 -> Vermont Mental Health | BT5: Entity Name | BV5: =$H$5 -> Vermont Mental Health
F7: Entity Number | H7: =MH1900_INFO!B8 -> 00055 | AB7: Entity Number | AD7: =$H$7 -> 00055 | AX7: Entity Number | AZ7: =$H$7 -> 00055 | BT7: Entity Number | BV7: =$H$7 -> 00055
F9: Fiscal Year | H9: ='LAC101'!I6 -> 2020 - 2021 | AB9: Fiscal Year | AD9: =$H$9 -> 2020 - 2021 | AX9: Fiscal Year | AZ9: =$H$9 -> 2020 - 2021 | BT9: Fiscal Year | BV9: =$H$9 -> 2020 - 2021
C11: 1 | D11: =C11+1 -> 2 | E11: =D11+1 -> 3 | F11: =E11+1 -> 4 | G11: =F11+1 -> 5 | H11: 6 | I11: 7 | J11: 8 | K11: 9 | L11: 10 | M11: 11 | N11: 12 | O11: 13 | P11: 14 | Q11: 15 | R11: 16 | S11: 17 | T11: 18 | U11: 19 | V11: 20 | W11: 21 | X11: 22 | Y11: 23 | Z11: 24 | AA11: 25 | AB11: 26 | AC11: 27 | AD11: 28 | AE11: 29 | AF11: 30 | AG11: 31 | AH11: 32 | AI11: 33 | AJ11: 34 | AK11: 35 | AL11: 36 | AM11: 37 | AN11: 38 | AO11: 39 | AP11: 40 | AQ11: 41 | AR11: 42 | AS11: 43 | AT11: 44 | AU11: 45 | AV11: 46 | AW11: 47 | AX11: 48 | AY11: 49 | AZ11: 50 | BA11: 51 | BB11: 52 | BC11: 53 | BD11: 54 | BE11: 55 | BF11: 56 | BG11: 57 | BH11: 58 | BI11: 59 | BJ11: 60 | BK11: 61 | BL11: 62 | BM11: 63 | BN11: 64 | BO11: 65 | BP11: 66 | BQ11: 67 | BR11: 68 | BS11: =BR11+1 -> 69 | BT11: 70 | BU11: 71 | BV11: 72 | BW11: 73 | BX11: 74 | BY11: 75 | BZ11: 76 | CA11: 77 | CB11: 78 | CC11: 79 | CD11: 80 | CE11: 81 | CF11: 82 | CG11: 83 | CH11: 84 | CI11: 85 | CJ11: 86 | CK11: 87 | CL11: 88 | CM11: 89 | CN11: 90 | CO11: 91 | CP11: 92 | CQ11: 93 | CR11: 94 | CS11: 95
F12: FSP (Full Services Partnerships) | Q12: Outpatient Care Services | AB12: Alternative Crisis Services | AM12: MHSA Other 1 (UCC-MHSA)) | AX12: PEI - Children & TAY (25 and under) | BI12: PEI - Adult & Older Adult | BT12: PEI - Special Programs | CE12: Linkage Services | CF12: Planning, Outreach, & Engagement | CG12: Other 1 (Please Specify): | CH12: Other 2 (Please Specify): | CI12: TOTAL
B13: 0 | C13: 1 | D13: 2 | E13: 3 | F13: Regular FMAP Medi-Cal Units (including: SD/MC, Crossover) | G13: Enhanced FMAP Non CHIP Beneficiaries | H13: Enhanced FMAP CHIP Beneficiaries | J13: Enhanced FMAP Medi-Cal Units (BCCTP, Pregnancy) | K13: Enhanced FMAP Medi-Cal Units (Refugee) | L13: Affordable Care Act (ACA) | M13: State Funded Beneficiaries | N13: Non Medi-Cal Units | O13: MediCal Access Program (MCAP) | Q13: Regular FMAP Medi-Cal Units (including: SD/MC, Crossover) | R13: Enhanced FMAP Non CHIP Beneficiaries | S13: Enhanced FMAP CHIP Beneficiaries | U13: Enhanced FMAP Medi-Cal Units (BCCTP, Pregnancy) | V13: Enhanced FMAP Medi-Cal Units (Refugee) | W13: Affordable Care Act (ACA) | X13: State Funded Beneficiaries | Y13: Non Medi-Cal Units | Z13: MediCal Access Program (MCAP) | AB13: Regular FMAP Medi-Cal Units (including: SD/MC, Crossover) | AC13: Enhanced FMAP Non CHIP Beneficiaries | AD13: Enhanced FMAP CHIP Beneficiaries | AF13: Enhanced FMAP Medi-Cal Units (BCCTP, Pregnancy) | AG13: Enhanced FMAP Medi-Cal Units (Refugee) | AH13: Affordable Care Act (ACA) | AI13: State Funded Beneficiaries | AJ13: Non Medi-Cal Units | AK13: MediCal Access Program (MCAP) | AM13: Regular FMAP Medi-Cal Units (including: SD/MC, Crossover) | AN13: Enhanced FMAP Non CHIP Beneficiaries | AO13: Enhanced FMAP CHIP Beneficiaries | AQ13: Enhanced FMAP Medi-Cal Units (BCCTP, Pregnancy) | AR13: Enhanced FMAP Medi-Cal Units (Refugee) | AS13: Affordable Care Act (ACA) | AT13: State Funded Beneficiaries | AU13: Non Medi-Cal Units | AV13: MediCal Access Program (MCAP) | AX13: Regular FMAP Medi-Cal Units (including: SD/MC, Crossover) | AY13: Enhanced FMAP Non CHIP Beneficiaries | AZ13: Enhanced FMAP CHIP Beneficiaries | BB13: Enhanced FMAP Medi-Cal Units (BCCTP, Pregnancy) | BC13: Enhanced FMAP Medi-Cal Units (Refugee) | BD13: Affordable Care Act (ACA) | BE13: State Funded Beneficiaries | BF13: Non Medi-Cal Units | BG13: MediCal Access Program (MCAP) | BI13: Regular FMAP Medi-Cal Units (including: SD/MC, Crossover) | BJ13: Enhanced FMAP Non CHIP Beneficiaries | BK13: Enhanced FMAP CHIP Beneficiaries | BM13: Enhanced FMAP Medi-Cal Units (BCCTP, Pregnancy) | BN13: Enhanced FMAP Medi-Cal Units (Refugee) | BO13: Affordable Care Act (ACA) | BP13: State Funded Beneficiaries | BQ13: Non Medi-Cal Units | BR13: MediCal Access Program (MCAP) | BT13: Regular FMAP Medi-Cal Units (including: SD/MC, Crossover) | BU13: Enhanced FMAP Non CHIP Beneficiaries | BV13: Enhanced FMAP CHIP Beneficiaries | BX13: Enhanced FMAP Medi-Cal Units (BCCTP, Pregnancy) | BY13: Enhanced FMAP Medi-Cal Units (Refugee) | BZ13: Affordable Care Act (ACA) | CA13: State Funded Beneficiaries | CB13: Non Medi-Cal Units | CC13: MediCal Access Program (MCAP) | CE13: Non Medi-Cal Units | CF13: Non Medi-Cal Units | CG13: Non Medi-Cal Units | CH13: Non Medi-Cal Units | CI13: Regular FMAP Medi-Cal Units (including: SD/MC, Crossover) | CJ13: Enhanced FMAP Non CHIP Beneficiaries | CK13: Enhanced FMAP CHIP Beneficiaries | CM13: Enhanced FMAP Medi-Cal Units (BCCTP, Pregnancy) | CN13: Enhanced FMAP Medi-Cal Units (Refugee) | CO13: Affordable Care Act (ACA) | CP13: State Funded Beneficiaries | CQ13: Non Medi-Cal Units | CR13: MediCal Access Program (MCAP)
B14: 0 | C14: Settlement Type | D14: Mode | E14: SF | F14: 07/01/20 - 06/30/21 | G14: 07/01/20 - 06/30/21 | H14: 07/01/20 - 09/30/20 | I14: 10/01/20 - 06/30/21 | J14: 07/01/20 - 06/30/21 | K14: 07/01/20 - 06/30/21 | L14: 07/01/20 - 06/30/21 | M14: 07/01/20 - 06/30/21 | N14: 07/01/20 - 06/30/21 | O14: 07/01/20 - 09/30/20 | P14: 10/01/20 - 06/30/21 | Q14: 07/01/20 - 06/30/21 | R14: 07/01/20 - 06/30/21 | S14: 07/01/20 - 09/30/20 | T14: 10/01/20 - 06/30/21 | U14: 07/01/20 - 06/30/21 | V14: 07/01/20 - 06/30/21 | W14: 07/01/20 - 06/30/21 | X14: 07/01/20 - 06/30/21 | Y14: 07/01/20 - 06/30/21 | Z14: 07/01/20 - 09/30/20 | AA14: 10/01/20 - 06/30/21 | AB14: 07/01/20 - 06/30/21 | AC14: 07/01/20 - 06/30/21 | AD14: 07/01/20 - 09/30/20 | AE14: 10/01/20 - 06/30/21 | AF14: 07/01/20 - 06/30/21 | AG14: 07/01/20 - 06/30/21 | AH14: 07/01/20 - 06/30/21 | AI14: 07/01/20 - 06/30/21 | AJ14: 07/01/20 - 06/30/21 | AK14: 07/01/20 - 09/30/20 | AL14: 10/01/20 - 06/30/21 | AM14: 07/01/20 - 06/30/21 | AN14: 07/01/20 - 06/30/21 | AO14: 07/01/20 - 09/30/20 | AP14: 10/01/20 - 06/30/21 | AQ14: 07/01/20 - 06/30/21 | AR14: 07/01/20 - 06/30/21 | AS14: 07/01/20 - 06/30/21 | AT14: 07/01/20 - 06/30/21 | AU14: 07/01/20 - 06/30/21 | AV14: 07/01/20 - 09/30/20 | AW14: 10/01/20 - 06/30/21 | AX14: 07/01/20 - 06/30/21 | AY14: 07/01/20 - 06/30/21 | AZ14: 07/01/20 - 09/30/20 | BA14: 10/01/20 - 06/30/21 | BB14: 07/01/20 - 06/30/21 | BC14: 07/01/20 - 06/30/21 | BD14: 07/01/20 - 06/30/21 | BE14: 07/01/20 - 06/30/21 | BF14: 07/01/20 - 06/30/21 | BG14: 07/01/20 - 09/30/20 | BH14: 10/01/20 - 06/30/21 | BI14: 07/01/20 - 06/30/21 | BJ14: 07/01/20 - 06/30/21 | BK14: 07/01/20 - 09/30/20 | BL14: 10/01/20 - 06/30/21 | BM14: 07/01/20 - 06/30/21 | BN14: 07/01/20 - 06/30/21 | BO14: 07/01/20 - 06/30/21 | BP14: 07/01/20 - 06/30/21 | BQ14: 07/01/20 - 06/30/21 | BR14: 07/01/20 - 09/30/20 | BS14: 10/01/20 - 06/30/21 | BT14: 07/01/20 - 06/30/21 | BU14: 07/01/20 - 06/30/21 | BV14: 07/01/20 - 09/30/20 | BW14: 10/01/20 - 06/30/21 | BX14: 07/01/20 - 06/30/21 | BY14: 07/01/20 - 06/30/21 | BZ14: 07/01/20 - 06/30/21 | CA14: 07/01/20 - 06/30/21 | CB14: 07/01/20 - 06/30/21 | CC14: 07/01/20 - 09/30/20 | CD14: 10/01/20 - 06/30/21 | CE14: 07/01/20 - 06/30/21 | CF14: 07/01/20 - 06/30/21 | CG14: 07/01/20 - 06/30/21 | CH14: 07/01/20 - 06/30/21 | CI14: 07/01/20 - 06/30/21 | CJ14: 07/01/20 - 06/30/21 | CK14: 07/01/20 - 09/30/20 | CL14: 10/01/20 - 06/30/21 | CM14: 07/01/20 - 06/30/21 | CN14: 07/01/20 - 06/30/21 | CO14: 07/01/20 - 06/30/21 | CP14: 07/01/20 - 06/30/21 | CQ14: 07/01/20 - 06/30/21 | CR14: 07/01/20 - 09/30/20 | CS14: 10/01/20 - 06/30/21
A15: =C15&D15&E15 -> CR0520 | B15: 1 | C15: =MH1901_Schedule_B!B20 -> CR | D15: =MH1901_Schedule_B!C20 -> 05 | E15: =MH1901_Schedule_B!D20 -> 20 | CI15: =F15+Q15+AB15+AM15+AX15+BI15+BT15 -> 0 | CJ15: =G15+R15+AC15+AN15+AY15+BJ15+BU15 -> 0 | CK15: 0 | CL15: 0 | CM15: 0 | CN15: 0 | CO15: 0 | CP15: 0 | CQ15: =N15+Y15+AJ15+AU15+BF15+BQ15+CB15+SUM(CE15:CH15) -> 0 | CR15: 0 | CS15: 0
A16: CR0521 | B16: 2 | C16: =MH1901_Schedule_B!B21 -> CR | D16: =MH1901_Schedule_B!C21 -> 05 | E16: =MH1901_Schedule_B!D21 -> 21 | CI16: =F16+Q16+AB16+AM16+AX16+BI16+BT16 -> 0 | CJ16: 0 | CK16: 0 | CL16: 0 | CM16: 0 | CN16: 0 | CO16: 0 | CP16: 0 | CQ16: =N16+Y16+AJ16+AU16+BF16+BQ16+CB16+SUM(CE16:CH16) -> 0 | CR16: 0 | CS16: 0
A17: CR0543 | B17: 3 | C17: =MH1901_Schedule_B!B22 -> CR | D17: =MH1901_Schedule_B!C22 -> 05 | E17: =MH1901_Schedule_B!D22 -> 43 | AB17: 606 | AF17: 14 | AH17: 1543 | AI17: 28 | AJ17: 10 | CI17: 606 | CJ17: 0 | CK17: 0 | CL17: 0 | CM17: 14 | CN17: 0 | CO17: 1543 | CP17: 28 | CQ17: 10 | CR17: 0 | CS17: 0
A18: CR0544 | B18: 4 | C18: =MH1901_Schedule_B!B23 -> CR | D18: =MH1901_Schedule_B!C23 -> 05 | E18: =MH1901_Schedule_B!D23 -> 44 | AJ18: 1096 | CI18: 0 | CJ18: 0 | CK18: 0 | CL18: 0 | CM18: 0 | CN18: 0 | CO18: 0 | CP18: 0 | CQ18: 1096 | CR18: 0 | CS18: 0
A19: CR1025 | B19: 5 | C19: =MH1901_Schedule_B!B24 -> CR | D19: =MH1901_Schedule_B!C24 -> 10 | E19: =MH1901_Schedule_B!D24 -> 25 | AM19: 71577 | AO19: 478 | AP19: 1161 | AQ19: 7 | AS19: 74836 | AT19: 521 | AU19: 87048 | CI19: 71577 | CJ19: 0 | CK19: 478 | CL19: 1161 | CM19: 7 | CN19: 0 | CO19: 74836 | CP19: 521 | CQ19: 87048 | CR19: 0 | CS19: 0
A20: CR1504 | B20: 6 | C20: =MH1901_Schedule_B!B25 -> CR | D20: =MH1901_Schedule_B!C25 -> 15 | E20: =MH1901_Schedule_B!D25 -> 04 | F20: 231292 | J20: 647 | L20: 249999 | M20: 1028 | N20: 2823 | Q20: 119397 | W20: 54082 | X20: 146 | Y20: 669 | AB20: 47735 | AE20: 309 | AH20: 56871 | AJ20: 1549 | CI20: 398424 | CJ20: 0 | CK20: 0 | CL20: 309 | CM20: 647 | CN20: 0 | CO20: 360952 | CP20: 1174 | CQ20: 5041 | CR20: 0 | CS20: 0
A21: CR1505 | B21: 7 | C21: =MH1901_Schedule_B!B26 -> CR | D21: =MH1901_Schedule_B!C26 -> 15 | E21: =MH1901_Schedule_B!D26 -> 05 | N21: 41528 | Q21: 0 | W21: 0 | X21: 0 | Y21: 20988 | AJ21: 40383 | CI21: 0 | CJ21: 0 | CK21: 0 | CL21: 0 | CM21: 0 | CN21: 0 | CO21: 0 | CP21: 0 | CQ21: 102899 | CR21: 0 | CS21: 0
A22: CR1510 | B22: 8 | C22: =MH1901_Schedule_B!B27 -> CR | D22: =MH1901_Schedule_B!C27 -> 15 | E22: =MH1901_Schedule_B!D27 -> 10 | F22: 73692 | L22: 72016 | M22: 66 | N22: 467 | Q22: 9846 | W22: 3338 | X22: 0 | Y22: 387 | AB22: 1173 | AH22: 1152 | AJ22: 66 | CI22: 84711 | CJ22: 0 | CK22: 0 | CL22: 0 | CM22: 0 | CN22: 0 | CO22: 76506 | CP22: 66 | CQ22: 920 | CR22: 0 | CS22: 0
A23: CR1542 | B23: 9 | C23: =MH1901_Schedule_B!B28 -> CR | D23: =MH1901_Schedule_B!C28 -> 15 | E23: =MH1901_Schedule_B!D28 -> 42 | F23: 917933 | J23: 2705 | L23: 755516 | M23: 9323 | N23: 14103 | Q23: 283385 | W23: 198959 | X23: 817 | Y23: 9004 | AB23: 46396 | AE23: 215 | AH23: 37258 | AJ23: 862 | CI23: 1247714 | CJ23: 0 | CK23: 0 | CL23: 215 | CM23: 2705 | CN23: 0 | CO23: 991733 | CP23: 10140 | CQ23: 23969 | CR23: 0 | CS23: 0
A24: CR1544 | B24: 10 | C24: =MH1901_Schedule_B!B29 -> CR | D24: =MH1901_Schedule_B!C29 -> 15 | E24: =MH1901_Schedule_B!D29 -> 44 | N24: 137622 | Q24: 0 | W24: 0 | X24: 0 | Y24: 77740 | AJ24: 14641 | CI24: 0 | CJ24: 0 | CK24: 0 | CL24: 0 | CM24: 0 | CN24: 0 | CO24: 0 | CP24: 0 | CQ24: 230003 | CR24: 0 | CS24: 0
A25: CR1552 | B25: 11 | C25: =MH1901_Schedule_B!B30 -> CR | D25: =MH1901_Schedule_B!C30 -> 15 | E25: =MH1901_Schedule_B!D30 -> 52 | F25: 45639 | L25: 53853 | M25: 2546 | N25: 1310 | Q25: 127645 | W25: 36471 | X25: 82 | Y25: 4473 | AB25: 63889 | AH25: 25474 | AJ25: 567 | CI25: 237173 | CJ25: 0 | CK25: 0 | CL25: 0 | CM25: 0 | CN25: 0 | CO25: 115798 | CP25: 2628 | CQ25: 6350 | CR25: 0 | CS25: 0
A26: CR1562 | B26: 12 | C26: =MH1901_Schedule_B!B31 -> CR | D26: =MH1901_Schedule_B!C31 -> 15 | E26: =MH1901_Schedule_B!D31 -> 62 | F26: 220091 | L26: 154395 | M26: 2992 | N26: 5557 | Q26: 114121 | W26: 65963 | X26: 388 | Y26: 5720 | AB26: 40797 | AF26: 819 | AH26: 77135 | AI26: 562 | AJ26: 3128 | CI26: 375009 | CJ26: 0 | CK26: 0 | CL26: 0 | CM26: 819 | CN26: 0 | CO26: 297493 | CP26: 3942 | CQ26: 14405 | CR26: 0 | CS26: 0
A27: CR1563 | B27: 13 | C27: =MH1901_Schedule_B!B32 -> CR | D27: =MH1901_Schedule_B!C32 -> 15 | E27: =MH1901_Schedule_B!D32 -> 63 | N27: 31151 | Q27: 0 | W27: 0 | Y27: 23694 | AJ27: 43209 | CI27: 0 | CJ27: 0 | CK27: 0 | CL27: 0 | CM27: 0 | CN27: 0 | CO27: 0 | CP27: 0 | CQ27: 98054 | CR27: 0 | CS27: 0
A28: CR1577 | B28: 14 | C28: =MH1901_Schedule_B!B33 -> CR | D28: =MH1901_Schedule_B!C33 -> 15 | E28: =MH1901_Schedule_B!D33 -> 77 | F28: 45299 | L28: 51317 | M28: 123 | N28: 2070 | Q28: 31687 | W28: 19193 | Y28: 728 | AB28: 3838 | AH28: 7253 | AJ28: 179 | CI28: 80824 | CJ28: 0 | CK28: 0 | CL28: 0 | CM28: 0 | CN28: 0 | CO28: 77763 | CP28: 123 | CQ28: 2977 | CR28: 0 | CS28: 0
A29: CR1578 | B29: 15 | C29: =MH1901_Schedule_B!B34 -> CR | D29: =MH1901_Schedule_B!C34 -> 15 | E29: =MH1901_Schedule_B!D34 -> 78 | N29: 7069 | Q29: 0 | Y29: 6778 | AJ29: 4177 | CI29: 0 | CJ29: 0 | CK29: 0 | CL29: 0 | CM29: 0 | CN29: 0 | CO29: 0 | CP29: 0 | CQ29: 18024 | CR29: 0 | CS29: 0
A30: CR4510 | B30: 16 | C30: =MH1901_Schedule_B!B35 -> CR | D30: =MH1901_Schedule_B!C35 -> 45 | E30: =MH1901_Schedule_B!D35 -> 10 | N30: 477.45 | Q30: 0 | Y30: 1.25 | AJ30: 358.8833333 | CI30: 0 | CJ30: 0 | CK30: 0 | CL30: 0 | CM30: 0 | CN30: 0 | CO30: 0 | CP30: 0 | CQ30: 837.5833333 | CR30: 0 | CS30: 0
A31: CR4520 | B31: 17 | C31: =MH1901_Schedule_B!B36 -> CR | D31: =MH1901_Schedule_B!C36 -> 45 | E31: =MH1901_Schedule_B!D36 -> 20 | N31: 927.0333333 | Q31: 0 | Y31: 1284.6 | AJ31: 479.3333333 | CI31: 0 | CJ31: 0 | CK31: 0 | CL31: 0 | CM31: 0 | CN31: 0 | CO31: 0 | CP31: 0 | CQ31: 2690.966667 | CR31: =O31+Z31+AK31+AV31+BG31+BR31+CC31 -> 0 | CS31: 0
A32: CR6040 | B32: 18 | C32: =MH1901_Schedule_B!B37 -> CR | D32: =MH1901_Schedule_B!C37 -> 60 | E32: =MH1901_Schedule_B!D37 -> 40 | AJ32: 2821 | CI32: 0 | CJ32: 0 | CK32: 0 | CL32: 0 | CM32: 0 | CN32: 0 | CO32: 0 | CP32: 0 | CQ32: 2821 | CR32: 0 | CS32: 0
A33: CCR1507 | B33: 19 | C33: =MH1901_Schedule_B!B38 -> CCR | D33: =MH1901_Schedule_B!C38 -> 15 | E33: =MH1901_Schedule_B!D38 -> 07 | CI33: 0 | CJ33: 0 | CK33: 0 | CL33: 0 | CM33: 0 | CN33: 0 | CO33: 0 | CP33: 0 | CQ33: 0 | CR33: 0 | CS33: 0
A34: CCR1534 | B34: 20 | C34: =MH1901_Schedule_B!B39 -> CCR | D34: =MH1901_Schedule_B!C39 -> 15 | E34: =MH1901_Schedule_B!D39 -> 34 | CI34: 0 | CJ34: 0 | CK34: 0 | CL34: 0 | CM34: 0 | CN34: 0 | CO34: 0 | CP34: 0 | CQ34: 0 | CR34: 0 | CS34: 0
A35: CR6070 | B35: 21 | C35: =MH1901_Schedule_B!B40 -> CR | D35: =MH1901_Schedule_B!C40 -> 60 | E35: =MH1901_Schedule_B!D40 -> 70 | CI35: 0 | CJ35: 0 | CK35: 0 | CL35: 0 | CM35: 0 | CN35: 0 | CO35: 0 | CP35: 0 | CQ35: 0 | CR35: 0 | CS35: 0
A36: CR6071 | B36: 22 | C36: =MH1901_Schedule_B!B41 -> CR | D36: =MH1901_Schedule_B!C41 -> 60 | E36: =MH1901_Schedule_B!D41 -> 71 | N36: 1 | CI36: 0 | CJ36: 0 | CK36: 0 | CL36: 0 | CM36: 0 | CN36: 0 | CO36: 0 | CP36: 0 | CQ36: 1 | CR36: 0 | CS36: 0
A37: CR6072 | B37: 23 | C37: =MH1901_Schedule_B!B42 -> CR | D37: =MH1901_Schedule_B!C42 -> 60 | E37: =MH1901_Schedule_B!D42 -> 72 | N37: 1 | CI37: 0 | CJ37: 0 | CK37: 0 | CL37: 0 | CM37: 0 | CN37: 0 | CO37: 0 | CP37: 0 | CQ37: 1 | CR37: 0 | CS37: 0
A38: CR6078 | B38: 24 | C38: =MH1901_Schedule_B!B43 -> CR | D38: =MH1901_Schedule_B!C43 -> 60 | E38: =MH1901_Schedule_B!D43 -> 78 | N38: 1 | CI38: 0 | CJ38: 0 | CK38: 0 | CL38: 0 | CM38: 0 | CN38: 0 | CO38: 0 | CP38: 0 | CQ38: 1 | CR38: 0 | CS38: 0
A39: 000 | B39: 25 | C39: =MH1901_Schedule_B!B44 -> 0 | D39: =MH1901_Schedule_B!C44 -> 0 | E39: =MH1901_Schedule_B!D44 -> 0 | CI39: 0 | CJ39: 0 | CK39: 0 | CL39: 0 | CM39: 0 | CN39: 0 | CO39: 0 | CP39: 0 | CQ39: 0 | CR39: 0 | CS39: 0
A40: 000 | B40: 26 | C40: =MH1901_Schedule_B!B45 -> 0 | D40: =MH1901_Schedule_B!C45 -> 0 | E40: =MH1901_Schedule_B!D45 -> 0 | CI40: 0 | CJ40: 0 | CK40: 0 | CL40: 0 | CM40: 0 | CN40: 0 | CO40: 0 | CP40: 0 | CQ40: 0 | CR40: 0 | CS40: 0
A41: 000 | B41: 27 | C41: =MH1901_Schedule_B!B46 -> 0 | D41: =MH1901_Schedule_B!C46 -> 0 | E41: =MH1901_Schedule_B!D46 -> 0 | CI41: 0 | CJ41: 0 | CK41: 0 | CL41: 0 | CM41: 0 | CN41: 0 | CO41: 0 | CP41: 0 | CQ41: 0 | CR41: 0 | CS41: 0
A42: 000 | B42: 28 | C42: =MH1901_Schedule_B!B47 -> 0 | D42: =MH1901_Schedule_B!C47 -> 0 | E42: =MH1901_Schedule_B!D47 -> 0 | CI42: 0 | CJ42: 0 | CK42: 0 | CL42: 0 | CM42: 0 | CN42: 0 | CO42: 0 | CP42: 0 | CQ42: 0 | CR42: 0 | CS42: 0
A43: 000 | B43: 29 | C43: =MH1901_Schedule_B!B48 -> 0 | D43: =MH1901_Schedule_B!C48 -> 0 | E43: =MH1901_Schedule_B!D48 -> 0 | CI43: 0 | CJ43: 0 | CK43: 0 | CL43: 0 | CM43: 0 | CN43: 0 | CO43: 0 | CP43: 0 | CQ43: 0 | CR43: 0 | CS43: 0
A44: 000 | B44: 30 | C44: =MH1901_Schedule_B!B49 -> 0 | D44: =MH1901_Schedule_B!C49 -> 0 | E44: =MH1901_Schedule_B!D49 -> 0 | CI44: 0 | CJ44: 0 | CK44: 0 | CL44: 0 | CM44: 0 | CN44: 0 | CO44: 0 | CP44: 0 | CQ44: 0 | CR44: 0 | CS44: 0
A45: 000 | B45: 31 | C45: =MH1901_Schedule_B!B50 -> 0 | D45: =MH1901_Schedule_B!C50 -> 0 | E45: =MH1901_Schedule_B!D50 -> 0 | CI45: 0 | CJ45: 0 | CK45: 0 | CL45: 0 | CM45: 0 | CN45: 0 | CO45: 0 | CP45: 0 | CQ45: 0 | CR45: 0 | CS45: 0
A46: 000 | B46: 32 | C46: =MH1901_Schedule_B!B51 -> 0 | D46: =MH1901_Schedule_B!C51 -> 0 | E46: =MH1901_Schedule_B!D51 -> 0 | CI46: 0 | CJ46: 0 | CK46: 0 | CL46: 0 | CM46: 0 | CN46: 0 | CO46: 0 | CP46: 0 | CQ46: 0 | CR46: 0 | CS46: 0
A47: 000 | B47: 33 | C47: =MH1901_Schedule_B!B52 -> 0 | D47: =MH1901_Schedule_B!C52 -> 0 | E47: =MH1901_Schedule_B!D52 -> 0 | CI47: 0 | CJ47: 0 | CK47: 0 | CL47: 0 | CM47: 0 | CN47: 0 | CO47: 0 | CP47: 0 | CQ47: 0 | CR47: 0 | CS47: 0
A48: 000 | B48: 34 | C48: =MH1901_Schedule_B!B53 -> 0 | D48: =MH1901_Schedule_B!C53 -> 0 | E48: =MH1901_Schedule_B!D53 -> 0 | CI48: 0 | CJ48: 0 | CK48: 0 | CL48: 0 | CM48: 0 | CN48: 0 | CO48: 0 | CP48: 0 | CQ48: 0 | CR48: 0 | CS48: 0
A49: 000 | B49: 35 | C49: =MH1901_Schedule_B!B54 -> 0 | D49: =MH1901_Schedule_B!C54 -> 0 | E49: =MH1901_Schedule_B!D54 -> 0 | CI49: 0 | CJ49: 0 | CK49: 0 | CL49: 0 | CM49: 0 | CN49: 0 | CO49: 0 | CP49: 0 | CQ49: 0 | CR49: 0 | CS49: 0
A50: 000 | B50: 36 | C50: =MH1901_Schedule_B!B55 -> 0 | D50: =MH1901_Schedule_B!C55 -> 0 | E50: =MH1901_Schedule_B!D55 -> 0 | CI50: 0 | CJ50: 0 | CK50: 0 | CL50: 0 | CM50: 0 | CN50: 0 | CO50: 0 | CP50: 0 | CQ50: 0 | CR50: 0 | CS50: 0
A51: 000 | B51: 37 | C51: =MH1901_Schedule_B!B56 -> 0 | D51: =MH1901_Schedule_B!C56 -> 0 | E51: =MH1901_Schedule_B!D56 -> 0 | CI51: 0 | CJ51: 0 | CK51: 0 | CL51: 0 | CM51: 0 | CN51: 0 | CO51: 0 | CP51: 0 | CQ51: 0 | CR51: 0 | CS51: 0
A52: 000 | B52: 38 | C52: =MH1901_Schedule_B!B57 -> 0 | D52: =MH1901_Schedule_B!C57 -> 0 | E52: =MH1901_Schedule_B!D57 -> 0 | CI52: 0 | CJ52: 0 | CK52: 0 | CL52: 0 | CM52: 0 | CN52: 0 | CO52: 0 | CP52: 0 | CQ52: 0 | CR52: 0 | CS52: 0
A53: 000 | B53: 39 | C53: =MH1901_Schedule_B!B58 -> 0 | D53: =MH1901_Schedule_B!C58 -> 0 | E53: =MH1901_Schedule_B!D58 -> 0 | CI53: 0 | CJ53: 0 | CK53: 0 | CL53: 0 | CM53: 0 | CN53: 0 | CO53: 0 | CP53: 0 | CQ53: 0 | CR53: 0 | CS53: 0
A54: 000 | B54: 40 | C54: =MH1901_Schedule_B!B59 -> 0 | D54: =MH1901_Schedule_B!C59 -> 0 | E54: =MH1901_Schedule_B!D59 -> 0 | CI54: 0 | CJ54: 0 | CK54: 0 | CL54: 0 | CM54: 0 | CN54: 0 | CO54: 0 | CP54: 0 | CQ54: 0 | CR54: 0 | CS54: 0
A55: 000 | B55: 41 | C55: =MH1901_Schedule_B!B60 -> 0 | D55: =MH1901_Schedule_B!C60 -> 0 | E55: =MH1901_Schedule_B!D60 -> 0 | CI55: 0 | CJ55: 0 | CK55: 0 | CL55: 0 | CM55: 0 | CN55: 0 | CO55: 0 | CP55: 0 | CQ55: 0 | CR55: 0 | CS55: 0
A56: 000 | B56: 42 | C56: =MH1901_Schedule_B!B61 -> 0 | D56: =MH1901_Schedule_B!C61 -> 0 | E56: =MH1901_Schedule_B!D61 -> 0 | CI56: 0 | CJ56: 0 | CK56: 0 | CL56: 0 | CM56: 0 | CN56: 0 | CO56: 0 | CP56: 0 | CQ56: 0 | CR56: 0 | CS56: 0
A57: 000 | B57: 43 | C57: =MH1901_Schedule_B!B62 -> 0 | D57: =MH1901_Schedule_B!C62 -> 0 | E57: =MH1901_Schedule_B!D62 -> 0 | CI57: 0 | CJ57: 0 | CK57: 0 | CL57: 0 | CM57: 0 | CN57: 0 | CO57: 0 | CP57: 0 | CQ57: 0 | CR57: 0 | CS57: 0
A58: 000 | B58: 44 | C58: =MH1901_Schedule_B!B63 -> 0 | D58: =MH1901_Schedule_B!C63 -> 0 | E58: =MH1901_Schedule_B!D63 -> 0 | CI58: 0 | CJ58: 0 | CK58: 0 | CL58: 0 | CM58: 0 | CN58: 0 | CO58: 0 | CP58: 0 | CQ58: 0 | CR58: 0 | CS58: 0
A59: 000 | B59: 45 | C59: =MH1901_Schedule_B!B64 -> 0 | D59: =MH1901_Schedule_B!C64 -> 0 | E59: =MH1901_Schedule_B!D64 -> 0 | CI59: 0 | CJ59: 0 | CK59: 0 | CL59: 0 | CM59: 0 | CN59: 0 | CO59: 0 | CP59: 0 | CQ59: 0 | CR59: 0 | CS59: 0
A60: 000 | B60: 46 | C60: =MH1901_Schedule_B!B65 -> 0 | D60: =MH1901_Schedule_B!C65 -> 0 | E60: =MH1901_Schedule_B!D65 -> 0 | CI60: 0 | CJ60: 0 | CK60: 0 | CL60: 0 | CM60: 0 | CN60: 0 | CO60: 0 | CP60: 0 | CQ60: 0 | CR60: 0 | CS60: 0
A61: 000 | B61: 47 | C61: =MH1901_Schedule_B!B66 -> 0 | D61: =MH1901_Schedule_B!C66 -> 0 | E61: =MH1901_Schedule_B!D66 -> 0 | CI61: =F61+Q61+AB61+AM61+AX61+BI61+BT61 -> 0 | CJ61: 0 | CK61: 0 | CL61: 0 | CM61: 0 | CN61: 0 | CO61: 0 | CP61: 0 | CQ61: 0 | CR61: 0 | CS61: 0
A62: 000 | B62: 48 | C62: =MH1901_Schedule_B!B67 -> 0 | D62: =MH1901_Schedule_B!C67 -> 0 | E62: =MH1901_Schedule_B!D67 -> 0 | CI62: 0 | CJ62: 0 | CK62: 0 | CL62: 0 | CM62: 0 | CN62: 0 | CO62: 0 | CP62: 0 | CQ62: 0 | CR62: 0 | CS62: 0
A63: 000 | B63: 49 | C63: =MH1901_Schedule_B!B68 -> 0 | D63: =MH1901_Schedule_B!C68 -> 0 | E63: =MH1901_Schedule_B!D68 -> 0 | CI63: 0 | CJ63: 0 | CK63: 0 | CL63: 0 | CM63: 0 | CN63: 0 | CO63: 0 | CP63: 0 | CQ63: 0 | CR63: 0 | CS63: 0
A64: 000 | B64: 50 | C64: =MH1901_Schedule_B!B69 -> 0 | D64: =MH1901_Schedule_B!C69 -> 0 | E64: =MH1901_Schedule_B!D69 -> 0 | CI64: 0 | CJ64: 0 | CK64: 0 | CL64: 0 | CM64: 0 | CN64: 0 | CO64: 0 | CP64: 0 | CQ64: 0 | CR64: 0 | CS64: 0
A65: 000 | B65: 51 | C65: =MH1901_Schedule_B!B70 -> 0 | D65: =MH1901_Schedule_B!C70 -> 0 | E65: =MH1901_Schedule_B!D70 -> 0 | CI65: 0 | CJ65: 0 | CK65: 0 | CL65: 0 | CM65: 0 | CN65: 0 | CO65: 0 | CP65: 0 | CQ65: 0 | CR65: 0 | CS65: 0
A66: 000 | B66: 52 | C66: =MH1901_Schedule_B!B71 -> 0 | D66: =MH1901_Schedule_B!C71 -> 0 | E66: =MH1901_Schedule_B!D71 -> 0 | CI66: 0 | CJ66: 0 | CK66: 0 | CL66: 0 | CM66: 0 | CN66: 0 | CO66: 0 | CP66: 0 | CQ66: 0 | CR66: 0 | CS66: 0
A67: 000 | B67: 53 | C67: =MH1901_Schedule_B!B72 -> 0 | D67: =MH1901_Schedule_B!C72 -> 0 | E67: =MH1901_Schedule_B!D72 -> 0 | CI67: 0 | CJ67: 0 | CK67: 0 | CL67: 0 | CM67: 0 | CN67: 0 | CO67: 0 | CP67: 0 | CQ67: 0 | CR67: 0 | CS67: 0
A68: 000 | B68: 54 | C68: =MH1901_Schedule_B!B73 -> 0 | D68: =MH1901_Schedule_B!C73 -> 0 | E68: =MH1901_Schedule_B!D73 -> 0 | CI68: 0 | CJ68: 0 | CK68: 0 | CL68: 0 | CM68: 0 | CN68: 0 | CO68: 0 | CP68: 0 | CQ68: 0 | CR68: 0 | CS68: 0
A69: 000 | B69: 55 | C69: =MH1901_Schedule_B!B74 -> 0 | D69: =MH1901_Schedule_B!C74 -> 0 | E69: =MH1901_Schedule_B!D74 -> 0 | CI69: 0 | CJ69: 0 | CK69: 0 | CL69: 0 | CM69: 0 | CN69: 0 | CO69: 0 | CP69: 0 | CQ69: 0 | CR69: 0 | CS69: 0
A70: 000 | B70: 56 | C70: =MH1901_Schedule_B!B75 -> 0 | D70: =MH1901_Schedule_B!C75 -> 0 | E70: =MH1901_Schedule_B!D75 -> 0 | CI70: 0 | CJ70: 0 | CK70: 0 | CL70: 0 | CM70: 0 | CN70: 0 | CO70: 0 | CP70: 0 | CQ70: 0 | CR70: 0 | CS70: 0
A71: 000 | B71: 57 | C71: =MH1901_Schedule_B!B76 -> 0 | D71: =MH1901_Schedule_B!C76 -> 0 | E71: =MH1901_Schedule_B!D76 -> 0 | CI71: 0 | CJ71: 0 | CK71: 0 | CL71: 0 | CM71: 0 | CN71: 0 | CO71: 0 | CP71: 0 | CQ71: 0 | CR71: 0 | CS71: 0
A72: 000 | B72: 58 | C72: =MH1901_Schedule_B!B77 -> 0 | D72: =MH1901_Schedule_B!C77 -> 0 | E72: =MH1901_Schedule_B!D77 -> 0 | CI72: 0 | CJ72: 0 | CK72: 0 | CL72: 0 | CM72: 0 | CN72: 0 | CO72: 0 | CP72: 0 | CQ72: 0 | CR72: 0 | CS72: 0
A73: 000 | B73: 59 | C73: =MH1901_Schedule_B!B78 -> 0 | D73: =MH1901_Schedule_B!C78 -> 0 | E73: =MH1901_Schedule_B!D78 -> 0 | CI73: 0 | CJ73: 0 | CK73: 0 | CL73: 0 | CM73: 0 | CN73: 0 | CO73: 0 | CP73: 0 | CQ73: 0 | CR73: 0 | CS73: 0
A74: 000 | B74: 60 | C74: =MH1901_Schedule_B!B79 -> 0 | D74: =MH1901_Schedule_B!C79 -> 0 | E74: =MH1901_Schedule_B!D79 -> 0 | CI74: 0 | CJ74: 0 | CK74: 0 | CL74: 0 | CM74: 0 | CN74: 0 | CO74: 0 | CP74: 0 | CQ74: 0 | CR74: 0 | CS74: 0
A75: 000 | B75: 61 | C75: =MH1901_Schedule_B!B80 -> 0 | D75: =MH1901_Schedule_B!C80 -> 0 | E75: =MH1901_Schedule_B!D80 -> 0 | CI75: 0 | CJ75: 0 | CK75: 0 | CL75: 0 | CM75: 0 | CN75: 0 | CO75: 0 | CP75: 0 | CQ75: 0 | CR75: 0 | CS75: 0
A76: 000 | B76: 62 | C76: =MH1901_Schedule_B!B81 -> 0 | D76: =MH1901_Schedule_B!C81 -> 0 | E76: =MH1901_Schedule_B!D81 -> 0 | CI76: 0 | CJ76: 0 | CK76: 0 | CL76: 0 | CM76: 0 | CN76: 0 | CO76: 0 | CP76: 0 | CQ76: 0 | CR76: 0 | CS76: 0
A77: 000 | B77: 63 | C77: =MH1901_Schedule_B!B82 -> 0 | D77: =MH1901_Schedule_B!C82 -> 0 | E77: =MH1901_Schedule_B!D82 -> 0 | CI77: 0 | CJ77: 0 | CK77: 0 | CL77: 0 | CM77: 0 | CN77: 0 | CO77: 0 | CP77: 0 | CQ77: 0 | CR77: 0 | CS77: 0
A78: 000 | B78: 64 | C78: =MH1901_Schedule_B!B83 -> 0 | D78: =MH1901_Schedule_B!C83 -> 0 | E78: =MH1901_Schedule_B!D83 -> 0 | CI78: 0 | CJ78: 0 | CK78: 0 | CL78: 0 | CM78: 0 | CN78: 0 | CO78: 0 | CP78: 0 | CQ78: 0 | CR78: 0 | CS78: 0
A79: =C79&D79&E79 -> 000 | B79: 65 | C79: =MH1901_Schedule_B!B84 -> 0 | D79: =MH1901_Schedule_B!C84 -> 0 | E79: =MH1901_Schedule_B!D84 -> 0 | CI79: 0 | CJ79: 0 | CK79: 0 | CL79: 0 | CM79: 0 | CN79: 0 | CO79: 0 | CP79: 0 | CQ79: 0 | CR79: 0 | CS79: 0
A80: 000 | B80: 66 | C80: =MH1901_Schedule_B!B85 -> 0 | D80: =MH1901_Schedule_B!C85 -> 0 | E80: =MH1901_Schedule_B!D85 -> 0 | CI80: 0 | CJ80: 0 | CK80: 0 | CL80: 0 | CM80: 0 | CN80: 0 | CO80: 0 | CP80: 0 | CQ80: =N80+Y80+AJ80+AU80+BF80+BQ80+CB80+SUM(CE80:CH80) -> 0 | CR80: 0 | CS80: 0
A81: 000 | B81: 67 | C81: =MH1901_Schedule_B!B86 -> 0 | D81: =MH1901_Schedule_B!C86 -> 0 | E81: =MH1901_Schedule_B!D86 -> 0 | CI81: 0 | CJ81: 0 | CK81: 0 | CL81: 0 | CM81: 0 | CN81: 0 | CO81: 0 | CP81: 0 | CQ81: 0 | CR81: 0 | CS81: 0
A82: 000 | B82: 68 | C82: =MH1901_Schedule_B!B87 -> 0 | D82: =MH1901_Schedule_B!C87 -> 0 | E82: =MH1901_Schedule_B!D87 -> 0 | CI82: 0 | CJ82: 0 | CK82: 0 | CL82: 0 | CM82: 0 | CN82: 0 | CO82: 0 | CP82: 0 | CQ82: 0 | CR82: 0 | CS82: 0
A83: 000 | B83: 69 | C83: =MH1901_Schedule_B!B88 -> 0 | D83: =MH1901_Schedule_B!C88 -> 0 | E83: =MH1901_Schedule_B!D88 -> 0 | CI83: 0 | CJ83: 0 | CK83: 0 | CL83: 0 | CM83: 0 | CN83: 0 | CO83: 0 | CP83: 0 | CQ83: 0 | CR83: 0 | CS83: 0
A84: 000 | B84: 70 | C84: =MH1901_Schedule_B!B89 -> 0 | D84: =MH1901_Schedule_B!C89 -> 0 | E84: =MH1901_Schedule_B!D89 -> 0 | CI84: 0 | CJ84: 0 | CK84: 0 | CL84: 0 | CM84: 0 | CN84: 0 | CO84: 0 | CP84: 0 | CQ84: 0 | CR84: 0 | CS84: 0
A85: 000 | B85: 71 | C85: =MH1901_Schedule_B!B90 -> 0 | D85: =MH1901_Schedule_B!C90 -> 0 | E85: =MH1901_Schedule_B!D90 -> 0 | CI85: 0 | CJ85: 0 | CK85: 0 | CL85: 0 | CM85: 0 | CN85: 0 | CO85: 0 | CP85: 0 | CQ85: 0 | CR85: 0 | CS85: 0
A86: 000 | B86: 72 | C86: =MH1901_Schedule_B!B91 -> 0 | D86: =MH1901_Schedule_B!C91 -> 0 | E86: =MH1901_Schedule_B!D91 -> 0 | CI86: 0 | CJ86: 0 | CK86: 0 | CL86: 0 | CM86: 0 | CN86: 0 | CO86: 0 | CP86: 0 | CQ86: 0 | CR86: 0 | CS86: 0
A87: 000 | B87: 73 | C87: =MH1901_Schedule_B!B92 -> 0 | D87: =MH1901_Schedule_B!C92 -> 0 | E87: =MH1901_Schedule_B!D92 -> 0 | CI87: 0 | CJ87: 0 | CK87: 0 | CL87: 0 | CM87: 0 | CN87: 0 | CO87: 0 | CP87: 0 | CQ87: 0 | CR87: 0 | CS87: 0
A88: 000 | B88: 74 | C88: =MH1901_Schedule_B!B93 -> 0 | D88: =MH1901_Schedule_B!C93 -> 0 | E88: =MH1901_Schedule_B!D93 -> 0 | CI88: 0 | CJ88: 0 | CK88: 0 | CL88: 0 | CM88: 0 | CN88: 0 | CO88: 0 | CP88: 0 | CQ88: 0 | CR88: 0 | CS88: 0
A89: 000 | B89: 75 | C89: =MH1901_Schedule_B!B94 -> 0 | D89: =MH1901_Schedule_B!C94 -> 0 | E89: =MH1901_Schedule_B!D94 -> 0 | CI89: 0 | CJ89: 0 | CK89: 0 | CL89: 0 | CM89: 0 | CN89: 0 | CO89: 0 | CP89: 0 | CQ89: 0 | CR89: 0 | CS89: 0
A90: 000 | B90: 76 | C90: =MH1901_Schedule_B!B95 -> 0 | D90: =MH1901_Schedule_B!C95 -> 0 | E90: =MH1901_Schedule_B!D95 -> 0 | CI90: 0 | CJ90: 0 | CK90: 0 | CL90: 0 | CM90: 0 | CN90: 0 | CO90: 0 | CP90: 0 | CQ90: 0 | CR90: 0 | CS90: 0
A91: 000 | B91: 77 | C91: =MH1901_Schedule_B!B96 -> 0 | D91: =MH1901_Schedule_B!C96 -> 0 | E91: =MH1901_Schedule_B!D96 -> 0 | CI91: 0 | CJ91: 0 | CK91: 0 | CL91: 0 | CM91: 0 | CN91: 0 | CO91: 0 | CP91: 0 | CQ91: 0 | CR91: 0 | CS91: 0
A92: 000 | B92: 78 | C92: =MH1901_Schedule_B!B97 -> 0 | D92: =MH1901_Schedule_B!C97 -> 0 | E92: =MH1901_Schedule_B!D97 -> 0 | CI92: 0 | CJ92: 0 | CK92: 0 | CL92: 0 | CM92: 0 | CN92: 0 | CO92: 0 | CP92: =M92+X92+AI92+AT92+BE92+BP92+CA92 -> 0 | CQ92: 0 | CR92: 0 | CS92: 0
A93: 000 | B93: 79 | C93: =MH1901_Schedule_B!B98 -> 0 | D93: =MH1901_Schedule_B!C98 -> 0 | E93: =MH1901_Schedule_B!D98 -> 0 | CI93: =F93+Q93+AB93+AM93+AX93+BI93+BT93 -> 0 | CJ93: 0 | CK93: 0 | CL93: 0 | CM93: 0 | CN93: 0 | CO93: 0 | CP93: 0 | CQ93: 0 | CR93: 0 | CS93: 0
A94: 000 | B94: 80 | C94: =MH1901_Schedule_B!B99 -> 0 | D94: =MH1901_Schedule_B!C99 -> 0 | E94: =MH1901_Schedule_B!D99 -> 0 | CI94: 0 | CJ94: 0 | CK94: 0 | CL94: 0 | CM94: 0 | CN94: 0 | CO94: 0 | CP94: 0 | CQ94: 0 | CR94: 0 | CS94: 0
A95: 000 | B95: 81 | C95: =MH1901_Schedule_B!B100 -> 0 | D95: =MH1901_Schedule_B!C100 -> 0 | E95: =MH1901_Schedule_B!D100 -> 0 | CI95: 0 | CJ95: 0 | CK95: 0 | CL95: 0 | CM95: 0 | CN95: 0 | CO95: 0 | CP95: 0 | CQ95: 0 | CR95: =O95+Z95+AK95+AV95+BG95+BR95+CC95 -> 0 | CS95: 0
A96: 000 | B96: 82 | C96: =MH1901_Schedule_B!B101 -> 0 | D96: =MH1901_Schedule_B!C101 -> 0 | E96: =MH1901_Schedule_B!D101 -> 0 | CI96: 0 | CJ96: 0 | CK96: 0 | CL96: 0 | CM96: 0 | CN96: 0 | CO96: 0 | CP96: 0 | CQ96: 0 | CR96: 0 | CS96: 0
A97: 000 | B97: 83 | C97: =MH1901_Schedule_B!B102 -> 0 | D97: =MH1901_Schedule_B!C102 -> 0 | E97: =MH1901_Schedule_B!D102 -> 0 | CI97: 0 | CJ97: 0 | CK97: 0 | CL97: 0 | CM97: 0 | CN97: 0 | CO97: 0 | CP97: 0 | CQ97: 0 | CR97: 0 | CS97: 0
A98: 000 | B98: 84 | C98: =MH1901_Schedule_B!B103 -> 0 | D98: =MH1901_Schedule_B!C103 -> 0 | E98: =MH1901_Schedule_B!D103 -> 0 | CI98: 0 | CJ98: 0 | CK98: 0 | CL98: 0 | CM98: 0 | CN98: 0 | CO98: 0 | CP98: 0 | CQ98: =N98+Y98+AJ98+AU98+BF98+BQ98+CB98+SUM(CE98:CH98) -> 0 | CR98: 0 | CS98: 0
D99: Total | F99: =SUM(F15:F98) -> 1533946 | G99: =SUM(G15:G98) -> 0 | H99: 0 | I99: =SUM(I15:I98) -> 0 | J99: =SUM(J15:J98) -> 3352 | K99: 0 | L99: 1337096 | M99: 16078 | N99: 245107.4833 | O99: 0 | P99: 0 | Q99: =SUM(Q15:Q98) -> 686081 | R99: =SUM(R15:R98) -> 0 | S99: 0 | T99: =SUM(T15:T98) -> 0 | U99: =SUM(U15:U98) -> 0 | V99: 0 | W99: 378006 | X99: 1433 | Y99: 151466.85 | Z99: 0 | AA99: 0 | AB99: =SUM(AB15:AB98) -> 204434 | AC99: =SUM(AC15:AC98) -> 0 | AD99: 0 | AE99: =SUM(AE15:AE98) -> 524 | AF99: =SUM(AF15:AF98) -> 833 | AG99: 0 | AH99: 206686 | AI99: 590 | AJ99: 113526.2167 | AK99: 0 | AL99: 0 | AM99: =SUM(AM15:AM98) -> 71577 | AN99: =SUM(AN15:AN98) -> 0 | AO99: 478 | AP99: =SUM(AP15:AP98) -> 1161 | AQ99: =SUM(AQ15:AQ98) -> 7 | AR99: 0 | AS99: 74836 | AT99: 521 | AU99: 87048 | AV99: 0 | AW99: 0 | AX99: =SUM(AX15:AX98) -> 0 | AY99: =SUM(AY15:AY98) -> 0 | AZ99: 0 | BA99: =SUM(BA15:BA98) -> 0 | BB99: =SUM(BB15:BB98) -> 0 | BC99: 0 | BD99: 0 | BE99: 0 | BF99: 0 | BG99: 0 | BH99: 0 | BI99: =SUM(BI15:BI98) -> 0 | BJ99: =SUM(BJ15:BJ98) -> 0 | BK99: 0 | BL99: =SUM(BL15:BL98) -> 0 | BM99: =SUM(BM15:BM98) -> 0 | BN99: 0 | BO99: 0 | BP99: 0 | BQ99: 0 | BR99: 0 | BS99: 0 | BT99: =SUM(BT15:BT98) -> 0 | BU99: =SUM(BU15:BU98) -> 0 | BV99: 0 | BW99: =SUM(BW15:BW98) -> 0 | BX99: =SUM(BX15:BX98) -> 0 | BY99: 0 | BZ99: 0 | CA99: 0 | CB99: 0 | CC99: 0 | CD99: 0 | CE99: =SUM(CE15:CE98) -> 0 | CF99: =SUM(CF15:CF98) -> 0 | CG99: 0 | CH99: 0 | CI99: 2496038 | CJ99: 0 | CK99: 478 | CL99: 1685 | CM99: 4192 | CN99: 0 | CO99: 1996624 | CP99: 18622 | CQ99: 597148.55 | CR99: 0 | CS99: 0

Sheet MH1901_Schedule_C
A1: State of California Health and Human Services Agency | L1: Department of Health Care Services
A2: DETAIL COST REPORT
A3: SUPPORTING DOCUMENTATION FOR THE METHOD USED TO ALLOCATE TOTALS TO MODE OF SERVICE & SERVICE FUNCTION
A4: ="MH1901 SCHEDULE C "&Revision_Date -> MH1901 SCHEDULE C (Rev. 02/2019) | L4: FISCAL YEAR 2020-2021
D7: ="Entity Name : "&Legal_Entity_Name -> Entity Name : Vermont Mental Health | L7: ="Entity Number : "&Legal_Entity_Number -> Entity Number : 00055
C9: Fiscal Year: | D9: =Setup!B4 -> 2020 - 2021
I10: COSTS TO BE ALLOCATED
I11: Allowable Non-Hospital Mode Costs (MH1960 Line44,Col.J) | L11: ='MH1960'!N59 -> 59453000
E13: 3 | I13: =IF(ABS($L$11-SUM(E118,I114))>Rounding,"AllowableNon-HospitalModeCostsNotEntirelyAllocated.","OK") -> OK
D17: A | E17: B | F17: C | G17: D | H17: E | I17: F | J17: G | K17: H | L17: I
I18: Allocation Basis
D19: Settlement Type | E19: Mode | F19: SF | G19: Total Units | H19: Eligible Direct Cost | I19: Directly Allocated Data | J19: Relative Value | K19: Allocation % | L19: Allocated Cost
B20: =TRIM(D20&"_"&E20&"_"&F20&"_"&RIGHT(C20,1)) -> CR_05_20_1 | C20: 1 | D20: =MH1901_Schedule_B!B20 -> CR | E20: =IF(MH1901_Schedule_B!C20="","",MH1901_Schedule_B!C20) -> 05 | F20: =IF(MH1901_Schedule_B!D20="","",MH1901_Schedule_B!D20) -> 20 | G20: =IF(ISNUMBER(MH1901_Schedule_B!E20)=FALSE,0,MH1901_Schedule_B!E20) -> 5869 | I20: 451888.8304 | J20: =RelativeValue(E20,F20,$E$13,G20,M20) -> 0 | K20: =AllocationPercent(M20,J20,I20,$H$105+$I$105,$J$105) -> 0 | L20: =IF(G20>0,AllocatedCost(M20,H20,I20,K20,$H$105+$I$105,$L$11,G20),0) -> 451888.8304 | M20: =IF(LEN(D20)>1,AllocationMethod(D20,E20,F20,G20,H20,I20,$E$13),200) -> 400 | N20: =IF(SUM(G20:I20)>0,DecodeAllocationType(M20,Setup!$B$33),"") -> 
B21: =TRIM(D21&"_"&E21&"_"&F21&"_"&RIGHT(C21,1)) -> CR_05_21_2 | C21: =C20+1 -> 2 | D21: =MH1901_Schedule_B!B21 -> CR | E21: =IF(MH1901_Schedule_B!C21="","",MH1901_Schedule_B!C21) -> 05 | F21: =IF(MH1901_Schedule_B!D21="","",MH1901_Schedule_B!D21) -> 21 | G21: =IF(ISNUMBER(MH1901_Schedule_B!E21)=FALSE,0,MH1901_Schedule_B!E21) -> 533 | I21: 457793.9476 | J21: =RelativeValue(E21,F21,$E$13,G21,M21) -> 0 | K21: =AllocationPercent(M21,J21,I21,$H$105+$I$105,$J$105) -> 0 | L21: =IF(G21>0,AllocatedCost(M21,H21,I21,K21,$H$105+$I$105,$L$11,G21),0) -> 457793.9476 | M21: =IF(LEN(D21)>1,AllocationMethod(D21,E21,F21,G21,H21,I21,$E$13),200) -> 400 | N21: =IF(SUM(G21:I21)>0,DecodeAllocationType(M21,[11]Setup!$B$32),"") -> 
B22: =TRIM(D22&"_" & E22 & "_" &F22& "_" &RIGHT(C22,1)) -> CR_05_43_3 | C22: =C21+1 -> 3 | D22: =MH1901_Schedule_B!B22 -> CR | E22: =IF(MH1901_Schedule_B!C22="","",MH1901_Schedule_B!C22) -> 05 | F22: =IF(MH1901_Schedule_B!D22="","",MH1901_Schedule_B!D22) -> 43 | G22: =IF(ISNUMBER(MH1901_Schedule_B!E22)=FALSE,0,MH1901_Schedule_B!E22) -> 2201 | I22: 947897.0287 | J22: 0 | K22: 0 | L22: =IF(G22>0,AllocatedCost(M22,H22,I22,K22,$H$105+$I$105,$L$11,G22),0) -> 947897.0287 | M22: =IF(LEN(D22)>1,AllocationMethod(D22,E22,F22,G22,H22,I22, $E$13),200) -> 400 | N22: =IF(SUM(G22:I22)>0,DecodeAllocationType(M22,[12]Setup!$B$32),"") -> 
B23: CR_05_44_4 | C23: 4 | D23: =MH1901_Schedule_B!B23 -> CR | E23: =IF(MH1901_Schedule_B!C23="","",MH1901_Schedule_B!C23) -> 05 | F23: =IF(MH1901_Schedule_B!D23="","",MH1901_Schedule_B!D23) -> 44 | G23: =IF(ISNUMBER(MH1901_Schedule_B!E23)=FALSE,0,MH1901_Schedule_B!E23) -> 1096 | I23: 472010.515 | J23: 0 | K23: 0 | L23: =IF(G23>0,AllocatedCost(M23,H23,I23,K23,$H$105+$I$105,$L$11,G23),0) -> 472010.515 | M23: 400 | N23: =IF(SUM(G23:I23)>0,DecodeAllocationType(M23,[12]Setup!$B$32),"") -> 
B24: CR_10_25_5 | C24: 5 | D24: =MH1901_Schedule_B!B24 -> CR | E24: =IF(MH1901_Schedule_B!C24="","",MH1901_Schedule_B!C24) -> 10 | F24: =IF(MH1901_Schedule_B!D24="","",MH1901_Schedule_B!D24) -> 25 | G24: =IF(ISNUMBER(MH1901_Schedule_B!E24)=FALSE,0,MH1901_Schedule_B!E24) -> 241692 | I24: =31428437.5916852-10000 -> 31418437.59 | J24: 0 | K24: 0 | L24: =IF(G24>0,AllocatedCost(M24,H24,I24,K24,$H$105+$I$105,$L$11,G24),0) -> 31418437.59 | M24: 400 | N24: =IF(SUM(G24:I24)>0,DecodeAllocationType(M24,[12]Setup!$B$32),"") -> 
B25: CR_15_04_6 | C25: 6 | D25: =MH1901_Schedule_B!B25 -> CR | E25: =IF(MH1901_Schedule_B!C25="","",MH1901_Schedule_B!C25) -> 15 | F25: =IF(MH1901_Schedule_B!D25="","",MH1901_Schedule_B!D25) -> 04 | G25: =IF(ISNUMBER(MH1901_Schedule_B!E25)=FALSE,0,MH1901_Schedule_B!E25) -> 774186 | I25: 2555878.232 | J25: 0 | K25: 0 | L25: =IF(G25>0,AllocatedCost(M25,H25,I25,K25,$H$105+$I$105,$L$11,G25),0) -> 2555878.232 | M25: 400 | N25: =IF(SUM(G25:I25)>0,DecodeAllocationType(M25,[12]Setup!$B$32),"") -> 
B26: CR_15_05_7 | C26: 7 | D26: =MH1901_Schedule_B!B26 -> CR | E26: =IF(MH1901_Schedule_B!C26="","",MH1901_Schedule_B!C26) -> 15 | F26: =IF(MH1901_Schedule_B!D26="","",MH1901_Schedule_B!D26) -> 05 | G26: =IF(ISNUMBER(MH1901_Schedule_B!E26)=FALSE,0,MH1901_Schedule_B!E26) -> 102899 | I26: 339708.1763 | J26: 0 | K26: 0 | L26: =IF(G26>0,AllocatedCost(M26,H26,I26,K26,$H$105+$I$105,$L$11,G26),0) -> 339708.1763 | M26: 400 | N26: =IF(SUM(G26:I26)>0,DecodeAllocationType(M26,[12]Setup!$B$32),"") -> 
B27: CR_15_10_8 | C27: 8 | D27: =MH1901_Schedule_B!B27 -> CR | E27: =IF(MH1901_Schedule_B!C27="","",MH1901_Schedule_B!C27) -> 15 | F27: =IF(MH1901_Schedule_B!D27="","",MH1901_Schedule_B!D27) -> 10 | G27: =IF(ISNUMBER(MH1901_Schedule_B!E27)=FALSE,0,MH1901_Schedule_B!E27) -> 162537 | I27: 691925.8703 | J27: 0 | K27: 0 | L27: =IF(G27>0,AllocatedCost(M27,H27,I27,K27,$H$105+$I$105,$L$11,G27),0) -> 691925.8703 | M27: 400 | N27: =IF(SUM(G27:I27)>0,DecodeAllocationType(M27,[12]Setup!$B$32),"") -> 
B28: CR_15_42_9 | C28: 9 | D28: =MH1901_Schedule_B!B28 -> CR | E28: =IF(MH1901_Schedule_B!C28="","",MH1901_Schedule_B!C28) -> 15 | F28: =IF(MH1901_Schedule_B!D28="","",MH1901_Schedule_B!D28) -> 42 | G28: =IF(ISNUMBER(MH1901_Schedule_B!E28)=FALSE,0,MH1901_Schedule_B!E28) -> 2295719 | I28: 9772958.569 | J28: 0 | K28: 0 | L28: =IF(G28>0,AllocatedCost(M28,H28,I28,K28,$H$105+$I$105,$L$11,G28),0) -> 9772958.569 | M28: 400 | N28: =IF(SUM(G28:I28)>0,DecodeAllocationType(M28,[12]Setup!$B$32),"") -> 
B29: CR_15_44_0 | C29: 10 | D29: =MH1901_Schedule_B!B29 -> CR | E29: =IF(MH1901_Schedule_B!C29="","",MH1901_Schedule_B!C29) -> 15 | F29: =IF(MH1901_Schedule_B!D29="","",MH1901_Schedule_B!D29) -> 44 | G29: =IF(ISNUMBER(MH1901_Schedule_B!E29)=FALSE,0,MH1901_Schedule_B!E29) -> 230003 | I29: 979131.0652 | J29: 0 | K29: 0 | L29: =IF(G29>0,AllocatedCost(M29,H29,I29,K29,$H$105+$I$105,$L$11,G29),0) -> 979131.0652 | M29: 400 | N29: =IF(SUM(G29:I29)>0,DecodeAllocationType(M29,[12]Setup!$B$32),"") -> 
B30: CR_15_52_1 | C30: 11 | D30: =MH1901_Schedule_B!B30 -> CR | E30: =IF(MH1901_Schedule_B!C30="","",MH1901_Schedule_B!C30) -> 15 | F30: =IF(MH1901_Schedule_B!D30="","",MH1901_Schedule_B!D30) -> 52 | G30: =IF(ISNUMBER(MH1901_Schedule_B!E30)=FALSE,0,MH1901_Schedule_B!E30) -> 362149 | I30: 1541681.353 | J30: 0 | K30: 0 | L30: =IF(G30>0,AllocatedCost(M30,H30,I30,K30,$H$105+$I$105,$L$11,G30),0) -> 1541681.353 | M30: 400 | N30: =IF(SUM(G30:I30)>0,DecodeAllocationType(M30,[12]Setup!$B$32),"") -> 
B31: CR_15_62_2 | C31: 12 | D31: =MH1901_Schedule_B!B31 -> CR | E31: =IF(MH1901_Schedule_B!C31="","",MH1901_Schedule_B!C31) -> 15 | F31: =IF(MH1901_Schedule_B!D31="","",MH1901_Schedule_B!D31) -> 62 | G31: =IF(ISNUMBER(MH1901_Schedule_B!E31)=FALSE,0,MH1901_Schedule_B!E31) -> 693670 | I31: 5574499.672 | J31: 0 | K31: 0 | L31: =IF(G31>0,AllocatedCost(M31,H31,I31,K31,$H$105+$I$105,$L$11,G31),0) -> 5574499.672 | M31: 400 | N31: =IF(SUM(G31:I31)>0,DecodeAllocationType(M31,[12]Setup!$B$32),"") -> 
B32: CR_15_63_3 | C32: 13 | D32: =MH1901_Schedule_B!B32 -> CR | E32: =IF(MH1901_Schedule_B!C32="","",MH1901_Schedule_B!C32) -> 15 | F32: =IF(MH1901_Schedule_B!D32="","",MH1901_Schedule_B!D32) -> 63 | G32: =IF(ISNUMBER(MH1901_Schedule_B!E32)=FALSE,0,MH1901_Schedule_B!E32) -> 98054 | I32: 787985.6284 | J32: 0 | K32: 0 | L32: =IF(G32>0,AllocatedCost(M32,H32,I32,K32,$H$105+$I$105,$L$11,G32),0) -> 787985.6284 | M32: 400 | N32: =IF(SUM(G32:I32)>0,DecodeAllocationType(M32,[12]Setup!$B$32),"") -> 
B33: CR_15_77_4 | C33: 14 | D33: =MH1901_Schedule_B!B33 -> CR | E33: =IF(MH1901_Schedule_B!C33="","",MH1901_Schedule_B!C33) -> 15 | F33: =IF(MH1901_Schedule_B!D33="","",MH1901_Schedule_B!D33) -> 77 | G33: =IF(ISNUMBER(MH1901_Schedule_B!E33)=FALSE,0,MH1901_Schedule_B!E33) -> 162041 | I33: 1048799.415 | J33: 0 | K33: 0 | L33: =IF(G33>0,AllocatedCost(M33,H33,I33,K33,$H$105+$I$105,$L$11,G33),0) -> 1048799.415 | M33: 400 | N33: =IF(SUM(G33:I33)>0,DecodeAllocationType(M33,[12]Setup!$B$32),"") -> 
B34: CR_15_78_5 | C34: 15 | D34: =MH1901_Schedule_B!B34 -> CR | E34: =IF(MH1901_Schedule_B!C34="","",MH1901_Schedule_B!C34) -> 15 | F34: =IF(MH1901_Schedule_B!D34="","",MH1901_Schedule_B!D34) -> 78 | G34: =IF(ISNUMBER(MH1901_Schedule_B!E34)=FALSE,0,MH1901_Schedule_B!E34) -> 18024 | I34: 116659.1212 | J34: 0 | K34: 0 | L34: =IF(G34>0,AllocatedCost(M34,H34,I34,K34,$H$105+$I$105,$L$11,G34),0) -> 116659.1212 | M34: 400 | N34: =IF(SUM(G34:I34)>0,DecodeAllocationType(M34,[12]Setup!$B$32),"") -> 
B35: CR_45_10_6 | C35: 16 | D35: =MH1901_Schedule_B!B35 -> CR | E35: =IF(MH1901_Schedule_B!C35="","",MH1901_Schedule_B!C35) -> 45 | F35: =IF(MH1901_Schedule_B!D35="","",MH1901_Schedule_B!D35) -> 10 | G35: =IF(ISNUMBER(MH1901_Schedule_B!E35)=FALSE,0,MH1901_Schedule_B!E35) -> 837.5833333 | I35: 82955.29792 | J35: 0 | K35: 0 | L35: =IF(G35>0,AllocatedCost(M35,H35,I35,K35,$H$105+$I$105,$L$11,G35),0) -> 82955.2979 | M35: 400 | N35: =IF(SUM(G35:I35)>0,DecodeAllocationType(M35,[12]Setup!$B$32),"") -> 
B36: CR_45_20_7 | C36: 17 | D36: =MH1901_Schedule_B!B36 -> CR | E36: =IF(MH1901_Schedule_B!C36="","",MH1901_Schedule_B!C36) -> 45 | F36: =IF(MH1901_Schedule_B!D36="","",MH1901_Schedule_B!D36) -> 20 | G36: =IF(ISNUMBER(MH1901_Schedule_B!E36)=FALSE,0,MH1901_Schedule_B!E36) -> 2690.966667 | I36: 266516.6947 | J36: 0 | K36: 0 | L36: =IF(G36>0,AllocatedCost(M36,H36,I36,K36,$H$105+$I$105,$L$11,G36),0) -> 266516.6947 | M36: 400 | N36: =IF(SUM(G36:I36)>0,DecodeAllocationType(M36,[12]Setup!$B$32),"") -> 
B37: CR_60_40_8 | C37: 18 | D37: =MH1901_Schedule_B!B37 -> CR | E37: =IF(MH1901_Schedule_B!C37="","",MH1901_Schedule_B!C37) -> 60 | F37: =IF(MH1901_Schedule_B!D37="","",MH1901_Schedule_B!D37) -> 40 | G37: =IF(ISNUMBER(MH1901_Schedule_B!E37)=FALSE,0,MH1901_Schedule_B!E37) -> 8256 | I37: 322411.5782 | J37: 0 | K37: 0 | L37: =IF(G37>0,AllocatedCost(M37,H37,I37,K37,$H$105+$I$105,$L$11,G37),0) -> 322411.5782 | M37: 400 | N37: =IF(SUM(G37:I37)>0,DecodeAllocationType(M37,[12]Setup!$B$32),"") -> 
B38: CCR_15_07_9 | C38: 19 | D38: =MH1901_Schedule_B!B38 -> CCR | E38: =IF(MH1901_Schedule_B!C38="","",MH1901_Schedule_B!C38) -> 15 | F38: =IF(MH1901_Schedule_B!D38="","",MH1901_Schedule_B!D38) -> 07 | G38: =IF(ISNUMBER(MH1901_Schedule_B!E38)=FALSE,0,MH1901_Schedule_B!E38) -> 45 | I38: 148.5618707 | J38: 0 | K38: 0 | L38: =IF(G38>0,AllocatedCost(M38,H38,I38,K38,$H$105+$I$105,$L$11,G38),0) -> 148.5619 | M38: 400 | N38: =IF(SUM(G38:I38)>0,DecodeAllocationType(M38,[12]Setup!$B$32),"") -> 
B39: CCR_15_34_0 | C39: 20 | D39: =MH1901_Schedule_B!B39 -> CCR | E39: =IF(MH1901_Schedule_B!C39="","",MH1901_Schedule_B!C39) -> 15 | F39: =IF(MH1901_Schedule_B!D39="","",MH1901_Schedule_B!D39) -> 34 | G39: =IF(ISNUMBER(MH1901_Schedule_B!E39)=FALSE,0,MH1901_Schedule_B!E39) -> 50 | I39: 212.8518031 | J39: 0 | K39: 0 | L39: =IF(G39>0,AllocatedCost(M39,H39,I39,K39,$H$105+$I$105,$L$11,G39),0) -> 212.8518 | M39: 400 | N39: =IF(SUM(G39:I39)>0,DecodeAllocationType(M39,[12]Setup!$B$32),"") -> 
B40: CR_60_70_1 | C40: 21 | D40: =MH1901_Schedule_B!B40 -> CR | E40: =IF(MH1901_Schedule_B!C40="","",MH1901_Schedule_B!C40) -> 60 | F40: =IF(MH1901_Schedule_B!D40="","",MH1901_Schedule_B!D40) -> 70 | G40: =IF(ISNUMBER(MH1901_Schedule_B!E40)=FALSE,0,MH1901_Schedule_B!E40) -> 1 | H40: 998774 | J40: 0 | K40: 0 | L40: =IF(G40>0,AllocatedCost(M40,H40,I40,K40,$H$105+$I$105,$L$11,G40),0) -> 998774 | M40: 300 | N40: =IF(SUM(G40:I40)>0,DecodeAllocationType(M40,[12]Setup!$B$32),"") -> 
B41: CR_60_71_2 | C41: 22 | D41: =MH1901_Schedule_B!B41 -> CR | E41: =IF(MH1901_Schedule_B!C41="","",MH1901_Schedule_B!C41) -> 60 | F41: =IF(MH1901_Schedule_B!D41="","",MH1901_Schedule_B!D41) -> 71 | G41: =IF(ISNUMBER(MH1901_Schedule_B!E41)=FALSE,0,MH1901_Schedule_B!E41) -> 1 | H41: 279115 | J41: 0 | K41: 0 | L41: =IF(G41>0,AllocatedCost(M41,H41,I41,K41,$H$105+$I$105,$L$11,G41),0) -> 279115 | M41: 300 | N41: =IF(SUM(G41:I41)>0,DecodeAllocationType(M41,[12]Setup!$B$32),"") -> 
B42: CR_60_72_3 | C42: 23 | D42: =MH1901_Schedule_B!B42 -> CR | E42: =IF(MH1901_Schedule_B!C42="","",MH1901_Schedule_B!C42) -> 60 | F42: =IF(MH1901_Schedule_B!D42="","",MH1901_Schedule_B!D42) -> 72 | G42: =IF(ISNUMBER(MH1901_Schedule_B!E42)=FALSE,0,MH1901_Schedule_B!E42) -> 1 | H42: 180410 | J42: 0 | K42: 0 | L42: =IF(G42>0,AllocatedCost(M42,H42,I42,K42,$H$105+$I$105,$L$11,G42),0) -> 180410 | M42: 300 | N42: =IF(SUM(G42:I42)>0,DecodeAllocationType(M42,[12]Setup!$B$32),"") -> 
B43: CR_60_78_4 | C43: 24 | D43: =MH1901_Schedule_B!B43 -> CR | E43: =IF(MH1901_Schedule_B!C43="","",MH1901_Schedule_B!C43) -> 60 | F43: =IF(MH1901_Schedule_B!D43="","",MH1901_Schedule_B!D43) -> 78 | G43: =IF(ISNUMBER(MH1901_Schedule_B!E43)=FALSE,0,MH1901_Schedule_B!E43) -> 1 | H43: 165201 | J43: 0 | K43: 0 | L43: =IF(G43>0,AllocatedCost(M43,H43,I43,K43,$H$105+$I$105,$L$11,G43),0) -> 165201 | M43: 300 | N43: =IF(SUM(G43:I43)>0,DecodeAllocationType(M43,[12]Setup!$B$32),"") -> 
B44: 0___5 | C44: 25 | D44: =MH1901_Schedule_B!B44 -> 0 | E44: =IF(MH1901_Schedule_B!C44="","",MH1901_Schedule_B!C44) ->  | F44: =IF(MH1901_Schedule_B!D44="","",MH1901_Schedule_B!D44) ->  | G44: =IF(ISNUMBER(MH1901_Schedule_B!E44)=FALSE,0,MH1901_Schedule_B!E44) -> 0 | J44: 0 | K44: 0 | L44: =IF(G44>0,AllocatedCost(M44,H44,I44,K44,$H$105+$I$105,$L$11,G44),0) -> 0 | M44: 200 | N44: =IF(SUM(G44:I44)>0,DecodeAllocationType(M44,[12]Setup!$B$32),"") -> 
B45: 0___6 | C45: 26 | D45: =MH1901_Schedule_B!B45 -> 0 | E45: =IF(MH1901_Schedule_B!C45="","",MH1901_Schedule_B!C45) ->  | F45: =IF(MH1901_Schedule_B!D45="","",MH1901_Schedule_B!D45) ->  | G45: =IF(ISNUMBER(MH1901_Schedule_B!E45)=FALSE,0,MH1901_Schedule_B!E45) -> 0 | J45: 0 | K45: 0 | L45: =IF(G45>0,AllocatedCost(M45,H45,I45,K45,$H$105+$I$105,$L$11,G45),0) -> 0 | M45: 200 | N45: =IF(SUM(G45:I45)>0,DecodeAllocationType(M45,[12]Setup!$B$32),"") -> 
B46: 0___7 | C46: 27 | D46: =MH1901_Schedule_B!B46 -> 0 | E46: =IF(MH1901_Schedule_B!C46="","",MH1901_Schedule_B!C46) ->  | F46: =IF(MH1901_Schedule_B!D46="","",MH1901_Schedule_B!D46) ->  | G46: =IF(ISNUMBER(MH1901_Schedule_B!E46)=FALSE,0,MH1901_Schedule_B!E46) -> 0 | J46: 0 | K46: 0 | L46: =IF(G46>0,AllocatedCost(M46,H46,I46,K46,$H$105+$I$105,$L$11,G46),0) -> 0 | M46: 200 | N46: =IF(SUM(G46:I46)>0,DecodeAllocationType(M46,[12]Setup!$B$32),"") -> 
B47: 0___8 | C47: 28 | D47: =MH1901_Schedule_B!B47 -> 0 | E47: =IF(MH1901_Schedule_B!C47="","",MH1901_Schedule_B!C47) ->  | F47: =IF(MH1901_Schedule_B!D47="","",MH1901_Schedule_B!D47) ->  | G47: =IF(ISNUMBER(MH1901_Schedule_B!E47)=FALSE,0,MH1901_Schedule_B!E47) -> 0 | J47: 0 | K47: 0 | L47: =IF(G47>0,AllocatedCost(M47,H47,I47,K47,$H$105+$I$105,$L$11,G47),0) -> 0 | M47: 200 | N47: =IF(SUM(G47:I47)>0,DecodeAllocationType(M47,[12]Setup!$B$32),"") -> 
B48: 0___9 | C48: 29 | D48: =MH1901_Schedule_B!B48 -> 0 | E48: =IF(MH1901_Schedule_B!C48="","",MH1901_Schedule_B!C48) ->  | F48: =IF(MH1901_Schedule_B!D48="","",MH1901_Schedule_B!D48) ->  | G48: =IF(ISNUMBER(MH1901_Schedule_B!E48)=FALSE,0,MH1901_Schedule_B!E48) -> 0 | J48: 0 | K48: 0 | L48: =IF(G48>0,AllocatedCost(M48,H48,I48,K48,$H$105+$I$105,$L$11,G48),0) -> 0 | M48: 200 | N48: =IF(SUM(G48:I48)>0,DecodeAllocationType(M48,[12]Setup!$B$32),"") -> 
B49: 0___0 | C49: 30 | D49: =MH1901_Schedule_B!B49 -> 0 | E49: =IF(MH1901_Schedule_B!C49="","",MH1901_Schedule_B!C49) ->  | F49: =IF(MH1901_Schedule_B!D49="","",MH1901_Schedule_B!D49) ->  | G49: =IF(ISNUMBER(MH1901_Schedule_B!E49)=FALSE,0,MH1901_Schedule_B!E49) -> 0 | J49: 0 | K49: 0 | L49: =IF(G49>0,AllocatedCost(M49,H49,I49,K49,$H$105+$I$105,$L$11,G49),0) -> 0 | M49: 200 | N49: =IF(SUM(G49:I49)>0,DecodeAllocationType(M49,[12]Setup!$B$32),"") -> 
B50: 0___1 | C50: 31 | D50: =MH1901_Schedule_B!B50 -> 0 | E50: =IF(MH1901_Schedule_B!C50="","",MH1901_Schedule_B!C50) ->  | F50: =IF(MH1901_Schedule_B!D50="","",MH1901_Schedule_B!D50) ->  | G50: =IF(ISNUMBER(MH1901_Schedule_B!E50)=FALSE,0,MH1901_Schedule_B!E50) -> 0 | J50: 0 | K50: 0 | L50: =IF(G50>0,AllocatedCost(M50,H50,I50,K50,$H$105+$I$105,$L$11,G50),0) -> 0 | M50: 200 | N50: =IF(SUM(G50:I50)>0,DecodeAllocationType(M50,[12]Setup!$B$32),"") -> 
B51: 0___2 | C51: 32 | D51: =MH1901_Schedule_B!B51 -> 0 | E51: =IF(MH1901_Schedule_B!C51="","",MH1901_Schedule_B!C51) ->  | F51: =IF(MH1901_Schedule_B!D51="","",MH1901_Schedule_B!D51) ->  | G51: =IF(ISNUMBER(MH1901_Schedule_B!E51)=FALSE,0,MH1901_Schedule_B!E51) -> 0 | J51: 0 | K51: 0 | L51: =IF(G51>0,AllocatedCost(M51,H51,I51,K51,$H$105+$I$105,$L$11,G51),0) -> 0 | M51: 200 | N51: =IF(SUM(G51:I51)>0,DecodeAllocationType(M51,[12]Setup!$B$32),"") -> 
B52: 0___3 | C52: 33 | D52: =MH1901_Schedule_B!B52 -> 0 | E52: =IF(MH1901_Schedule_B!C52="","",MH1901_Schedule_B!C52) ->  | F52: =IF(MH1901_Schedule_B!D52="","",MH1901_Schedule_B!D52) ->  | G52: =IF(ISNUMBER(MH1901_Schedule_B!E52)=FALSE,0,MH1901_Schedule_B!E52) -> 0 | J52: 0 | K52: 0 | L52: =IF(G52>0,AllocatedCost(M52,H52,I52,K52,$H$105+$I$105,$L$11,G52),0) -> 0 | M52: 200 | N52: =IF(SUM(G52:I52)>0,DecodeAllocationType(M52,[12]Setup!$B$32),"") -> 
B53: 0___4 | C53: 34 | D53: =MH1901_Schedule_B!B53 -> 0 | E53: =IF(MH1901_Schedule_B!C53="","",MH1901_Schedule_B!C53) ->  | F53: =IF(MH1901_Schedule_B!D53="","",MH1901_Schedule_B!D53) ->  | G53: =IF(ISNUMBER(MH1901_Schedule_B!E53)=FALSE,0,MH1901_Schedule_B!E53) -> 0 | J53: 0 | K53: 0 | L53: =IF(G53>0,AllocatedCost(M53,H53,I53,K53,$H$105+$I$105,$L$11,G53),0) -> 0 | M53: 200 | N53: =IF(SUM(G53:I53)>0,DecodeAllocationType(M53,[12]Setup!$B$32),"") -> 
B54: 0___5 | C54: 35 | D54: =MH1901_Schedule_B!B54 -> 0 | E54: =IF(MH1901_Schedule_B!C54="","",MH1901_Schedule_B!C54) ->  | F54: =IF(MH1901_Schedule_B!D54="","",MH1901_Schedule_B!D54) ->  | G54: =IF(ISNUMBER(MH1901_Schedule_B!E54)=FALSE,0,MH1901_Schedule_B!E54) -> 0 | J54: 0 | K54: 0 | L54: =IF(G54>0,AllocatedCost(M54,H54,I54,K54,$H$105+$I$105,$L$11,G54),0) -> 0 | M54: 200 | N54: =IF(SUM(G54:I54)>0,DecodeAllocationType(M54,[12]Setup!$B$32),"") -> 
B55: 0___6 | C55: 36 | D55: =MH1901_Schedule_B!B55 -> 0 | E55: =IF(MH1901_Schedule_B!C55="","",MH1901_Schedule_B!C55) ->  | F55: =IF(MH1901_Schedule_B!D55="","",MH1901_Schedule_B!D55) ->  | G55: =IF(ISNUMBER(MH1901_Schedule_B!E55)=FALSE,0,MH1901_Schedule_B!E55) -> 0 | J55: 0 | K55: 0 | L55: =IF(G55>0,AllocatedCost(M55,H55,I55,K55,$H$105+$I$105,$L$11,G55),0) -> 0 | M55: 200 | N55: =IF(SUM(G55:I55)>0,DecodeAllocationType(M55,[12]Setup!$B$32),"") -> 
B56: 0___7 | C56: 37 | D56: =MH1901_Schedule_B!B56 -> 0 | E56: =IF(MH1901_Schedule_B!C56="","",MH1901_Schedule_B!C56) ->  | F56: =IF(MH1901_Schedule_B!D56="","",MH1901_Schedule_B!D56) ->  | G56: =IF(ISNUMBER(MH1901_Schedule_B!E56)=FALSE,0,MH1901_Schedule_B!E56) -> 0 | J56: 0 | K56: 0 | L56: =IF(G56>0,AllocatedCost(M56,H56,I56,K56,$H$105+$I$105,$L$11,G56),0) -> 0 | M56: 200 | N56: =IF(SUM(G56:I56)>0,DecodeAllocationType(M56,[12]Setup!$B$32),"") -> 
B57: 0___8 | C57: 38 | D57: =MH1901_Schedule_B!B57 -> 0 | E57: =IF(MH1901_Schedule_B!C57="","",MH1901_Schedule_B!C57) ->  | F57: =IF(MH1901_Schedule_B!D57="","",MH1901_Schedule_B!D57) ->  | G57: =IF(ISNUMBER(MH1901_Schedule_B!E57)=FALSE,0,MH1901_Schedule_B!E57) -> 0 | J57: 0 | K57: 0 | L57: =IF(G57>0,AllocatedCost(M57,H57,I57,K57,$H$105+$I$105,$L$11,G57),0) -> 0 | M57: 200 | N57: =IF(SUM(G57:I57)>0,DecodeAllocationType(M57,[12]Setup!$B$32),"") -> 
B58: 0___9 | C58: 39 | D58: =MH1901_Schedule_B!B58 -> 0 | E58: =IF(MH1901_Schedule_B!C58="","",MH1901_Schedule_B!C58) ->  | F58: =IF(MH1901_Schedule_B!D58="","",MH1901_Schedule_B!D58) ->  | G58: =IF(ISNUMBER(MH1901_Schedule_B!E58)=FALSE,0,MH1901_Schedule_B!E58) -> 0 | J58: 0 | K58: 0 | L58: =IF(G58>0,AllocatedCost(M58,H58,I58,K58,$H$105+$I$105,$L$11,G58),0) -> 0 | M58: 200 | N58: =IF(SUM(G58:I58)>0,DecodeAllocationType(M58,[12]Setup!$B$32),"") -> 
B59: 0___0 | C59: 40 | D59: =MH1901_Schedule_B!B59 -> 0 | E59: =IF(MH1901_Schedule_B!C59="","",MH1901_Schedule_B!C59) ->  | F59: =IF(MH1901_Schedule_B!D59="","",MH1901_Schedule_B!D59) ->  | G59: =IF(ISNUMBER(MH1901_Schedule_B!E59)=FALSE,0,MH1901_Schedule_B!E59) -> 0 | J59: 0 | K59: 0 | L59: =IF(G59>0,AllocatedCost(M59,H59,I59,K59,$H$105+$I$105,$L$11,G59),0) -> 0 | M59: 200 | N59: =IF(SUM(G59:I59)>0,DecodeAllocationType(M59,[12]Setup!$B$32),"") -> 
B60: 0___1 | C60: 41 | D60: =MH1901_Schedule_B!B60 -> 0 | E60: =IF(MH1901_Schedule_B!C60="","",MH1901_Schedule_B!C60) ->  | F60: =IF(MH1901_Schedule_B!D60="","",MH1901_Schedule_B!D60) ->  | G60: =IF(ISNUMBER(MH1901_Schedule_B!E60)=FALSE,0,MH1901_Schedule_B!E60) -> 0 | J60: 0 | K60: 0 | L60: =IF(G60>0,AllocatedCost(M60,H60,I60,K60,$H$105+$I$105,$L$11,G60),0) -> 0 | M60: 200 | N60: =IF(SUM(G60:I60)>0,DecodeAllocationType(M60,[12]Setup!$B$32),"") -> 
B61: 0___2 | C61: 42 | D61: =MH1901_Schedule_B!B61 -> 0 | E61: =IF(MH1901_Schedule_B!C61="","",MH1901_Schedule_B!C61) ->  | F61: =IF(MH1901_Schedule_B!D61="","",MH1901_Schedule_B!D61) ->  | G61: =IF(ISNUMBER(MH1901_Schedule_B!E61)=FALSE,0,MH1901_Schedule_B!E61) -> 0 | J61: 0 | K61: 0 | L61: =IF(G61>0,AllocatedCost(M61,H61,I61,K61,$H$105+$I$105,$L$11,G61),0) -> 0 | M61: 200 | N61: =IF(SUM(G61:I61)>0,DecodeAllocationType(M61,[12]Setup!$B$32),"") -> 
B62: 0___3 | C62: 43 | D62: =MH1901_Schedule_B!B62 -> 0 | E62: =IF(MH1901_Schedule_B!C62="","",MH1901_Schedule_B!C62) ->  | F62: =IF(MH1901_Schedule_B!D62="","",MH1901_Schedule_B!D62) ->  | G62: =IF(ISNUMBER(MH1901_Schedule_B!E62)=FALSE,0,MH1901_Schedule_B!E62) -> 0 | J62: 0 | K62: 0 | L62: =IF(G62>0,AllocatedCost(M62,H62,I62,K62,$H$105+$I$105,$L$11,G62),0) -> 0 | M62: 200 | N62: =IF(SUM(G62:I62)>0,DecodeAllocationType(M62,[12]Setup!$B$32),"") -> 
B63: 0___4 | C63: 44 | D63: =MH1901_Schedule_B!B63 -> 0 | E63: =IF(MH1901_Schedule_B!C63="","",MH1901_Schedule_B!C63) ->  | F63: =IF(MH1901_Schedule_B!D63="","",MH1901_Schedule_B!D63) ->  | G63: =IF(ISNUMBER(MH1901_Schedule_B!E63)=FALSE,0,MH1901_Schedule_B!E63) -> 0 | J63: 0 | K63: 0 | L63: =IF(G63>0,AllocatedCost(M63,H63,I63,K63,$H$105+$I$105,$L$11,G63),0) -> 0 | M63: 200 | N63: =IF(SUM(G63:I63)>0,DecodeAllocationType(M63,[12]Setup!$B$32),"") -> 
B64: 0___5 | C64: 45 | D64: =MH1901_Schedule_B!B64 -> 0 | E64: =IF(MH1901_Schedule_B!C64="","",MH1901_Schedule_B!C64) ->  | F64: =IF(MH1901_Schedule_B!D64="","",MH1901_Schedule_B!D64) ->  | G64: =IF(ISNUMBER(MH1901_Schedule_B!E64)=FALSE,0,MH1901_Schedule_B!E64) -> 0 | J64: 0 | K64: 0 | L64: =IF(G64>0,AllocatedCost(M64,H64,I64,K64,$H$105+$I$105,$L$11,G64),0) -> 0 | M64: 200 | N64: =IF(SUM(G64:I64)>0,DecodeAllocationType(M64,[12]Setup!$B$32),"") -> 
B65: 0___6 | C65: 46 | D65: =MH1901_Schedule_B!B65 -> 0 | E65: =IF(MH1901_Schedule_B!C65="","",MH1901_Schedule_B!C65) ->  | F65: =IF(MH1901_Schedule_B!D65="","",MH1901_Schedule_B!D65) ->  | G65: =IF(ISNUMBER(MH1901_Schedule_B!E65)=FALSE,0,MH1901_Schedule_B!E65) -> 0 | J65: 0 | K65: 0 | L65: =IF(G65>0,AllocatedCost(M65,H65,I65,K65,$H$105+$I$105,$L$11,G65),0) -> 0 | M65: 200 | N65: =IF(SUM(G65:I65)>0,DecodeAllocationType(M65,[12]Setup!$B$32),"") -> 
B66: 0___7 | C66: 47 | D66: =MH1901_Schedule_B!B66 -> 0 | E66: =IF(MH1901_Schedule_B!C66="","",MH1901_Schedule_B!C66) ->  | F66: =IF(MH1901_Schedule_B!D66="","",MH1901_Schedule_B!D66) ->  | G66: =IF(ISNUMBER(MH1901_Schedule_B!E66)=FALSE,0,MH1901_Schedule_B!E66) -> 0 | J66: 0 | K66: 0 | L66: =IF(G66>0,AllocatedCost(M66,H66,I66,K66,$H$105+$I$105,$L$11,G66),0) -> 0 | M66: 200 | N66: =IF(SUM(G66:I66)>0,DecodeAllocationType(M66,[12]Setup!$B$32),"") -> 
B67: 0___8 | C67: 48 | D67: =MH1901_Schedule_B!B67 -> 0 | E67: =IF(MH1901_Schedule_B!C67="","",MH1901_Schedule_B!C67) ->  | F67: =IF(MH1901_Schedule_B!D67="","",MH1901_Schedule_B!D67) ->  | G67: =IF(ISNUMBER(MH1901_Schedule_B!E67)=FALSE,0,MH1901_Schedule_B!E67) -> 0 | J67: 0 | K67: 0 | L67: =IF(G67>0,AllocatedCost(M67,H67,I67,K67,$H$105+$I$105,$L$11,G67),0) -> 0 | M67: 200 | N67: =IF(SUM(G67:I67)>0,DecodeAllocationType(M67,[12]Setup!$B$32),"") -> 
B68: 0___9 | C68: 49 | D68: =MH1901_Schedule_B!B68 -> 0 | E68: =IF(MH1901_Schedule_B!C68="","",MH1901_Schedule_B!C68) ->  | F68: =IF(MH1901_Schedule_B!D68="","",MH1901_Schedule_B!D68) ->  | G68: =IF(ISNUMBER(MH1901_Schedule_B!E68)=FALSE,0,MH1901_Schedule_B!E68) -> 0 | J68: 0 | K68: 0 | L68: =IF(G68>0,AllocatedCost(M68,H68,I68,K68,$H$105+$I$105,$L$11,G68),0) -> 0 | M68: 200 | N68: =IF(SUM(G68:I68)>0,DecodeAllocationType(M68,[12]Setup!$B$32),"") -> 
B69: 0___0 | C69: 50 | D69: =MH1901_Schedule_B!B69 -> 0 | E69: =IF(MH1901_Schedule_B!C69="","",MH1901_Schedule_B!C69) ->  | F69: =IF(MH1901_Schedule_B!D69="","",MH1901_Schedule_B!D69) ->  | G69: =IF(ISNUMBER(MH1901_Schedule_B!E69)=FALSE,0,MH1901_Schedule_B!E69) -> 0 | J69: 0 | K69: 0 | L69: =IF(G69>0,AllocatedCost(M69,H69,I69,K69,$H$105+$I$105,$L$11,G69),0) -> 0 | M69: 200 | N69: =IF(SUM(G69:I69)>0,DecodeAllocationType(M69,[12]Setup!$B$32),"") -> 
B70: 0___1 | C70: 51 | D70: =MH1901_Schedule_B!B70 -> 0 | E70: =IF(MH1901_Schedule_B!C70="","",MH1901_Schedule_B!C70) ->  | F70: =IF(MH1901_Schedule_B!D70="","",MH1901_Schedule_B!D70) ->  | G70: =IF(ISNUMBER(MH1901_Schedule_B!E70)=FALSE,0,MH1901_Schedule_B!E70) -> 0 | J70: 0 | K70: 0 | L70: =IF(G70>0,AllocatedCost(M70,H70,I70,K70,$H$105+$I$105,$L$11,G70),0) -> 0 | M70: 200 | N70: =IF(SUM(G70:I70)>0,DecodeAllocationType(M70,[12]Setup!$B$32),"") -> 
B71: 0___2 | C71: 52 | D71: =MH1901_Schedule_B!B71 -> 0 | E71: =IF(MH1901_Schedule_B!C71="","",MH1901_Schedule_B!C71) ->  | F71: =IF(MH1901_Schedule_B!D71="","",MH1901_Schedule_B!D71) ->  | G71: =IF(ISNUMBER(MH1901_Schedule_B!E71)=FALSE,0,MH1901_Schedule_B!E71) -> 0 | J71: 0 | K71: 0 | L71: =IF(G71>0,AllocatedCost(M71,H71,I71,K71,$H$105+$I$105,$L$11,G71),0) -> 0 | M71: 200 | N71: =IF(SUM(G71:I71)>0,DecodeAllocationType(M71,[12]Setup!$B$32),"") -> 
B72: 0___3 | C72: 53 | D72: =MH1901_Schedule_B!B72 -> 0 | E72: =IF(MH1901_Schedule_B!C72="","",MH1901_Schedule_B!C72) ->  | F72: =IF(MH1901_Schedule_B!D72="","",MH1901_Schedule_B!D72) ->  | G72: =IF(ISNUMBER(MH1901_Schedule_B!E72)=FALSE,0,MH1901_Schedule_B!E72) -> 0 | J72: 0 | K72: 0 | L72: =IF(G72>0,AllocatedCost(M72,H72,I72,K72,$H$105+$I$105,$L$11,G72),0) -> 0 | M72: 200 | N72: =IF(SUM(G72:I72)>0,DecodeAllocationType(M72,[12]Setup!$B$32),"") -> 
B73: 0___4 | C73: 54 | D73: =MH1901_Schedule_B!B73 -> 0 | E73: =IF(MH1901_Schedule_B!C73="","",MH1901_Schedule_B!C73) ->  | F73: =IF(MH1901_Schedule_B!D73="","",MH1901_Schedule_B!D73) ->  | G73: =IF(ISNUMBER(MH1901_Schedule_B!E73)=FALSE,0,MH1901_Schedule_B!E73) -> 0 | J73: 0 | K73: 0 | L73: =IF(G73>0,AllocatedCost(M73,H73,I73,K73,$H$105+$I$105,$L$11,G73),0) -> 0 | M73: 200 | N73: =IF(SUM(G73:I73)>0,DecodeAllocationType(M73,[12]Setup!$B$32),"") -> 
B74: 0___5 | C74: 55 | D74: =MH1901_Schedule_B!B74 -> 0 | E74: =IF(MH1901_Schedule_B!C74="","",MH1901_Schedule_B!C74) ->  | F74: =IF(MH1901_Schedule_B!D74="","",MH1901_Schedule_B!D74) ->  | G74: =IF(ISNUMBER(MH1901_Schedule_B!E74)=FALSE,0,MH1901_Schedule_B!E74) -> 0 | J74: 0 | K74: 0 | L74: =IF(G74>0,AllocatedCost(M74,H74,I74,K74,$H$105+$I$105,$L$11,G74),0) -> 0 | M74: 200 | N74: =IF(SUM(G74:I74)>0,DecodeAllocationType(M74,[12]Setup!$B$32),"") -> 
B75: 0___6 | C75: 56 | D75: =MH1901_Schedule_B!B75 -> 0 | E75: =IF(MH1901_Schedule_B!C75="","",MH1901_Schedule_B!C75) ->  | F75: =IF(MH1901_Schedule_B!D75="","",MH1901_Schedule_B!D75) ->  | G75: =IF(ISNUMBER(MH1901_Schedule_B!E75)=FALSE,0,MH1901_Schedule_B!E75) -> 0 | J75: 0 | K75: 0 | L75: =IF(G75>0,AllocatedCost(M75,H75,I75,K75,$H$105+$I$105,$L$11,G75),0) -> 0 | M75: 200 | N75: =IF(SUM(G75:I75)>0,DecodeAllocationType(M75,[12]Setup!$B$32),"") -> 
B76: 0___7 | C76: 57 | D76: =MH1901_Schedule_B!B76 -> 0 | E76: =IF(MH1901_Schedule_B!C76="","",MH1901_Schedule_B!C76) ->  | F76: =IF(MH1901_Schedule_B!D76="","",MH1901_Schedule_B!D76) ->  | G76: =IF(ISNUMBER(MH1901_Schedule_B!E76)=FALSE,0,MH1901_Schedule_B!E76) -> 0 | J76: 0 | K76: 0 | L76: =IF(G76>0,AllocatedCost(M76,H76,I76,K76,$H$105+$I$105,$L$11,G76),0) -> 0 | M76: 200 | N76: =IF(SUM(G76:I76)>0,DecodeAllocationType(M76,[12]Setup!$B$32),"") -> 
B77: 0___8 | C77: 58 | D77: =MH1901_Schedule_B!B77 -> 0 | E77: =IF(MH1901_Schedule_B!C77="","",MH1901_Schedule_B!C77) ->  | F77: =IF(MH1901_Schedule_B!D77="","",MH1901_Schedule_B!D77) ->  | G77: =IF(ISNUMBER(MH1901_Schedule_B!E77)=FALSE,0,MH1901_Schedule_B!E77) -> 0 | J77: 0 | K77: 0 | L77: =IF(G77>0,AllocatedCost(M77,H77,I77,K77,$H$105+$I$105,$L$11,G77),0) -> 0 | M77: 200 | N77: =IF(SUM(G77:I77)>0,DecodeAllocationType(M77,[12]Setup!$B$32),"") -> 
B78: 0___9 | C78: 59 | D78: =MH1901_Schedule_B!B78 -> 0 | E78: =IF(MH1901_Schedule_B!C78="","",MH1901_Schedule_B!C78) ->  | F78: =IF(MH1901_Schedule_B!D78="","",MH1901_Schedule_B!D78) ->  | G78: =IF(ISNUMBER(MH1901_Schedule_B!E78)=FALSE,0,MH1901_Schedule_B!E78) -> 0 | J78: 0 | K78: 0 | L78: =IF(G78>0,AllocatedCost(M78,H78,I78,K78,$H$105+$I$105,$L$11,G78),0) -> 0 | M78: 200 | N78: =IF(SUM(G78:I78)>0,DecodeAllocationType(M78,[12]Setup!$B$32),"") -> 
B79: 0___0 | C79: 60 | D79: =MH1901_Schedule_B!B79 -> 0 | E79: =IF(MH1901_Schedule_B!C79="","",MH1901_Schedule_B!C79) ->  | F79: =IF(MH1901_Schedule_B!D79="","",MH1901_Schedule_B!D79) ->  | G79: =IF(ISNUMBER(MH1901_Schedule_B!E79)=FALSE,0,MH1901_Schedule_B!E79) -> 0 | J79: 0 | K79: 0 | L79: =IF(G79>0,AllocatedCost(M79,H79,I79,K79,$H$105+$I$105,$L$11,G79),0) -> 0 | M79: 200 | N79: =IF(SUM(G79:I79)>0,DecodeAllocationType(M79,[12]Setup!$B$32),"") -> 
B80: 0___1 | C80: 61 | D80: =MH1901_Schedule_B!B80 -> 0 | E80: =IF(MH1901_Schedule_B!C80="","",MH1901_Schedule_B!C80) ->  | F80: =IF(MH1901_Schedule_B!D80="","",MH1901_Schedule_B!D80) ->  | G80: =IF(ISNUMBER(MH1901_Schedule_B!E80)=FALSE,0,MH1901_Schedule_B!E80) -> 0 | J80: 0 | K80: 0 | L80: =IF(G80>0,AllocatedCost(M80,H80,I80,K80,$H$105+$I$105,$L$11,G80),0) -> 0 | M80: 200 | N80: =IF(SUM(G80:I80)>0,DecodeAllocationType(M80,[12]Setup!$B$32),"") -> 
B81: 0___2 | C81: 62 | D81: =MH1901_Schedule_B!B81 -> 0 | E81: =IF(MH1901_Schedule_B!C81="","",MH1901_Schedule_B!C81) ->  | F81: =IF(MH1901_Schedule_B!D81="","",MH1901_Schedule_B!D81) ->  | G81: =IF(ISNUMBER(MH1901_Schedule_B!E81)=FALSE,0,MH1901_Schedule_B!E81) -> 0 | J81: 0 | K81: 0 | L81: =IF(G81>0,AllocatedCost(M81,H81,I81,K81,$H$105+$I$105,$L$11,G81),0) -> 0 | M81: 200 | N81: =IF(SUM(G81:I81)>0,DecodeAllocationType(M81,[12]Setup!$B$32),"") -> 
B82: 0___3 | C82: 63 | D82: =MH1901_Schedule_B!B82 -> 0 | E82: =IF(MH1901_Schedule_B!C82="","",MH1901_Schedule_B!C82) ->  | F82: =IF(MH1901_Schedule_B!D82="","",MH1901_Schedule_B!D82) ->  | G82: =IF(ISNUMBER(MH1901_Schedule_B!E82)=FALSE,0,MH1901_Schedule_B!E82) -> 0 | J82: 0 | K82: 0 | L82: =IF(G82>0,AllocatedCost(M82,H82,I82,K82,$H$105+$I$105,$L$11,G82),0) -> 0 | M82: 200 | N82: =IF(SUM(G82:I82)>0,DecodeAllocationType(M82,[12]Setup!$B$32),"") -> 
B83: 0___4 | C83: 64 | D83: =MH1901_Schedule_B!B83 -> 0 | E83: =IF(MH1901_Schedule_B!C83="","",MH1901_Schedule_B!C83) ->  | F83: =IF(MH1901_Schedule_B!D83="","",MH1901_Schedule_B!D83) ->  | G83: =IF(ISNUMBER(MH1901_Schedule_B!E83)=FALSE,0,MH1901_Schedule_B!E83) -> 0 | J83: 0 | K83: 0 | L83: =IF(G83>0,AllocatedCost(M83,H83,I83,K83,$H$105+$I$105,$L$11,G83),0) -> 0 | M83: 200 | N83: =IF(SUM(G83:I83)>0,DecodeAllocationType(M83,[12]Setup!$B$32),"") -> 
B84: =TRIM(D84&"_" & E84 & "_" &F84& "_" &RIGHT(C84,1)) -> 0___5 | C84: 65 | D84: =MH1901_Schedule_B!B84 -> 0 | E84: =IF(MH1901_Schedule_B!C84="","",MH1901_Schedule_B!C84) ->  | F84: =IF(MH1901_Schedule_B!D84="","",MH1901_Schedule_B!D84) ->  | G84: =IF(ISNUMBER(MH1901_Schedule_B!E84)=FALSE,0,MH1901_Schedule_B!E84) -> 0 | J84: 0 | K84: 0 | L84: =IF(G84>0,AllocatedCost(M84,H84,I84,K84,$H$105+$I$105,$L$11,G84),0) -> 0 | M84: =IF(LEN(D84)>1,AllocationMethod(D84,E84,F84,G84,H84,I84, $E$13),200) -> 200 | N84: =IF(SUM(G84:I84)>0,DecodeAllocationType(M84,[12]Setup!$B$32),"") -> 
B85: 0___6 | C85: 66 | D85: =MH1901_Schedule_B!B85 -> 0 | E85: =IF(MH1901_Schedule_B!C85="","",MH1901_Schedule_B!C85) ->  | F85: =IF(MH1901_Schedule_B!D85="","",MH1901_Schedule_B!D85) ->  | G85: =IF(ISNUMBER(MH1901_Schedule_B!E85)=FALSE,0,MH1901_Schedule_B!E85) -> 0 | J85: =RelativeValue(E85,F85,$E$13,G85,M85) -> 0 | K85: =AllocationPercent(M85,J85,I85,$H$105+$I$105,$J$105) -> 0 | L85: =IF(G85>0,AllocatedCost(M85,H85,I85,K85,$H$105+$I$105,$L$11,G85),0) -> 0 | M85: 200 | N85: =IF(SUM(G85:I85)>0,DecodeAllocationType(M85,[12]Setup!$B$32),"") -> 
B86: 0___7 | C86: =C85+1 -> 67 | D86: =MH1901_Schedule_B!B86 -> 0 | E86: =IF(MH1901_Schedule_B!C86="","",MH1901_Schedule_B!C86) ->  | F86: =IF(MH1901_Schedule_B!D86="","",MH1901_Schedule_B!D86) ->  | G86: =IF(ISNUMBER(MH1901_Schedule_B!E86)=FALSE,0,MH1901_Schedule_B!E86) -> 0 | J86: 0 | K86: 0 | L86: =IF(G86>0,AllocatedCost(M86,H86,I86,K86,$H$105+$I$105,$L$11,G86),0) -> 0 | M86: 200 | N86: =IF(SUM(G86:I86)>0,DecodeAllocationType(M86,[12]Setup!$B$32),"") -> 
B87: 0___8 | C87: 68 | D87: =MH1901_Schedule_B!B87 -> 0 | E87: =IF(MH1901_Schedule_B!C87="","",MH1901_Schedule_B!C87) ->  | F87: =IF(MH1901_Schedule_B!D87="","",MH1901_Schedule_B!D87) ->  | G87: =IF(ISNUMBER(MH1901_Schedule_B!E87)=FALSE,0,MH1901_Schedule_B!E87) -> 0 | J87: 0 | K87: 0 | L87: =IF(G87>0,AllocatedCost(M87,H87,I87,K87,$H$105+$I$105,$L$11,G87),0) -> 0 | M87: 200 | N87: =IF(SUM(G87:I87)>0,DecodeAllocationType(M87,[12]Setup!$B$32),"") -> 
B88: 0___9 | C88: 69 | D88: =MH1901_Schedule_B!B88 -> 0 | E88: =IF(MH1901_Schedule_B!C88="","",MH1901_Schedule_B!C88) ->  | F88: =IF(MH1901_Schedule_B!D88="","",MH1901_Schedule_B!D88) ->  | G88: =IF(ISNUMBER(MH1901_Schedule_B!E88)=FALSE,0,MH1901_Schedule_B!E88) -> 0 | J88: 0 | K88: 0 | L88: =IF(G88>0,AllocatedCost(M88,H88,I88,K88,$H$105+$I$105,$L$11,G88),0) -> 0 | M88: 200 | N88: =IF(SUM(G88:I88)>0,DecodeAllocationType(M88,[12]Setup!$B$32),"") -> 
B89: 0___0 | C89: 70 | D89: =MH1901_Schedule_B!B89 -> 0 | E89: =IF(MH1901_Schedule_B!C89="","",MH1901_Schedule_B!C89) ->  | F89: =IF(MH1901_Schedule_B!D89="","",MH1901_Schedule_B!D89) ->  | G89: =IF(ISNUMBER(MH1901_Schedule_B!E89)=FALSE,0,MH1901_Schedule_B!E89) -> 0 | J89: 0 | K89: 0 | L89: =IF(G89>0,AllocatedCost(M89,H89,I89,K89,$H$105+$I$105,$L$11,G89),0) -> 0 | M89: 200 | N89: =IF(SUM(G89:I89)>0,DecodeAllocationType(M89,[12]Setup!$B$32),"") -> 
B90: 0___1 | C90: 71 | D90: =MH1901_Schedule_B!B90 -> 0 | E90: =IF(MH1901_Schedule_B!C90="","",MH1901_Schedule_B!C90) ->  | F90: =IF(MH1901_Schedule_B!D90="","",MH1901_Schedule_B!D90) ->  | G90: =IF(ISNUMBER(MH1901_Schedule_B!E90)=FALSE,0,MH1901_Schedule_B!E90) -> 0 | J90: 0 | K90: 0 | L90: =IF(G90>0,AllocatedCost(M90,H90,I90,K90,$H$105+$I$105,$L$11,G90),0) -> 0 | M90: 200 | N90: =IF(SUM(G90:I90)>0,DecodeAllocationType(M90,[12]Setup!$B$32),"") -> 
B91: 0___2 | C91: 72 | D91: =MH1901_Schedule_B!B91 -> 0 | E91: =IF(MH1901_Schedule_B!C91="","",MH1901_Schedule_B!C91) ->  | F91: =IF(MH1901_Schedule_B!D91="","",MH1901_Schedule_B!D91) ->  | G91: =IF(ISNUMBER(MH1901_Schedule_B!E91)=FALSE,0,MH1901_Schedule_B!E91) -> 0 | J91: 0 | K91: 0 | L91: =IF(G91>0,AllocatedCost(M91,H91,I91,K91,$H$105+$I$105,$L$11,G91),0) -> 0 | M91: 200 | N91: =IF(SUM(G91:I91)>0,DecodeAllocationType(M91,[12]Setup!$B$32),"") -> 
B92: 0___3 | C92: 73 | D92: =MH1901_Schedule_B!B92 -> 0 | E92: =IF(MH1901_Schedule_B!C92="","",MH1901_Schedule_B!C92) ->  | F92: =IF(MH1901_Schedule_B!D92="","",MH1901_Schedule_B!D92) ->  | G92: =IF(ISNUMBER(MH1901_Schedule_B!E92)=FALSE,0,MH1901_Schedule_B!E92) -> 0 | J92: 0 | K92: 0 | L92: =IF(G92>0,AllocatedCost(M92,H92,I92,K92,$H$105+$I$105,$L$11,G92),0) -> 0 | M92: 200 | N92: =IF(SUM(G92:I92)>0,DecodeAllocationType(M92,[12]Setup!$B$32),"") -> 
B93: 0___4 | C93: 74 | D93: =MH1901_Schedule_B!B93 -> 0 | E93: =IF(MH1901_Schedule_B!C93="","",MH1901_Schedule_B!C93) ->  | F93: =IF(MH1901_Schedule_B!D93="","",MH1901_Schedule_B!D93) ->  | G93: =IF(ISNUMBER(MH1901_Schedule_B!E93)=FALSE,0,MH1901_Schedule_B!E93) -> 0 | J93: 0 | K93: 0 | L93: =IF(G93>0,AllocatedCost(M93,H93,I93,K93,$H$105+$I$105,$L$11,G93),0) -> 0 | M93: 200 | N93: =IF(SUM(G93:I93)>0,DecodeAllocationType(M93,[12]Setup!$B$32),"") -> 
B94: 0___5 | C94: 75 | D94: =MH1901_Schedule_B!B94 -> 0 | E94: =IF(MH1901_Schedule_B!C94="","",MH1901_Schedule_B!C94) ->  | F94: =IF(MH1901_Schedule_B!D94="","",MH1901_Schedule_B!D94) ->  | G94: =IF(ISNUMBER(MH1901_Schedule_B!E94)=FALSE,0,MH1901_Schedule_B!E94) -> 0 | J94: 0 | K94: 0 | L94: =IF(G94>0,AllocatedCost(M94,H94,I94,K94,$H$105+$I$105,$L$11,G94),0) -> 0 | M94: 200 | N94: =IF(SUM(G94:I94)>0,DecodeAllocationType(M94,[12]Setup!$B$32),"") -> 
B95: 0___6 | C95: 76 | D95: =MH1901_Schedule_B!B95 -> 0 | E95: =IF(MH1901_Schedule_B!C95="","",MH1901_Schedule_B!C95) ->  | F95: =IF(MH1901_Schedule_B!D95="","",MH1901_Schedule_B!D95) ->  | G95: =IF(ISNUMBER(MH1901_Schedule_B!E95)=FALSE,0,MH1901_Schedule_B!E95) -> 0 | J95: 0 | K95: 0 | L95: =IF(G95>0,AllocatedCost(M95,H95,I95,K95,$H$105+$I$105,$L$11,G95),0) -> 0 | M95: 200 | N95: =IF(SUM(G95:I95)>0,DecodeAllocationType(M95,[12]Setup!$B$32),"") -> 
B96: 0___7 | C96: 77 | D96: =MH1901_Schedule_B!B96 -> 0 | E96: =IF(MH1901_Schedule_B!C96="","",MH1901_Schedule_B!C96) ->  | F96: =IF(MH1901_Schedule_B!D96="","",MH1901_Schedule_B!D96) ->  | G96: =IF(ISNUMBER(MH1901_Schedule_B!E96)=FALSE,0,MH1901_Schedule_B!E96) -> 0 | J96: 0 | K96: 0 | L96: =IF(G96>0,AllocatedCost(M96,H96,I96,K96,$H$105+$I$105,$L$11,G96),0) -> 0 | M96: 200 | N96: =IF(SUM(G96:I96)>0,DecodeAllocationType(M96,[12]Setup!$B$32),"") -> 
B97: 0___8 | C97: 78 | D97: =MH1901_Schedule_B!B97 -> 0 | E97: =IF(MH1901_Schedule_B!C97="","",MH1901_Schedule_B!C97) ->  | F97: =IF(MH1901_Schedule_B!D97="","",MH1901_Schedule_B!D97) ->  | G97: =IF(ISNUMBER(MH1901_Schedule_B!E97)=FALSE,0,MH1901_Schedule_B!E97) -> 0 | J97: 0 | K97: 0 | L97: =IF(G97>0,AllocatedCost(M97,H97,I97,K97,$H$105+$I$105,$L$11,G97),0) -> 0 | M97: 200 | N97: =IF(SUM(G97:I97)>0,DecodeAllocationType(M97,[12]Setup!$B$32),"") -> 
B98: 0___9 | C98: 79 | D98: =MH1901_Schedule_B!B98 -> 0 | E98: =IF(MH1901_Schedule_B!C98="","",MH1901_Schedule_B!C98) ->  | F98: =IF(MH1901_Schedule_B!D98="","",MH1901_Schedule_B!D98) ->  | G98: =IF(ISNUMBER(MH1901_Schedule_B!E98)=FALSE,0,MH1901_Schedule_B!E98) -> 0 | J98: 0 | K98: 0 | L98: =IF(G98>0,AllocatedCost(M98,H98,I98,K98,$H$105+$I$105,$L$11,G98),0) -> 0 | M98: 200 | N98: =IF(SUM(G98:I98)>0,DecodeAllocationType(M98,[12]Setup!$B$32),"") -> 
B99: 0___0 | C99: 80 | D99: =MH1901_Schedule_B!B99 -> 0 | E99: =IF(MH1901_Schedule_B!C99="","",MH1901_Schedule_B!C99) ->  | F99: =IF(MH1901_Schedule_B!D99="","",MH1901_Schedule_B!D99) ->  | G99: =IF(ISNUMBER(MH1901_Schedule_B!E99)=FALSE,0,MH1901_Schedule_B!E99) -> 0 | J99: 0 | K99: 0 | L99: =IF(G99>0,AllocatedCost(M99,H99,I99,K99,$H$105+$I$105,$L$11,G99),0) -> 0 | M99: 200 | N99: =IF(SUM(G99:I99)>0,DecodeAllocationType(M99,[12]Setup!$B$32),"") -> 
B100: 0___1 | C100: 81 | D100: =MH1901_Schedule_B!B100 -> 0 | E100: =IF(MH1901_Schedule_B!C100="","",MH1901_Schedule_B!C100) ->  | F100: =IF(MH1901_Schedule_B!D100="","",MH1901_Schedule_B!D100) ->  | G100: =IF(ISNUMBER(MH1901_Schedule_B!E100)=FALSE,0,MH1901_Schedule_B!E100) -> 0 | J100: 0 | K100: 0 | L100: =IF(G100>0,AllocatedCost(M100,H100,I100,K100,$H$105+$I$105,$L$11,G100),0) -> 0 | M100: 200 | N100: =IF(SUM(G100:I100)>0,DecodeAllocationType(M100,[12]Setup!$B$32),"") -> 
B101: 0___2 | C101: 82 | D101: =MH1901_Schedule_B!B101 -> 0 | E101: =IF(MH1901_Schedule_B!C101="","",MH1901_Schedule_B!C101) ->  | F101: =IF(MH1901_Schedule_B!D101="","",MH1901_Schedule_B!D101) ->  | G101: =IF(ISNUMBER(MH1901_Schedule_B!E101)=FALSE,0,MH1901_Schedule_B!E101) -> 0 | J101: 0 | K101: 0 | L101: =IF(G101>0,AllocatedCost(M101,H101,I101,K101,$H$105+$I$105,$L$11,G101),0) -> 0 | M101: 200 | N101: =IF(SUM(G101:I101)>0,DecodeAllocationType(M101,[12]Setup!$B$32),"") -> 
B102: 0___3 | C102: 83 | D102: =MH1901_Schedule_B!B102 -> 0 | E102: =IF(MH1901_Schedule_B!C102="","",MH1901_Schedule_B!C102) ->  | F102: =IF(MH1901_Schedule_B!D102="","",MH1901_Schedule_B!D102) ->  | G102: =IF(ISNUMBER(MH1901_Schedule_B!E102)=FALSE,0,MH1901_Schedule_B!E102) -> 0 | J102: 0 | K102: 0 | L102: =IF(G102>0,AllocatedCost(M102,H102,I102,K102,$H$105+$I$105,$L$11,G102),0) -> 0 | M102: 200 | N102: =IF(SUM(G102:I102)>0,DecodeAllocationType(M102,[12]Setup!$B$32),"") -> 
B103: 0___4 | C103: 84 | D103: =MH1901_Schedule_B!B103 -> 0 | E103: =IF(MH1901_Schedule_B!C103="","",MH1901_Schedule_B!C103) ->  | F103: =IF(MH1901_Schedule_B!D103="","",MH1901_Schedule_B!D103) ->  | G103: =IF(ISNUMBER(MH1901_Schedule_B!E103)=FALSE,0,MH1901_Schedule_B!E103) -> 0 | J103: 0 | K103: 0 | L103: =IF(G103>0,AllocatedCost(M103,H103,I103,K103,$H$105+$I$105,$L$11,G103),0) -> 0 | M103: 200 | N103: =IF(SUM(G103:I103)>0,DecodeAllocationType(M103,[12]Setup!$B$32),"") -> 
B104: =TRIM(D104&"_" & E104 & "_" &F104& "_" &RIGHT(C104,1)) -> ___ | G104: =SUM(G20:G103) -> 5162556.55 | H104: =SUM(H20:H103) -> 1623500 | I104: 57829500 | J104: 0 | K104: 0 | L104: 59453000
H105: =H104-SUMIF($D$20:$D$103,"=HOSP",H20:H103) -> 1623500 | I105: =I104-SUMIF($D$20:$D$103,"=HOSP",I20:I103) -> 57829500 | J105: =J104-SUMIF($D$20:$D$103,"=HOSP",J20:J103) -> 0
D107: Summary
D108: .
D109: . | E109: Non-Hospital Costs | H109: Non-Hospital Costs | K109: Hospital Costs
D110: Mode | E110: Allocated Cost | F110: Allocated % | H110: Settlement Type | I110: Allocated Cost | K110: Allocated Cost | L110: Allocated %
D111: 5 10-19 | E111: =SUM(IF($D$20:$D$103<>"HOSP",IF($E$20:$E$103="05",IF($F$20:$F$103>="10",IF($F$20:$F$103<="19",$L$20:$L$103,0),0),0),0)) -> 0 | F111: =IF($E$118=0,0,E111/$E$118) -> 0 | G111: 15 Program_2 | H111: TBS | I111: =SUM(IF(UPPER($D$20:$D$103)=H111,$L$20:$L$103,0)) -> 0 | J111: =D111 -> 5 10-19 | K111: =SUM(IF($D$20:$D$103="HOSP",IF($E$20:$E$103="05",IF($F$20:$F$103>="10",IF($F$20:$F$103<="19",$L$20:$L$103,0),0),0),0)) -> 0 | L111: =IF($K$118=0,0,K111/$K$118) -> 0
D112: 5 Other | E112: =SUM(IF($D$20:$D$103<>"HOSP",IF($E$20:$E$103="05",IF($F$20:$F$103>"19",$L$20:$L$103,0),0),0)) -> 2329590.322 | F112: 0.03918373037 | H112: ASO | I112: =SUM(IF(UPPER($D$20:$D$103)=H112,$L$20:$L$103,0)) -> 0 | J112: 5 Other | K112: =SUM(IF($D$20:$D$103="HOSP",IF($E$20:$E$103="05",IF($F$20:$F$103>"19",$L$20:$L$103,0),0),0)) -> 0 | L112: =IF($K$118=0,0,K112/$K$118) -> 0
D113: 10 | E113: =SUM(IF($D$20:$D$103<>"HOSP",IF($E$20:$E$103="10",$L$20:$L$103,0),0)) -> 31418437.59 | F113: 0.5284584057 | H113: MHS | I113: =SUM(IF(UPPER($D$20:$D$103)=H113,$L$20:$L$103,0)) -> 0 | J113: 10 | K113: =SUM(IF($D$20:$D$103="HOSP",IF($E$20:$E$103="10",$L$20:$L$103,0),0)) -> 0 | L113: 0
D114: 15 Program_1 | E114: =SUM(IF($D$20:$D$103<>"HOSP",IF($E$20:$E$103="15",IF($D$20:$D$103<>"TBS",IF($D$20:$D$103<>"ASO",IF($D$20:$D$103<>"MHS",$L$20:$L$103,0),0),0),0),0)) -> 23409588.52 | F114: 0.3937494915 | H114: Total | I114: =SUM(I111:I113) -> 0 | J114: 15 Program_1 | K114: =SUM(IF($D$20:$D$103="HOSP",IF($E$20:$E$103="15",IF($D$20:$D$103<>"TBS",IF($D$20:$D$103<>"ASO",IF($D$20:$D$103<>"MHS",$L$20:$L$103,0),0),0),0),0)) -> 0 | L114: 0
D115: 45 | E115: =SUM(IF($D$20:$D$103<>"HOSP",IF($E$20:$E$103="45",$L$20:$L$103,0),0)) -> 349471.9926 | F115: 0.00587812209 | J115: 45 | K115: =SUM(IF($D$20:$D$103="HOSP",IF($E$20:$E$103="45",$L$20:$L$103,0),0)) -> 0 | L115: 0
D116: 55 | E116: =SUM(IF($D$20:$D$103<>"HOSP",IF($E$20:$E$103="55",$L$20:$L$103,0),0)) -> 0 | F116: 0 | J116: 55 | K116: =SUM(IF($D$20:$D$103="HOSP",IF($E$20:$E$103="55",$L$20:$L$103,0),0)) -> 0 | L116: 0
D117: 60 | E117: =SUM(IF($D$20:$D$103<>"HOSP",IF($E$20:$E$103="60",$L$20:$L$103,0),0)) -> 1945911.578 | F117: 0.03273025042 | J117: 60 | K117: =SUM(IF($D$20:$D$103="HOSP",IF($E$20:$E$103="60",$L$20:$L$103,0),0)) -> 0 | L117: 0
D118: Total | E118: =SUM(E111:E117) -> 59453000 | F118: =SUM(F111:F117) -> 1 | J118: Total | K118: =SUM(K111:K117) -> 0 | L118: =SUM(L111:L117) -> 0

Sheet LAC103
D1: COUNTY OF LOS ANGELES - DEPARTMENT OF MENTAL HEALTH
X2: Fiscal Year | Z2: ='LAC101'!I6 -> 2020 - 2021
D3: SUPPLEMENTAL DETAIL TO MH 1901 SCHEDULES A, B, & C
D4: LAC 103 (07/01/20-06/30/21) | X4: Entity's Fiscal
X5: Period Ending | Z5: 2021-06-30
D6: Entity Name | F6: =IF(MH1900_INFO!B7="","",MH1900_INFO!B7) -> Vermont Mental Health
X7: For Less than Fiscal
D8: Entity Number | F8: =IF(MH1900_INFO!B8="","",MH1900_INFO!B8) -> 00055 | X8: Year in County
X9: ___Entry or ___Exit Date | Z9: 0
D11: 1 | E11: 2 | F11: 3 | G11: =F11+1 -> 4 | H11: =G11+1 -> 5 | I11: 6 | J11: 7 | K11: 8 | L11: 9 | M11: 10 | P11: 11 | Q11: 11A | R11: 12 | S11: =R11+1 -> 13 | T11: 14 | U11: 15 | V11: 16 | W11: 17 | X11: 18 | Y11: 19 | Z11: 19
D12: A | E12: A | F12: A | G12: A | S12: Third Party Revenues (For Medi-Cal and Non Medi-Cal Clients) | Z12: Claimable Amount Before Contract Limit Comparison
D13: A | E13: A | F13: A | G13: A | P13: Reimb. Rate (Lower of Cost, PC, or SMA, or County Contracted Rate) | V13: Other: (Please specify below) | Y13: Total Patient and Other Payor Revenues
D14: Settlement Type | E14: Mode | F14: SF | G14: Cost of DMH Units of Service | H14: Total DMH Units of Service (Billable Unit) | I14: Cost per Billable Unit | J14: CMA | K14: Published Charge | L14: County Contracted Rate | M14: SMA | N14: MH1968 (Settlement Type) | O14: Reimbursable Rate per MH1968 | Q14: Ancilinary Costs | R14: Billable Units x Reimbursable Rate | S14: Patient Fees | T14: Patient Insurance | U14: Medicare | V14: Interest & Other | W14: SSI
A15: =CONCATENATE(E15,F15) -> 0520 | B15: 1 | C15: =IFERROR(VLOOKUP($A15,'LAC CMA'!$F$15:$G$325,2,FALSE),"") -> OP | D15: =MH1901_Schedule_C!D20 -> CR | E15: =MH1901_Schedule_C!E20 -> 05 | F15: =MH1901_Schedule_C!F20 -> 20 | G15: =IF(MH1901_Schedule_C!L20="","",MH1901_Schedule_C!L20) -> 451888.8304 | H15: =MH1901_Schedule_C!G20 -> 5869 | I15: =IF(C15="CMS",0,IF(G15=0,0,G15/H15)) -> 76.99588182 | J15: =IFERROR(VLOOKUP($A15,'LAC CMA'!$F$15:$L$325,3,FALSE),"") -> 681.06 | K15: =IFERROR(VLOOKUP($A15,'LAC CMA'!$F$15:$L$325,5,FALSE),"") -> 790.9 | L15: =IFERROR(VLOOKUP($A15,'LAC CMA'!$F$15:$L$325,6,FALSE),"") -> 0 | M15: =IF($C15="IPADM",'LAC CMA'!$L$24,0) -> 0 | N15: =IF($C15="IP",SUM,IF($C15="IPAdm",'MH1968'!$J$7,"")) ->  | O15: =IF(N15="PC",K15,IF(N15="SMA",M15,I15)) -> 76.99588182 | P15: =IF(L15>0,L15,IF(C15="IPADM",MIN(O15,J15),IF(C15="IP",MIN(O15,J15),IF(C15="INV",0,I15)))) -> 76.99588182 | Q15: =IF(C15="IPADM",'MH1991'!K$29,0)+IF(C15="IPADM",'MH1991'!L$29,0) -> 0 | R15: =IFERROR(IF(C15="INV",G15,P15*H15+Q15),0) -> 451888.8304 | Y15: =SUM(S15:X15) -> 0 | Z15: =R15-Y15 -> 451888.8304
A16: =CONCATENATE(E16,F16) -> 0521 | B16: 2 | C16: =IFERROR(VLOOKUP($A16,'LAC CMA'!$F$15:$G$325,2,FALSE),"") -> OP | D16: =MH1901_Schedule_C!D21 -> CR | E16: =MH1901_Schedule_C!E21 -> 05 | F16: =MH1901_Schedule_C!F21 -> 21 | G16: =MH1901_Schedule_C!L21 -> 457793.9476 | H16: =MH1901_Schedule_C!G21 -> 533 | I16: =IF(C16="CMS",0,IF(G16=0,0,G16/H16)) -> 858.9004645 | J16: =IFERROR(VLOOKUP($A16,'LAC CMA'!$F$15:$L$325,3,FALSE),"") -> 681.06 | K16: =IFERROR(VLOOKUP($A16,'LAC CMA'!$F$15:$L$325,5,FALSE),"") -> 790.9 | L16: =IFERROR(VLOOKUP($A16,'LAC CMA'!$F$15:$L$325,6,FALSE),"") -> 0 | M16: =IF($C16="IPADM",'LAC CMA'!$L$24,0) -> 0 | N16: =IF($C16="IP",SUM,IF($C16="IPAdm",'MH1968'!$J$7,"")) ->  | O16: =IF(N16="PC",K16,IF(N16="SMA",M16,I16)) -> 858.9004645 | P16: =IF(L16>0,L16,IF(C16="IPADM",MIN(O16,J16),IF(C16="IP",MIN(O16,J16),IF(C16="INV",0,I16)))) -> 858.9004645 | Q16: =IF(C16="IPADM",'MH1991'!K$29,0)+IF(C16="IPADM",'MH1991'!L$29,0) -> 0 | R16: =IFERROR(IF(C16="INV",G16,P16*H16+Q16),0) -> 457793.9476 | Y16: =SUM(S16:X16) -> 0 | Z16: 457793.9476
A17: 0543 | B17: 3 | C17: =IFERROR(VLOOKUP($A17,'LAC CMA'!$F$15:$G$325,2,FALSE),"") -> OP | D17: =MH1901_Schedule_C!D22 -> CR | E17: =MH1901_Schedule_C!E22 -> 05 | F17: =MH1901_Schedule_C!F22 -> 43 | G17: =MH1901_Schedule_C!L22 -> 947897.0287 | H17: =MH1901_Schedule_C!G22 -> 2201 | I17: 430.6665283 | J17: =IFERROR(VLOOKUP($A17,'LAC CMA'!$F$15:$L$325,3,FALSE),"") -> 384.05 | K17: =IFERROR(VLOOKUP($A17,'LAC CMA'!$F$15:$L$325,5,FALSE),"") -> 396.57 | L17: =IFERROR(VLOOKUP($A17,'LAC CMA'!$F$15:$L$325,6,FALSE),"") -> 0 | M17: =IF($C17="IPADM",'LAC CMA'!$L$24,0) -> 0 | N17: =IF($C17="IP",SUM,IF($C17="IPAdm",'MH1968'!$J$7,"")) ->  | O17: 430.6665283 | P17: 430.6665283 | Q17: =IF(C17="IPADM",'MH1991'!K$29,0)+IF(C17="IPADM",'MH1991'!L$29,0) -> 0 | R17: 947897.0287 | Y17: 0 | Z17: 947897.0287
A18: 0544 | B18: 4 | C18: =IFERROR(VLOOKUP($A18,'LAC CMA'!$F$15:$G$325,2,FALSE),"") -> OP | D18: =MH1901_Schedule_C!D23 -> CR | E18: =MH1901_Schedule_C!E23 -> 05 | F18: =MH1901_Schedule_C!F23 -> 44 | G18: =MH1901_Schedule_C!L23 -> 472010.515 | H18: =MH1901_Schedule_C!G23 -> 1096 | I18: 430.6665283 | J18: =IFERROR(VLOOKUP($A18,'LAC CMA'!$F$15:$L$325,3,FALSE),"") -> 384.05 | K18: =IFERROR(VLOOKUP($A18,'LAC CMA'!$F$15:$L$325,5,FALSE),"") -> 396.57 | L18: =IFERROR(VLOOKUP($A18,'LAC CMA'!$F$15:$L$325,6,FALSE),"") -> 0 | M18: =IF($C18="IPADM",'LAC CMA'!$L$24,0) -> 0 | N18: =IF($C18="IP",SUM,IF($C18="IPAdm",'MH1968'!$J$7,"")) ->  | O18: 430.6665283 | P18: 430.6665283 | Q18: =IF(C18="IPADM",'MH1991'!K$29,0)+IF(C18="IPADM",'MH1991'!L$29,0) -> 0 | R18: 472010.515 | Y18: 0 | Z18: 472010.515
A19: 1025 | B19: 5 | C19: =IFERROR(VLOOKUP($A19,'LAC CMA'!$F$15:$G$325,2,FALSE),"") -> UCC | D19: =MH1901_Schedule_C!D24 -> CR | E19: =MH1901_Schedule_C!E24 -> 10 | F19: =MH1901_Schedule_C!F24 -> 25 | G19: =MH1901_Schedule_C!L24 -> 31418437.59 | H19: =MH1901_Schedule_C!G24 -> 241692 | I19: 129.993701 | J19: =IFERROR(VLOOKUP($A19,'LAC CMA'!$F$15:$L$325,3,FALSE),"") -> 113.45 | K19: =IFERROR(VLOOKUP($A19,'LAC CMA'!$F$15:$L$325,5,FALSE),"") -> 119.74 | L19: =IFERROR(VLOOKUP($A19,'LAC CMA'!$F$15:$L$325,6,FALSE),"") -> 0 | M19: =IF($C19="IPADM",'LAC CMA'!$L$24,0) -> 0 | N19: =IF($C19="IP",SUM,IF($C19="IPAdm",'MH1968'!$J$7,"")) ->  | O19: 129.993701 | P19: 129.993701 | Q19: =IF(C19="IPADM",'MH1991'!K$29,0)+IF(C19="IPADM",'MH1991'!L$29,0) -> 0 | R19: 31418437.59 | Y19: 0 | Z19: 31418437.59
A20: 1504 | B20: 6 | C20: =IFERROR(VLOOKUP($A20,'LAC CMA'!$F$15:$G$325,2,FALSE),"") -> OP | D20: =MH1901_Schedule_C!D25 -> CR | E20: =MH1901_Schedule_C!E25 -> 15 | F20: =MH1901_Schedule_C!F25 -> 04 | G20: =MH1901_Schedule_C!L25 -> 2555878.232 | H20: =MH1901_Schedule_C!G25 -> 774186 | I20: 3.301374905 | J20: =IFERROR(VLOOKUP($A20,'LAC CMA'!$F$15:$L$325,3,FALSE),"") -> 2.42 | K20: =IFERROR(VLOOKUP($A20,'LAC CMA'!$F$15:$L$325,5,FALSE),"") -> 3 | L20: =IFERROR(VLOOKUP($A20,'LAC CMA'!$F$15:$L$325,6,FALSE),"") -> 0 | M20: =IF($C20="IPADM",'LAC CMA'!$L$24,0) -> 0 | N20: =IF($C20="IP",SUM,IF($C20="IPAdm",'MH1968'!$J$7,"")) ->  | O20: 3.301374905 | P20: 3.301374905 | Q20: =IF(C20="IPADM",'MH1991'!K$29,0)+IF(C20="IPADM",'MH1991'!L$29,0) -> 0 | R20: 2555878.232 | Y20: 0 | Z20: 2555878.232
A21: 1505 | B21: 7 | C21: =IFERROR(VLOOKUP($A21,'LAC CMA'!$F$15:$G$325,2,FALSE),"") -> OP | D21: =MH1901_Schedule_C!D26 -> CR | E21: =MH1901_Schedule_C!E26 -> 15 | F21: =MH1901_Schedule_C!F26 -> 05 | G21: =MH1901_Schedule_C!L26 -> 339708.1763 | H21: =MH1901_Schedule_C!G26 -> 102899 | I21: 3.301374905 | J21: =IFERROR(VLOOKUP($A21,'LAC CMA'!$F$15:$L$325,3,FALSE),"") -> 2.42 | K21: =IFERROR(VLOOKUP($A21,'LAC CMA'!$F$15:$L$325,5,FALSE),"") -> 3 | L21: =IFERROR(VLOOKUP($A21,'LAC CMA'!$F$15:$L$325,6,FALSE),"") -> 0 | M21: =IF($C21="IPADM",'LAC CMA'!$L$24,0) -> 0 | N21: =IF($C21="IP",SUM,IF($C21="IPAdm",'MH1968'!$J$7,"")) ->  | O21: 3.301374905 | P21: 3.301374905 | Q21: =IF(C21="IPADM",'MH1991'!K$29,0)+IF(C21="IPADM",'MH1991'!L$29,0) -> 0 | R21: 339708.1763 | Y21: 0 | Z21: 339708.1763
A22: 1510 | B22: 8 | C22: =IFERROR(VLOOKUP($A22,'LAC CMA'!$F$15:$G$325,2,FALSE),"") -> OP | D22: =MH1901_Schedule_C!D27 -> CR | E22: =MH1901_Schedule_C!E27 -> 15 | F22: =MH1901_Schedule_C!F27 -> 10 | G22: =MH1901_Schedule_C!L27 -> 691925.8703 | H22: =MH1901_Schedule_C!G27 -> 162537 | I22: 4.257036061 | J22: =IFERROR(VLOOKUP($A22,'LAC CMA'!$F$15:$L$325,3,FALSE),"") -> 3.14 | K22: =IFERROR(VLOOKUP($A22,'LAC CMA'!$F$15:$L$325,5,FALSE),"") -> 4 | L22: =IFERROR(VLOOKUP($A22,'LAC CMA'!$F$15:$L$325,6,FALSE),"") -> 0 | M22: =IF($C22="IPADM",'LAC CMA'!$L$24,0) -> 0 | N22: =IF($C22="IP",SUM,IF($C22="IPAdm",'MH1968'!$J$7,"")) ->  | O22: 4.257036061 | P22: 4.257036061 | Q22: =IF(C22="IPADM",'MH1991'!K$29,0)+IF(C22="IPADM",'MH1991'!L$29,0) -> 0 | R22: =IFERROR(IF(C22="INV",G22,P22*H22+Q22),0) -> 691925.8703 | Y22: 0 | Z22: 691925.8703
A23: 1542 | B23: 9 | C23: =IFERROR(VLOOKUP($A23,'LAC CMA'!$F$15:$G$325,2,FALSE),"") -> OP | D23: =MH1901_Schedule_C!D28 -> CR | E23: =MH1901_Schedule_C!E28 -> 15 | F23: =MH1901_Schedule_C!F28 -> 42 | G23: =MH1901_Schedule_C!L28 -> 9772958.569 | H23: =MH1901_Schedule_C!G28 -> 2295719 | I23: 4.257036061 | J23: =IFERROR(VLOOKUP($A23,'LAC CMA'!$F$15:$L$325,3,FALSE),"") -> 3.14 | K23: =IFERROR(VLOOKUP($A23,'LAC CMA'!$F$15:$L$325,5,FALSE),"") -> 4 | L23: =IFERROR(VLOOKUP($A23,'LAC CMA'!$F$15:$L$325,6,FALSE),"") -> 0 | M23: =IF($C23="IPADM",'LAC CMA'!$L$24,0) -> 0 | N23: =IF($C23="IP",SUM,IF($C23="IPAdm",'MH1968'!$J$7,"")) ->  | O23: 4.257036061 | P23: 4.257036061 | Q23: =IF(C23="IPADM",'MH1991'!K$29,0)+IF(C23="IPADM",'MH1991'!L$29,0) -> 0 | R23: 9772958.569 | T23: 5849 | V23: 105 | Y23: 5954 | Z23: 9767004.569
